Workbook

Sheet INDICE
F1: ITÁLIA
F2: Trocas comerciais com Portugal (PT) 2018-2022 Setores agrícola e agroalimentar, do mar e das florestas
C3: Fonte
D4: Estatísticas do Comércio Internacional | F4: Itália - Síntese
D5: dados: 2022 definitivos | F5: 1. Evolução da balança comercial
F6: 2. Ranking dos parceiros comerciais de Portugal por país
C7: Data | D7: 2023-11-03T16:00:51.260 | F7: 2A Parceiros comerciais de Portugal - UE vs. Países Terceiros
F8: 3. Principais produtos transacionados (NC a 2 e 4 dígitos)
F9: 3A Principais produtos transacionados (sem mar nem florestas)
F10: 4A Evolução da balança comercial por produto
F11: 5.2. Trocas comerciais por produto (NC 2 dígitos)

Sheet Sintese
A1: Itália - Síntese (2018-2022)
A3: • As trocas comerciais de bens transacionáveis (excluindo serviços) entre Portugal e Itália representam um total de 2,8 mil milhões de € (M€) em exportações e 4,3 mil M€ em importações, na média do período 2018-2022, correspondendo a um saldo negativo da balança comercial de cerca de -1,5 M€. No que se refere ao total da economia (incluindo serviços), as exportações totalizam 3,5 mil M€ e as importações 4,7 mil milhões, correspondendo a um saldo negativo de cerca de -1,2 mil M€.
A4: • No que respeita aos produtos dos setores agrícola e agroalimentar, mar e florestas, Portugal exportou para Itália 876,4 M€ em média anual, no mesmo período (este país ocupa assim a 3ª posição em relação ao total dos países), enquanto as importações totalizaram 449,8 M€ (6ª posição), com um saldo positivo de 426,6 M€. Estes setores representam perto de 31,6% do total de exportações de bens transacionáveis e 10,6% das correspondentes importações.
A5: • Se nos referirmos apenas ao setor agrícola e agroalimentar, as exportações representam, em média, 450 M€ (3ª posição) e as importações 327,4 milhões (6ª posição), ou seja, Portugal tem um saldo positivo de 122,6 M€. Estes valores representam, respetivamente, cerca de 51,4% das exportações do setor agroflorestal e mar e 72,8% das importações.
A6: • As principais exportações agrícolas e agroalimentares (NC 4 dígitos) neste período são Charutos, cigarrilhas e cigarros (48%), Azeite (processos mecânicos ou físicos) (24%) e Frutas de casca rija (4%). As importações agrícolas e agroalimentares mais relevantes referem-se a Chocolate e outras preparações com cacau (12%), Outros produtos de tabaco (9%) e Café (8%). Se considerarmos também os produtos do mar e da floresta, merecem particular destaque, em termos de exportações, Charutos, cigarrilhas e cigarros (25%), Azeite (processos mecânicos ou físicos) (12%) e Papel e cartão p/ escrita, etc. (11%). Nas importações destes setores, destacam-se Chocolate e outras preparações com cacau (9%), Outros produtos de tabaco (6%) e Café (6%).
A9: Saldo da Balança Comercial | B9: 2018 | C9: 2019 | D9: 2020 | E9: 2021 | F9: 2022 | G9: média 2018-2022 | J9: Posição entre os parceiros comerciais de Portugal (milhares de euros)
A10: Total Economia (bens e serviços) | B10: -1240.8 | C10: -1009.3 | D10: -1029.3 | E10: -1198.1 | F10: -1318.1 | G10: -1159.12 | J10: AA + M + F | K10: Posição | L10: média 2018-2022 | M10: % do total | N10: TVMA* 2018-2022 | O10: TVT* 2018-2022
A11: Total de Bens Transacionáveis* | B11: -1620.283808 | C11: -1426.459928 | D11: -1193.10303 | E11: -1399.449887 | F11: -1787.585919 | G11: -1485.376514 | J11: Exportações | K11: 3ª | L11: 876413.3826 | M11: 0.06762562854 | N11: 0.07665670902 | O11: 0.3437206889
A12: Agrícola e Agroalimentar (AA) | B12: 127.736573 | C12: 1900-04-17T07:41:08.995 | D12: 130.110142 | E12: 157.076602 | F12: 1900-03-29T18:24:49.536 | G12: 122.60216 | J12: Importações | K12: 6ª | L12: 449834.2436 | M12: 0.030082289 | N12: 0.1050828593 | O12: 0.4913492866
A13: Mar (M) | B13: 120.559497 | C13: 104.797647 | D13: 76.748683 | E13: 92.441211 | F13: 112.646579 | G13: 101.4387234 | J13: AA
A14: Florestas (F) | B14: 162.175636 | C14: 1900-06-17T22:15:43.776 | D14: 165.817397 | E14: 224.241567 | F14: 1900-10-16T12:41:53.203 | G14: 202.5382556 | J14: Exportações | K14: 3ª | L14: 450048.5236 | M14: 0.06366542085 | N14: 0.07767039969 | O14: 0.3487883842
A15: AA + M + F | B15: 410.471706 | C15: 1901-01-17T01:05:29.472 | D15: 372.676222 | E15: 473.75938 | F15: 1901-05-06T22:37:47.165 | G15: 426.579139 | J15: Importações | K15: 6ª | L15: 327446.3636 | M15: 0.03209915746 | N15: 0.1059794 | O15: 0.6547606669
K16: *TVMA - Taxa de variação média anual; TVT - Taxa de variação total
A17: milhões de euros *exclui serviços
A19: Evolução das trocas comerciais Portugal-Itália em milhares de euros (2018-2022)
E28: Exportações | G28: Importações | I28: Saldo
A29: Principais produtos agrícolas e agroalimentares, do mar e da floresta transacionados (NC 4 dígitos)
A48: Principais produtos agrícolas e agroalimentares transacionados (NC 4 dígitos)
A82: Fonte: GPP a partir de dados INE/Comércio Internacional (2022 definitivos) | N82: 2023-11-03T16:00:51.260

Sheet 1
A1: Evolução da balança comercial Portugal-Itália 2018-2022 em milhões de euros
A3: Total da Economia (TE)(1) | B3: 2018 | C3: 2019 | D3: 2020 | E3: 2021 | F3: 2022 | G3: média quinquénio | H3: var. 18/19 | I3: var. 19/20 | J3: var. 20/21 | K3: var. 21/22 | L3: TVMA* 2018-2022 | M3: TVT* 2018-2022
A4: Exportações | B4: 3221.2 | C4: 3561.2 | D4: 2842.9 | E4: 3439.2 | F4: 4515.4 | G4: 3515.98 | H4: 0.1055507264 | I4: -0.2017016736 | J4: 0.2097506068 | K4: 0.3129216097 | L4: 0.08810206513 | M4: 0.4017757358
A5: Importações | B5: 4462 | C5: 4570.5 | D5: 3872.2 | E5: 4637.3 | F5: 5833.5 | G5: 4675.1 | H5: 0.02431645002 | I5: -0.1527841593 | J5: 0.1975879345 | K5: 0.2579518254 | L5: 0.06930084265 | M5: 0.3073733752
A6: Saldo (exp-imp) | B6: -1240.8 | C6: -1009.3 | D6: -1029.3 | E6: -1198.1 | F6: -1318.1 | G6: -1159.12
A7: Cobertura (exp/imp) | B7: 0.7219184222 | C7: 0.7791707691 | D7: 0.7341821187 | E7: 0.7416384534 | F7: 0.7740464558 | G7: 0.7520651965 | L7: Exportações
A8: Exp TE Itália / Exp TE Mundo | B8: 0.03613490745 | C8: 0.03818120815 | D8: 0.03826977951 | E8: 0.038467772 | F8: 0.03770633045 | G8: 0.03773668857 | L8: Importações
A9: Imp TE Itália / Imp TE Mundo | B9: 0.05059279402 | C9: 0.04951692692 | D9: 0.04927417682 | E9: 0.04854251702 | F9: 0.04640887955 | G9: 0.04866757424
A10: (1) Todas as transações entre PT e Itália (inclui bens e serviços) | E10: Fonte: GEE/ME e GPP a partir de INE/Contas Nacionais (2016 e 2020 provisórios; 2021 preliminares) | H10: *TVMA - Taxa de variação média anual; TVT - Taxa de variação total
A22: Total de Bens Transacionáveis (BT)(1) | B22: 2018 | C22: 2019 | D22: 2020 | E22: 2021 | F22: 2022 | G22: média quinquénio | H22: var. 18/19 | I22: var. 19/20 | J22: var. 20/21 | K22: var. 21/22 | L22: TVMA* 2018-2022 | M22: TVT* 2018-2022
A23: Exportações | B23: 2459.697169 | C23: 2682.881339 | D23: 2358.258978 | E23: 2881.763568 | F23: 3501.343506 | G23: 2776.788912 | H23: 0.0907364422 | I23: -0.1209976589 | J23: 0.2219877439 | K23: 0.2150002675 | L23: 0.09229078482 | M23: 0.4234856023
A24: Importações | B24: 4079.980977 | C24: 4109.341267 | D24: 3551.362008 | E24: 4281.213455 | F24: 5288.929425 | G24: 4262.165426 | H24: 0.007196183062 | I24: -0.1357831396 | J24: 0.2055131089 | K24: 0.2353809219 | L24: 0.0670319126 | M24: 0.2963122757
A25: Saldo (exp-imp) | B25: -1620.283808 | C25: -1426.459928 | D25: -1193.10303 | E25: -1399.449887 | F25: -1787.585919 | G25: -1485.376514
A26: Cobertura (exp/imp) | B26: 0.6028697641 | C26: 0.652873822 | D26: 0.6640435339 | E26: 0.673118404 | F26: 0.6620136562 | G26: 0.6514972166
A27: Exp BT Itália / Exp TE Itália | B27: 0.7635965382 | C27: 0.7533644106 | D27: 0.8295258286 | E27: 0.8379168318 | F27: 0.775422666 | G27: 0.789762431 | L27: Exportações
A28: Imp BT Itália / Imp TE Itália | B28: 0.9143839034 | C28: 0.8991010321 | D28: 0.9171432281 | E28: 0.9232125278 | F28: 0.9066477115 | G28: 0.9116736383 | L28: Importações
A29: Exp BT Itália / Exp BT Mundo | B29: 0.04251853976 | C29: 0.04478723688 | D29: 0.04386855213 | E29: 0.04529755374 | F29: 0.04469525684 | G29: 0.04429158594
A30: Imp BT Itália / Imp BT Mundo | B30: 0.05408300291 | C30: 0.05138145557 | D30: 0.05211435041 | E30: 0.05149048829 | F30: 0.04830698917 | G30: 0.05120413759
A31: Exp BT Itália / Exp TE Mundo | B31: 0.02759249024 | C31: 0.02876436337 | D31: 0.03174577055 | E31: 0.03223279364 | F31: 0.02923834328 | G31: 0.0298030189
A32: Imp BT Itália / Imp TE Mundo | B32: 0.04626123648 | C32: 0.0445207201 | D32: 0.04519147759 | E32: 0.04481505985 | F32: 0.04207650444 | G32: 0.04436894447
A33: (1) Todos os produtos transacionados entre PT e Itália (exclui serviços) | D33: TE - Total da Economia (bens e serviços) Fonte: INE/Contas Nacionais | H33: *TVMA - Taxa de variação média anual; TVT - Taxa de variação total
A46: Agro(1) + Mar + Florestas (AMF) | B46: 2018 | C46: 2019 | D46: 2020 | E46: 2021 | F46: 2022 | G46: média quinquénio | H46: var. 18/19 | I46: var. 19/20 | J46: var. 20/21 | K46: var. 21/22 | L46: TVMA* 2018-2022 | M46: TVT* 2018-2022
A47: Exportações | B47: 807.52497 | C47: 809.80502 | D47: 745.258255 | E47: 934.390659 | F47: 1085.088009 | G47: 876.4133826 | H47: 0.002823504021 | I47: -0.07970655084 | J47: 0.2537810252 | K47: 0.161278742 | L47: 0.07665670902 | M47: 0.3437206889
A48: Importações | B48: 397.053264 | C48: 426.75954 | D48: 372.582033 | E48: 460.631279 | F48: 592.145102 | G48: 449.8342436 | H48: 0.07481685379 | I48: -0.1269508984 | J48: 0.2363217713 | K48: 0.2855077998 | L48: 0.1050828593 | M48: 0.4913492866
A49: Saldo (exp-imp) | B49: 410.471706 | C49: 383.04548 | D49: 372.676222 | E49: 473.75938 | F49: 492.942907 | G49: 426.579139
A50: Cobertura (exp/imp) | B50: 2.033795068 | C50: 1.897567469 | D50: 2.000252801 | E50: 2.028500238 | F50: 1.832469787 | G50: 1.948302947
A51: Exp AMF Itália / Exp BT Itália | B51: 0.3283025976 | C51: 0.3018415344 | D51: 0.3160205312 | E51: 0.3242426511 | F51: 0.3099061852 | G51: 0.3156211762 | L51: Exportações
A52: Imp AMF Itália / Imp BT Itália | B52: 0.09731743021 | C52: 0.1038510828 | D52: 0.1049124342 | E52: 0.1075936259 | F52: 0.1119593503 | G52: 0.1055412446 | L52: Importações
A53: Exp AMF Itália / Exp TE Itália | B53: 0.2506907271 | C53: 0.2273966697 | D53: 0.262147193 | E53: 0.2716883749 | F53: 0.2403082803 | G53: 0.2492657474
A54: Imp AMF Itália / Imp TE Itália | B54: 0.08898549171 | C54: 0.09337261569 | D54: 0.09621972858 | E54: 0.09933178337 | F54: 0.1015076887 | G54: 0.09621917041
A55: Exp AMF Itália / Exp AMF Mundo | B55: 0.06931122638 | C55: 0.06846609523 | D55: 0.06460597225 | E55: 0.06974850205 | F55: 0.06621087693 | G55: 0.06762562854
A56: Imp AMF Itália / Imp AMF Mundo | B56: 0.02912955831 | C56: 0.03085001537 | D56: 0.02856044129 | E56: 0.03082256714 | F56: 0.03065991978 | G56: 0.030082289
A57: Exp AMF Itália / Exp BT Mundo | B57: 0.01395894705 | C57: 0.0135186483 | D57: 0.01386336315 | E57: 0.01468739891 | F57: 0.01385133654 | G57: 0.01397936245
A58: Imp AMF Itália / Imp BT Mundo | B58: 0.005263218861 | C58: 0.005336019795 | D58: 0.005467443358 | E58: 0.005540048336 | F58: 0.005408419121 | G58: 0.005404148408
A59: (1) Produtos agrícolas e agroalimentares | B59: BT - Total de Bens Transacionáveis (exclui serviços); TE - Total da Economia (bens e serviços) | H59: *TVMA - Taxa de variação média anual; TVT - Taxa de variação total
A71: Agroalimentar (AA)(1) | B71: 2018 | C71: 2019 | D71: 2020 | E71: 2021 | F71: 2022 | G71: média quinquénio | H71: var. 18/19 | I71: var. 19/20 | J71: var. 20/21 | K71: var. 21/22 | L71: TVMA* 2018-2022 | M71: TVT* 2018-2022
A72: Exportações | B72: 397.441937 | C72: 413.774588 | D72: 400.299293 | E72: 502.661732 | F72: 536.065068 | G72: 450.0485236 | H72: 0.04109443287 | I72: -0.03256675347 | J72: 0.2557147634 | K72: 0.06645291231 | L72: 0.07767039969 | M72: 0.3487883842
A73: Importações | B73: 269.705364 | C73: 305.454345 | D73: 270.189151 | E73: 345.58513 | F73: 446.297828 | G73: 327.4463636 | H73: 0.1325482759 | I73: -0.1154516037 | J73: 0.2790488764 | K73: 0.2914265958 | L73: 0.1341847337 | M73: 0.6547606669
A74: Saldo (exp-imp) | B74: 127.736573 | C74: 108.320243 | D74: 130.110142 | E74: 157.076602 | F74: 89.76724 | G74: 122.60216
A75: Cobertura (exp/imp) | B75: 1.473615249 | C75: 1.354620076 | D75: 1.481552059 | E75: 1.454523613 | F75: 1.201137524 | G75: 1.374419061
A76: Exp AA Itália / Exp AMF Itália | B76: 0.492172938 | C76: 0.51095582 | D76: 0.5371282912 | E76: 0.5379567177 | F76: 0.4940291143 | G76: 0.5135116973 | L76: Exportações
A77: Imp AA Itália / Imp AMF Itália | B77: 0.6792674647 | C77: 0.7157528218 | D77: 0.7251803014 | E77: 0.7502424298 | F77: 0.7536967316 | G77: 0.7279267158 | L77: Importações
A78: Exp AA Itália / Exp BT Itália | B78: 0.161581654 | C78: 0.1542276887 | D78: 0.1697435679 | E78: 0.1744285123 | F78: 0.1531026782 | G78: 0.1620751659
A79: Imp AA Itália / Imp BT Itália | B79: 0.06610456409 | C79: 0.07433170553 | D79: 0.07608043066 | E79: 0.08072130335 | F79: 0.08438339636 | G79: 0.07682629153
A80: Exp AA Itália / Exp TE Itália | B80: 0.1233831917 | C80: 0.1161896518 | D80: 0.1408066738 | E80: 0.1461565864 | F80: 0.1187192869 | G80: 0.128000877
A81: Imp AA Itália / Imp TE Itália | B81: 0.06044494935 | C81: 0.06683171316 | D81: 0.06977665177 | E81: 0.07452291851 | F81: 0.0765060132 | G81: 0.07004050472
A82: Exp AA Itália / Exp AA Mundo | B82: 0.06508104703 | C82: 0.06576557301 | D82: 0.06049483974 | E82: 0.06745505015 | F82: 0.06038539665 | G82: 0.06366542085
A83: Imp AA Itália / Imp AA Mundo | B83: 0.02965138784 | C83: 0.03278436696 | D83: 0.02974193439 | E83: 0.03364720045 | F83: 0.03371542321 | G83: 0.03209915746
A84: Exp AA Itália / Exp AMF Mundo | B84: 0.03411310992 | C84: 0.03498314983 | D84: 0.03470169548 | E84: 0.03752167523 | F84: 0.03271010088 | G84: 0.03472655129
A85: Imp AA Itália / Imp AMF Mundo | B85: 0.01978676122 | C85: 0.02208098555 | D85: 0.02071146943 | E85: 0.02312439766 | F85: 0.02310828133 | G85: 0.02189770183
A86: (1) Produtos agrícolas e agroalimentares | H86: *TVMA - Taxa de variação média anual; TVT - Taxa de variação total
A87: AMF - Agroalimentar, Mar e Florestas; BT - Total de Bens Transacionáveis (exclui serviços); TE - Total da Economia (bens e serviços)
A98: Mar (M) | B98: 2018 | C98: 2019 | D98: 2020 | E98: 2021 | F98: 2022 | G98: média quinquénio | H98: var. 18/19 | I98: var. 19/20 | J98: var. 20/21 | K98: var. 21/22 | L98: TVMA* 2018-2022 | M98: TVT* 2018-2022
A99: Exportações | B99: 136.425891 | C99: 123.55097 | D99: 96.319105 | E99: 112.325677 | F99: 127.994564 | G99: 119.3232414 | H99: -0.09437300285 | I99: -0.2204099652 | J99: 0.1661827319 | K99: 0.1394951486 | L99: -0.01582193453 | M99: -0.06180151684
A100: Importações | B100: 15.866394 | C100: 18.753323 | D100: 19.570422 | E100: 19.884466 | F100: 15.347985 | G100: 17.884518 | H100: 0.1819524336 | I100: 0.04357089141 | J100: 0.0160468691 | K100: -0.2281419576 | L100: -0.008270383759 | M100: -0.03267339762
A101: Saldo (exp-imp) | B101: 120.559497 | C101: 104.797647 | D101: 76.748683 | E101: 92.441211 | F101: 112.646579 | G101: 101.4387234
A102: Cobertura (exp/imp) | B102: 8.598418204 | C102: 6.588217459 | D102: 4.921667249 | E102: 5.648915943 | F102: 8.339502808 | G102: 6.671873483
A103: Exp M Itália / Exp AMF Itália | B103: 0.1689432477 | C103: 0.1525687875 | D103: 0.1292425872 | E103: 0.1202127568 | F103: 0.117957772 | G103: 0.1361494972 | L103: Exportações
A104: Imp M Itália / Imp AMF Itália | B104: 0.03996036663 | C104: 0.04394353551 | D104: 0.05252647811 | E104: 0.04316785878 | F104: 0.0259192974 | G104: 0.0397580181 | L104: Importações
A105: Exp M Itália / Exp BT Itália | B105: 0.05546450706 | C105: 0.04605159692 | D105: 0.04084331106 | E105: 0.03897810294 | F105: 0.03655584314 | G105: 0.04297166446
A106: Imp M Itália / Imp BT Itália | B106: 0.003888840191 | C106: 0.004563583743 | D106: 0.005510680679 | E106: 0.004644586449 | F106: 0.002901907696 | G106: 0.004196110712
A107: Exp M Itália / Exp TE Itália | B107: 0.04235250559 | C107: 0.03469363417 | D107: 0.03388058145 | E107: 0.03266040853 | F107: 0.02834622935 | G107: 0.03393740619
A108: Imp M Itália / Imp TE Itália | B108: 0.003555892873 | C108: 0.004103122853 | D108: 0.005054083467 | E108: 0.004287940396 | F108: 0.002631007971 | G108: 0.003825483519
A109: Exp M Itália / Exp M Mundo | B109: 0.1250687611 | C109: 0.1156425316 | D109: 0.1070605201 | E109: 0.1025406281 | F109: 0.1000644118 | G109: 0.1098050838
A110: Imp M Itália / Imp M Mundo | B110: 0.007198141306 | C110: 0.008605038088 | D110: 0.01016715595 | E110: 0.009504754822 | F110: 0.005902090251 | G110: 0.008128638599
A111: Exp M Itália / Exp AMF Mundo | B111: 0.01170966368 | C111: 0.01044578913 | D111: 0.008349843002 | E111: 0.008384659711 | F111: 0.007810087527 | G111: 0.009207195325
A112: Imp M Itália / Imp AMF Mundo | B112: 0.00116402783 | C112: 0.001355658746 | D112: 0.001500179394 | E112: 0.001330544225 | F112: 0.0007946835789 | G112: 0.001196012191
A113: AMF - Agroalimentar, Mar e Florestas; BT - Total de Bens Transacionáveis (exclui serviços); TE - Total da Economia (bens e serviços) | H113: *TVMA - Taxa de variação média anual; TVT - Taxa de variação total
A125: Florestas (F) | B125: 2018 | C125: 2019 | D125: 2020 | E125: 2021 | F125: 2022 | G125: média quinquénio | H125: var. 18/19 | I125: var. 19/20 | J125: var. 20/21 | K125: var. 21/22 | L125: TVMA* 2018-2022 | M125: TVT* 2018-2022
A126: Exportações | B126: 273.657142 | C126: 272.479462 | D126: 248.639857 | E126: 319.40325 | F126: 421.028377 | G126: 307.0416176 | H126: -0.004303487172 | I126: -0.08749138311 | J126: 0.2846019695 | K126: 0.3181718627 | L126: 0.1137203244 | M126: 0.5385250826
A127: Importações | B127: 111.481506 | C127: 102.551872 | D127: 82.82246 | E127: 95.161683 | F127: 130.499289 | G127: 104.503362 | H127: -0.08009968936 | I127: -0.1923847085 | J127: 0.1489840196 | K127: 0.3713428019 | L127: 0.04016282843 | M127: 0.1705913715
A128: Saldo (exp-imp) | B128: 162.175636 | C128: 169.92759 | D128: 165.817397 | E128: 224.241567 | F128: 290.529088 | G128: 202.5382556
A129: Cobertura (exp/imp) | B129: 2.454731299 | C129: 2.656991595 | D129: 3.002082491 | E129: 3.356427082 | F129: 3.226288666 | G129: 2.938102772
A130: Exp F Itália / Exp AMF Itália | B130: 0.3388838143 | C130: 0.3364753926 | D130: 0.3336291216 | E130: 0.3418305255 | F130: 0.3880131137 | G130: 0.3503388055 | L130: Exportações
A131: Imp F Itália / Imp AMF Itália | B131: 0.2807721686 | C131: 0.2403036427 | D131: 0.2222932205 | E131: 0.2065897114 | F131: 0.220383971 | G131: 0.2323152661 | L131: Importações
A132: Exp F Itália / Exp BT Itália | B132: 0.1112564365 | C132: 0.1015622488 | D132: 0.1054336522 | E132: 0.1108360358 | F132: 0.1202476639 | G132: 0.1105743459
A133: Imp F Itália / Imp BT Itália | B133: 0.02732402593 | C133: 0.02495579348 | D133: 0.02332132287 | E133: 0.02222773613 | F133: 0.0246740462 | G133: 0.02451884231
A134: Exp F Itália / Exp TE Itália | B134: 0.0849550298 | C134: 0.07651338369 | D134: 0.08745993774 | E134: 0.09287137997 | F134: 0.0932427641 | G134: 0.08732746421
A135: Imp F Itália / Imp TE Itália | B135: 0.02498464948 | C135: 0.02243777967 | D135: 0.02138899334 | E135: 0.02052092446 | F135: 0.02237066752 | G135: 0.02235318218
A136: Exp F Itália / Exp F Mundo | B136: 0.06145420235 | C136: 0.06098767653 | D136: 0.06187090767 | E136: 0.06586529407 | F136: 0.06756076592 | G136: 0.06391193175
A137: Imp F Itália / Imp F Mundo | B137: 0.04783617525 | C137: 0.04388278083 | D137: 0.04067761463 | E137: 0.03685989988 | F137: 0.03754623709 | G137: 0.04094666085
A138: Exp F Itália / Exp AMF Mundo | B138: 0.02348845277 | C138: 0.02303715627 | D138: 0.02155443377 | E138: 0.02384216711 | F138: 0.02569068852 | G138: 0.02369188193
A139: Imp F Itália / Imp AMF Mundo | B139: 0.008178769257 | C139: 0.007413371069 | D139: 0.006348792473 | E139: 0.00636762525 | F139: 0.006756954873 | G139: 0.006988574973
A140: AMF - Agroalimentar, Mar e Florestas; BT - Total de Bens Transacionáveis (exclui serviços); TE - Total da Economia (bens e serviços) | H140: *TVMA - Taxa de variação média anual; TVT - Taxa de variação total
A150: Fonte: GPP a partir de dados INE/Comércio Internacional (2020 provisórios; 2021 preliminares) | K150: 2023-11-03T16:00:51.260

Sheet 2
A1: Ranking dos parceiros comerciais de Portugal por país (média 2018-2022 em milhares de euros) produtos agrícolas e agroalimentares, do mar e da floresta
A2: Exportações | F2: Importações | K2: Trocas comerciais (total e saldo)
A3: P | B3: País | C3: média quinquénio | D3: % do Total | F3: P | G3: País | H3: média quinquénio | I3: % do Total | K3: P | L3: País | M3: Total (exp+imp) | N3: % do Total | O3: Saldo (exp-imp)
A4: 1 | B4: Espanha | C4: 4148750.739 | D4: 0.3201250482 | F4: 1 | G4: Espanha | H4: 6893783.417 | I4: 0.4610160031 | K4: 1 | L4: Espanha | M4: 11042534.16 | N4: 0.395602026 | O4: -2745032.678
A5: 2 | B5: França | C5: 1358886.663 | D5: 0.1048541322 | F5: 2 | G5: França | H5: 986144.9388 | I5: 0.06594761841 | K5: 2 | L5: França | M5: 2345031.602 | N5: 0.08401144518 | O5: 372741.7244
A6: 3 | B6: Itália | C6: 876413.3826 | D6: 0.06762562854 | F6: 3 | G6: Alemanha | H6: 882996.1958 | I6: 0.05904963245 | K6: 3 | L6: Alemanha | M6: 1518197.709 | N6: 0.05438987836 | O6: -247794.6828
A7: 4 | B7: Alemanha | C7: 635201.513 | D7: 0.04901328804 | F7: 4 | G7: Países Baixos | H7: 837622.6294 | I7: 0.05601531312 | K7: 4 | L7: Países Baixos | M7: 1425039.699 | N7: 0.05105246534 | O7: -250205.5596
A8: 5 | B8: Países Baixos | C8: 587417.0698 | D8: 0.0453261547 | F8: 5 | G8: Brasil | H8: 705232.1134 | I8: 0.04716180804 | K8: 5 | L8: Itália | M8: 1326247.626 | N8: 0.04751321033 | O8: 426579.139
A9: 6 | B9: Estados Unidos | C9: 554009.1122 | D9: 0.04274833677 | F9: 6 | G9: Itália | H9: 449834.2436 | I9: 0.030082289 | K9: 6 | L9: Brasil | M9: 1157937.372 | N9: 0.04148344611 | O9: -252526.8544 | P9: Nota: Nesta listagem, o Reino Unido passa a ser constituído por três componentes: Reino Unido [até 2020] ; Reino Unido (sem Irlanda do Norte) pós-2020 e Reino Unido (Irlanda do Norte) pós-2020. Estas componentes são calculadas igualmente como média do quinquénio, embora a primeira corresponda apenas a 2018-2020 e as duas últimas a 2021-2022.
A10: 7 | B10: Brasil | C10: 452705.259 | D10: 0.03493154976 | F10: 7 | G10: Suécia | H10: 342054.8722 | I10: 0.02287463364 | K10: 7 | L10: Estados Unidos | M10: 835402.1152 | N10: 0.02992852589 | O10: 272616.1092
A11: 8 | B11: Reino Unido | C11: 382822.421 | D11: 0.02953926464 | F11: 8 | G11: Bélgica | H11: 286674.3358 | I11: 0.01917110656 | K11: 8 | L11: Reino Unido | M11: 527725.3878 | N11: 0.01890591685 | O11: 237919.4542
A12: 9 | B12: Angola | C12: 331091.7324 | D12: 0.02554763192 | F12: 9 | G12: Estados Unidos | H12: 281393.003 | I12: 0.01881792184 | K12: 9 | L12: Bélgica | M12: 526747.6872 | N12: 0.01887089044 | O12: -46600.9844
A13: 10 | B13: Reino Unido (sem Irlanda do Norte) pós 2020 | C13: 297693.4518 | D13: 0.02297056069 | F13: 10 | G13: Polónia | H13: 206886.255 | I13: 0.01383534536 | K13: 10 | L13: Polónia | M13: 458140.6776 | N13: 0.0164130242 | O13: 44368.1676
A14: 11 | B14: Polónia | C14: 251254.4226 | D14: 0.0193872419 | F14: 11 | G14: Ucrânia | H14: 195333.6414 | I14: 0.01306277398 | K14: 11 | L14: Suécia | M14: 435988.145 | N14: 0.01561940322 | O14: -248121.5994
A15: 12 | B15: Bélgica | C15: 240073.3514 | D15: 0.01852449039 | F15: 12 | G15: China, República Popular da | H15: 173665.6746 | I15: 0.01161374681 | K15: 12 | L15: China, República Popular da | M15: 367334.7522 | N15: 0.01315987528 | O15: 20003.403
A16: 13 | B16: Israel | C16: 214331.8496 | D16: 0.01653822994 | F16: 13 | G16: África do Sul | H16: 145344.1816 | I16: 0.009719770643 | K16: 13 | L16: Reino Unido (sem Irlanda do Norte) pós 2020 | M16: 358748.5572 | N16: 0.01285227232 | O16: 236638.3464
A17: 14 | B17: China, República Popular da | C17: 193669.0776 | D17: 0.01494385339 | F17: 14 | G17: Reino Unido | H17: 144902.9668 | I17: 0.009690264772 | K17: 14 | L17: Angola | M17: 346515.8172 | N17: 0.01241403082 | O17: 315667.6476
A18: 15 | B18: Turquia | C18: 167223.9134 | D18: 0.01290329709 | F18: 15 | G18: Dinamarca | H18: 144508.7452 | I18: 0.009663901532 | K18: 15 | L18: Dinamarca | M18: 229058.3694 | N18: 0.00820608329 | O18: -59959.121
A19: 16 | B19: Suíça | C19: 143369.888 | D19: 0.01106267771 | F19: 16 | G19: Roménia | H19: 138998.2312 | I19: 0.009295390515 | K19: 16 | L19: Turquia | M19: 223211.8948 | N19: 0.007996631622 | O19: 111235.932
A20: 17 | B20: Marrocos | C20: 109026.8306 | D20: 0.0084127058 | F20: 17 | G20: Irlanda | H20: 115719.6518 | I20: 0.007738654977 | K20: 17 | L20: Israel | M20: 222680.6996 | N20: 0.007977601399 | O20: 205982.9996
A21: 18 | B21: Cabo Verde | C21: 100863.1066 | D21: 0.007782778214 | F21: 18 | G21: Canadá | H21: 108524.1664 | I21: 0.007257462906 | K21: 18 | L21: Ucrânia | M21: 209671.7124 | N21: 0.007511550615 | O21: -180995.5704
A22: 19 | B22: Canadá | C22: 96453.797 | D22: 0.007442547977 | F22: 19 | G22: Rússia, Federação da | H22: 105950.8246 | I22: 0.007085372825 | K22: 19 | L22: Canadá | M22: 204977.9634 | N22: 0.00734339568 | O22: -12070.3694
A23: 20 | B23: Suécia | C23: 93933.2728 | D23: 0.007248059809 | F23: 20 | G23: Uruguai | H23: 102112.0792 | I23: 0.006828659935 | K23: 20 | L23: Rússia, Federação da | M23: 185978.7022 | N23: 0.006662741573 | O23: -25922.947
A24: 21 | B24: Dinamarca | C24: 84549.6242 | D24: 0.006524000652 | F24: 21 | G24: Argentina | H24: 97727.8454 | I24: 0.006535467965 | K24: 21 | L24: África do Sul | M24: 182499.4124 | N24: 0.006538094995 | O24: -108188.9508
A25: 22 | B25: Egito | C25: 83372.4854 | D25: 0.006433170511 | F25: 22 | G25: Índia | H25: 75558.034 | I25: 0.00505288036 | K25: 22 | L25: Irlanda | M25: 179693.3864 | N25: 0.006437568291 | O25: -51745.9172
A26: 23 | B26: Rússia, Federação da | C26: 80027.8776 | D26: 0.006175094574 | F26: 23 | G26: Finlândia | H26: 73941.3526 | I26: 0.004944766143 | K26: 23 | L26: Roménia | M26: 164861.988 | N26: 0.005906229091 | O26: -113134.4744
A27: 24 | B27: Argélia | C27: 78380.8918 | D27: 0.006048010196 | F27: 24 | G27: Vietname | H27: 70011.1556 | I27: 0.004681937504 | K27: 24 | L27: Marrocos | M27: 151643.736 | N27: 0.005432681335 | O27: 66409.9252
A28: 25 | B28: México | C28: 73493.3644 | D28: 0.005670879815 | F28: 25 | G28: Costa Rica | H28: 69969.0578 | I28: 0.004679122249 | K28: 25 | L28: Suíça | M28: 147880.9734 | N28: 0.005297879261 | O28: 138858.8026
A29: 26 | B29: Japão | C29: 66606.0156 | D29: 0.005139439629 | F29: 26 | G29: Áustria | H29: 63908.1406 | I29: 0.004273803478 | K29: 26 | L29: Grécia | M29: 116697.7842 | N29: 0.004180732359 | O29: -11083.3998
A30: 27 | B30: Irlanda | C30: 63973.7346 | D30: 0.004936328105 | F30: 27 | G30: Grécia | H30: 63890.592 | I30: 0.00427262993 | K30: 27 | L30: Argentina | M30: 113763.425 | N30: 0.004075608079 | O30: -81692.2658
A31: 28 | B31: Luxemburgo | C31: 54794.7774 | D31: 0.004228063304 | F31: 28 | G31: Reino Unido (sem Irlanda do Norte) pós 2020 | H31: 61055.1054 | I31: 0.004083009134 | K31: 28 | L31: Uruguai | M31: 105101.1588 | N31: 0.003765279851 | O31: -99122.9996
A32: 29 | B32: Grécia | C32: 52807.1922 | D32: 0.004074697665 | F32: 29 | G32: Turquia | H32: 55987.9814 | I32: 0.003744149453 | K32: 29 | L32: Finlândia | M32: 103158.5318 | N32: 0.003695684669 | O32: -44724.1734
A33: 30 | B33: Áustria | C33: 39217.279 | D33: 0.003026075588 | F33: 30 | G33: Equador | H33: 48767.8678 | I33: 0.003261310391 | K33: 30 | L33: Áustria | M33: 103125.4196 | N33: 0.003694498415 | O33: -24690.8616
A34: 31 | B34: Moçambique | C34: 37446.547 | D34: 0.002889442731 | F34: 31 | G34: Chile | H34: 47784.2222 | I34: 0.003195529914 | K34: 31 | L34: Cabo Verde | M34: 101700.8832 | N34: 0.00364346398 | O34: 100025.33
A35: 32 | B35: África do Sul | C35: 37155.2308 | D35: 0.00286696425 | F35: 32 | G35: Bulgária | H35: 46240.758 | I35: 0.003092312036 | K35: 32 | L35: Índia | M35: 100022.4076 | N35: 0.003583332099 | O35: -51093.6604
A36: 33 | B36: Chile | C36: 36026.5554 | D36: 0.002779873632 | F36: 33 | G36: Cuba | H36: 43073.1354 | I36: 0.002880479923 | K36: 33 | L36: Egito | M36: 93738.5794 | N36: 0.00335821211 | O36: 73006.3914
A37: 34 | B37: Austrália | C37: 34889.2592 | D37: 0.002692117817 | F37: 34 | G37: Marrocos | H37: 42616.9054 | I37: 0.002849969923 | K37: 34 | L37: México | M37: 93580.153 | N37: 0.003352536438 | O37: 53406.5758
A38: 35 | B38: Arábia Saudita | C38: 32818.8452 | D38: 0.00253236096 | F38: 35 | G38: Moçambique | H38: 40008.831 | I38: 0.002675557127 | K38: 35 | L38: Chile | M38: 83810.7776 | N38: 0.003002545698 | O38: -11757.6668
A39: 36 | B39: Guiné-Bissau | C39: 32182.3082 | D39: 0.002483244623 | F39: 36 | G39: Checa, República | H39: 35780.8524 | I39: 0.002392814593 | K39: 36 | L39: Argélia | M39: 83294.638 | N39: 0.002984054845 | O39: 73467.1456
A40: 37 | B40: Finlândia | C40: 29217.1792 | D40: 0.002254449951 | F40: 37 | G40: Colômbia | H40: 29157.4358 | I40: 0.001949879145 | K40: 37 | L40: Japão | M40: 82993.326 | N40: 0.002973260255 | O40: 50218.7052
A41: 38 | B41: Checa, República | C41: 29096.25 | D41: 0.002245118837 | F41: 38 | G41: Indonésia | H41: 28526.3034 | I41: 0.001907672693 | K41: 38 | L41: Moçambique | M41: 77455.378 | N41: 0.002774861643 | O41: -2562.284
A42: 39 | B42: Emirados Árabes Unidos | C42: 29052.9664 | D42: 0.002241778997 | F42: 39 | G42: Guiana | H42: 28025.2924 | I42: 0.001874168001 | K42: 39 | L42: Vietname | M42: 75958.0768 | N42: 0.002721220388 | O42: -64064.2344
A43: 40 | B43: São Tomé e Príncipe | C43: 26792.4812 | D43: 0.002067355905 | F43: 40 | G43: Hungria | H43: 24242.0034 | I43: 0.001621163712 | K43: 40 | L43: Costa Rica | M43: 73986.347 | N43: 0.002650582589 | O43: -65951.7686
A44: 41 | B44: Jordânia | C44: 26642.1032 | D44: 0.002055752468 | F44: 41 | G44: Namíbia | H44: 22831.866 | I44: 0.001526861952 | K44: 41 | L44: Checa, República | M44: 64877.1024 | N44: 0.002324241229 | O44: -6684.6024
A45: 42 | B45: Roménia | C45: 25863.7568 | D45: 0.001995693864 | F45: 42 | G45: Costa do Marfim | H45: 22796.209 | I45: 0.00152447742 | K45: 42 | L45: Luxemburgo | M45: 63347.0378 | N45: 0.002269426215 | O45: 46242.517
A46: 43 | B46: Tunísia | C46: 24967.3514 | D46: 0.001926525616 | F46: 43 | G46: Uganda | H46: 22685.1228 | I46: 0.001517048623 | K46: 43 | L46: Bulgária | M46: 59231.1196 | N46: 0.002121972238 | O46: -33250.3964
A47: 44 | B47: Índia | C47: 24464.3736 | D47: 0.001887714946 | F47: 44 | G47: México | H47: 20086.7886 | I47: 0.001343287196 | K47: 44 | L47: Equador | M47: 51817.4262 | N47: 0.001856374497 | O47: -45718.3094
A48: 45 | B48: Noruega | C48: 22053.074 | D48: 0.001701654744 | F48: 45 | G48: Peru | H48: 19493.8856 | I48: 0.001303637303 | K48: 45 | L48: Austrália | M48: 48712.5526 | N48: 0.001745141489 | O48: 21065.9658
A49: 46 | B49: Coreia, República da | C49: 18924.4824 | D49: 0.001460247005 | F49: 46 | G49: Paraguai | H49: 18840.7592 | I49: 0.001259960021 | K49: 46 | L49: Cuba | M49: 48369.362 | N49: 0.001732846585 | O49: -37776.9088
A50: 47 | B50: Hungria | C50: 18306.327 | D50: 0.001412549026 | F50: 47 | G50: Senegal | H50: 17576.5504 | I50: 0.001175417115 | K50: 47 | L50: Hungria | M50: 42548.3304 | N50: 0.00152430642 | O50: -5935.6764
A51: 48 | B51: Nigéria | C51: 16216.7282 | D51: 0.001251311834 | F51: 48 | G51: Nova Zelânda | H51: 17377.015 | I51: 0.001162073352 | K51: 48 | L51: Colômbia | M51: 37490.321 | N51: 0.00134310175 | O51: -20824.5506
A52: 49 | B52: Argentina | C52: 16035.5796 | D52: 0.001237334083 | F52: 49 | G52: Japão | H52: 16387.3104 | I52: 0.001095887684 | K52: 49 | L52: Tunísia | M52: 35510.5226 | N52: 0.001272174891 | O52: 14424.1802
A53: 50 | B53: Lituânia | C53: 14426.2296 | D53: 0.001113153751 | F53: 50 | G53: Lituânia | H53: 15822.4366 | I53: 0.001058112221 | K53: 50 | L53: Noruega | M53: 34932.4536 | N53: 0.0012514654 | O53: 9173.6944
A54: 51 | B54: Ucrânia | C54: 14338.071 | D54: 0.001106351275 | F54: 51 | G54: Angola | H54: 15424.0848 | I54: 0.001031472777 | K54: 51 | L54: Costa do Marfim | M54: 32973.8046 | N54: 0.001181296224 | O54: -12618.6134
A55: 52 | B55: Macau | C55: 14162.3328 | D55: 0.001092791001 | F55: 52 | G55: Mauritânia | H55: 14124.4552 | I55: 0.0009445611341 | K55: 52 | L55: Arábia Saudita | M55: 32855.5924 | N55: 0.001177061238 | O55: 32782.098
A56: 53 | B56: Síria, República Árabe da | C56: 13309.7072 | D56: 0.00102700088 | F56: 53 | G56: Austrália | H56: 13823.2934 | I56: 0.0009244211904 | K56: 53 | L56: Guiné-Bissau | M56: 32561.5128 | N56: 0.00116652575 | O56: 31803.1036
A57: 54 | B57: Iraque | C57: 13216.9518 | D57: 0.001019843707 | F57: 54 | G57: Tanzânia, República Unida da | H57: 13711.0264 | I57: 0.0009169134287 | K57: 54 | L57: Indonésia | M57: 32128.1024 | N57: 0.001150998695 | O57: -24924.5044
A58: 55 | B58: Bulgária | C58: 12990.3616 | D58: 0.001002359601 | F58: 55 | G58: Eslovénia | H58: 13709.4752 | I58: 0.0009168096935 | K58: 55 | L58: Coreia, República da | M58: 31301.2172 | N58: 0.00112137529 | O58: 6547.7476
A59: 56 | B59: HongKong | C59: 12801.5844 | D59: 0.0009877932133 | F59: 56 | G59: Suazilândia | H59: 13238.7086 | I59: 0.0008853275706 | K59: 56 | L59: Lituânia | M59: 30248.6662 | N59: 0.001083667342 | O59: -1396.207
A60: 57 | B60: Eslováquia | C60: 12740.7416 | D60: 0.0009830984737 | F60: 57 | G60: Noruega | H60: 12879.3796 | I60: 0.0008612977441 | K60: 57 | L60: Emirados Árabes Unidos | M60: 29704.259 | N60: 0.001064163794 | O60: 28401.6738
A61: 58 | B61: Letónia | C61: 11849.96 | D61: 0.0009143641678 | F61: 58 | G61: Tailândia | H61: 12766.4348 | I61: 0.0008537446551 | K61: 58 | L61: Senegal | M61: 28854.894 | N61: 0.001033735044 | O61: -6298.2068
A62: 59 | B62: Croácia | C62: 11388.7032 | D62: 0.0008787727658 | F62: 59 | G62: Camarões | H62: 12420.4028 | I62: 0.0008306040543 | K62: 59 | L62: Guiana | M62: 28164.8726 | N62: 0.001009014825 | O62: -27885.7122
A63: 60 | B63: Senegal | C63: 11278.3436 | D63: 0.0008702572211 | F63: 60 | G63: Coreia, República da | H63: 12376.7348 | I63: 0.0008276837933 | K63: 60 | L63: São Tomé e Príncipe | M63: 27846.3486 | N63: 0.0009976036088 | O63: 25738.6138
A64: 61 | B64: Dominicana, República | C64: 11211.5302 | D64: 0.0008651017793 | F64: 61 | G64: Estónia | H64: 12113.6096 | I64: 0.0008100875155 | K64: 61 | L64: Jordânia | M64: 26699.1202 | N64: 0.0009565038148 | O64: 26585.0862
A65: 62 | B65: Líbia, Jamahira Árabe da | C65: 11110.2892 | D65: 0.0008572898422 | F65: 62 | G65: Moldava, República de | H65: 11911.9324 | I65: 0.0007966005214 | K65: 62 | L65: Peru | M65: 25631.4274 | N65: 0.000918253407 | O65: -13356.3438
A66: 63 | B66: Costa do Marfim | C66: 10177.5956 | D66: 0.0007853215311 | F66: 63 | G66: Sérvia | H66: 11557.857 | I66: 0.000772922025 | K66: 63 | L66: Uganda | M66: 23651.4418 | N66: 0.0008473198419 | O66: -21718.8038
A67: 64 | B67: Malta | C67: 10082.9972 | D67: 0.0007780221489 | F67: 64 | G67: Tunísia | H67: 10543.1712 | I67: 0.0007050657604 | K67: 64 | L67: Namíbia | M67: 23571.3778 | N67: 0.0008444515256 | O67: -22092.3542
A68: 65 | B68: Território Palestiniano Ocupado | C68: 9895.7186 | D68: 0.0007635713962 | F68: 65 | G68: Paquistão | H68: 10440.9988 | I68: 0.0006982330665 | K68: 65 | L68: Tailândia | M68: 22048.0496 | N68: 0.0007898778459 | O68: -3484.82
A69: 66 | B69: Líbano | C69: 9880.5148 | D69: 0.0007623982437 | F69: 66 | G69: Egito | H69: 10366.094 | I69: 0.0006932238706 | K69: 66 | L69: Eslovénia | M69: 22027.284 | N69: 0.0007891339122 | O69: -5391.6664
A70: 67 | B70: Chipre | C70: 9763.9754 | D70: 0.0007534058546 | F70: 67 | G70: Islândia | H70: 10004.441 | I70: 0.0006690386286 | K70: 67 | L70: Nigéria | M70: 21603.5138 | N70: 0.0007739522204 | O70: 10829.9426
A71: 68 | B71: Tailândia | C71: 9281.6148 | D71: 0.0007161860455 | F71: 68 | G71: Maurícias | H71: 9636.4388 | I71: 0.0006444287891 | K71: 68 | L71: Nova Zelânda | M71: 21601.671 | N71: 0.0007738862016 | O71: -13152.359
A72: 69 | B72: Kuwait | C72: 9121.1468 | D72: 0.0007038040468 | F72: 69 | G72: Letónia | H72: 9340.8474 | I72: 0.0006246613613 | K72: 69 | L72: Camarões | M72: 21512.3584 | N72: 0.0007706865515 | O72: -3328.4472
A73: 70 | B73: Camarões | C73: 9091.9556 | D73: 0.0007015516015 | F73: 70 | G73: Luxemburgo | H73: 8552.2604 | I73: 0.0005719252649 | K73: 70 | L73: Letónia | M73: 21190.8074 | N73: 0.0007591668926 | O73: 2509.1126
A74: 71 | B74: Colômbia | C74: 8332.8852 | D74: 0.000642980368 | F74: 71 | G74: Israel | H74: 8348.85 | I74: 0.0005583223645 | K74: 71 | L74: Estónia | M74: 20382.3 | N74: 0.0007302018777 | O74: -3844.9192
A75: 72 | B75: Eslovénia | C75: 8317.8088 | D75: 0.0006418170459 | F75: 72 | G75: Filipinas | H75: 8338.4466 | I75: 0.0005576266458 | K75: 72 | L75: Paraguai | M75: 20050.052 | N75: 0.0007182989957 | O75: -17631.4664
A76: 73 | B76: Estónia | C76: 8268.6904 | D76: 0.000638026982 | F76: 73 | G76: Belize | H76: 8129.6594 | I76: 0.0005436641763 | K76: 73 | L76: Croácia | M76: 18469.8002 | N76: 0.0006616860113 | O76: 4307.6062
A77: 74 | B77: Geórgia | C77: 8048.6886 | D77: 0.0006210512486 | F77: 74 | G77: Malásia | H77: 8113.8152 | I77: 0.0005426046087 | K77: 74 | L77: Eslováquia | M77: 18139.0792 | N77: 0.0006498378344 | O77: 7342.404
A78: 75 | B78: Gibraltar | C78: 7970.9208 | D78: 0.0006150505456 | F78: 75 | G78: Bangladesh | H78: 7929.0306 | I78: 0.000530247293 | K78: 75 | L78: Sérvia | M78: 17502.4848 | N78: 0.0006270316533 | O78: -5613.2292
A79: 76 | B79: Gana | C79: 7307.4466 | D79: 0.0005638556863 | F79: 76 | G79: Croácia | H79: 7081.097 | I79: 0.0004735424424 | K79: 76 | L79: Mauritânia | M79: 16931.2984 | N79: 0.0006065687329 | O79: -11317.612
A80: 77 | B80: Taiwan | C80: 6603.7526 | D80: 0.0005095573952 | F80: 77 | G80: Quénia | H80: 6721.3334 | I80: 0.0004494835524 | K80: 77 | L80: HongKong | M80: 15600.7076 | N80: 0.0005588999271 | O80: 10002.4612
A81: 78 | B81: Belarus | C81: 6189.2796 | D81: 0.0004775759151 | F81: 78 | G81: Gana | H81: 6621.1502 | I81: 0.0004427838846 | K81: 78 | L81: Maurícias | M81: 15492.987 | N81: 0.000555040805 | O81: -3779.8906
A82: 79 | B82: Guatemala | C82: 6179.6032 | D82: 0.0004768292667 | F82: 79 | G82: Panamá | H82: 6513.4974 | I82: 0.0004355846936 | K82: 79 | L82: Suazilândia | M82: 15229.8654 | N82: 0.0005456143965 | O82: -11247.5518
A83: 80 | B83: Peru | C83: 6137.5418 | D83: 0.0004735837336 | F83: 80 | G83: Honduras | H83: 6221.5346 | I83: 0.0004160599254 | K83: 80 | L83: Moldava, República de | M83: 14881.0396 | N83: 0.0005331176098 | O83: -8942.8252
A84: 81 | B84: Vietname | C84: 5946.9212 | D84: 0.0004588751062 | F84: 81 | G84: Suriname | H84: 5829.6302 | I84: 0.0003898516463 | K84: 81 | L84: Síria, República Árabe da | M84: 14259.5412 | N84: 0.0005108522473 | O84: 12359.8732
A85: 82 | B85: Sérvia | C85: 5944.6278 | D85: 0.0004586981434 | F85: 82 | G85: Eslováquia | H85: 5398.3376 | I85: 0.0003610093142 | K85: 82 | L85: Tanzânia, República Unida da | M85: 14227.4986 | N85: 0.0005097043117 | O85: -13194.5542
A86: 83 | B86: Maurícias | C86: 5856.5482 | D86: 0.0004519017635 | F86: 83 | G86: Nigéria | H86: 5386.7856 | I86: 0.0003602367839 | K86: 83 | L86: Macau | M86: 14182.009 | N86: 0.0005080746335 | O86: 14142.6566
A87: 84 | B87: Andorra | C87: 5401.2632 | D87: 0.0004167711563 | F87: 84 | G87: Etiópia | H87: 5332.9722 | I87: 0.0003566380577 | K87: 84 | L87: Gana | M87: 13928.5968 | N87: 0.0004989960671 | O87: 686.2964
A88: 85 | B88: Cuba | C88: 5296.2266 | D88: 0.0004086663438 | F88: 85 | G88: Congo | H88: 5207.279 | I88: 0.0003482324301 | K88: 85 | L88: Paquistão | M88: 13696.3036 | N88: 0.000490674095 | O88: -7185.694
A89: 86 | B89: Singapura | C89: 4670.5802 | D89: 0.0003603903454 | F89: 86 | G89: Guatemala | H89: 5139.0112 | I89: 0.000343667078 | K89: 86 | L89: Dominicana, República | M89: 13463.2218 | N89: 0.0004823238711 | O89: 8959.8386
A90: 87 | B90: Omã | C90: 4393.4536 | D90: 0.0003390067599 | F90: 87 | G90: Camboja | H90: 4965.3018 | I90: 0.0003320504071 | K90: 87 | L90: Iraque | M90: 13230.1254 | N90: 0.0004739731242 | O90: 13203.7782
A91: 88 | B91: Nova Zelânda | C91: 4224.656 | D91: 0.0003259820343 | F91: 88 | G91: Argélia | H91: 4913.7462 | I91: 0.0003286026694 | K91: 88 | L91: Chipre | M91: 13179.1368 | N91: 0.0004721464427 | O91: 6348.814
A92: 89 | B92: Panamá | C92: 4203.97 | D92: 0.0003243858655 | F92: 89 | G92: Reino Unido (Irlanda do Norte) pós-2020 | H92: 4864.879 | I92: 0.0003253347163 | K92: 89 | L92: Filipinas | M92: 11817.2578 | N92: 0.0004233567279 | O92: -4859.6354
A93: 90 | B93: Costa Rica | C93: 4017.2892 | D93: 0.0003099812401 | F93: 90 | G93: Macedónia, Antiga República jugoslava da | H93: 4838.7308 | I93: 0.0003235860773 | K93: 90 | L93: Islândia | M93: 11807.9024 | N93: 0.000423021568 | O93: -8200.9796
A94: 91 | B94: Catar | C94: 3814.9902 | D94: 0.0002943714864 | F94: 91 | G94: Zimbabwe | H94: 4709.246 | I94: 0.0003149268895 | K94: 91 | L94: Malta | M94: 11740.4076 | N94: 0.000420603547 | O94: 8425.5868
A95: 92 | B95: Burquina Faso | C95: 3646.8948 | D95: 0.0002814009439 | F95: 92 | G95: Suíça | H95: 4511.0854 | I95: 0.0003016750651 | K95: 92 | L95: Malásia | M95: 11542.323 | N95: 0.000413507108 | O95: -4685.3074
A96: 93 | B96: Indonésia | C96: 3601.799 | D96: 0.0002779212711 | F96: 93 | G96: Sri Lanca | H96: 4405.8098 | I96: 0.0002946348473 | K96: 93 | L96: Guatemala | M96: 11318.6144 | N96: 0.0004054926818 | O96: 1040.592
A97: 94 | B97: Sudão | C97: 3570.9408 | D97: 0.000275540197 | F97: 94 | G97: Madagáscar | H97: 3797.7566 | I97: 0.0002539717979 | K97: 94 | L97: Líbia, Jamahira Árabe da | M97: 11116.3092 | N97: 0.0003982450387 | O97: 11104.2692
A98: 95 | B98: Filipinas | C98: 3478.8112 | D98: 0.0002684313118 | F98: 95 | G98: Mali | H98: 3762.6334 | I98: 0.0002516229632 | K98: 95 | L98: Panamá | M98: 10717.4674 | N98: 0.0003839564142 | O98: -2309.5274
A99: 96 | B99: Mali | C99: 3441.82 | D99: 0.0002655770045 | F99: 96 | G99: Myanmar | H99: 3487.5672 | I99: 0.000233228141 | K99: 96 | L99: Líbano | M99: 10422.5976 | N99: 0.0003733926171 | O99: 9338.432
A100: 97 | B100: Malásia | C100: 3428.5078 | D100: 0.0002645498112 | F100: 97 | G100: Nicarágua | H100: 3458.6704 | I100: 0.0002312956917 | K100: 97 | L100: Kuwait | M100: 10304.9986 | N100: 0.0003691795984 | O100: 7937.295
A101: 98 | B101: Venezuela | C101: 3292.1542 | D101: 0.0002540285229 | F101: 98 | G101: Taiwan | H101: 3425.7168 | I101: 0.0002290919472 | K101: 98 | L101: Taiwan | M101: 10029.4694 | N101: 0.0003593086839 | O101: 3178.0358
A102: 99 | B102: Paquistão | C102: 3255.3048 | D102: 0.0002511851571 | F102: 99 | G102: Chipre | H102: 3415.1614 | I102: 0.0002283860637 | K102: 99 | L102: Território Palestiniano Ocupado | M102: 9896.2038 | N102: 0.0003545344047 | O102: 9895.2334
A103: 100 | B103: Irão, República Islâmica do | C103: 3151.3458 | D103: 0.0002431634942 | F103: 100 | G103: Congo, República Democrática do | H103: 3287.5926 | I103: 0.0002198550068 | K103: 100 | L103: Bangladesh | M103: 9893.849 | N103: 0.0003544500433 | O103: -5964.2122
A104: 101 | B104: Equador | C104: 3049.5584 | D104: 0.0002353093959 | F104: 101 | G104: Malavi | H104: 3258.3272 | I104: 0.0002178979077 | K104: 101 | L104: Quénia | M104: 9768.3614 | N104: 0.0003499544132 | O104: -3674.3054
A105: 102 | B105: Quénia | C105: 3047.028 | D105: 0.0002351141457 | F105: 102 | G105: Papuásia-Nova Guiné | H105: 3105.1676 | I105: 0.0002076554875 | K105: 102 | L105: Geórgia | M105: 8359.5618 | N105: 0.0002994837542 | O105: 7737.8154
A106: 103 | B106: Uruguai | C106: 2989.0796 | D106: 0.0002306427432 | F106: 103 | G106: HongKong | H106: 2799.1232 | I106: 0.0001871890241 | K106: 103 | L106: Belize | M106: 8131.84 | N106: 0.0002913255539 | O106: -8127.4788
A107: 104 | B107: Moldava, República de | C107: 2969.1072 | D107: 0.000229101637 | F107: 104 | G107: Gabão | H107: 2643.292 | I107: 0.0001767679428 | K107: 104 | L107: Gibraltar | M107: 8002.9498 | N107: 0.0002867080247 | O107: 7938.8918
A108: 105 | B108: Mauritânia | C108: 2806.8432 | D108: 0.0002165810557 | F108: 105 | G108: Centro-Africana, República | H108: 2579.2684 | I108: 0.0001724864181 | K108: 105 | L108: Congo | M108: 7636.6094 | N108: 0.0002735837724 | O108: -2777.9486
A109: 106 | B109: Timor-Leste | C109: 2726.394 | D109: 0.0002103734511 | F109: 106 | G109: Gâmbia | H109: 2389.373 | I109: 0.000159787322 | K109: 106 | L109: Honduras | M109: 7591.1752 | N109: 0.0002719560788 | O109: -4851.894
A110: 107 | B110: Guiné | C110: 2700.6706 | D110: 0.0002083885874 | F110: 107 | G110: Dominicana, República | H110: 2251.6916 | I110: 0.0001505799934 | K110: 107 | L110: Etiópia | M110: 7365.0862 | N110: 0.0002638563741 | O110: -3300.8582
A111: 108 | B111: Arménia | C111: 2588.4812 | D111: 0.0001997318521 | F111: 108 | G111: Serra Leoa | H111: 1997.9044 | I111: 0.0001336081866 | K111: 108 | L111: Reino Unido (Irlanda do Norte) pós-2020 | M111: 7284.542 | N111: 0.0002609708545 | O111: -2445.216
A112: 109 | B112: Gabão | C112: 2550.5466 | D112: 0.0001968047503 | F112: 109 | G112: Benim | H112: 1832.1494 | I112: 0.0001225234595 | K112: 109 | L112: Mali | M112: 7204.4534 | N112: 0.0002581016569 | O112: -320.8134
A113: 110 | B113: Congo | C113: 2429.3304 | D113: 0.0001874514909 | F113: 110 | G113: El Salvador | H113: 1779.7304 | I113: 0.0001190179827 | K113: 110 | L113: Belarus | M113: 7048.5194 | N113: 0.0002525152756 | O113: 5330.0398
A114: 111 | B114: Reino Unido (Irlanda do Norte) pós-2020 | C114: 2419.663 | D114: 0.000186705537 | F114: 111 | G114: Burquina Faso | H114: 1725.7576 | I114: 0.0001154085968 | K114: 111 | L114: Suriname | M114: 6411.9606 | N114: 0.0002297103698 | O114: -5247.2998
A115: 112 | B115: Albânia | C115: 2229.7502 | D115: 0.0001720515247 | F115: 112 | G115: Malta | H115: 1657.4104 | I115: 0.000110837935 | K115: 112 | L115: Singapura | M115: 5982.0136 | N115: 0.0002143073924 | O115: 3359.1468
A116: 113 | B116: Seychelles | C116: 2209.8298 | D116: 0.0001705144309 | F116: 113 | G116: Laos, República Democrática Popular do | H116: 1570.485 | I116: 0.0001050248715 | K116: 113 | L116: Camboja | M116: 5868.6792 | N116: 0.0002102471542 | O116: -4061.9244
A117: 114 | B117: Guiné Equatorial | C117: 2176.263 | D117: 0.0001679243564 | F117: 114 | G117: Singapura | H117: 1311.4334 | I117: 8.770101232e-05 | K117: 114 | L117: Sri Lanca | M117: 5846.5976 | N117: 0.0002094560744 | O117: -2965.022
A118: 115 | B118: Etiópia | C118: 2032.114 | D118: 0.0001568015611 | F118: 115 | G118: Seychelles | H118: 1264.2444 | I118: 8.45452874e-05 | K118: 115 | L118: Macedónia, Antiga República jugoslava da | M118: 5789.6166 | N118: 0.0002074147134 | O118: -3887.845
A119: 116 | B119: Suazilândia | C119: 1991.1568 | D119: 0.00015364123 | F119: 116 | G119: Kuwait | H119: 1183.8518 | I119: 7.916909948e-05 | K119: 116 | L119: Andorra | M119: 5443.4826 | N119: 0.0001950143613 | O119: 5359.0438
A120: 117 | B120: Bangladesh | C120: 1964.8184 | D120: 0.0001516089119 | F120: 117 | G120: Bolívia | H120: 1171.3558 | I120: 7.833343992e-05 | K120: 117 | L120: Burquina Faso | M120: 5372.6524 | N120: 0.0001924768486 | O120: 1921.1372
A121: 118 | B121: Islândia | C121: 1803.4614 | D121: 0.0001391583163 | F121: 118 | G121: Togo | H121: 1123.3282 | I121: 7.512163432e-05 | K121: 118 | L121: Gabão | M121: 5193.8386 | N121: 0.0001860707917 | O121: -92.7454
A122: 119 | B122: Benim | C122: 1771.8166 | D122: 0.0001367165468 | F122: 119 | G122: São Tomé e Príncipe | H122: 1053.8674 | I122: 7.047650139e-05 | K122: 119 | L122: Nicarágua | M122: 5085.114 | N122: 0.000182175701 | O122: -1832.2268
A123: 120 | B123: Congo, República Democrática do | C123: 1727.181 | D123: 0.0001332723838 | F123: 120 | G123: Venezuela | H123: 1042.655 | I123: 6.972668151e-05 | K123: 120 | L123: Congo, República Democrática do | M123: 5014.7736 | N123: 0.0001796557356 | O123: -1560.4116
A124: 121 | B124: Jamaica | C124: 1687.498 | D124: 0.0001302103724 | F124: 121 | G124: Iémen | H124: 1024.4982 | I124: 6.851246069e-05 | K124: 121 | L124: Omã | M124: 4885.6232 | N124: 0.0001750288846 | O124: 3901.284
A125: 122 | B125: Nicarágua | C125: 1626.4436 | D125: 0.0001254993054 | F125: 122 | G125: Síria, República Árabe da | H125: 949.834 | I125: 6.351935473e-05 | K125: 122 | L125: Zimbabwe | M125: 4774.2052 | N125: 0.0001710373021 | O125: -4644.2868
A126: 123 | B126: Togo | C126: 1570.864 | D126: 0.0001212106838 | F126: 123 | G126: Belarus | H126: 859.2398 | I126: 5.746094334e-05 | K126: 123 | L126: Venezuela | M126: 4334.8092 | N126: 0.0001552958114 | O126: 2249.4992
A127: 124 | B127: El Salvador | C127: 1565.6294 | D127: 0.0001208067726 | F127: 124 | G127: Cabo Verde | H127: 837.7766 | I127: 5.602560978e-05 | K127: 124 | L127: Madagáscar | M127: 4107.7518 | N127: 0.0001471614135 | O127: -3487.7614
A128: 125 | B128: Cazaquistão | C128: 1534.519 | D128: 0.0001184062384 | F128: 125 | G128: Bósnia-Herzegovina | H128: 758.2198 | I128: 5.070531529e-05 | K128: 125 | L128: Myanmar | M128: 3979.95 | N128: 0.0001425828765 | O128: -2995.1844
A129: 126 | B129: Sri Lanca | C129: 1440.7878 | D129: 0.0001111737709 | F129: 126 | G129: Turquemenistão | H129: 720.6558 | I129: 4.819325419e-05 | K129: 126 | L129: Catar | M129: 3836.467 | N129: 0.0001374425559 | O129: 3793.5134
A130: 127 | B130: Azerbaijão | C130: 1435.1898 | D130: 0.0001107418191 | F130: 127 | G130: Chade | H130: 675.9004 | I130: 4.520027423e-05 | K130: 127 | L130: Benim | M130: 3603.966 | N130: 0.0001291131394 | O130: -60.3328
A131: 128 | B131: Bolívia | C131: 1412.2374 | D131: 0.0001089707708 | F131: 128 | G131: Emirados Árabes Unidos | H131: 651.2926 | I131: 4.355464817e-05 | K131: 128 | L131: Sudão | M131: 3591.4234 | N131: 0.000128663797 | O131: 3550.4582
A132: 129 | B132: Honduras | C132: 1369.6406 | D132: 0.0001056839253 | F132: 129 | G132: Timor-Leste | H132: 614.587 | I132: 4.109999186e-05 | K132: 129 | L132: Seychelles | M132: 3474.0742 | N132: 0.0001244597275 | O132: 945.5854
A133: 130 | B133: São Bartolomeu | C133: 1280.9726 | D133: 9.884214338e-05 | F133: 130 | G133: Faroé, Ilhas | H133: 597.6172 | I133: 3.996515067e-05 | K133: 130 | L133: Irão, República Islâmica do | M133: 3375.8844 | N133: 0.0001209420491 | O133: 2926.8072
A134: 131 | B134: Ruanda | C134: 1241.1874 | D134: 9.577224599e-05 | F134: 131 | G134: Líbano | H134: 542.0828 | I134: 3.625133409e-05 | K134: 131 | L134: El Salvador | M134: 3345.3598 | N134: 0.0001198484964 | O134: -214.101
A135: 132 | B135: Paraguai | C135: 1209.2928 | D135: 9.331120144e-05 | F135: 132 | G135: Omã | H135: 492.1696 | I135: 3.291343057e-05 | K135: 132 | L135: Timor-Leste | M135: 3340.981 | N135: 0.0001196916246 | O135: 2111.807
A136: 133 | B136: Iémen | C136: 1145.3826 | D136: 8.837977578e-05 | F136: 133 | G136: Gronelândia | H136: 481.3548 | I136: 3.219019986e-05 | K136: 133 | L136: Malavi | M136: 3267.4564 | N136: 0.0001170575842 | O136: -3249.198
A137: 134 | B137: Montenegro | C137: 1046.3476 | D137: 8.073805755e-05 | F137: 134 | G137: Guiné-Bissau | H137: 379.2046 | I137: 2.535899063e-05 | K137: 134 | L137: Papuásia-Nova Guiné | M137: 3108.0532 | N137: 0.0001113469178 | O137: -3102.282
A138: 135 | B138: Uganda | C138: 966.319 | D138: 7.456290724e-05 | F138: 135 | G138: Geórgia | H138: 310.8732 | I138: 2.078938537e-05 | K138: 135 | L138: Guiné | M138: 3003.4878 | N138: 0.0001076008317 | O138: 2397.8534
A139: 136 | B139: Macedónia, Antiga República jugoslava da | C139: 950.8858 | D139: 7.337205384e-05 | F139: 136 | G139: Usbequistão | H139: 308.419 | I139: 2.06252628e-05 | K139: 136 | L139: Gâmbia | M139: 2880.9438 | N139: 0.0001032106569 | O139: -1897.8022
A140: 137 | B140: Bermudas | C140: 907.5284 | D140: 7.002651909e-05 | F140: 137 | G140: Guiné | H140: 302.8172 | I140: 2.025064711e-05 | K140: 137 | L140: Togo | M140: 2694.1922 | N140: 9.652022605e-05 | O140: 447.5358
A141: 138 | B141: Camboja | C141: 903.3774 | D141: 6.970622049e-05 | F141: 138 | G141: Irão, República Islâmica do | H141: 224.5386 | I141: 1.501583117e-05 | K141: 138 | L141: Centro-Africana, República | M141: 2675.6308 | N141: 9.585525845e-05 | O141: -2482.906
A142: 139 | B142: Barbados | C142: 889.1274 | D142: 6.860666493e-05 | F142: 139 | G142: Zâmbia | H142: 199.3992 | I142: 1.333465481e-05 | K142: 139 | L142: Arménia | M142: 2615.5848 | N142: 9.370409288e-05 | O142: 2561.3776
A143: 140 | B143: Trindade e Tobago | C143: 876.5142 | D143: 6.763340779e-05 | F143: 140 | G143: Azerbaijão | H143: 125.9264 | I143: 8.421222731e-06 | K143: 140 | L143: Bolívia | M143: 2583.5932 | N143: 9.255798443e-05 | O143: 240.8816
A144: 141 | B144: Namíbia | C144: 739.5118 | D144: 5.706205688e-05 | F144: 141 | G144: Fiji, Ilhas | H144: 123.8396 | I144: 8.281669725e-06 | K144: 141 | L144: Serra Leoa | M144: 2504.721 | N144: 8.973236472e-05 | O144: -1491.0878
A145: 142 | B145: Turquemenistão | C145: 730.8192 | D145: 5.639132027e-05 | F145: 142 | G145: Maldivas | H145: 106.2128 | I145: 7.102892211e-06 | K145: 142 | L145: Albânia | M145: 2335.6576 | N145: 8.367561881e-05 | O145: 2123.8428
A146: 143 | B146: Barém | C146: 714.5288 | D146: 5.513432379e-05 | F146: 143 | G146: Albânia | H146: 105.9074 | I146: 7.082468841e-06 | K146: 143 | L146: Guiné Equatorial | M146: 2182.2494 | N146: 7.817972504e-05 | O146: 2170.2766
A147: 144 | B147: Burundi | C147: 677.1012 | D147: 5.224634305e-05 | F147: 144 | G147: Tajiquistão | H147: 59.4122 | I147: 3.973141209e-06 | K147: 144 | L147: Iémen | M147: 2169.8808 | N147: 7.773661631e-05 | O147: 120.8844
A148: 145 | B148: Aruba | C148: 656.9934 | D148: 5.069478913e-05 | F148: 145 | G148: Jordânia | H148: 57.017 | I148: 3.812964211e-06 | K148: 145 | L148: Jamaica | M148: 1698.661 | N148: 6.085502872e-05 | O148: 1676.335
A149: 146 | B149: Niger | C149: 652.165 | D149: 5.032222113e-05 | F149: 146 | G149: Andorra | H149: 42.2194 | I149: 2.823387081e-06 | K149: 146 | L149: Laos, República Democrática Popular do | M149: 1586.3348 | N149: 5.683090965e-05 | O149: -1554.6352
A150: 147 | B150: São Martinho (parte holandesa) | C150: 597.7744 | D150: 4.612534488e-05 | F150: 147 | G150: Libéria | H150: 38.8276 | I150: 2.596563292e-06 | K150: 147 | L150: Azerbaijão | M150: 1561.1162 | N150: 5.59274459e-05 | O150: 1309.2634
A151: 148 | B151: Suriname | C151: 582.3304 | D151: 4.493365814e-05 | F151: 148 | G151: Falkland Ilhas (Malvinas) | H151: 38.0622 | I151: 2.545377807e-06 | K151: 148 | L151: Cazaquistão | M151: 1551.583 | N151: 5.558591622e-05 | O151: 1517.455
A152: 149 | B152: Bósnia-Herzegovina | C152: 535.6404 | D152: 4.133097399e-05 | F152: 149 | G152: Aruba | H152: 38.0518 | I152: 2.544682315e-06 | K152: 149 | L152: Turquemenistão | M152: 1451.475 | N152: 5.199951774e-05 | O152: 10.1634
A153: 150 | B153: Tanzânia, República Unida da | C153: 516.4722 | D153: 3.98519213e-05 | F153: 150 | G153: Arábia Saudita | H153: 36.7472 | I153: 2.457438281e-06 | K153: 150 | L153: Bósnia-Herzegovina | M153: 1293.8602 | N153: 4.635292129e-05 | O153: -222.5794
A154: 151 | B154: Ceuta e Melilha | C154: 507.8786 | D154: 3.918882371e-05 | F154: 151 | G154: São Marino | H154: 32.7702 | I154: 2.191479731e-06 | K154: 151 | L154: São Bartolomeu | M154: 1281.3282 | N154: 4.590395871e-05 | O154: 1280.617
A155: 152 | B155: Serra Leoa | C155: 506.8166 | D155: 3.910687789e-05 | F155: 152 | G155: Gibraltar | H155: 32.029 | I155: 2.1419126e-06 | K155: 152 | L155: Ruanda | M155: 1241.8574 | N155: 4.448990572e-05 | O155: 1240.5174
A156: 153 | B156: Myanmar | C156: 492.3828 | D156: 3.799313999e-05 | F156: 153 | G156: Botswana | H156: 30.0284 | I156: 2.008124148e-06 | K156: 153 | L156: Montenegro | M156: 1046.7 | N156: 3.749833461e-05 | O156: 1045.9952
A157: 154 | B157: Gâmbia | C157: 491.5708 | D157: 3.793048461e-05 | F157: 154 | G157: São Pedro e Miquelon | H157: 28.9156 | I157: 1.933706578e-06 | K157: 154 | L157: Bermudas | M157: 908.3498 | N157: 3.25418981e-05 | O157: 906.707
A158: 155 | B158: Curaçau | C158: 479.6396 | D158: 3.700985182e-05 | F158: 155 | G158: Arménia | H158: 27.1036 | I158: 1.812530593e-06 | K158: 155 | L158: Barbados | M158: 899.4474 | N158: 3.222296701e-05 | O158: 878.8074
A159: 156 | B159: Kosovo | C159: 471.1818 | D159: 3.63572328e-05 | F159: 156 | G159: Catar | H159: 21.4768 | I159: 1.436243046e-06 | K159: 156 | L159: Trindade e Tobago | M159: 876.838 | N159: 3.141297862e-05 | O159: 876.1904
A160: 157 | B160: Polinésia Francesa | C160: 366.6458 | D160: 2.829104755e-05 | F160: 157 | G160: Sudão | H160: 20.4826 | I160: 1.369756752e-06 | K160: 157 | L160: Barém | M160: 719.1302 | N160: 2.576305041e-05 | O160: 709.9274
A161: 158 | B161: Antígua e Barbuda | C161: 363.7054 | D161: 2.806416101e-05 | F161: 158 | G161: Macau | H161: 19.6762 | I161: 1.315829427e-06 | K161: 158 | L161: Aruba | M161: 695.0452 | N161: 2.490019822e-05 | O161: 618.9416
A162: 159 | B162: Haiti | C162: 328.5232 | D162: 2.534943935e-05 | F162: 159 | G162: Quirguizistão | H162: 17.4758 | I162: 1.168679516e-06 | K162: 159 | L162: Burundi | M162: 677.2152 | N162: 2.426143324e-05 | O162: 676.9872
A163: 160 | B163: Comores | C163: 311.607 | D163: 2.404415502e-05 | F163: 160 | G163: Cazaquistão | H163: 17.064 | I163: 1.141140735e-06 | K163: 160 | L163: Chade | M163: 676.014 | N163: 2.42183999e-05 | O163: -675.7868
A164: 161 | B164: Madagáscar | C164: 309.9952 | D164: 2.391978564e-05 | F164: 161 | G164: Salomão, Ilhas | H164: 16.0532 | I164: 1.07354433e-06 | K164: 161 | L164: Niger | M164: 655.4318 | N164: 2.348103654e-05 | O164: 648.8982
A165: 162 | B165: Nova Caledónia | C165: 302.6442 | D165: 2.33525693e-05 | F165: 162 | G165: Santa Helena | H165: 15.7338 | I165: 1.052184722e-06 | K165: 162 | L165: Faroé, Ilhas | M165: 598.4668 | N165: 2.14402487e-05 | O165: -596.7676
A166: 163 | B166: Libéria | C166: 295.8354 | D166: 2.282719008e-05 | F166: 163 | G166: Marshall, Ilhas | H166: 13.4098 | I166: 8.96769165e-07 | K166: 163 | L166: São Martinho (parte holandesa) | M166: 597.7772 | N166: 2.141554358e-05 | O166: 597.7716
A167: 164 | B167: Somália | C167: 292.9902 | D167: 2.260764934e-05 | F167: 164 | G167: Iraque | H167: 13.1736 | I167: 8.809734874e-07 | K167: 164 | L167: Usbequistão | M167: 531.501 | N167: 1.904117927e-05 | O167: -85.337
A168: 165 | B168: Bahamas | C168: 280.4744 | D168: 2.164190776e-05 | F168: 165 | G168: Curaçau | H168: 12.9632 | I168: 8.669031633e-07 | K168: 165 | L168: Ceuta e Melilha | M168: 507.8786 | N168: 1.819489986e-05 | O168: 507.8786
A169: 166 | B169: Usbequistão | C169: 223.082 | D169: 1.721340724e-05 | F169: 166 | G169: Jamaica | H169: 11.163 | I169: 7.465162932e-07 | K169: 166 | L169: Curaçau | M169: 492.6028 | N169: 1.764763984e-05 | O169: 466.6764
A170: 167 | B170: São Marino | C170: 219.9688 | D170: 1.697318715e-05 | F170: 167 | G170: Nepal | H170: 11.0964 | I170: 7.420624739e-07 | K170: 167 | L170: Gronelândia | M170: 481.9304 | N170: 1.726529798e-05 | O170: -480.7792
A171: 168 | B171: Bonaire, Santo Eustáquio e Saba | C171: 206.5448 | D171: 1.593736723e-05 | F171: 168 | G171: Barbados | H171: 10.32 | I171: 6.901413729e-07 | K171: 168 | L171: Kosovo | M171: 479.738 | N171: 1.718675461e-05 | O171: 462.6256
A172: 169 | B172: Guiana | C172: 139.5802 | D172: 1.077025858e-05 | F172: 169 | G172: Antígua e Barbuda | H172: 9.2324 | I172: 6.174090321e-07 | K172: 169 | L172: Antígua e Barbuda | M172: 372.9378 | N172: 1.336060611e-05 | O172: 354.473
A173: 170 | B173: Zâmbia | C173: 138.1944 | D173: 1.066332777e-05 | F173: 170 | G173: Kosovo | H173: 8.5562 | I173: 5.721887224e-07 | K173: 170 | L173: Polinésia Francesa | M173: 367.1436 | N173: 1.315302719e-05 | O173: 366.148
A174: 171 | B174: Maldivas | C174: 129.0678 | D174: 9.959102945e-06 | F174: 171 | G174: Jibuti | H174: 7.3022 | I174: 4.883285207e-07 | K174: 171 | L174: Zâmbia | M174: 337.5936 | N174: 1.209438977e-05 | O174: -61.2048
A175: 172 | B175: Santa Lúcia | C175: 120.252 | D175: 9.278860005e-06 | F175: 172 | G175: Líbia, Jamahira Árabe da | H175: 6.02 | I175: 4.025824675e-07 | K175: 172 | L175: Libéria | M175: 334.663 | N175: 1.198940017e-05 | O175: 257.0078
A176: 173 | B176: Liechtenstein | C176: 119.4194 | D176: 9.214615095e-06 | F176: 173 | G176: Guiné Equatorial | H176: 5.9864 | I176: 4.003354956e-07 | K176: 173 | L176: Haiti | M176: 328.8052 | N176: 1.177954276e-05 | O176: 328.2412
A177: 174 | B177: Afeganistão | C177: 109.4574 | D177: 8.445929308e-06 | F177: 174 | G177: Barém | H177: 4.6014 | I177: 3.077147784e-07 | K177: 174 | L177: Comores | M177: 311.607 | N177: 1.11634122e-05 | O177: 311.607
A178: 175 | B178: Quirguizistão | C178: 109.2342 | D178: 8.428706795e-06 | F178: 175 | G178: São Cristovão e Nevis | H178: 4.4456 | I178: 2.972957837e-07 | K178: 175 | L178: Nova Caledónia | M178: 303.3516 | N178: 1.086766007e-05 | O178: 301.9368
A179: 176 | B179: Virgens Britânicas, Ilhas | C179: 102.589 | D179: 7.915951244e-06 | F179: 176 | G179: Afeganistão | H179: 4.3746 | I179: 2.92547718e-07 | K179: 176 | L179: Somália | M179: 292.9902 | N179: 1.049645988e-05 | O179: 292.9902
A180: 177 | B180: Botswana | C180: 98.1832 | D180: 7.575991814e-06 | F180: 177 | G180: Niger | H180: 3.2668 | I180: 2.184645191e-07 | K180: 177 | L180: Bahamas | M180: 280.4744 | N180: 1.004807767e-05 | O180: 280.4744
A181: 178 | B181: Jibuti | C181: 96.957 | D181: 7.481376023e-06 | F181: 178 | G181: Liechtenstein | H181: 1.8556 | I181: 1.240916988e-07 | K181: 178 | L181: São Marino | M181: 252.739 | N181: 9.05444883e-06 | O181: 187.1986
A182: 179 | B182: Centro-Africana, República | C182: 96.3624 | D182: 7.43549562e-06 | F182: 179 | G182: Lesoto | H182: 1.7136 | I182: 1.145955675e-07 | K182: 179 | L182: Maldivas | M182: 235.2806 | N182: 8.428996527e-06 | O182: 22.855
A183: 180 | B183: Nepal | C183: 77.231 | D183: 5.959282482e-06 | F183: 180 | G183: Butão | H183: 1.2178 | I183: 8.143935697e-08 | K183: 180 | L183: Bonaire, Santo Eustáquio e Saba | M183: 206.5448 | N183: 7.399528061e-06 | O183: 206.5448
A184: 181 | B184: Zimbabwe | C184: 64.9592 | D184: 5.012368383e-06 | F184: 181 | G184: Bermudas | H184: 0.8214 | I184: 5.493043835e-08 | K184: 181 | L184: Fiji, Ilhas | M184: 135.9458 | N184: 4.870298172e-06 | O184: -111.7334
A185: 182 | B185: Caimão, Ilhas | C185: 51.6906 | D185: 3.988539409e-06 | F185: 182 | G185: Nova Caledónia | H185: 0.7074 | I185: 4.730678364e-08 | K185: 182 | L185: Botswana | M185: 128.2116 | N185: 4.593218188e-06 | O185: 68.1548
A186: 183 | B186: Mongólia | C186: 37.8358 | D186: 2.919478191e-06 | F186: 183 | G186: Ruanda | H186: 0.67 | I186: 4.480568991e-08 | K186: 183 | L186: Quirguizistão | M186: 126.71 | N186: 4.539422927e-06 | O186: 91.7584
A187: 184 | B187: Turcas e Caicos, Ilhas | C187: 19.071 | D187: 1.471552566e-06 | F187: 184 | G187: Polinésia Francesa | H187: 0.4978 | I187: 3.328995886e-08 | K187: 184 | L187: Liechtenstein | M187: 121.275 | N187: 4.344712458e-06 | O187: 117.5638
A188: 185 | B188: Laos, República Democrática Popular do | C188: 15.8498 | D188: 1.222998996e-06 | F188: 185 | G188: Território Palestiniano Ocupado | H188: 0.4852 | I188: 3.244734439e-08 | K188: 185 | L188: Santa Lúcia | M188: 120.2746 | N188: 4.308872834e-06 | O188: 120.2294
A189: 186 | B189: Fiji, Ilhas | C189: 12.1062 | D189: 9.341361058e-07 | F189: 186 | G189: São Bartolomeu | H189: 0.3556 | I189: 2.378045273e-08 | K189: 186 | L189: Afeganistão | M189: 113.832 | N189: 4.078064799e-06 | O189: 105.0828
A190: 187 | B190: Anguila | C190: 10.0614 | D190: 7.763556702e-07 | F190: 187 | G190: Montenegro | H190: 0.3524 | I190: 2.356645541e-08 | K190: 187 | L190: Jibuti | M190: 104.2592 | N190: 3.73511643e-06 | O190: 89.6548
A191: 188 | B191: Malavi | C191: 9.1292 | D191: 7.044254462e-07 | F191: 188 | G191: Micronésia, Estados Federados da | H191: 0.3438 | I191: 2.29913376e-08 | K191: 188 | L191: Virgens Britânicas, Ilhas | M191: 102.596 | N191: 3.675531802e-06 | O191: 102.582
A192: 189 | B192: Brunei Darussalam | C192: 7.7238 | D192: 5.959822615e-07 | F192: 189 | G192: Trindade e Tobago | H192: 0.3238 | I192: 2.165385432e-08 | K192: 189 | L192: Nepal | M192: 88.3274 | N192: 3.164355021e-06 | O192: 66.1346
A193: 190 | B193: São Vicente e Granadinas | C193: 7.6034 | D193: 5.866919815e-07 | F193: 190 | G193: Haiti | H193: 0.282 | I193: 1.885851426e-08 | K193: 190 | L193: Tajiquistão | M193: 59.4122 | N193: 2.128459497e-06 | O193: -59.4122
A194: 191 | B194: Guam | C194: 6.6636 | D194: 5.141753279e-07 | F194: 191 | G194: Oceano Indico, Território Britânico do | H194: 0.128 | I194: 8.559892998e-09 | K194: 191 | L194: Caimão, Ilhas | M194: 51.6906 | N194: 1.851830911e-06 | O194: 51.6906
A195: 192 | B195: Territórios Franceses do Sul | C195: 6.3102 | D195: 4.8690635e-07 | F195: 192 | G195: Burundi | H195: 0.114 | I195: 7.623654701e-09 | K195: 192 | L195: Falkland Ilhas (Malvinas) | M195: 38.0622 | N195: 1.363589483e-06 | O195: -38.0622
A196: 193 | B196: Menores distantes dos Estados Unidos, lhas | C196: 4.5544 | D196: 3.514256728e-07 | F196: 193 | G196: Nauru | H196: 0.0694 | I196: 4.641066985e-09 | K196: 193 | L196: Mongólia | M196: 37.85 | N196: 1.355987355e-06 | O196: 37.8216
A197: 194 | B197: Sudão do Sul | C197: 3.771 | D197: 2.909771237e-07 | F197: 194 | G197: Vanuatu | H197: 0.065 | I197: 4.346820663e-09 | K197: 194 | L197: São Pedro e Miquelon | M197: 29.2314 | N197: 1.047223482e-06 | O197: -28.5998
A198: 195 | B198: Melilha | C198: 3.6164 | D198: 2.790479104e-07 | F198: 195 | G198: Santa Lúcia | H198: 0.0226 | I198: 1.511356107e-09 | K198: 195 | L198: Turcas e Caicos, Ilhas | M198: 19.071 | N198: 6.832241705e-07 | O198: 19.071
A199: 196 | B199: Marianas do Norte, Ilhas | C199: 2.9244 | D199: 2.256519492e-07 | F199: 196 | G199: São Vicente e Granadinas | H199: 0.0144 | I199: 9.629879622e-10 | K199: 196 | L199: Salomão, Ilhas | M199: 16.0532 | N199: 5.751106001e-07 | O199: -16.0532
A200: 197 | B200: Papuásia-Nova Guiné | C200: 2.8856 | D200: 2.226580716e-07 | F200: 197 | G200: Mongólia | H200: 0.0142 | I200: 9.496131294e-10 | K200: 197 | L200: Santa Helena | M200: 15.7338 | N200: 5.636680014e-07 | O200: -15.7338
... 58 more rows

Sheet 2AA
A1: Ranking dos parceiros comerciais de Portugal por país (média 2018-2022 em milhares de euros) produtos agrícolas e agroalimentares
A2: Exportações | F2: Importações | K2: Trocas comerciais (total e saldo)
A3: P | B3: País | C3: média quinquénio | D3: % do Total | F3: P | G3: País | H3: média quinquénio | I3: % do Total | K3: P | L3: País | M3: Total (exp+imp) | N3: % do Total | O3: Saldo (exp-imp)
A4: 1 | B4: Espanha | C4: 2415706.759 | D4: 0.3417342339 | F4: 1 | G4: Espanha | H4: 4700233.367 | I4: 0.4607579981 | K4: 1 | L4: Espanha | M4: 7115940.126 | N4: 0.4120392909 | O4: -2284526.609
A5: 2 | B5: França | C5: 675806.7388 | D5: 0.09560195886 | F5: 2 | G5: França | H5: 803086.6822 | I5: 0.07872558298 | K5: 2 | L5: França | M5: 1478893.421 | N5: 0.08563340693 | O5: -127279.9434
A6: 3 | B6: Itália | C6: 450048.5236 | D6: 0.06366542085 | F6: 3 | G6: Alemanha | H6: 693242.9014 | I6: 0.06795773454 | K6: 3 | L6: Alemanha | M6: 953060.8432 | N6: 0.05518575298 | O6: -433424.9596
A7: 4 | B7: Brasil | C7: 371201.5514 | D7: 0.05251145543 | F7: 4 | G7: Países Baixos | H7: 600479.2596 | I7: 0.05886423076 | K7: 4 | L7: Países Baixos | M7: 932127.81 | N7: 0.05397365282 | O7: -268830.7092
A8: 5 | B8: Países Baixos | C8: 331648.5504 | D8: 0.0469161511 | F8: 5 | G8: Brasil | H8: 551829.2644 | I8: 0.05409513258 | K8: 5 | L8: Brasil | M8: 923030.8158 | N8: 0.05344690316 | O8: -180627.713
A9: 6 | B9: Angola | C9: 270788.7526 | D9: 0.03830671359 | F9: 6 | G9: Itália | H9: 327446.3636 | I9: 0.03209915746 | K9: 6 | L9: Itália | M9: 777494.8872 | N9: 0.04501983383 | O9: 122602.16 | P9: Nota: Nesta listagem, o Reino Unido passa a ser constituído por três componentes: Reino Unido [até 2020] ; Reino Unido (sem Irlanda do Norte) pós-2020 e Reino Unido (Irlanda do Norte) pós-2020. Estas componentes são calculadas igualmente como média do quinquénio, embora a primeira corresponda apenas a 2018-2020 e as duas últimas a 2021-2022.
A10: 7 | B10: Alemanha | C10: 259817.9418 | D10: 0.03675474475 | F10: 7 | G10: Bélgica | H10: 257333.6916 | I10: 0.02522609992 | K10: 7 | L10: Bélgica | M10: 424096.2578 | N10: 0.02455674419 | O10: -90571.1254
A11: 8 | B11: Reino Unido | C11: 202835.6198 | D11: 0.02869382838 | F11: 8 | G11: Estados Unidos | H11: 216724.4778 | I11: 0.02124522949 | K11: 8 | L11: Estados Unidos | M11: 400307.8654 | N11: 0.02317930816 | O11: -33141.0902
A12: 9 | B12: Estados Unidos | C12: 183583.3876 | D12: 0.02597034102 | F12: 9 | G12: Ucrânia | H12: 191922.8274 | I12: 0.01881395472 | K12: 9 | L12: Polónia | M12: 317334.5188 | N12: 0.01837484405 | O12: -48783.4444
A13: 10 | B13: Israel | C13: 169488.4306 | D13: 0.02397641965 | F13: 10 | G13: Polónia | H13: 183058.9816 | I13: 0.017945043 | K13: 10 | L13: Reino Unido | M13: 313115.4092 | N13: 0.01813054198 | O13: 92555.8304
A14: 11 | B14: Bélgica | C14: 166762.5662 | D14: 0.02359080944 | F14: 11 | G14: Roménia | H14: 135395.1758 | I14: 0.01327261974 | K14: 11 | L14: Angola | M14: 277910.725 | N14: 0.01609206036 | O14: 263666.7802
A15: 12 | B15: Reino Unido (sem Irlanda do Norte) pós 2020 | C15: 153037.8236 | D15: 0.02164925988 | F15: 12 | G15: África do Sul | H15: 112521.5396 | I15: 0.01103034579 | K15: 12 | L15: Reino Unido (sem Irlanda do Norte) pós 2020 | M15: 202616.3834 | N15: 0.01173223909 | O15: 103459.2638
A16: 13 | B16: Polónia | C16: 134275.5372 | D16: 0.01899508195 | F16: 13 | G16: Reino Unido | H16: 110279.7894 | I16: 0.01081058982 | K16: 13 | L16: Ucrânia | M16: 198678.0056 | N16: 0.01150419243 | O16: -185167.6492
A17: 14 | B17: Suíça | C17: 91992.068 | D17: 0.01301351614 | F17: 14 | G17: Irlanda | H17: 108062.8466 | I17: 0.01059326569 | K17: 14 | L17: Canadá | M17: 175329.8698 | N17: 0.01015224889 | O17: -30892.3678
A18: 15 | B18: Cabo Verde | C18: 85414.0192 | D18: 0.0120829626 | F18: 15 | G18: Canadá | H18: 103111.1188 | I18: 0.01010785401 | K18: 15 | L18: Israel | M18: 174655.5912 | N18: 0.01011320566 | O18: 164321.27
A19: 16 | B19: Canadá | C19: 72218.751 | D19: 0.01021631432 | F19: 16 | G19: Argentina | H19: 72787.4116 | I19: 0.007135258919 | K19: 16 | L19: Roménia | M19: 151197.393 | N19: 0.008754889093 | O19: -119592.9586
A20: 17 | B20: China, República Popular da | C20: 72213.4462 | D20: 0.01021556388 | F20: 17 | G20: Dinamarca | H20: 70233.1534 | I20: 0.006884868183 | K20: 17 | L20: Irlanda | M20: 134807.959 | N20: 0.007805880158 | O20: -81317.7342
A21: 18 | B21: Japão | C21: 54923.0146 | D21: 0.007769599622 | F21: 18 | G21: Costa Rica | H21: 69966.4334 | I21: 0.006858721955 | K21: 18 | L21: África do Sul | M21: 134356.7194 | N21: 0.007779751714 | O21: -90686.3598
A22: 19 | B22: Suécia | C22: 50793.0088 | D22: 0.007185354716 | F22: 19 | G22: Reino Unido (sem Irlanda do Norte) pós 2020 | H22: 49578.5598 | I22: 0.004860124206 | K22: 19 | L22: Dinamarca | M22: 117665.3674 | N22: 0.006813260608 | O22: -22800.9394
A23: 20 | B23: Rússia, Federação da | C23: 48391.7838 | D23: 0.006845669122 | F23: 20 | G23: China, República Popular da | H23: 45047.8158 | I23: 0.004415981039 | K23: 20 | L23: China, República Popular da | M23: 117261.262 | N23: 0.006789861408 | O23: 27165.6304
A24: 21 | B24: Dinamarca | C24: 47432.214 | D24: 0.006709925059 | F24: 21 | G24: Bulgária | H24: 43907.4694 | I24: 0.004304194307 | K24: 21 | L24: Suíça | M24: 94990.5356 | N24: 0.005500303858 | O24: 88993.6004
A25: 22 | B25: Luxemburgo | C25: 45125.6972 | D25: 0.006383637214 | F25: 22 | G25: Cuba | H25: 35799.7426 | I25: 0.00350940399 | K25: 22 | L25: Cabo Verde | M25: 85541.4296 | N25: 0.004953165621 | O25: 85286.6088
A26: 23 | B26: Marrocos | C26: 40786.9258 | D26: 0.005769859604 | F26: 23 | G26: Grécia | H26: 30645.8102 | I26: 0.003004170443 | K26: 23 | L26: Argentina | M26: 73024.74 | N26: 0.004228402931 | O26: -72550.0832
A27: 24 | B27: Guiné-Bissau | C27: 30105.237 | D27: 0.004258790959 | F27: 24 | G27: Vietname | H27: 28845.3448 | I27: 0.002827673072 | K27: 24 | L27: Costa Rica | M27: 71166.1566 | N27: 0.004120784068 | O27: -68766.7102
A28: 25 | B28: Irlanda | C28: 26745.1124 | D28: 0.00378345611 | F28: 25 | G28: Colômbia | H28: 28227.4602 | I28: 0.002767102617 | K28: 25 | L28: Japão | M28: 68496.2538 | N28: 0.003966186807 | O28: 41349.7754
A29: 26 | B29: São Tomé e Príncipe | C29: 25259.196 | D29: 0.003573253237 | F29: 26 | G29: Guiana | H29: 28025.2924 | I29: 0.002747284361 | K29: 26 | L29: Suécia | M29: 64449.5152 | N29: 0.003731865653 | O29: 37136.5024
A30: 27 | B30: Arábia Saudita | C30: 25195.0996 | D30: 0.003564185938 | F30: 27 | G30: Chile | H30: 24583.4362 | I30: 0.002409883503 | K30: 27 | L30: Rússia, Federação da | M30: 60550.976 | N30: 0.003506125793 | O30: 36232.5916
A31: 28 | B31: Moçambique | C31: 25036.1622 | D31: 0.003541702104 | F31: 28 | G31: Áustria | H31: 23718.0114 | I31: 0.002325046992 | K31: 28 | L31: Luxemburgo | M31: 53191.4828 | N31: 0.003079983877 | O31: 37059.9116
A32: 29 | B32: Grécia | C32: 22444.1484 | D32: 0.003175026866 | F32: 29 | G32: Uruguai | H32: 22544.1794 | I32: 0.002209977709 | K32: 29 | L32: Grécia | M32: 53089.9586 | N32: 0.003074105249 | O32: -8201.6618
A33: 30 | B33: África do Sul | C33: 21835.1798 | D33: 0.003088880062 | F33: 30 | G33: Checa, República | H33: 21986.3926 | I33: 0.002155298567 | K33: 30 | L33: Bulgária | M33: 52078.8802 | N33: 0.003015560065 | O33: -35736.0586
A34: 31 | B34: Finlândia | C34: 19871.7108 | D34: 0.002811120945 | F34: 31 | G34: Costa do Marfim | H34: 21706.691 | I34: 0.002127879769 | K34: 31 | L34: Marrocos | M34: 50674.6404 | N34: 0.002934249379 | O34: 30899.2112
A35: 32 | B35: Checa, República | C35: 18184.9724 | D35: 0.002572509097 | F35: 32 | G35: Índia | H35: 20830.7032 | I35: 0.00204200778 | K35: 32 | L35: Checa, República | M35: 40171.365 | N35: 0.002326070829 | O35: -3801.4202
A36: 33 | B36: Jordânia | C36: 17519.4376 | D36: 0.002478360242 | F36: 33 | G36: Paraguai | H36: 18542.9402 | I36: 0.001817741235 | K36: 33 | L36: Cuba | M36: 38669.2808 | N36: 0.00223909459 | O36: -32930.2044
A37: 34 | B37: Noruega | C37: 16995.9884 | D37: 0.002404311308 | F37: 34 | G37: Turquia | H37: 17991.0046 | I37: 0.001763635678 | K37: 34 | L37: Áustria | M37: 38078.486 | N37: 0.002204885383 | O37: -9357.5368
A38: 35 | B38: Roménia | C38: 15802.2172 | D38: 0.002235436304 | F38: 35 | G38: Hungria | H38: 16792.9934 | I38: 0.001646196139 | K38: 35 | L38: Moçambique | M38: 35149.7218 | N38: 0.002035299088 | O38: 14922.6026
A39: 36 | B39: Austrália | C39: 14444.222 | D39: 0.002043329606 | F39: 36 | G39: Uganda | H39: 16711.9036 | I39: 0.001638247007 | K39: 36 | L39: Colômbia | M39: 34588.8908 | N39: 0.002002824895 | O39: -21866.0296
A40: 37 | B40: Áustria | C40: 14360.4746 | D40: 0.002031482409 | F40: 37 | G40: Suécia | H40: 13656.5064 | I40: 0.001338730241 | K40: 37 | L40: Vietname | M40: 30879.9888 | N40: 0.001788065732 | O40: -26810.7008
A41: 38 | B41: Coreia, República da | C41: 13720.4568 | D41: 0.001940943277 | F41: 38 | G41: Japão | H41: 13573.2392 | I41: 0.001330567662 | K41: 38 | L41: Guiné-Bissau | M41: 30466.6832 | N41: 0.001764133807 | O41: 29743.7908
A42: 39 | B42: Iraque | C42: 12397.914 | D42: 0.001753851798 | F42: 39 | G42: Suazilândia | H42: 13238.5804 | I42: 0.001297761478 | K42: 39 | L42: Chile | M42: 30213.2108 | N42: 0.001749456816 | O42: -18953.6616
A43: 40 | B43: Emirados Árabes Unidos | C43: 11828.644 | D43: 0.001673320895 | F43: 40 | G43: Indonésia | H43: 13212.7406 | I43: 0.001295228435 | K43: 40 | L43: Guiana | M43: 28043.5358 | N43: 0.001623824597 | O43: -28007.049
A44: 41 | B44: Argélia | C44: 11256.5744 | D44: 0.001592393951 | F44: 41 | G44: México | H44: 13063.7214 | I44: 0.001280620269 | K44: 41 | L44: Hungria | M44: 28003.0576 | N44: 0.001621480759 | O44: -5582.9292
A45: 42 | B45: Macau | C45: 11226.3746 | D45: 0.001588121783 | F45: 42 | G45: Austrália | H45: 12930.0706 | I45: 0.001267518648 | K45: 42 | L45: Turquia | M45: 27957.3216 | N45: 0.001618832475 | O45: -8024.6876
A46: 43 | B46: Hungria | C46: 11210.0642 | D46: 0.001585814457 | F46: 43 | G46: Rússia, Federação da | H46: 12159.1922 | I46: 0.001191950403 | K46: 43 | L46: Finlândia | M46: 27396.6714 | N46: 0.001586368752 | O46: 12346.7502
A47: 44 | B47: Nigéria | C47: 10936.4444 | D47: 0.001547107254 | F47: 44 | G47: Moldava, República de | H47: 11903.439 | I47: 0.001166879237 | K47: 44 | L47: Austrália | M47: 27374.2926 | N47: 0.001585072937 | O47: 1514.1514
A48: 45 | B48: Turquia | C48: 9966.317 | D48: 0.001409869676 | F48: 45 | G48: Lituânia | H48: 11893.779 | I48: 0.001165932279 | K48: 45 | L48: Costa do Marfim | M48: 27312.2412 | N48: 0.001581479931 | O48: -16101.1408
A49: 46 | B49: Território Palestiniano Ocupado | C49: 9369.3582 | D49: 0.001325421819 | F49: 46 | G49: Peru | H49: 11310.0138 | I49: 0.001108706507 | K49: 46 | L49: São Tomé e Príncipe | M49: 26312.808 | N49: 0.001523609046 | O49: 24205.584
A50: 47 | B50: Eslováquia | C50: 9079.0046 | D50: 0.001284347395 | F50: 47 | G50: Paquistão | H50: 10304.445 | I50: 0.001010131855 | K50: 47 | L50: Arábia Saudita | M50: 25220.0634 | N50: 0.001460335087 | O50: 25170.1358
A51: 48 | B51: Senegal | C51: 8493.732 | D51: 0.001201552708 | F51: 48 | G51: Tailândia | H51: 10200.8142 | I51: 0.0009999730572 | K51: 48 | L51: Uruguai | M51: 24295.8202 | N51: 0.001406817982 | O51: -20792.5386
A52: 49 | B52: Bulgária | C52: 8171.4108 | D52: 0.001155956036 | F52: 49 | G52: Moçambique | H52: 10113.5596 | I52: 0.0009914195979 | K52: 49 | L52: Índia | M52: 23845.568 | N52: 0.001380746712 | O52: -17815.8384
A53: 50 | B53: Líbia, Jamahira Árabe da | C53: 7994.4952 | D53: 0.001130928944 | F53: 50 | G53: Marrocos | H53: 9887.7146 | I53: 0.000969280295 | K53: 50 | L53: Paraguai | M53: 19187.5668 | N53: 0.001111031189 | O53: -17898.3136
A54: 51 | B54: Gibraltar | C54: 7555.2434 | D54: 0.001068790865 | F54: 51 | G54: Egito | H54: 9790.5476 | I54: 0.0009597551355 | K54: 51 | L54: México | M54: 18719.3066 | N54: 0.001083917189 | O54: -7408.1362
A55: 52 | B55: Kuwait | C55: 7350.4748 | D55: 0.00103982359 | F55: 52 | G55: Sérvia | H55: 8809.786 | I55: 0.0008636123026 | K55: 52 | L55: Noruega | M55: 18007.7536 | N55: 0.001042715635 | O55: 15984.2232
A56: 53 | B56: Ucrânia | C56: 6755.1782 | D56: 0.0009556108741 | F56: 53 | G56: Equador | H56: 8208.356 | I56: 0.0008046548719 | K56: 53 | L56: Jordânia | M56: 17549.35 | N56: 0.001016172368 | O56: 17489.5252
A57: 54 | B57: Colômbia | C57: 6361.4306 | D57: 0.0008999099766 | F57: 54 | G57: Luxemburgo | H57: 8065.7856 | I57: 0.000790678874 | K57: 54 | L57: Uganda | M57: 17196.9522 | N57: 0.0009957672303 | O57: -16226.855
A58: 55 | B58: Letónia | C58: 5847.3278 | D58: 0.0008271832163 | F58: 55 | G58: Nova Zelânda | H58: 7880.7508 | I58: 0.0007725401439 | K58: 55 | L58: Lituânia | M58: 16927.7228 | N58: 0.0009801778508 | O58: -6859.8352
A59: 56 | B59: HongKong | C59: 5831.0346 | D59: 0.0008248783238 | F59: 56 | G59: Finlândia | H59: 7524.9606 | I59: 0.0007376624757 | K59: 56 | L59: Suazilândia | M59: 15229.1586 | N59: 0.0008818246921 | O59: -11248.0022
A60: 57 | B60: Maurícias | C60: 5663.2906 | D60: 0.0008011486774 | F60: 57 | G60: Letónia | H60: 7523.6884 | I60: 0.0007375377635 | K60: 57 | L60: Coreia, República da | M60: 14661.023 | N60: 0.0008489275365 | O60: 12779.8906
A61: 58 | B61: México | C61: 5655.5852 | D61: 0.0008000586448 | F61: 58 | G61: Malásia | H61: 7403.8212 | I61: 0.0007257873318 | K61: 58 | L61: Indonésia | M61: 14350.1382 | N61: 0.000830926155 | O61: -12075.343
A62: 59 | B62: Chile | C62: 5629.7746 | D62: 0.0007964073881 | F62: 59 | G62: Angola | H62: 7121.9724 | I62: 0.0006981580464 | K62: 59 | L62: Letónia | M62: 13371.0162 | N62: 0.0007742313645 | O62: -1676.3606
A63: 60 | B63: Costa do Marfim | C63: 5605.5502 | D63: 0.0007929805207 | F63: 60 | G63: Camarões | H63: 6330.963 | I63: 0.0006206163843 | K63: 60 | L63: Tailândia | M63: 13287.6996 | N63: 0.0007694070248 | O63: -7113.9288
A64: 61 | B64: Andorra | C64: 5268.3636 | D64: 0.0007452809379 | F64: 61 | G64: Honduras | H64: 6193.8364 | I64: 0.0006071740352 | K64: 61 | L64: Peru | M64: 13096.7276 | N64: 0.0007583490386 | O64: -9523.3
A65: 62 | B65: Lituânia | C65: 5033.9438 | D65: 0.0007121191022 | F65: 62 | G65: Etiópia | H65: 5332.904 | I65: 0.0005227779089 | K65: 62 | L65: Eslováquia | M65: 12639.492 | N65: 0.0007318734038 | O65: 5518.5172
A66: 63 | B66: Malta | C66: 4911.2352 | D66: 0.0006947603192 | F66: 63 | G66: Israel | H66: 5167.1606 | I66: 0.0005065302907 | K66: 63 | L66: Iraque | M66: 12410.178 | N66: 0.0007185952738 | O66: 12385.65
A67: 64 | B67: Estónia | C67: 4891.9612 | D67: 0.0006920337525 | F67: 64 | G67: Belize | H67: 5153.7922 | I67: 0.0005052198032 | K67: 64 | L67: Emirados Árabes Unidos | M67: 12284.869 | N67: 0.0007113394185 | O67: 11372.419
A68: 65 | B68: Síria, República Árabe da | C68: 4399.3294 | D68: 0.000622344354 | F68: 65 | G68: Camboja | H68: 4964.3942 | I68: 0.0004866533541 | K68: 65 | L68: Moldava, República de | M68: 12104.827 | N68: 0.0007009143198 | O68: -11702.051
A69: 66 | B69: Chipre | C69: 4051.8682 | D69: 0.0005731912908 | F69: 66 | G69: Zimbabwe | H69: 4709.0808 | I69: 0.0004616253009 | K69: 66 | L69: Argélia | M69: 11803.9212 | N69: 0.0006834907595 | O69: 10709.2276
A70: 67 | B70: Omã | C70: 3805.6814 | D70: 0.0005383648545 | F70: 67 | G70: Guatemala | H70: 4635.2426 | I70: 0.0004543870345 | K70: 67 | L70: Sérvia | M70: 11344.2962 | N70: 0.0006568767695 | O70: -6275.2758
A71: 68 | B71: Eslovénia | C71: 3315.0192 | D71: 0.0004689540826 | F71: 68 | G71: Suriname | H71: 4613.819 | I71: 0.0004522869058 | K71: 68 | L71: Egito | M71: 11329.12 | N71: 0.0006559980113 | O71: -8251.9752
A72: 69 | B72: Mali | C72: 3288.1148 | D72: 0.0004651480931 | F72: 69 | G72: Macedónia, Antiga República jugoslava da | H72: 4601.7574 | I72: 0.0004511045222 | K72: 69 | L72: Macau | M72: 11244.0184 | N72: 0.0006510703135 | O72: 11208.7308
A73: 70 | B73: Tailândia | C73: 3086.8854 | D73: 0.0004366814861 | F73: 70 | G73: Tanzânia, República Unida da | H73: 4539.7292 | I73: 0.0004450239753 | K73: 70 | L73: Nigéria | M73: 11134.6158 | N73: 0.0006447354977 | O73: 10738.273
A74: 71 | B74: Índia | C74: 3014.8648 | D74: 0.0004264932029 | F74: 71 | G74: Eslovénia | H74: 4539.0796 | I74: 0.0004449602959 | K74: 71 | L74: Paquistão | M74: 10571.2956 | N74: 0.0006121171716 | O74: -10037.5944
A75: 72 | B75: Singapura | C75: 2938.7244 | D75: 0.0004157221186 | F75: 72 | G75: Filipinas | H75: 4493.8362 | I75: 0.0004405251419 | K75: 72 | L75: Nova Zelânda | M75: 10270.7832 | N75: 0.0005947163905 | O75: -5490.7184
A76: 73 | B76: Cuba | C76: 2869.5382 | D76: 0.0004059347994 | F76: 73 | G76: Tunísia | H76: 4123.8374 | I76: 0.0004042546224 | K76: 73 | L76: Território Palestiniano Ocupado | M76: 9369.8434 | N76: 0.000542548639 | O76: 9368.873
A77: 74 | B77: Gana | C77: 2746.7854 | D77: 0.0003885697637 | F77: 74 | G77: Estónia | H77: 4040.7446 | I77: 0.0003961091391 | K77: 74 | L77: Senegal | M77: 9057.1362 | N77: 0.0005244417338 | O77: 7930.3278
A78: 75 | B78: Taiwan | C78: 2744.6238 | D78: 0.0003882639763 | F78: 75 | G78: Mali | H78: 3761.0172 | I78: 0.000368687812 | K78: 75 | L78: Equador | M78: 9035.7916 | N78: 0.0005232058024 | O78: -7380.9204
A79: 76 | B79: Sérvia | C79: 2534.5102 | D79: 0.0003585405797 | F79: 76 | G79: Eslováquia | H79: 3560.4874 | I79: 0.0003490301265 | K79: 76 | L79: Estónia | M79: 8932.7058 | N79: 0.0005172367528 | O79: 851.2166
A80: 77 | B80: Líbano | C80: 2490.8708 | D80: 0.0003523671992 | F80: 77 | G80: Myanmar | H80: 3336.3804 | I80: 0.0003270611976 | K80: 77 | L80: Malásia | M80: 8922.5932 | N80: 0.0005166511958 | O80: -5885.0492
A81: 78 | B81: Timor-Leste | C81: 2471.9198 | D81: 0.0003496863252 | F81: 78 | G81: Quénia | H81: 3256.788 | I81: 0.0003192588542 | K81: 78 | L81: Camarões | M81: 8612.0928 | N81: 0.0004986720725 | O81: -4049.8332
A82: 79 | B82: Belarus | C82: 2455.9286 | D82: 0.0003474241547 | F82: 79 | G82: Malavi | H82: 3254.1854 | I82: 0.0003190037245 | K82: 79 | L82: Kuwait | M82: 8534.0068 | N82: 0.0004941506039 | O82: 6166.9428
A83: 80 | B83: Nova Zelânda | C83: 2390.0324 | D83: 0.0003381022503 | F83: 80 | G83: Nicarágua | H83: 3164.5168 | I83: 0.0003102136238 | K83: 80 | L83: Líbia, Jamahira Árabe da | M83: 8000.447 | N83: 0.0004632555151 | O83: 7988.5434
A84: 81 | B84: Filipinas | C84: 2342.9576 | D84: 0.0003314428863 | F84: 81 | G84: Chipre | H84: 3103.6452 | I84: 0.000304246457 | K84: 81 | L84: Eslovénia | M84: 7854.0988 | N84: 0.0004547814123 | O84: -1224.0604
A85: 82 | B85: Guiné | C85: 2294.4076 | D85: 0.0003245748354 | F85: 82 | G85: Sri Lanca | H85: 3086.3876 | I85: 0.0003025547161 | K85: 82 | L85: Gibraltar | M85: 7555.2434 | N85: 0.0004374765776 | O85: 7555.2434
A86: 83 | B86: Camarões | C86: 2281.1298 | D86: 0.0003226965118 | F86: 83 | G86: Suíça | H86: 2998.4676 | I86: 0.0002939360284 | K86: 83 | L86: Maurícias | M86: 7215.0914 | N86: 0.0004177805169 | O86: 4111.4898
A87: 84 | B87: Irão, República Islâmica do | C87: 2234.7082 | D87: 0.0003161295517 | F87: 84 | G87: Taiwan | H87: 2719.0514 | I87: 0.0002665452078 | K87: 84 | L87: Chipre | M87: 7155.5134 | N87: 0.00041433073 | O87: 948.223
A88: 85 | B88: Congo | C88: 2180.7492 | D88: 0.000308496325 | F88: 85 | G88: Reino Unido (Irlanda do Norte) pós-2020 | H88: 2486.6052 | I88: 0.0002437587976 | K88: 85 | L88: Mali | M88: 7049.132 | N88: 0.0004081708529 | O88: -472.9024
A89: 86 | B89: Seychelles | C89: 2103.9052 | D89: 0.0002976257069 | F89: 86 | G89: Dominicana, República | H89: 2224.7388 | I89: 0.0002180883619 | K89: 86 | L89: HongKong | M89: 7034.0506 | N89: 0.000407297584 | O89: 4628.0186
A90: 87 | B90: Gabão | C90: 2079.6516 | D90: 0.0002941947088 | F90: 87 | G90: Serra Leoa | H90: 1997.841 | I90: 0.0001958458544 | K90: 87 | L90: Honduras | M90: 7007.5386 | N90: 0.000405762441 | O90: -5380.1342
A91: 88 | B91: Venezuela | C91: 2058.4802 | D91: 0.0002911997293 | F91: 88 | G91: Benim | H91: 1817.5436 | I91: 0.0001781715258 | K91: 88 | L91: Filipinas | M91: 6836.7938 | N91: 0.0003958756847 | O91: -2150.8786
A92: 89 | B92: Vietname | C92: 2034.644 | D92: 0.000287827778 | F92: 89 | G92: Croácia | H92: 1794.8456 | I92: 0.0001759464692 | K92: 89 | L92: Etiópia | M92: 6077.3128 | N92: 0.0003518989216 | O92: -4588.4952
A93: 90 | B93: Suazilândia | C93: 1990.5782 | D93: 0.0002815940775 | F93: 90 | G93: Burquina Faso | H93: 1725.7566 | I93: 0.000169173761 | K93: 90 | L93: Taiwan | M93: 5463.6752 | N93: 0.0003163670317 | O93: 25.5724
A94: 91 | B94: Sudão | C94: 1865.0268 | D94: 0.0002638331422 | F94: 91 | G94: Gana | H94: 1658.8832 | I94: 0.0001626182452 | K94: 91 | L94: Malta | M94: 5451.155 | N94: 0.0003156420657 | O94: 4371.3154
A95: 92 | B95: Burquina Faso | C95: 1848.8938 | D95: 0.0002615509122 | F95: 92 | G95: Laos, República Democrática Popular do | H95: 1570.3752 | I95: 0.0001539419167 | K95: 92 | L95: Camboja | M95: 5365.826 | N95: 0.0003107012005 | O95: -4562.9624
A96: 93 | B96: Guiné Equatorial | C96: 1818.0792 | D96: 0.0002571917723 | F96: 93 | G96: Maurícias | H96: 1551.8008 | I96: 0.0001521210915 | K96: 93 | L96: Síria, República Árabe da | M96: 5349.1634 | N96: 0.0003097363743 | O96: 3449.4954
A97: 94 | B97: Peru | C97: 1786.7138 | D97: 0.0002527547143 | F97: 94 | G97: Madagáscar | H97: 1535.4408 | I97: 0.0001505173411 | K97: 94 | L97: Andorra | M97: 5273.09 | N97: 0.0003053314426 | O97: 5263.6372
A98: 95 | B98: Croácia | C98: 1762.667 | D98: 0.0002493529708 | F98: 95 | G98: Panamá | H98: 1513.6732 | I98: 0.0001483834905 | K98: 95 | L98: Belize | M98: 5155.9728 | N98: 0.000298549923 | O98: -5151.6116
A99: 96 | B99: Uruguai | C99: 1751.6408 | D99: 0.0002477931664 | F99: 96 | G99: Congo, República Democrática do | H99: 1226.6954 | I99: 0.0001202514158 | K99: 96 | L99: Guatemala | M99: 5127.1054 | N99: 0.0002968783936 | O99: -4143.3798
A100: 97 | B100: Dominicana, República | C100: 1708.9932 | D100: 0.0002417600894 | F100: 97 | G100: HongKong | H100: 1203.016 | I100: 0.0001179301538 | K100: 97 | L100: Tanzânia, República Unida da | M100: 4910.617 | N100: 0.0002843429133 | O100: -4168.8414
A101: 98 | B101: Benim | C101: 1572.4166 | D101: 0.0002224394912 | F101: 98 | G101: Kuwait | H101: 1183.532 | I101: 0.0001160201616 | K101: 98 | L101: Macedónia, Antiga República jugoslava da | M101: 4874.4688 | N101: 0.0002822497987 | O101: -4329.046
A102: 99 | B102: Bangladesh | C102: 1558.9346 | D102: 0.0002205322808 | F102: 99 | G102: Togo | H102: 1123.3282 | I102: 0.0001101184584 | K102: 99 | L102: Tunísia | M102: 4849.4484 | N102: 0.0002808010248 | O102: -3398.2264
A103: 100 | B103: Egito | C103: 1538.5724 | D103: 0.0002176517736 | F103: 100 | G103: Singapura | H103: 1066.466 | I103: 0.0001045443281 | K103: 100 | L103: Zimbabwe | M103: 4772.3634 | N103: 0.0002763375178 | O103: -4645.7982
A104: 101 | B104: Malásia | C104: 1518.772 | D104: 0.0002148507405 | F104: 101 | G104: São Tomé e Príncipe | H104: 1053.612 | I104: 0.0001032842665 | K104: 101 | L104: Suriname | M104: 4769.9158 | N104: 0.0002761957927 | O104: -4457.7222
A105: 102 | B105: Catar | C105: 1515.1716 | D105: 0.0002143414155 | F105: 102 | G105: Noruega | H105: 1011.7652 | I105: 9.918207707e-05 | K105: 102 | L105: Gana | M105: 4405.6686 | N105: 0.0002551045306 | O105: 1087.9022
A106: 103 | B106: Geórgia | C106: 1344.215 | D106: 0.0001901573035 | F106: 103 | G106: Síria, República Árabe da | H106: 949.834 | I106: 9.3111039e-05 | K106: 103 | L106: Omã | M106: 4283.851 | N106: 0.0002480508404 | O106: 3327.5118
A107: 104 | B107: Albânia | C107: 1266.1722 | D107: 0.0001791170991 | F107: 104 | G107: Coreia, República da | H107: 940.5662 | I107: 9.220252816e-05 | K107: 104 | L107: Singapura | M107: 4005.1904 | N107: 0.0002319153595 | O107: 1872.2584
A108: 105 | B108: Reino Unido (Irlanda do Norte) pós-2020 | C108: 1227.8066 | D108: 0.0001736897686 | F108: 105 | G108: El Salvador | H108: 728.093 | I108: 7.137404612e-05 | K108: 105 | L108: Dominicana, República | M108: 3933.732 | N108: 0.0002277776534 | O108: -515.7456
A109: 106 | B109: Costa Rica | C109: 1199.7232 | D109: 0.0001697169937 | F109: 106 | G109: Turquemenistão | H109: 720.6558 | I109: 7.06449867e-05 | K109: 106 | L109: Myanmar | M109: 3786.5898 | N109: 0.000219257575 | O109: -2886.171
A110: 107 | B110: Indonésia | C110: 1137.3976 | D110: 0.0001609001987 | F110: 107 | G110: Chade | H110: 675.9004 | I110: 6.625767082e-05 | K110: 107 | L110: Reino Unido (Irlanda do Norte) pós-2020 | M110: 3714.4118 | N110: 0.0002150782015 | O110: -1258.7986
A111: 108 | B111: Islândia | C111: 1133.5366 | D111: 0.0001603540083 | F111: 108 | G111: Timor-Leste | H111: 614.309 | I111: 6.021994291e-05 | K111: 108 | L111: Quénia | M111: 3707.2604 | N111: 0.0002146641089 | O111: -2806.3156
A112: 109 | B112: Congo, República Democrática do | C112: 1102.9278 | D112: 0.0001560239816 | F112: 109 | G112: Senegal | H112: 563.4042 | I112: 5.522980904e-05 | K112: 109 | L112: Nicarágua | M112: 3581.5684 | N112: 0.0002073860766 | O112: -2747.4652
A113: 110 | B113: Togo | C113: 886.836 | D113: 0.0001254548881 | F113: 110 | G113: Argélia | H113: 547.3468 | I113: 5.36557222e-05 | K113: 110 | L113: Burquina Faso | M113: 3574.6504 | N113: 0.0002069854987 | O113: 123.1372
A114: 111 | B114: Panamá | C114: 853.2114 | D114: 0.0001206982359 | F114: 111 | G114: Malta | H114: 539.9198 | I114: 5.292766268e-05 | K114: 111 | L114: Croácia | M114: 3557.5126 | N114: 0.0002059931566 | O114: -32.1786
A115: 112 | B115: Equador | C115: 827.4356 | D115: 0.000117051902 | F115: 112 | G115: Líbano | H115: 532.182 | I115: 5.216913582e-05 | K115: 112 | L115: Sri Lanca | M115: 3479.4264 | N115: 0.0002014716764 | O115: -2693.3488
A116: 113 | B116: Ruanda | C116: 825.8566 | D116: 0.0001168285312 | F116: 113 | G116: Omã | H116: 478.1696 | I116: 4.687436781e-05 | K116: 113 | L116: Benim | M116: 3389.9602 | N116: 0.0001962912521 | O116: -245.127
A117: 114 | B117: Honduras | C117: 813.7022 | D117: 0.0001151091278 | F117: 114 | G117: Emirados Árabes Unidos | H117: 456.225 | I117: 4.472316612e-05 | K117: 114 | L117: Malavi | M117: 3260.7888 | N117: 0.0001888117496 | O117: -3247.582
A118: 115 | B118: Bermudas | C118: 793.1712 | D118: 0.0001122047415 | F118: 115 | G118: Belarus | H118: 370.985 | I118: 3.636719553e-05 | K118: 115 | L118: Timor-Leste | M118: 3086.2288 | N118: 0.000178704079 | O118: 1857.6108
A119: 116 | B119: Etiópia | C119: 744.4088 | D119: 0.0001053066437 | F119: 116 | G119: Guiné-Bissau | H119: 361.4462 | I119: 3.54321189e-05 | K119: 116 | L119: Líbano | M119: 3023.0528 | N119: 0.0001750459546 | O119: 1958.6888
A120: 117 | B120: Tunísia | C120: 725.611 | D120: 0.0001026474419 | F120: 117 | G120: Usbequistão | H120: 308.3676 | I120: 3.022889013e-05 | K120: 117 | L120: Belarus | M120: 2826.9136 | N120: 0.0001636887684 | O120: 2084.9436
A121: 118 | B121: Burundi | C121: 677.0954 | D121: 9.578425733e-05 | F121: 118 | G121: Guiné | H121: 302.1342 | I121: 2.961783773e-05 | K121: 118 | L121: Guiné | M121: 2596.5418 | N121: 0.0001503493879 | O121: 1992.2734
A122: 119 | B122: Iémen | C122: 670.7886 | D122: 9.489207559e-05 | F122: 119 | G122: Geórgia | H122: 294.6596 | I122: 2.888511204e-05 | K122: 119 | L122: Serra Leoa | M122: 2499.2974 | N122: 0.0001447185769 | O122: -1496.3846
A123: 120 | B123: Paraguai | C123: 644.6266 | D123: 9.119110857e-05 | F123: 120 | G123: Bolívia | H123: 281.7088 | I123: 2.761556131e-05 | K123: 120 | L123: Irão, República Islâmica do | M123: 2440.2744 | N123: 0.0001413009266 | O123: 2029.142
A124: 121 | B124: Namíbia | C124: 633.7298 | D124: 8.964960955e-05 | F124: 121 | G124: Bangladesh | H124: 280.8088 | I124: 2.752733544e-05 | K124: 121 | L124: Congo | M124: 2380.0768 | N124: 0.0001378152626 | O124: 1981.4216
A125: 122 | B125: Azerbaijão | C125: 594.9756 | D125: 8.416730637e-05 | F125: 122 | G125: Irão, República Islâmica do | H125: 205.5662 | I125: 2.015139747e-05 | K125: 122 | L125: Panamá | M125: 2366.8846 | N125: 0.0001370513853 | O125: -660.4618
A126: 123 | B126: Arménia | C126: 559.6906 | D126: 7.917576822e-05 | F126: 123 | G126: Congo | H126: 199.3276 | I126: 1.953983532e-05 | K126: 123 | L126: Congo, República Democrática do | M126: 2329.6232 | N126: 0.0001348938123 | O126: -123.7676
A127: 124 | B127: Cazaquistão | C127: 531.8816 | D127: 7.524181089e-05 | F127: 124 | G127: Zâmbia | H127: 199.294 | I127: 1.953654155e-05 | K127: 124 | L127: Venezuela | M127: 2213.4414 | N127: 0.0001281664557 | O127: 1903.519
A128: 125 | B128: Aruba | C128: 522.985 | D128: 7.398326708e-05 | F128: 125 | G128: Nigéria | H128: 198.1714 | I128: 1.942649448e-05 | K128: 125 | L128: Seychelles | M128: 2103.9052 | N128: 0.000121823904 | O128: 2103.9052
A129: 126 | B129: Serra Leoa | C129: 501.4564 | D129: 7.093775686e-05 | F129: 126 | G129: Islândia | H129: 193.9226 | I129: 1.900998993e-05 | K129: 126 | L129: Gabão | M129: 2079.9016 | N129: 0.0001204340066 | O129: 2079.4016
A130: 127 | B130: Guatemala | C130: 491.8628 | D130: 6.958061302e-05 | F130: 127 | G130: Venezuela | H130: 154.9612 | I130: 1.519065262e-05 | K130: 127 | L130: Togo | M130: 2010.1642 | N130: 0.0001163959529 | O130: -236.4922
A131: 128 | B131: Uganda | C131: 485.0486 | D131: 6.861665272e-05 | F131: 128 | G131: Cabo Verde | H131: 127.4104 | I131: 1.248988215e-05 | K131: 128 | L131: Sudão | M131: 1881.5594 | N131: 0.0001089492586 | O131: 1848.4942
A132: 129 | B132: São Bartolomeu | C132: 472.0258 | D132: 6.677440239e-05 | F132: 129 | G132: Azerbaijão | H132: 124.836 | I132: 1.223751694e-05 | K132: 129 | L132: Bangladesh | M132: 1839.7434 | N132: 0.0001065279573 | O132: 1278.1258
A133: 130 | B133: Mauritânia | C133: 470.2498 | D133: 6.652316328e-05 | F133: 130 | G133: Albânia | H133: 104.1554 | I133: 1.021022359e-05 | K133: 130 | L133: Guiné Equatorial | M133: 1818.0792 | N133: 0.0001052735199 | O133: 1818.0792
A134: 131 | B134: Barém | C134: 469.46 | D134: 6.641143544e-05 | F134: 131 | G134: Namíbia | H134: 70.1862 | I134: 6.880265399e-06 | K134: 131 | L134: Madagáscar | M134: 1665.0982 | N134: 9.641535334e-05 | O134: -1405.7834
A135: 132 | B135: Gâmbia | C135: 455.249 | D135: 6.440109823e-05 | F135: 132 | G135: Tajiquistão | H135: 59.4122 | I135: 5.824103655e-06 | K135: 132 | L135: Geórgia | M135: 1638.8746 | N135: 9.489690977e-05 | O135: 1049.5554
A136: 133 | B136: Quénia | C136: 450.4724 | D136: 6.372538387e-05 | F136: 133 | G136: Iémen | H136: 45.76 | I136: 4.485795565e-06 | K136: 133 | L136: Laos, República Democrática Popular do | M136: 1584.7624 | N136: 9.176361296e-05 | O136: -1555.988
A137: 134 | B137: Myanmar | C137: 450.2094 | D137: 6.368817898e-05 | F137: 134 | G137: Libéria | H137: 38.8276 | I137: 3.806221064e-06 | K137: 134 | L137: Catar | M137: 1531.2412 | N137: 8.866453723e-05 | O137: 1499.102
A138: 135 | B138: Kosovo | C138: 418.4652 | D138: 5.919753465e-05 | F138: 135 | G138: Aruba | H138: 38.0318 | I138: 3.728209785e-06 | K138: 135 | L138: Albânia | M138: 1370.3276 | N138: 7.934704376e-05 | O138: 1162.0168
A139: 136 | B139: Nicarágua | C139: 417.0516 | D139: 5.89975619e-05 | F139: 136 | G139: São Marino | H139: 32.7702 | I139: 3.212421718e-06 | K139: 136 | L139: Islândia | M139: 1327.4592 | N139: 7.686480462e-05 | O139: 939.614
A140: 137 | B140: Camboja | C140: 401.4318 | D140: 5.678793097e-05 | F140: 137 | G140: Botswana | H140: 30.0284 | I140: 2.943646493e-06 | K140: 137 | L140: El Salvador | M140: 1020.6408 | N140: 5.90988828e-05 | O140: -435.5452
A141: 138 | B141: Sri Lanca | C141: 393.0388 | D141: 5.560062815e-05 | F141: 138 | G141: Jordânia | H141: 29.9124 | I141: 2.932275159e-06 | K141: 138 | L141: Ruanda | M141: 826.094 | N141: 4.783390247e-05 | O141: 825.6192
A142: 139 | B142: Bolívia | C142: 391.1324 | D142: 5.533094222e-05 | F142: 139 | G142: Bósnia-Herzegovina | H142: 27.8982 | I142: 2.734825652e-06 | K142: 139 | L142: Bermudas | M142: 793.8626 | N142: 4.596758502e-05 | O142: 792.4798
A143: 140 | B143: Tanzânia, República Unida da | C143: 370.8878 | D143: 5.246707107e-05 | F143: 140 | G143: Papuásia-Nova Guiné | H143: 25.837 | I143: 2.532768794e-06 | K143: 140 | L143: Turquemenistão | M143: 732.4956 | N143: 4.241420842e-05 | O143: -708.816
A144: 141 | B144: São Martinho (parte holandesa) | C144: 349.244 | D144: 4.940526426e-05 | F144: 141 | G144: Arábia Saudita | H144: 24.9638 | I144: 2.44717009e-06 | K144: 141 | L144: Azerbaijão | M144: 719.8116 | N144: 4.167975784e-05 | O144: 470.1396
A145: 142 | B145: Comores | C145: 311.607 | D145: 4.408100406e-05 | F145: 142 | G145: Macau | H145: 17.6438 | I145: 1.729599646e-06 | K145: 142 | L145: Iémen | M145: 716.5486 | N145: 4.149081805e-05 | O145: 625.0286
A146: 143 | B146: Libéria | C146: 294.774 | D146: 4.169974965e-05 | F146: 143 | G146: Quirguizistão | H146: 17.4758 | I146: 1.713130816e-06 | K146: 143 | L146: Namíbia | M146: 703.916 | N146: 4.075934372e-05 | O146: 563.5436
A147: 144 | B147: Somália | C147: 292.8146 | D147: 4.142256615e-05 | F147: 144 | G147: Sudão | H147: 16.5326 | I147: 1.6206701e-06 | K147: 144 | L147: Burundi | M147: 677.2094 | N147: 3.921293266e-05 | O147: 676.9814
A148: 145 | B148: El Salvador | C148: 292.5478 | D148: 4.13848237e-05 | F148: 145 | G148: Catar | H148: 16.0696 | I148: 1.575282789e-06 | K148: 145 | L148: Chade | M148: 675.9044 | N148: 3.913736832e-05 | O148: -675.8964
A149: 146 | B149: Jamaica | C149: 276.7996 | D149: 3.915702886e-05 | F149: 146 | G149: Arménia | H149: 15.3428 | I149: 1.504035494e-06 | K149: 146 | L149: Bolívia | M149: 672.8412 | N149: 3.89599977e-05 | O149: 109.4236
A150: 147 | B150: Macedónia, Antiga República jugoslava da | C150: 272.7114 | D150: 3.857869794e-05 | F150: 147 | G150: Curaçau | H150: 12.9632 | I150: 1.270766282e-06 | K150: 147 | L150: Arménia | M150: 575.0334 | N150: 3.32965638e-05 | O150: 544.3478
A151: 148 | B151: Paquistão | C151: 266.8506 | D151: 3.77496089e-05 | F151: 148 | G151: Iraque | H151: 12.264 | I151: 1.202224581e-06 | K151: 148 | L151: Aruba | M151: 561.0168 | N151: 3.248495074e-05 | O151: 484.9532
A152: 149 | B152: Antígua e Barbuda | C152: 264.4064 | D152: 3.740384392e-05 | F152: 149 | G152: Jamaica | H152: 11.1274 | I152: 1.090805104e-06 | K152: 149 | L152: Cazaquistão | M152: 538.873 | N152: 3.12027427e-05 | O152: 524.8902
A153: 150 | B153: Argentina | C153: 237.3284 | D153: 3.357329637e-05 | F153: 150 | G153: Kosovo | H153: 8.3722 | I153: 8.207162943e-07 | K153: 150 | L153: Barém | M153: 473.8092 | N153: 2.743530768e-05 | O153: 465.1108
A154: 151 | B154: Curaçau | C154: 224.0074 | D154: 3.168886164e-05 | F154: 151 | G154: Cazaquistão | H154: 6.9914 | I154: 6.853581974e-07 | K154: 151 | L154: São Bartolomeu | M154: 472.3088 | N154: 2.734842896e-05 | O154: 471.7428
A155: 152 | B155: Moldava, República de | C155: 201.388 | D155: 2.848904307e-05 | F155: 152 | G155: Líbia, Jamahira Árabe da | H155: 5.9518 | I155: 5.834475097e-07 | K155: 152 | L155: Mauritânia | M155: 471.8238 | N155: 2.732034567e-05 | O155: 468.6758
A156: 153 | B156: Haiti | C156: 195.7344 | D156: 2.768926526e-05 | F156: 153 | G156: Andorra | H156: 4.7264 | I156: 4.633230804e-07 | K156: 153 | L156: Gâmbia | M156: 455.249 | N156: 2.636060335e-05 | O156: 455.249
A157: 154 | B157: Ceuta e Melilha | C157: 191.5534 | D157: 2.709780654e-05 | F157: 154 | G157: São Cristovão e Nevis | H157: 4.4456 | I157: 4.357966076e-07 | K157: 154 | L157: Kosovo | M157: 426.8374 | N157: 2.471546648e-05 | O157: 410.093
A158: 155 | B158: Suriname | C158: 156.0968 | D158: 2.208199326e-05 | F158: 155 | G158: Afeganistão | H158: 4.3746 | I158: 4.288365664e-07 | K158: 155 | L158: São Martinho (parte holandesa) | M158: 349.244 | N158: 2.022252121e-05 | O158: 349.244
A159: 156 | B159: Nova Caledónia | C159: 140.1192 | D159: 1.98217467e-05 | F159: 156 | G159: Barém | H159: 4.3492 | I159: 4.263466362e-07 | K159: 156 | L159: Usbequistão | M159: 348.7024 | N159: 2.019116056e-05 | O159: -268.0328
A160: 157 | B160: Trindade e Tobago | C160: 140.025 | D160: 1.980842084e-05 | F160: 157 | G160: Nepal | H160: 2.446 | I160: 2.397783206e-07 | K160: 157 | L160: Zâmbia | M160: 336.52 | N160: 1.948575448e-05 | O160: -62.068
A161: 158 | B161: Zâmbia | C161: 137.226 | D161: 1.941246462e-05 | F161: 158 | G161: Liechtenstein | H161: 1.7982 | I161: 1.762752969e-07 | K161: 158 | L161: Libéria | M161: 333.6016 | N161: 1.931676831e-05 | O161: 255.9464
A162: 159 | B162: Polinésia Francesa | C162: 133.1554 | D162: 1.883662346e-05 | F162: 159 | G162: Lesoto | H162: 1.7136 | I162: 1.679820647e-07 | K162: 159 | L162: Comores | M162: 311.607 | N162: 1.80431995e-05 | O162: 311.607
A163: 160 | B163: Madagáscar | C163: 129.6574 | D163: 1.834178428e-05 | F163: 160 | G163: Mauritânia | H163: 1.574 | I163: 1.542972513e-07 | K163: 160 | L163: Somália | M163: 292.8146 | N163: 1.695504993e-05 | O163: 292.8146
A164: 161 | B164: Maldivas | C164: 127.1794 | D164: 1.799123783e-05 | F164: 161 | G164: Fiji, Ilhas | H164: 1.3818 | I164: 1.354561257e-07 | K164: 161 | L164: Jamaica | M164: 287.927 | N164: 1.667203979e-05 | O164: 265.6722
A165: 162 | B165: Niger | C165: 113.05 | D165: 1.599244404e-05 | F165: 162 | G165: Bermudas | H165: 0.6914 | I165: 6.777707722e-08 | K165: 162 | L165: Antígua e Barbuda | M165: 264.426 | N165: 1.531124484e-05 | O165: 264.3868
A166: 163 | B166: Liechtenstein | C166: 106.2456 | D166: 1.502987008e-05 | F166: 163 | G166: Território Palestiniano Ocupado | H166: 0.4852 | I166: 4.756354913e-08 | K166: 163 | L166: Curaçau | M166: 236.9706 | N166: 1.372147548e-05 | O166: 211.0442
A167: 164 | B167: Centro-Africana, República | C167: 83.0308 | D167: 1.174582417e-05 | F167: 164 | G167: Montenegro | H167: 0.3086 | I167: 3.025167201e-08 | K167: 164 | L167: Haiti | M167: 195.7358 | N167: 1.133382783e-05 | O167: 195.733
A168: 165 | B168: Jibuti | C168: 77.3086 | D168: 1.093634196e-05 | F168: 165 | G168: São Bartolomeu | H168: 0.283 | I168: 2.774213603e-08 | K168: 165 | L168: Ceuta e Melilha | M168: 191.5534 | N168: 1.109165138e-05 | O168: 191.5534
A169: 166 | B169: Nepal | C169: 76.6542 | D169: 1.084376828e-05 | F169: 166 | G169: Gabão | H169: 0.25 | I169: 2.450718731e-08 | K169: 166 | L169: Nova Caledónia | M169: 140.1192 | N169: 8.113420685e-06 | O169: 140.1192
A170: 167 | B170: Zimbabwe | C170: 63.2826 | D170: 8.952175488e-06 | F170: 167 | G170: Ruanda | H170: 0.2374 | I170: 2.327202507e-08 | K170: 167 | L170: Trindade e Tobago | M170: 140.0354 | N170: 8.108568354e-06 | O170: 140.0146
A171: 168 | B171: Caimão, Ilhas | C171: 51.4562 | D171: 7.279172037e-06 | F171: 168 | G171: Barbados | H171: 0.1378 | I171: 1.350836164e-08 | K171: 168 | L171: Polinésia Francesa | M171: 133.1554 | N171: 7.710190871e-06 | O171: 133.1554
A172: 169 | B172: Bósnia-Herzegovina | C172: 50.6168 | D172: 7.16042761e-06 | F172: 169 | G172: Oceano Indico, Território Britânico do | H172: 0.128 | I172: 1.25476799e-08 | K172: 169 | L172: Maldivas | M172: 127.183 | N172: 7.364366789e-06 | O172: 127.1758
A173: 170 | B173: Montenegro | C173: 46.101 | D173: 6.521606922e-06 | F173: 170 | G173: Niger | H173: 0.1252 | I173: 1.22731994e-08 | K173: 170 | L173: Niger | M173: 113.1752 | N173: 6.553263283e-06 | O173: 112.9248
A174: 171 | B174: Bahamas | C174: 42.9652 | D174: 6.078005807e-06 | F174: 171 | G174: Burundi | H174: 0.114 | I174: 1.117527741e-08 | K174: 171 | L174: Liechtenstein | M174: 108.0438 | N174: 6.256136217e-06 | O174: 104.4474
A175: 172 | B175: Usbequistão | C175: 40.3348 | D175: 5.705900325e-06 | F175: 172 | G175: Antígua e Barbuda | H175: 0.0196 | I175: 1.921363485e-09 | K175: 172 | L175: Centro-Africana, República | M175: 83.0308 | N175: 4.807790868e-06 | O175: 83.0308
A176: 173 | B176: Mongólia | C176: 30.8452 | D176: 4.363468684e-06 | F176: 173 | G176: São Vicente e Granadinas | H176: 0.0144 | I176: 1.411613989e-09 | K176: 173 | L176: Nepal | M176: 79.1002 | N176: 4.580194569e-06 | O176: 74.2082
A177: 174 | B177: Afeganistão | C177: 18.9718 | D177: 2.683816451e-06 | F177: 174 | G177: Mongólia | H177: 0.0112 | I177: 1.097921991e-09 | K177: 174 | L177: Bósnia-Herzegovina | M177: 78.515 | N177: 4.546309321e-06 | O177: 22.7186
A178: 175 | B178: Guiana | C178: 18.2434 | D178: 2.580774467e-06 | F178: 175 | G178: Trindade e Tobago | H178: 0.0104 | I178: 1.019498992e-09 | K178: 175 | L178: Jibuti | M178: 77.3086 | N178: 4.476454293e-06 | O178: 77.3086
A179: 176 | B179: Turcas e Caicos, Ilhas | C179: 18.0666 | D179: 2.555763728e-06 | F179: 176 | G179: Virgens Britânicas, Ilhas | H179: 0.007 | I179: 6.862012446e-10 | K179: 176 | L179: Tajiquistão | M179: 59.4122 | N179: 3.440186444e-06 | O179: -59.4122
A180: 177 | B180: Laos, República Democrática Popular do | C180: 14.3872 | D180: 2.035263077e-06 | F180: 177 | G180: Santa Lúcia | H180: 0.004 | I180: 3.921149969e-10 | K180: 177 | L180: Caimão, Ilhas | M180: 51.4562 | N180: 2.979504575e-06 | O180: 51.4562
A181: 178 | B181: Barbados | C181: 14.032 | D181: 1.985015256e-06 | F181: 178 | G181: Maldivas | H181: 0.0036 | I181: 3.529034972e-10 | K181: 178 | L181: Montenegro | M181: 46.4096 | N181: 2.687287742e-06 | O181: 45.7924
A182: 179 | B182: Turquemenistão | C182: 11.8398 | D182: 1.674899061e-06 | F182: 179 | G182: Haiti | H182: 0.0014 | I182: 1.372402489e-10 | K182: 179 | L182: Bahamas | M182: 42.9652 | N182: 2.487844224e-06 | O182: 42.9652
A183: 180 | B183: Virgens Britânicas, Ilhas | C183: 9.9272 | D183: 1.40433605e-06 | F183: 180 | G183: Anguila | H183: 0 | I183: 0 | K183: 180 | L183: São Marino | M183: 32.7902 | N183: 1.898674036e-06 | O183: -32.7502
A184: 181 | B184: Fiji, Ilhas | C184: 8.1268 | D184: 1.149645238e-06 | F184: 181 | G184: Antárctica | H184: 0 | I184: 0 | K184: 181 | L184: Mongólia | M184: 30.8564 | N184: 1.786699853e-06 | O184: 30.834
A185: 182 | B185: Santa Lúcia | C185: 7.138 | D185: 1.00976617e-06 | F185: 182 | G185: Antilhas Holandesas | H185: 0 | I185: 0 | K185: 182 | L185: Botswana | M185: 30.1228 | N185: 1.744221696e-06 | O185: -29.934
A186: 183 | B186: Brunei Darussalam | C186: 6.98 | D186: 9.874149436e-07 | F186: 183 | G186: Bahamas | H186: 0 | I186: 0 | K186: 183 | L186: Papuásia-Nova Guiné | M186: 28.7226 | N186: 1.663144929e-06 | O186: -22.9514
A187: 184 | B187: Malavi | C187: 6.6034 | D187: 9.341398049e-07 | F187: 184 | G187: Bonaire, Santo Eustáquio e Saba | H187: 0 | I187: 0 | K187: 184 | L187: Afeganistão | M187: 23.3464 | N187: 1.351843036e-06 | O187: 14.5972
A188: 185 | B188: Guam | C188: 6.5774 | D188: 9.30461755e-07 | F188: 185 | G188: Bouvet, Ilha | H188: 0 | I188: 0 | K188: 185 | L188: Quirguizistão | M188: 22.1324 | N188: 1.281547939e-06 | O188: -12.8192
A189: 186 | B189: São Vicente e Granadinas | C189: 5.6654 | D189: 8.014470804e-07 | F189: 186 | G189: Brunei Darussalam | H189: 0 | I189: 0 | K189: 186 | L189: Turcas e Caicos, Ilhas | M189: 18.0666 | N189: 1.046123059e-06 | O189: 18.0666
A190: 187 | B190: Quirguizistão | C190: 4.6566 | D190: 6.58738743e-07 | F190: 187 | G190: Butão | H190: 0 | I190: 0 | K190: 187 | L190: Barbados | M190: 14.1698 | N190: 8.204839053e-07 | O190: 13.8942
A191: 188 | B191: Menores distantes dos Estados Unidos, lhas | C191: 4.5542 | D191: 6.442528848e-07 | F191: 188 | G191: Caimão, Ilhas | H191: 0 | I191: 0 | K191: 188 | L191: Virgens Britânicas, Ilhas | M191: 9.9342 | N191: 5.752269765e-07 | O191: 9.9202
A192: 189 | B192: Sudão do Sul | C192: 3.771 | D192: 5.334587037e-07 | F192: 189 | G192: Centro-Africana, República | H192: 0 | I192: 0 | K192: 189 | L192: Fiji, Ilhas | M192: 9.5086 | N192: 5.505831601e-07 | O192: 6.745
A193: 190 | B193: Bonaire, Santo Eustáquio e Saba | C193: 3.1276 | D193: 4.424411142e-07 | F193: 190 | G193: Ceuta | H193: 0 | I193: 0 | K193: 190 | L193: Santa Lúcia | M193: 7.142 | N193: 4.135482541e-07 | O193: 7.134
A194: 191 | B194: Marianas do Norte, Ilhas | C194: 2.9244 | D194: 4.136957394e-07 | F194: 191 | G194: Ceuta e Melilha | H194: 0 | I194: 0 | K194: 191 | L194: Brunei Darussalam | M194: 6.98 | N194: 4.041678541e-07 | O194: 6.98
A195: 192 | B195: Papuásia-Nova Guiné | C195: 2.8856 | D195: 4.082069572e-07 | F195: 192 | G195: Christmas, Ilha | H195: 0 | I195: 0 | K195: 192 | L195: Guam | M195: 6.5774 | N195: 3.808558228e-07 | O195: 6.5774
A196: 193 | B196: Belize | C196: 2.1806 | D196: 3.084752186e-07 | F196: 193 | G196: Cocos (Keeling), Ilhas | H196: 0 | I196: 0 | K196: 193 | L196: São Vicente e Granadinas | M196: 5.6798 | N196: 3.288814581e-07 | O196: 5.651
A197: 194 | B197: Melilha | C197: 1.3464 | D197: 1.904664011e-07 | F197: 194 | G197: Comores | H197: 0 | I197: 0 | K197: 194 | L197: Menores distantes dos Estados Unidos, lhas | M197: 4.5542 | N197: 2.637050489e-07 | O197: 4.5542
A198: 195 | B198: Granada | C198: 0.6866 | D198: 9.712881092e-08 | F198: 195 | G198: Cook, Ilhas | H198: 0 | I198: 0 | K198: 195 | L198: São Cristovão e Nevis | M198: 4.4456 | N198: 2.574167066e-07 | O198: -4.4456
A199: 196 | B199: Virgens dos Estados Unidos, Ilhas | C199: 0.295 | D199: 4.173172039e-08 | F199: 196 | G199: Coreia, República Popular Democrática da | H199: 0 | I199: 0 | K199: 196 | L199: Sudão do Sul | M199: 3.771 | N199: 2.183548679e-07 | O199: 3.771
A200: 197 | B200: Botswana | C200: 0.0944 | D200: 1.335415053e-08 | F200: 197 | G200: Domínica | H200: 0 | I200: 0 | K200: 197 | L200: Bonaire, Santo Eustáquio e Saba | M200: 3.1276 | N200: 1.810996247e-07 | O200: 3.1276
... 58 more rows

Sheet 2A
A1: Parceiros comerciais de Portugal - União Europeia vs. Países Terceiros (média 2018-2022 em milhões de euros) produtos agrícolas e agroalimentares, do mar e da floresta
A2: Exportações | F2: Importações | K2: Trocas comerciais (total e saldo)
A3: P | B3: Grupo de Países | C3: média quinquénio | D3: % do Total | F3: P | G3: Grupo de Países | H3: média quinquénio | I3: % do Total | K3: P | L3: Grupo de Países | M3: média quinquénio | N3: % do Total | O3: Saldo (exp-imp)
A4: 1 | B4: União Europeia | C4: 8689.586002 | D4: 0.6705040416 | F4: 1 | G4: União Europeia | H4: 11670.31785 | I4: 0.7804427503 | K4: 1 | L4: União Europeia | M4: 20359.90385 | N4: 0.7293995292 | O4: -2980.731848
A5: 2 | B5: Países Terceiros | C5: 4270.778311 | D5: 0.3295409146 | F5: 2 | G5: Países Terceiros | H5: 3283.140101 | I5: 0.2195572497 | K5: 2 | L5: Países Terceiros | M5: 7553.918411 | N5: 0.2706213434 | O5: 987.6382102
B6: Outros | C6: 0 | D6: -4.495620481e-05 | G6: Outros | H6: 0 | I6: 0 | L6: Outros | M6: 0 | N6: -2.087262559e-05 | O6: 0
B7: Total | C7: 12959.78169 | D7: 1 | G7: Total | H7: 14953.45795 | I7: 1 | L7: Total | M7: 27913.23964 | N7: 1 | O7: -1993.67626
F27: valores em milhões de euros
A28: Nota: Outros = Países não determinados, abastecimentos de bordo, etc.
A29: Fonte: GPP a partir de dados INE/Comércio Internacional (2022 provisórios) | M29: 2023-08-10

Sheet 3
A1: Principais produtos agrícolas e agroalimentares, do mar e da floresta transacionados entre Portugal e Itália em 2018-2022 (NC a 2 e 4 dígitos) em milhões de euros
AC4: P | AE4: Cód.NC | AF4: Descritivo | AG4: Média export quinquénio | AH4: % do total | AI4: % acumulada | AN4: P | AO4: NC | AP4: Exportações | AQ4: 2018 | AR4: 2019 | AS4: 2020 | AT4: 2021 | AU4: 2022 | AV4: média quinquénio
AC5: 1 | AD5: º | AE5: 24 | AF5: Tabaco | AG5: 215.4660886 | AH5: 0.2458498385 | AN5: 1º | AO5: 24 | AP5: Tabaco | AQ5: 192.622301 | AR5: 213.566868 | AS5: 186.237524 | AT5: 245.943633 | AU5: 238.960117 | AV5: 215.4660886
AC6: 2 | AD6: º | AE6: 48 | AF6: Papel e cartão | AG6: 136.122143 | AH6: 0.1553172803 | AN6: 2º | AO6: 48 | AP6: Papel e cartão | AQ6: 111.886666 | AR6: 117.213872 | AS6: 94.87756 | AT6: 136.638871 | AU6: 219.993746 | AV6: 136.122143
AC7: 3 | AD7: º | AE7: 15 | AF7: Gorduras e óleos animais ou vegetais | AG7: 113.6290002 | AH7: 0.1296522879 | AI7: 0.5308194067 | AN7: 3º | AO7: 15 | AP7: Gorduras e óleos animais ou vegetais | AQ7: 97.93391 | AR7: 82.686468 | AS7: 86.534004 | AT7: 137.249486 | AU7: 163.741133 | AV7: 113.6290002
AC8: 4 | AD8: º | AE8: 45 | AF8: Cortiça e suas obras | AG8: 109.913022 | AH8: 0.1254123045 | AO8: - | AP8: Outros | AQ8: 405.082093 | AR8: 396.337812 | AS8: 377.609167 | AT8: 414.558669 | AU8: 462.393013 | AV8: 411.1961508
AC9: 5 | AD9: º | AE9: 03 | AF9: Peixes e crustáceos | AG9: 71.0305788 | AH9: 0.08104688976 | AP9: Total | AQ9: 807.52497 | AR9: 809.80502 | AS9: 745.258255 | AT9: 934.390659 | AU9: 1085.088009 | AV9: 876.4133826
AC10: 6 | AD10: º | AE10: 16p | AF10: Preparações e conservas de peixes ou crustáceos (NC 1604-05) (p) | AG10: 45.446859 | AH10: 0.05185550552
AC11: 7 | AD11: º | AE11: 08 | AF11: Frutas | AG11: 29.67508 | AH11: 0.03385968379
AC12: 8 | AD12: º | AE12: 47 | AF12: Pastas de madeira | AG12: 24.5488554 | AH12: 0.02801058939
AC13: 9 | AD13: º | AE13: 38f | AF13: Tall oil, essências e colofónias (f) | AG13: 19.4680734 | AH13: 0.02221334565
AC14: 10 | AD14: º | AE14: 44 | AF14: Madeira e suas obras | AG14: 16.9661068 | AH14: 0.01935856656 | AI14: 0.8925762919
AE15: - | AF15: Outros | AG15: 94.1475754 | AH15: 0.1074237081
AE16: Total | AG16: 876.4133826 | AH16: 1
AC38: P | AE38: Cód.NC | AF38: Descritivo | AG38: Média import quinquénio | AH38: % do total | AI38: % acumulada | AN38: P | AO38: NC | AP38: Importações | AQ38: 2018 | AR38: 2019 | AS38: 2020 | AT38: 2021 | AU38: 2022 | AV38: média quinquénio
AC39: 1 | AD39: º | AE39: 48 | AF39: Papel e cartão | AG39: 66.327069 | AH39: 0.1474477987 | AN39: 1º | AO39: 48 | AP39: Papel e cartão | AQ39: 68.515401 | AR39: 63.607727 | AS39: 54.862335 | AT39: 65.264667 | AU39: 79.385215 | AV39: 66.327069
AC40: 2 | AD40: º | AE40: 24 | AF40: Tabaco | AG40: 47.736268 | AH40: 0.1061196845 | AN40: 2º | AO40: 24 | AP40: Tabaco | AQ40: 11.806266 | AR40: 35.681862 | AS40: 38.153269 | AT40: 68.227272 | AU40: 84.812671 | AV40: 47.736268
AC41: 3 | AD41: º | AE41: 19a | AF41: Preparações à base de cereais (exc. NC 19022010) (a) | AG41: 39.9841158 | AH41: 0.08888633173 | AI41: 0.3424538149 | AN41: 3º | AO41: 19a | AP41: Preparações à base de cereais (exc. NC 19022010) (a) | AQ41: 37.256922 | AR41: 42.338362 | AS41: 35.850556 | AT41: 37.097846 | AU41: 47.376893 | AV41: 39.9841158
AC42: 4 | AD42: º | AE42: 18 | AF42: Cacau e suas preparações | AG42: 38.7083902 | AH42: 0.08605034132 | AO42: - | AP42: Outros | AQ42: 279.474675 | AR42: 285.131589 | AS42: 243.715873 | AT42: 290.041494 | AU42: 380.570323 | AV42: 295.7867908
AC43: 5 | AD43: º | AE43: 22 | AF43: Bebidas, líquidos alcoólicos e vinagres | AG43: 30.96863 | AH43: 0.06884453649 | AP43: Total | AQ43: 397.053264 | AR43: 426.75954 | AS43: 372.582033 | AT43: 460.631279 | AU43: 592.145102 | AV43: 449.8342436
AC44: 6 | AD44: º | AE44: 21 | AF44: Preparações alimentícias diversas | AG44: 26.338067 | AH44: 0.05855060475
AC45: 7 | AD45: º | AE45: 09 | AF45: Café, chá, mate e especiarias | AG45: 25.3172906 | AH45: 0.05628137689
AC46: 8 | AD46: º | AE46: 45 | AF46: Cortiça e suas obras | AG46: 24.1771432 | AH46: 0.05374678238
AC47: 9 | AD47: º | AE47: 02 | AF47: Carnes e miudezas | AG47: 23.5387826 | AH47: 0.05232768055
AC48: 10 | AD48: º | AE48: 04 | AF48: Leite e laticínios; ovos; mel, etc. | AG48: 20.5855026 | AH48: 0.04576241781 | AI48: 0.7640175551
AE49: - | AF49: Outros | AG49: 106.1529846 | AH49: 0.2359824449
AE50: Total | AG50: 449.8342436 | AH50: 1
AC62: DESAGREGAÇÃO A 4 DÍGITOS | AN62: DESAGREGAÇÃO A 4 DÍGITOS
AC64: P | AE64: Cód.NC | AF64: Descritivo | AG64: Média export quinquénio | AH64: % do total | AI64: % acumulada | AN64: P | AO64: NC | AP64: Exportações | AQ64: 2018 | AR64: 2019 | AS64: 2020 | AT64: 2021 | AU64: 2022 | AV64: média quinquénio
AC65: 1 | AD65: º | AE65: 2402 | AF65: Charutos, cigarrilhas e cigarros | AG65: 215.0505014 | AH65: 0.2453756477 | AN65: 1º | AO65: 2402 | AP65: Charutos, cigarrilhas e cigarros | AQ65: 192.57493 | AR65: 212.807667 | AS65: 185.544831 | AT65: 245.54462 | AU65: 238.780459 | AV65: 215.0505014
AC66: 2 | AD66: º | AE66: 1509 | AF66: Azeite (processos mecânicos ou físicos) | AG66: 105.9653924 | AH66: 0.1209080036 | AN66: 2º | AO66: 1509 | AP66: Azeite (processos mecânicos ou físicos) | AQ66: 97.417483 | AR66: 81.445974 | AS66: 85.716893 | AT66: 128.970391 | AU66: 136.276221 | AV66: 105.9653924
AC67: 3 | AD67: º | AE67: 4802 | AF67: Papel e cartão p/ escrita, etc. | AG67: 96.3617398 | AH67: 0.1099501008 | AI67: 0.4762337521 | AN67: 3º | AO67: 4802 | AP67: Papel e cartão p/ escrita, etc. | AQ67: 84.348991 | AR67: 83.214938 | AS67: 71.893346 | AT67: 89.060107 | AU67: 153.291317 | AV67: 96.3617398
AC68: 4 | AD68: º | AE68: 4504 | AF68: Cortiça aglomerada e suas obras | AG68: 67.3440646 | AH68: 0.07684052519 | AN68: - | AO68: - | AP68: Outros | AQ68: 433.183566 | AR68: 432.336441 | AS68: 402.103185 | AT68: 470.815541 | AU68: 556.740012 | AV68: 459.035749
AC69: 5 | AD69: º | AE69: 1604 | AF69: Preparações e conservas de peixes, etc. | AG69: 44.261935 | AH69: 0.05050349057 | AP69: Total | AQ69: 807.52497 | AR69: 809.80502 | AS69: 745.258255 | AT69: 934.390659 | AU69: 1085.088009 | AV69: 876.4133826
AC70: 6 | AD70: º | AE70: 4503 | AF70: Obras de cortiça natural | AG70: 40.1041778 | AH70: 0.0457594311
AC71: 7 | AD71: º | AE71: 4703 | AF71: Pastas químicas de madeira, à soda ou ao sulfato | AG71: 24.5011932 | AH71: 0.02795620615
AC72: 8 | AD72: º | AE72: 4804 | AF72: Papel e cartão "kraft", não revestidos | AG72: 22.220534 | AH72: 0.02535394192
AC73: 9 | AD73: º | AE73: 0307 | AF73: Moluscos | AG73: 20.36972 | AH73: 0.02324213711
AC74: 10 | AD74: º | AE74: 3806 | AF74: Colofónias e derivados | AG74: 19.288724 | AH74: 0.02200870546 | AI74: 0.7478981896
AE75: - | AF75: Outros | AG75: 220.9454004 | AH75: 0.2521018104
AE76: Total | AG76: 876.4133826 | AH76: 1
AC89: DESAGREGAÇÃO A 4 DÍGITOS | AN89: DESAGREGAÇÃO A 4 DÍGITOS
G91: média 2018-2022 em milhões de euros | I91: Cód. NC | J91: Descritivo | K91: Export | L91: Import | M91: Saldo | AC91: P | AE91: Cód.NC | AF91: Descritivo | AG91: Média import quinquénio | AH91: % do total | AI91: % acumulada | AN91: P | AO91: NC | AP91: Importações | AQ91: 2018 | AR91: 2019 | AS91: 2020 | AT91: 2021 | AU91: 2022 | AV91: média quinquénio
I92: 2402 | J92: Charutos, cigarrilhas e cigarros | K92: 215.0505014 | L92: 0.0148992 | M92: 215.0356022 | AC92: 1 | AD92: º | AE92: 1806 | AF92: Chocolate e outras preparações com cacau | AG92: 38.6053446 | AH92: 0.08582126672 | AN92: 1º | AO92: 1806 | AP92: Chocolate e outras preparações com cacau | AQ92: 36.463083 | AR92: 39.298894 | AS92: 35.974502 | AT92: 36.144441 | AU92: 45.145803 | AV92: 38.6053446
I93: 1509 | J93: Azeite (processos mecânicos ou físicos) | K93: 105.9653924 | L93: 1.1989354 | M93: 104.766457 | AC93: 2 | AD93: º | AE93: 2403 | AF93: Outros produtos de tabaco | AG93: 28.7579544 | AH93: 0.06393011383 | AN93: 2º | AO93: 2403 | AP93: Outros produtos de tabaco | AQ93: 10.423085 | AR93: 33.825574 | AS93: 33.588571 | AT93: 65.875867 | AU93: 0.076675 | AV93: 28.7579544
I94: 4802 | J94: Papel e cartão p/ escrita, etc. | K94: 96.3617398 | L94: 3.1523622 | M94: 93.2093776 | AC94: 3 | AD94: º | AE94: 0901 | AF94: Café | AG94: 24.8185204 | AH94: 0.05517259024 | AI94: 0.2049239708 | AN94: 3º | AO94: 0901 | AP94: Café | AQ94: 20.899845 | AR94: 21.268078 | AS94: 19.925144 | AT94: 27.524425 | AU94: 34.47511 | AV94: 24.8185204
I95: 4504 | J95: Cortiça aglomerada e suas obras | K95: 67.3440646 | L95: 0.4100918 | M95: 66.9339728 | AC95: 4 | AD95: º | AE95: 1905 | AF95: Produtos de padaria, pastelaria, etc. | AG95: 24.6156238 | AH95: 0.05472154277 | AN95: - | AO95: - | AP95: Outros | AQ95: 329.267251 | AR95: 332.366994 | AS95: 283.093816 | AT95: 331.086546 | AU95: 512.447514 | AV95: 357.6524242
I96: 1604 | J96: Preparações e conservas de peixes, etc. | K96: 44.261935 | L96: 0.9041448 | M96: 43.3577902 | AC96: 5 | AD96: º | AE96: 4501 | AF96: Cortiça natural em bruto | AG96: 19.7892486 | AH96: 0.04399231246 | AP96: Total | AQ96: 397.053264 | AR96: 426.75954 | AS96: 372.582033 | AT96: 460.631279 | AU96: 592.145102 | AV96: 449.8342436
I97: 4503 | J97: Obras de cortiça natural | K97: 40.1041778 | L97: 3.8101376 | M97: 36.2940402 | AC97: 6 | AD97: º | AE97: 0406 | AF97: Queijos e requeijão | AG97: 18.7446244 | AH97: 0.04167006996
I98: 4703 | J98: Pastas químicas de madeira, à soda ou ao sulfato | K98: 24.5011932 | L98: 0.1530526 | M98: 24.3481406 | AC98: 7 | AD98: º | AE98: 4811 | AF98: Papel, cartão, pasta de celulose, etc. | AG98: 17.6224622 | AH98: 0.0391754573
I99: 4804 | J99: Papel e cartão "kraft", não revestidos | K99: 22.220534 | L99: 2.0490876 | M99: 20.1714464 | AC99: 8 | AD99: º | AE99: 2404 | AF99: Produtos que contenham tabaco, tabaco reconstituído, nicotina ou sucedâneos | AG99: 16.4767736 | AH99: 0.03662854448
I100: 0307 | J100: Moluscos | K100: 20.36972 | L100: 0.2745194 | M100: 20.0952006 | AC100: 9 | AD100: º | AE100: 0207 | AF100: Carnes e miudezas de aves de capoeira | AG100: 16.211115 | AH100: 0.0360379745
I101: 3806 | J101: Colofónias e derivados | K101: 19.288724 | L101: 0.0510944 | M101: 19.2376296 | AC101: 10 | AD101: º | AE101: 2106 | AF101: Outras preparações alimentícias | AG101: 14.6304796 | AH101: 0.03252415708 | AI101: 0.4896740293
I102: - | J102: Outros | K102: 207.394458 | L102: 217.543772 | M102: -10.149314 | AE102: - | AF102: Outros | AG102: 229.562097 | AH102: 0.5103259707
I103: 2106 | J103: Outras preparações alimentícias | K103: 0.824572 | L103: 14.6304796 | M103: -13.8059076 | AE103: Total | AG103: 449.8342436 | AH103: 1
I104: 4811 | J104: Papel, cartão, pasta de celulose, etc. | K104: 3.3664182 | L104: 17.6224622 | M104: -14.256044
I105: 0207 | J105: Carnes e miudezas de aves de capoeira | K105: 0.5182538 | L105: 16.211115 | M105: -15.6928612
I106: 2404 | J106: Produtos que contenham tabaco, tabaco reconstituído, nicotina ou sucedâneos | K106: 0 | L106: 16.4767736 | M106: -16.4767736
I107: 4501 | J107: Cortiça natural em bruto | K107: 2.4066968 | L107: 19.7892486 | M107: -17.3825518
I108: 0406 | J108: Queijos e requeijão | K108: 0.0552486 | L108: 18.7446244 | M108: -18.6893758
I109: 1905 | J109: Produtos de padaria, pastelaria, etc. | K109: 4.901561 | L109: 24.6156238 | M109: -19.7140628
I110: 0901 | J110: Café | K110: 0.4960458 | L110: 24.8185204 | M110: -24.3224746
I111: 2403 | J111: Outros produtos de tabaco | K111: 0.2750894 | L111: 28.7579544 | M111: -28.482865
I112: 1806 | J112: Chocolate e outras preparações com cacau | K112: 0.7070568 | L112: 38.6053446 | M112: -37.8982878
I113: Total | K113: 876.4133826 | L113: 449.8342436 | M113: 426.579139
A116: Fonte: GPP a partir de dados INE/Comércio Internacional (2022 definitivos) | Y116: 2023-11-03T16:00:51.260

Sheet 3A
A1: Principais produtos agrícolas e agroalimentares transacionados entre Portugal e Itália em 2018-2022 (NC a 2 e 4 dígitos) em milhões de euros
AC4: P | AE4: Cód.NC | AF4: Descritivo | AG4: Média export quinquénio | AH4: % do total | AI4: % acumulada | AN4: P | AO4: NC | AP4: Exportações | AQ4: 2018 | AR4: 2019 | AS4: 2020 | AT4: 2021 | AU4: 2022 | AV4: média quinquénio
AC5: 1 | AD5: º | AE5: 24 | AF5: Tabaco | AG5: 215.4660886 | AH5: 0.4787619052 | AN5: 1º | AO5: 24 | AP5: Tabaco | AQ5: 192.622301 | AR5: 213.566868 | AS5: 186.237524 | AT5: 245.943633 | AU5: 238.960117 | AV5: 215.4660886
AC6: 2 | AD6: º | AE6: 15 | AF6: Gorduras e óleos animais ou vegetais | AG6: 113.6290002 | AH6: 0.2524816642 | AN6: 2º | AO6: 15 | AP6: Gorduras e óleos animais ou vegetais | AQ6: 97.93391 | AR6: 82.686468 | AS6: 86.534004 | AT6: 137.249486 | AU6: 163.741133 | AV6: 113.6290002
AC7: 3 | AD7: º | AE7: 08 | AF7: Frutas | AG7: 29.67508 | AH7: 0.06593751217 | AI7: 0.7971810816 | AN7: 3º | AO7: 08 | AP7: Frutas | AQ7: 38.585024 | AR7: 39.153079 | AS7: 24.970722 | AT7: 24.62117 | AU7: 21.045405 | AV7: 29.67508
AC8: 4 | AD8: º | AE8: 20 | AF8: Preparações de produtos vegetais | AG8: 15.0756284 | AH8: 0.03349778437 | AO8: - | AP8: Outros | AQ8: 68.300702 | AR8: 78.368173 | AS8: 102.557043 | AT8: 94.847443 | AU8: 112.318413 | AV8: 91.2783548
AC9: 5 | AD9: º | AE9: 22 | AF9: Bebidas, líquidos alcoólicos e vinagres | AG9: 12.3635462 | AH9: 0.02747158484 | AP9: Total | AQ9: 397.441937 | AR9: 413.774588 | AS9: 400.299293 | AT9: 502.661732 | AU9: 536.065068 | AV9: 450.0485236
AC10: 6 | AD10: º | AE10: 21 | AF10: Preparações alimentícias diversas | AG10: 10.9890294 | AH10: 0.0244174324
AC11: 7 | AD11: º | AE11: 12 | AF11: Sementes e frutos oleaginosos | AG11: 9.0856822 | AH11: 0.02018822799
AC12: 8 | AD12: º | AE12: 07 | AF12: Produtos hortícolas | AG12: 7.7483716 | AH12: 0.01721674707
AC13: 9 | AD13: º | AE13: 19a | AF13: Preparações à base de cereais (exc. NC 19022010) (a) | AG13: 7.6918994 | AH13: 0.01709126682
AC14: 10 | AD14: º | AE14: 05a | AF14: Outros produtos de origem animal (exc. NC 0508, 051191) (a) | AG14: 5.7129914 | AH14: 0.01269416763 | AI14: 0.9497582927
AE15: - | AF15: Outros | AG15: 22.6112062 | AH15: 0.05024170731
AE16: Total | AG16: 450.0485236 | AH16: 1
AC38: P | AE38: Cód.NC | AF38: Descritivo | AG38: Média import quinquénio | AH38: % do total | AI38: % acumulada | AN38: P | AO38: NC | AP38: Importações | AQ38: 2018 | AR38: 2019 | AS38: 2020 | AT38: 2021 | AU38: 2022 | AV38: média quinquénio
AC39: 1 | AD39: º | AE39: 24 | AF39: Tabaco | AG39: 47.736268 | AH39: 0.1457834727 | AN39: 1º | AO39: 24 | AP39: Tabaco | AQ39: 11.806266 | AR39: 35.681862 | AS39: 38.153269 | AT39: 68.227272 | AU39: 84.812671 | AV39: 47.736268
AC40: 2 | AD40: º | AE40: 19a | AF40: Preparações à base de cereais (exc. NC 19022010) (a) | AG40: 39.9841158 | AH40: 0.1221089016 | AN40: 2º | AO40: 19a | AP40: Preparações à base de cereais (exc. NC 19022010) (a) | AQ40: 37.256922 | AR40: 42.338362 | AS40: 35.850556 | AT40: 37.097846 | AU40: 47.376893 | AV40: 39.9841158
AC41: 3 | AD41: º | AE41: 18 | AF41: Cacau e suas preparações | AG41: 38.7083902 | AH41: 0.1182129182 | AI41: 0.3861052925 | AN41: 3º | AO41: 18 | AP41: Cacau e suas preparações | AQ41: 36.510522 | AR41: 39.330132 | AS41: 36.125268 | AT41: 36.197826 | AU41: 45.378203 | AV41: 38.7083902
AC42: 4 | AD42: º | AE42: 22 | AF42: Bebidas, líquidos alcoólicos e vinagres | AG42: 30.96863 | AH42: 0.09457619153 | AO42: - | AP42: Outros | AQ42: 184.131654 | AR42: 188.103989 | AS42: 160.060058 | AT42: 204.062186 | AU42: 268.730061 | AV42: 201.0175896
AC43: 5 | AD43: º | AE43: 21 | AF43: Preparações alimentícias diversas | AG43: 26.338067 | AH43: 0.08043475185 | AP43: Total | AQ43: 269.705364 | AR43: 305.454345 | AS43: 270.189151 | AT43: 345.58513 | AU43: 446.297828 | AV43: 327.4463636
AC44: 6 | AD44: º | AE44: 09 | AF44: Café, chá, mate e especiarias | AG44: 25.3172906 | AH44: 0.07731736679
AC45: 7 | AD45: º | AE45: 02 | AF45: Carnes e miudezas | AG45: 23.5387826 | AH45: 0.07188591848
AC46: 8 | AD46: º | AE46: 04 | AF46: Leite e laticínios; ovos; mel, etc. | AG46: 20.5855026 | AH46: 0.06286679251
AC47: 9 | AD47: º | AE47: 23a | AF47: Resíduos indústrias alimentares; alimentos p/ animais (exc. NC 230120) (a) | AG47: 14.6041812 | AH47: 0.04460022411
AC48: 10 | AD48: º | AE48: 08 | AF48: Frutas | AG48: 9.1490328 | AH48: 0.02794055399 | AI48: 0.8457270918
AE49: - | AF49: Outros | AG49: 50.5161028 | AH49: 0.1542729082
AE50: Total | AG50: 327.4463636 | AH50: 1
AC62: DESAGREGAÇÃO A 4 DÍGITOS | AN62: DESAGREGAÇÃO A 4 DÍGITOS
AC64: P | AE64: Cód.NC | AF64: Descritivo | AG64: Média export quinquénio | AH64: % do total | AI64: % acumulada | AN64: P | AO64: NC | AP64: Exportações | AQ64: 2018 | AR64: 2019 | AS64: 2020 | AT64: 2021 | AU64: 2022 | AV64: média quinquénio
AC65: 1 | AD65: º | AE65: 2402 | AF65: Charutos, cigarrilhas e cigarros | AG65: 215.0505014 | AH65: 0.4778384777 | AN65: 1º | AO65: 2402 | AP65: Charutos, cigarrilhas e cigarros | AQ65: 192.57493 | AR65: 212.807667 | AS65: 185.544831 | AT65: 245.54462 | AU65: 238.780459 | AV65: 215.0505014
AC66: 2 | AD66: º | AE66: 1509 | AF66: Azeite (processos mecânicos ou físicos) | AG66: 105.9653924 | AH66: 0.2354532608 | AN66: 2º | AO66: 1509 | AP66: Azeite (processos mecânicos ou físicos) | AQ66: 97.417483 | AR66: 81.445974 | AS66: 85.716893 | AT66: 128.970391 | AU66: 136.276221 | AV66: 105.9653924
AC67: 3 | AD67: º | AE67: 0802 | AF67: Frutas de casca rija | AG67: 18.3259752 | AH67: 0.04071999849 | AI67: 0.754011737 | AN67: 3º | AO67: 0802 | AP67: Frutas de casca rija | AQ67: 30.459686 | AR67: 27.68202 | AS67: 12.291683 | AT67: 12.885704 | AU67: 8.310783 | AV67: 18.3259752
AC68: 4 | AD68: º | AE68: 2002 | AF68: Tomates preparados | AG68: 13.3567664 | AH68: 0.02967850287 | AN68: - | AO68: - | AP68: Outros | AQ68: 76.989838 | AR68: 91.838927 | AS68: 116.745886 | AT68: 115.261017 | AU68: 152.697605 | AV68: 110.7066546
AC69: 5 | AD69: º | AE69: 2204 | AF69: Vinhos de uvas frescas | AG69: 7.639119 | AH69: 0.01697398969 | AP69: Total | AQ69: 397.441937 | AR69: 413.774588 | AS69: 400.299293 | AT69: 502.661732 | AU69: 536.065068 | AV69: 450.0485236
AC70: 6 | AD70: º | AE70: 1212 | AF70: Alfarroba, algas, beterraba sacarina, etc. | AG70: 6.316112 | AH70: 0.01403429112
AC71: 7 | AD71: º | AE71: 1515 | AF71: Outras gorduras e óleos vegetais | AG71: 5.9576738 | AH71: 0.01323784767
AC72: 8 | AD72: º | AE72: 0504 | AF72: Tripas de animais (excepto peixes) | AG72: 5.2534648 | AH72: 0.01167310751
AC73: 9 | AD73: º | AE73: 1905 | AF73: Produtos de padaria, pastelaria, etc. | AG73: 4.901561 | AH73: 0.01089118338
AC74: 10 | AD74: º | AE74: 0811 | AF74: Frutas não cozidas ou cozidas em água ou vapor, congeladas | AG74: 4.849116 | AH74: 0.0107746515 | AI74: 0.8612753107
AE75: - | AF75: Outros | AG75: 62.4328416 | AH75: 0.1387246893
AE76: Total | AG76: 450.0485236 | AH76: 1
AC89: DESAGREGAÇÃO A 4 DÍGITOS | AN89: DESAGREGAÇÃO A 4 DÍGITOS
G91: média 2018-2022 em milhões de euros | I91: Cód. NC | J91: Descritivo | K91: Export | L91: Import | M91: Saldo | AC91: P | AE91: Cód.NC | AF91: Descritivo | AG91: Média import quinquénio | AH91: % do total | AI91: % acumulada | AN91: P | AO91: NC | AP91: Importações | AQ91: 2018 | AR91: 2019 | AS91: 2020 | AT91: 2021 | AU91: 2022 | AV91: média quinquénio
I92: 2402 | J92: Charutos, cigarrilhas e cigarros | K92: 215.0505014 | L92: 0.0148992 | M92: 215.0356022 | AC92: 1 | AD92: º | AE92: 1806 | AF92: Chocolate e outras preparações com cacau | AG92: 38.6053446 | AH92: 0.1178982236 | AN92: 1º | AO92: 1806 | AP92: Chocolate e outras preparações com cacau | AQ92: 36.463083 | AR92: 39.298894 | AS92: 35.974502 | AT92: 36.144441 | AU92: 45.145803 | AV92: 38.6053446
I93: 1509 | J93: Azeite (processos mecânicos ou físicos) | K93: 105.9653924 | L93: 1.1989354 | M93: 104.766457 | AC93: 2 | AD93: º | AE93: 2403 | AF93: Outros produtos de tabaco | AG93: 28.7579544 | AH93: 0.08782493134 | AN93: 2º | AO93: 2403 | AP93: Outros produtos de tabaco | AQ93: 10.423085 | AR93: 33.825574 | AS93: 33.588571 | AT93: 65.875867 | AU93: 0.076675 | AV93: 28.7579544
I94: 0802 | J94: Frutas de casca rija | K94: 18.3259752 | L94: 1.335002 | M94: 16.9909732 | AC94: 3 | AD94: º | AE94: 0901 | AF94: Café | AG94: 24.8185204 | AH94: 0.07579415489 | AI94: 0.2815173098 | AN94: 3º | AO94: 0901 | AP94: Café | AQ94: 20.899845 | AR94: 21.268078 | AS94: 19.925144 | AT94: 27.524425 | AU94: 34.47511 | AV94: 24.8185204
I95: 2002 | J95: Tomates preparados | K95: 13.3567664 | L95: 3.0542858 | M95: 10.3024806 | AC95: 4 | AD95: º | AE95: 1905 | AF95: Produtos de padaria, pastelaria, etc. | AG95: 24.6156238 | AH95: 0.0751745218 | AN95: - | AO95: - | AP95: Outros | AQ95: 201.919351 | AR95: 211.061799 | AS95: 180.700934 | AT95: 216.040397 | AU95: 366.60024 | AV95: 235.2645442
I96: 1212 | J96: Alfarroba, algas, beterraba sacarina, etc. | K96: 6.316112 | L96: 0.0107722 | M96: 6.3053398 | AC96: 5 | AD96: º | AE96: 0406 | AF96: Queijos e requeijão | AG96: 18.7446244 | AH96: 0.05724486964 | AP96: Total | AQ96: 269.705364 | AR96: 305.454345 | AS96: 270.189151 | AT96: 345.58513 | AU96: 446.297828 | AV96: 327.4463636
I97: 1515 | J97: Outras gorduras e óleos vegetais | K97: 5.9576738 | L97: 0.1189696 | M97: 5.8387042 | AC97: 6 | AD97: º | AE97: 2404 | AF97: Produtos que contenham tabaco, tabaco reconstituído, nicotina ou sucedâneos | AG97: 16.4767736 | AH97: 0.05031900009
I98: 0504 | J98: Tripas de animais (excepto peixes) | K98: 5.2534648 | L98: 0.269622 | M98: 4.9838428 | AC98: 7 | AD98: º | AE98: 0207 | AF98: Carnes e miudezas de aves de capoeira | AG98: 16.211115 | AH98: 0.04950769592
I99: 0604 | J99: Folhagem, folhas, ramos e outras partes de plantas | K99: 4.7848298 | L99: 0.1509874 | M99: 4.6338424 | AC99: 8 | AD99: º | AE99: 2106 | AF99: Outras preparações alimentícias | AG99: 14.6304796 | AH99: 0.04468053772
I100: 0811 | J100: Frutas não cozidas ou cozidas em água ou vapor, congeladas | K100: 4.849116 | L100: 0.9229768 | M100: 3.9261392 | AC100: 9 | AD100: º | AE100: 2309 | AF100: Preparações p/ alimentação animal | AG100: 13.6972866 | AH100: 0.0418306267
I101: 0713 | J101: Legumes de vagem, secos, em grão | K101: 3.9301514 | L101: 0.3410938 | M101: 3.5890576 | AC101: 10 | AD101: º | AE101: 2204 | AF101: Vinhos de uvas frescas | AG101: 12.949707 | AH101: 0.03954756699 | AI101: 0.6398221287
I102: - | J102: Outros | K102: 57.4165912 | L102: 110.7445698 | M102: -53.3279786 | AE102: - | AF102: Outros | AG102: 117.9389342 | AH102: 0.3601778713
I103: 1902 | J103: Massas alimentícias (exc. NC 1902 20 10) (a) | K103: 0.073273 | L103: 12.7265272 | M103: -12.6532542 | AE103: Total | AG103: 327.4463636 | AH103: 1
I104: 2309 | J104: Preparações p/ alimentação animal | K104: 0.9908488 | L104: 13.6972866 | M104: -12.7064378
I105: 2106 | J105: Outras preparações alimentícias | K105: 0.824572 | L105: 14.6304796 | M105: -13.8059076
I106: 0207 | J106: Carnes e miudezas de aves de capoeira | K106: 0.5182538 | L106: 16.211115 | M106: -15.6928612
I107: 2404 | J107: Produtos que contenham tabaco, tabaco reconstituído, nicotina ou sucedâneos | K107: 0 | L107: 16.4767736 | M107: -16.4767736
I108: 0406 | J108: Queijos e requeijão | K108: 0.0552486 | L108: 18.7446244 | M108: -18.6893758
I109: 1905 | J109: Produtos de padaria, pastelaria, etc. | K109: 4.901561 | L109: 24.6156238 | M109: -19.7140628
I110: 0901 | J110: Café | K110: 0.4960458 | L110: 24.8185204 | M110: -24.3224746
I111: 2403 | J111: Outros produtos de tabaco | K111: 0.2750894 | L111: 28.7579544 | M111: -28.482865
I112: 1806 | J112: Chocolate e outras preparações com cacau | K112: 0.7070568 | L112: 38.6053446 | M112: -37.8982878
I113: Total | K113: 450.0485236 | L113: 327.4463636 | M113: 122.60216
A116: Fonte: GPP a partir de dados INE/Comércio Internacional (2022 definitivos) | Y116: 2023-11-03T16:00:51.260

Sheet 4A
A1: Evolução da balança comercial Portugal-Itália 2018-2022 por produto em euros (NC 2 dígitos)
A3: =+aux!A31 -> Evolução da balança comercial Portugal-Itália para Tabaco
A5: Selecione o produto:
Q7: Para obter uma maior desagregação deste produto, clique no botão respetivo:
A20: =+aux!A43 -> Evolução da balança comercial Portugal-Itália para Preparações à base de cereais (exc. NC 19022010) (a)
A22: Selecione o produto:
A38: Fonte: GPP a partir de dados INE/Comércio Internacional (2022 definitivos) | N38: 2023-11-03T16:00:51.260

Sheet 5.2
A1: Trocas comerciais Portugal-Itália 2018-2022 em milhares de euros (NC 2 dígitos) | C1: Produtos agrícolas e agroalimentares, do mar e da floresta
A2: Cód. NC | B2: Descritivo | C2: Importações | K2: Exportações | S2: Saldo quinquénio (exp-imp) | T2: Evolução das importações | U2: =+"Variação das Importações " & INDEX(K3:N3,1,aux!AL1) & "-"& '5.2'!O3 &"" -> Variação das Importações 2018-2022 | Z2: Evolução das exportações | AA2: ="Variação das Exportações " & INDEX(K3:N3,1,aux!AL1) & "-"& '5.2'!O3 &"" -> Variação das Exportações 2018-2022
C3: 2018 | D3: 2019 | E3: 2020 | F3: 2021 | G3: 2022 | H3: média quinquénio | I3: % Subtot | J3: % Total | K3: 2018 | L3: 2019 | M3: 2020 | N3: 2021 | O3: 2022 | P3: média quinquénio | Q3: % Subtot | R3: % Total | U3: variação total em valor | V3: % no subtotal de variação | W3: % no total de variação | X3: taxa de variação média anual | Y3: taxa de variação total | AA3: variação total em valor | AB3: % no subtotal de variação | AC3: % no total de variação | AD3: taxa de variação média anual | AE3: taxa de variação total
A4: 01 | B4: Animais vivos | C4: 0 | D4: 393.015 | E4: 51.23 | F4: 99.515 | G4: 0.013 | H4: 108.7546 | I4: 0.0003321295091 | J4: 0.0002417659428 | K4: 108.485 | L4: 160.368 | M4: 335.105 | N4: 258.675 | O4: 432.825 | P4: 259.0916 | Q4: 0.0005756970336 | R4: 0.0002956271608 | S4: 150.337 | U4: =G4-INDEX($C4:$G4,1,aux!$AL$1) -> 0.013 | V4: =IF($U$37<>0,U4/$U$37, "n.d.") -> 7.361582542e-08 | W4: =IF($U$53<>0,U4/$U$53, "n.d.") -> 6.663528384e-08 | X4: =+IF(INDEX($C4:$G4,1,aux!$AL$1)>0,(G4/INDEX($C4:$G4,1,aux!$AL$1))^(1/($G$3-INDEX($C$3:$G$3,1,aux!$AL$1)))-1,"n.d.") -> n.d. | Y4: =IF(INDEX($C4:$G4,1,aux!$AL$1)>0,(G4-INDEX($C4:$G4,1,aux!$AL$1))/INDEX($C4:$G4,1,aux!$AL$1),"n.d.") -> n.d. | AA4: =O4-INDEX($K4:$O4,1,aux!$AL$1) -> 324.34 | AB4: =IF($AA$37<>0,AA4/$AA$37, "n.d.") -> 0.002339724963 | AC4: =IF($AA$53<>0,AA4/$AA$53, "n.d.") -> 0.001168527341 | AD4: =+IF(INDEX($K4:$O4,1,aux!$AL$1)>0,(O4/INDEX($K4:$O4,1,aux!$AL$1))^(1/($O$3-INDEX($K$3:$O$3,1,aux!$AL$1)))-1,"n.d.") -> 0.4133042375 | AE4: =IF(INDEX($K4:$O4,1,aux!$AL$1)>0,(O4-INDEX($K4:$O4,1,aux!$AL$1))/INDEX($K4:$O4,1,aux!$AL$1),"n.d.") -> 2.989722081
A5: 02 | B5: Carnes e miudezas | C5: 21578.996 | D5: 25021.327 | E5: 20684.368 | F5: 23834.948 | G5: 26574.274 | H5: 23538.7826 | I5: 0.07188591848 | J5: 0.05232768055 | K5: 925.187 | L5: 1053.243 | M5: 1641.969 | N5: 2981.045 | O5: 6982.009 | P5: 2716.6906 | Q5: 0.006036439312 | R5: 0.003099782196 | S5: -20822.092 | U5: =G5-INDEX($C5:$G5,1,aux!$AL$1) -> 4995.278 | V5: 0.02828703947 | W5: 0.02560475134 | X5: =+IF(INDEX($C5:$G5,1,aux!$AL$1)>0,(G5/INDEX($C5:$G5,1,aux!$AL$1))^(1/($G$3-INDEX($C$3:$G$3,1,aux!$AL$1)))-1,"n.d.") -> 0.05343451482 | Y5: =IF(INDEX($C5:$G5,1,aux!$AL$1)>0,(G5-INDEX($C5:$G5,1,aux!$AL$1))/INDEX($C5:$G5,1,aux!$AL$1),"n.d.") -> 0.231487971 | AA5: =O5-INDEX($K5:$O5,1,aux!$AL$1) -> 6056.822 | AB5: 0.04369272254 | AC5: 0.02182142846 | AD5: =+IF(INDEX($K5:$O5,1,aux!$AL$1)>0,(O5/INDEX($K5:$O5,1,aux!$AL$1))^(1/($O$3-INDEX($K$3:$O$3,1,aux!$AL$1)))-1,"n.d.") -> 0.6574396371 | AE5: =IF(INDEX($K5:$O5,1,aux!$AL$1)>0,(O5-INDEX($K5:$O5,1,aux!$AL$1))/INDEX($K5:$O5,1,aux!$AL$1),"n.d.") -> 6.546592202
A6: 04 | B6: Leite e laticínios; ovos; mel, etc. | C6: 15190.26 | D6: 18286.012 | E6: 15793.386 | F6: 22895.2 | G6: 30762.655 | H6: 20585.5026 | I6: 0.06286679251 | J6: 0.04576241781 | K6: 5344.346 | L6: 4490.561 | M6: 5236.066 | N6: 5109.067 | O6: 7102.311 | P6: 5456.4702 | Q6: 0.01212418198 | R6: 0.006225909266 | S6: -15129.0324 | U6: =G6-INDEX($C6:$G6,1,aux!$AL$1) -> 15572.395 | V6: 0.08818267013 | W6: 0.07982084315 | X6: =+IF(INDEX($C6:$G6,1,aux!$AL$1)>0,(G6/INDEX($C6:$G6,1,aux!$AL$1))^(1/($G$3-INDEX($C$3:$G$3,1,aux!$AL$1)))-1,"n.d.") -> 0.1929291525 | Y6: =IF(INDEX($C6:$G6,1,aux!$AL$1)>0,(G6-INDEX($C6:$G6,1,aux!$AL$1))/INDEX($C6:$G6,1,aux!$AL$1),"n.d.") -> 1.025156581 | AA6: =O6-INDEX($K6:$O6,1,aux!$AL$1) -> 1757.965 | AB6: 0.01268161372 | AC6: 0.006333570227 | AD6: =+IF(INDEX($K6:$O6,1,aux!$AL$1)>0,(O6/INDEX($K6:$O6,1,aux!$AL$1))^(1/($O$3-INDEX($K$3:$O$3,1,aux!$AL$1)))-1,"n.d.") -> 0.07368350127 | AE6: =IF(INDEX($K6:$O6,1,aux!$AL$1)>0,(O6-INDEX($K6:$O6,1,aux!$AL$1))/INDEX($K6:$O6,1,aux!$AL$1),"n.d.") -> 0.3289392191
A7: 05a | B7: Outros produtos de origem animal (exc. NC 0508, 051191) (a) | C7: 829.931 | D7: 95.382 | E7: 667.604 | F7: 83.998 | G7: 164.676 | H7: 368.3182 | I7: 0.001124819943 | J7: 0.0008187864869 | K7: 7227.878 | L7: 5686.953 | M7: 5525.024 | N7: 4643.092 | O7: 5482.01 | P7: 5712.9914 | Q7: 0.01269416763 | R7: 0.006518603565 | S7: 5344.6732 | U7: =G7-INDEX($C7:$G7,1,aux!$AL$1) -> -665.255 | V7: -0.003767176611 | W7: -0.003409958135 | X7: =+IF(INDEX($C7:$G7,1,aux!$AL$1)>0,(G7/INDEX($C7:$G7,1,aux!$AL$1))^(1/($G$3-INDEX($C$3:$G$3,1,aux!$AL$1)))-1,"n.d.") -> -0.3325832826 | Y7: =IF(INDEX($C7:$G7,1,aux!$AL$1)>0,(G7-INDEX($C7:$G7,1,aux!$AL$1))/INDEX($C7:$G7,1,aux!$AL$1),"n.d.") -> -0.8015786855 | AA7: =O7-INDEX($K7:$O7,1,aux!$AL$1) -> -1745.868 | AB7: -0.01259434834 | AC7: -0.006289987335 | AD7: =+IF(INDEX($K7:$O7,1,aux!$AL$1)>0,(O7/INDEX($K7:$O7,1,aux!$AL$1))^(1/($O$3-INDEX($K$3:$O$3,1,aux!$AL$1)))-1,"n.d.") -> -0.066783836 | AE7: =IF(INDEX($K7:$O7,1,aux!$AL$1)>0,(O7-INDEX($K7:$O7,1,aux!$AL$1))/INDEX($K7:$O7,1,aux!$AL$1),"n.d.") -> -0.2415464124
A8: 06 | B8: Plantas vivas e produtos de floricultura | C8: 9567.229 | D8: 6328.238 | E8: 5462.953 | F8: 8081.443 | G8: 10613.388 | H8: 8010.6502 | I8: 0.02446400721 | J8: 0.01780800442 | K8: 2994.89 | L8: 8188.221 | M8: 6845.427 | N8: 4899.955 | O8: 4662.182 | P8: 5518.135 | Q8: 0.01226120009 | R8: 0.006296269671 | S8: -2492.5152 | U8: =G8-INDEX($C8:$G8,1,aux!$AL$1) -> 1046.159 | V8: 0.005924142946 | W8: 0.005362392454 | X8: =+IF(INDEX($C8:$G8,1,aux!$AL$1)>0,(G8/INDEX($C8:$G8,1,aux!$AL$1))^(1/($G$3-INDEX($C$3:$G$3,1,aux!$AL$1)))-1,"n.d.") -> 0.02628260526 | Y8: =IF(INDEX($C8:$G8,1,aux!$AL$1)>0,(G8-INDEX($C8:$G8,1,aux!$AL$1))/INDEX($C8:$G8,1,aux!$AL$1),"n.d.") -> 0.1093481718 | AA8: =O8-INDEX($K8:$O8,1,aux!$AL$1) -> 1667.292 | AB8: 0.01202751653 | AC8: 0.006006894888 | AD8: =+IF(INDEX($K8:$O8,1,aux!$AL$1)>0,(O8/INDEX($K8:$O8,1,aux!$AL$1))^(1/($O$3-INDEX($K$3:$O$3,1,aux!$AL$1)))-1,"n.d.") -> 0.1169972063 | AE8: =IF(INDEX($K8:$O8,1,aux!$AL$1)>0,(O8-INDEX($K8:$O8,1,aux!$AL$1))/INDEX($K8:$O8,1,aux!$AL$1),"n.d.") -> 0.5567122666
A9: 07 | B9: Produtos hortícolas | C9: 1049.815 | D9: 1103.562 | E9: 1023.082 | F9: 1284.22 | G9: 2187.57 | H9: 1329.6498 | I9: 0.004060664426 | J9: 0.002955866119 | K9: 6907.801 | L9: 7860.2 | M9: 8167.373 | N9: 7686.388 | O9: 8120.096 | P9: 7748.3716 | Q9: 0.01721674707 | R9: 0.008841001009 | S9: 6418.7218 | U9: =G9-INDEX($C9:$G9,1,aux!$AL$1) -> 1137.755 | V9: 0.006442828727 | W9: 0.005831894413 | X9: =+IF(INDEX($C9:$G9,1,aux!$AL$1)>0,(G9/INDEX($C9:$G9,1,aux!$AL$1))^(1/($G$3-INDEX($C$3:$G$3,1,aux!$AL$1)))-1,"n.d.") -> 0.2014682435 | Y9: =IF(INDEX($C9:$G9,1,aux!$AL$1)>0,(G9-INDEX($C9:$G9,1,aux!$AL$1))/INDEX($C9:$G9,1,aux!$AL$1),"n.d.") -> 1.08376714 | AA9: =O9-INDEX($K9:$O9,1,aux!$AL$1) -> 1212.295 | AB9: 0.008745257673 | AC9: 0.004367638445 | AD9: =+IF(INDEX($K9:$O9,1,aux!$AL$1)>0,(O9/INDEX($K9:$O9,1,aux!$AL$1))^(1/($O$3-INDEX($K$3:$O$3,1,aux!$AL$1)))-1,"n.d.") -> 0.04125077211 | AE9: =IF(INDEX($K9:$O9,1,aux!$AL$1)>0,(O9-INDEX($K9:$O9,1,aux!$AL$1))/INDEX($K9:$O9,1,aux!$AL$1),"n.d.") -> 0.1754965147
A10: 08 | B10: Frutas | C10: 12230.595 | D10: 9831.864 | E10: 6649.173 | F10: 7401.689 | G10: 9631.843 | H10: 9149.0328 | I10: 0.02794055399 | J10: 0.0203386757 | K10: 38585.024 | L10: 39153.079 | M10: 24970.722 | N10: 24621.17 | O10: 21045.405 | P10: 29675.08 | Q10: 0.06593751217 | R10: 0.03385968379 | S10: 20526.0472 | U10: =G10-INDEX($C10:$G10,1,aux!$AL$1) -> -2598.752 | V10: -0.01471609796 | W10: -0.01332065978 | X10: =+IF(INDEX($C10:$G10,1,aux!$AL$1)>0,(G10/INDEX($C10:$G10,1,aux!$AL$1))^(1/($G$3-INDEX($C$3:$G$3,1,aux!$AL$1)))-1,"n.d.") -> -0.05796844086 | Y10: =IF(INDEX($C10:$G10,1,aux!$AL$1)>0,(G10-INDEX($C10:$G10,1,aux!$AL$1))/INDEX($C10:$G10,1,aux!$AL$1),"n.d.") -> -0.2124796054 | AA10: =O10-INDEX($K10:$O10,1,aux!$AL$1) -> -17539.619 | AB10: -0.1265273614 | AC10: -0.06319147918 | AD10: =+IF(INDEX($K10:$O10,1,aux!$AL$1)>0,(O10/INDEX($K10:$O10,1,aux!$AL$1))^(1/($O$3-INDEX($K$3:$O$3,1,aux!$AL$1)))-1,"n.d.") -> -0.1406212151 | AE10: =IF(INDEX($K10:$O10,1,aux!$AL$1)>0,(O10-INDEX($K10:$O10,1,aux!$AL$1))/INDEX($K10:$O10,1,aux!$AL$1),"n.d.") -> -0.4545706386
A11: 09 | B11: Café, chá, mate e especiarias | C11: 21087.452 | D11: 21596.568 | E11: 20389.601 | F11: 28006.085 | G11: 35506.747 | H11: 25317.2906 | I11: 0.07731736679 | J11: 0.05628137689 | K11: 265.495 | L11: 407.318 | M11: 915.305 | N11: 703.519 | O11: 293.647 | P11: 517.0568 | Q11: 0.001148891226 | R11: 0.0005899690834 | S11: -24800.2338 | U11: =G11-INDEX($C11:$G11,1,aux!$AL$1) -> 14419.295 | V11: 0.08165294641 | W11: 0.07391029347 | X11: =+IF(INDEX($C11:$G11,1,aux!$AL$1)>0,(G11/INDEX($C11:$G11,1,aux!$AL$1))^(1/($G$3-INDEX($C$3:$G$3,1,aux!$AL$1)))-1,"n.d.") -> 0.1391258167 | Y11: =IF(INDEX($C11:$G11,1,aux!$AL$1)>0,(G11-INDEX($C11:$G11,1,aux!$AL$1))/INDEX($C11:$G11,1,aux!$AL$1),"n.d.") -> 0.6837855517 | AA11: =O11-INDEX($K11:$O11,1,aux!$AL$1) -> 28.152 | AB11: 0.0002030829905 | AC11: 0.000101425608 | AD11: =+IF(INDEX($K11:$O11,1,aux!$AL$1)>0,(O11/INDEX($K11:$O11,1,aux!$AL$1))^(1/($O$3-INDEX($K$3:$O$3,1,aux!$AL$1)))-1,"n.d.") -> 0.0255156809 | AE11: =IF(INDEX($K11:$O11,1,aux!$AL$1)>0,(O11-INDEX($K11:$O11,1,aux!$AL$1))/INDEX($K11:$O11,1,aux!$AL$1),"n.d.") -> 0.1060358952
A12: 10 | B12: Cereais | C12: 3776.101 | D12: 8632.552 | E12: 4956.923 | F12: 6149.951 | G12: 8718.421 | H12: 6446.7896 | I12: 0.01968807816 | J12: 0.01433147808 | K12: 1020.606 | L12: 116.961 | M12: 134.193 | N12: 424.077 | O12: 844.51 | P12: 508.0694 | Q12: 0.001128921379 | R12: 0.0005797143335 | S12: -5938.7202 | U12: =G12-INDEX($C12:$G12,1,aux!$AL$1) -> 4942.32 | V12: 0.02798715125 | W12: 0.02533329969 | X12: =+IF(INDEX($C12:$G12,1,aux!$AL$1)>0,(G12/INDEX($C12:$G12,1,aux!$AL$1))^(1/($G$3-INDEX($C$3:$G$3,1,aux!$AL$1)))-1,"n.d.") -> 0.2326749165 | Y12: =IF(INDEX($C12:$G12,1,aux!$AL$1)>0,(G12-INDEX($C12:$G12,1,aux!$AL$1))/INDEX($C12:$G12,1,aux!$AL$1),"n.d.") -> 1.30884211 | AA12: =O12-INDEX($K12:$O12,1,aux!$AL$1) -> -176.096 | AB12: -0.001270321906 | AC12: -0.0006344360569 | AD12: =+IF(INDEX($K12:$O12,1,aux!$AL$1)>0,(O12/INDEX($K12:$O12,1,aux!$AL$1))^(1/($O$3-INDEX($K$3:$O$3,1,aux!$AL$1)))-1,"n.d.") -> -0.04624534675 | AE12: =IF(INDEX($K12:$O12,1,aux!$AL$1)>0,(O12-INDEX($K12:$O12,1,aux!$AL$1))/INDEX($K12:$O12,1,aux!$AL$1),"n.d.") -> -0.1725406278
A13: 11 | B13: Produtos da indústria de moagem e outros | C13: 1410.6 | D13: 2612.11 | E13: 2687.415 | F13: 2857.351 | G13: 4616.101 | H13: 2836.7154 | I13: 0.008663145221 | J13: 0.006306134849 | K13: 62.426 | L13: 43.589 | M13: 22.788 | N13: 81.973 | O13: 159.971 | P13: 74.1494 | Q13: 0.0001647586785 | R13: 8.460550862e-05 | S13: -2762.566 | U13: =G13-INDEX($C13:$G13,1,aux!$AL$1) -> 3205.501 | V13: 0.01815196938 | W13: 0.01643072838 | X13: =+IF(INDEX($C13:$G13,1,aux!$AL$1)>0,(G13/INDEX($C13:$G13,1,aux!$AL$1))^(1/($G$3-INDEX($C$3:$G$3,1,aux!$AL$1)))-1,"n.d.") -> 0.3449862849 | Y13: =IF(INDEX($C13:$G13,1,aux!$AL$1)>0,(G13-INDEX($C13:$G13,1,aux!$AL$1))/INDEX($C13:$G13,1,aux!$AL$1),"n.d.") -> 2.27243797 | AA13: =O13-INDEX($K13:$O13,1,aux!$AL$1) -> 97.545 | AB13: 0.000703670443 | AC13: 0.0003514336792 | AD13: =+IF(INDEX($K13:$O13,1,aux!$AL$1)>0,(O13/INDEX($K13:$O13,1,aux!$AL$1))^(1/($O$3-INDEX($K$3:$O$3,1,aux!$AL$1)))-1,"n.d.") -> 0.2652284179 | AE13: =IF(INDEX($K13:$O13,1,aux!$AL$1)>0,(O13-INDEX($K13:$O13,1,aux!$AL$1))/INDEX($K13:$O13,1,aux!$AL$1),"n.d.") -> 1.562570083
A14: 12 | B14: Sementes e frutos oleaginosos | C14: 2503.332 | D14: 2360.896 | E14: 2733.577 | F14: 3765.333 | G14: 10612.471 | H14: 4395.1218 | I14: 0.0134224175 | J14: 0.009770536286 | K14: 1000.17 | L14: 1976.178 | M14: 10654.958 | N14: 17087.162 | O14: 14709.943 | P14: 9085.6822 | Q14: 0.02018822799 | R14: 0.01036689122 | S14: 4690.5604 | U14: =G14-INDEX($C14:$G14,1,aux!$AL$1) -> 8109.139 | V14: 0.04592007392 | W14: 0.04156575223 | X14: =+IF(INDEX($C14:$G14,1,aux!$AL$1)>0,(G14/INDEX($C14:$G14,1,aux!$AL$1))^(1/($G$3-INDEX($C$3:$G$3,1,aux!$AL$1)))-1,"n.d.") -> 0.4349095181 | Y14: =IF(INDEX($C14:$G14,1,aux!$AL$1)>0,(G14-INDEX($C14:$G14,1,aux!$AL$1))/INDEX($C14:$G14,1,aux!$AL$1),"n.d.") -> 3.23933821 | AA14: =O14-INDEX($K14:$O14,1,aux!$AL$1) -> 13709.773 | AB14: 0.09889960572 | AC14: 0.04939336682 | AD14: =+IF(INDEX($K14:$O14,1,aux!$AL$1)>0,(O14/INDEX($K14:$O14,1,aux!$AL$1))^(1/($O$3-INDEX($K$3:$O$3,1,aux!$AL$1)))-1,"n.d.") -> 0.9583228507 | AE14: =IF(INDEX($K14:$O14,1,aux!$AL$1)>0,(O14-INDEX($K14:$O14,1,aux!$AL$1))/INDEX($K14:$O14,1,aux!$AL$1),"n.d.") -> 13.70744273
A15: 13a | B15: Sucos e extratos vegetais (exc. NC 1301) (a) | C15: 583.937 | D15: 132.268 | E15: 826.235 | F15: 630.366 | G15: 2400.67 | H15: 914.6952 | I15: 0.002793419936 | J15: 0.002033405 | K15: 18.95 | L15: 468.734 | M15: 296.879 | N15: 0.54 | O15: 869.146 | P15: 330.8498 | Q15: 0.0007351425072 | R15: 0.0003775042766 | S15: -583.8454 | U15: =G15-INDEX($C15:$G15,1,aux!$AL$1) -> 1816.733 | V15: 0.01028771534 | W15: 0.009312193778 | X15: =+IF(INDEX($C15:$G15,1,aux!$AL$1)>0,(G15/INDEX($C15:$G15,1,aux!$AL$1))^(1/($G$3-INDEX($C$3:$G$3,1,aux!$AL$1)))-1,"n.d.") -> 0.4239397632 | Y15: =IF(INDEX($C15:$G15,1,aux!$AL$1)>0,(G15-INDEX($C15:$G15,1,aux!$AL$1))/INDEX($C15:$G15,1,aux!$AL$1),"n.d.") -> 3.111179802 | AA15: =O15-INDEX($K15:$O15,1,aux!$AL$1) -> 850.196 | AB15: 0.006133146711 | AC15: 0.003063073538 | AD15: =+IF(INDEX($K15:$O15,1,aux!$AL$1)>0,(O15/INDEX($K15:$O15,1,aux!$AL$1))^(1/($O$3-INDEX($K$3:$O$3,1,aux!$AL$1)))-1,"n.d.") -> 1.602381005 | AE15: =IF(INDEX($K15:$O15,1,aux!$AL$1)>0,(O15-INDEX($K15:$O15,1,aux!$AL$1))/INDEX($K15:$O15,1,aux!$AL$1),"n.d.") -> 44.86522427
A16: 14 | B16: Matérias para entrançar e outros | C16: 139.079 | D16: 103.814 | E16: 70.533 | F16: 236.423 | G16: 136.226 | H16: 137.215 | I16: 0.0004190457286 | J16: 0.000305034581 | K16: 0.072 | L16: 0.081 | M16: 4.642 | N16: 0.054 | O16: 0.007 | P16: 0.9712 | Q16: 2.157989526e-06 | R16: 1.108152864e-06 | S16: -136.2438 | U16: =G16-INDEX($C16:$G16,1,aux!$AL$1) -> -2.853 | V16: -1.61558423e-05 | W16: -1.462388191e-05 | X16: =+IF(INDEX($C16:$G16,1,aux!$AL$1)>0,(G16/INDEX($C16:$G16,1,aux!$AL$1))^(1/($G$3-INDEX($C$3:$G$3,1,aux!$AL$1)))-1,"n.d.") -> -0.005168309534 | Y16: =IF(INDEX($C16:$G16,1,aux!$AL$1)>0,(G16-INDEX($C16:$G16,1,aux!$AL$1))/INDEX($C16:$G16,1,aux!$AL$1),"n.d.") -> -0.02051352109 | AA16: =O16-INDEX($K16:$O16,1,aux!$AL$1) -> -0.065 | AB16: -4.688972146e-07 | AC16: -2.341810359e-07 | AD16: =+IF(INDEX($K16:$O16,1,aux!$AL$1)>0,(O16/INDEX($K16:$O16,1,aux!$AL$1))^(1/($O$3-INDEX($K$3:$O$3,1,aux!$AL$1)))-1,"n.d.") -> -0.4416051735 | AE16: =IF(INDEX($K16:$O16,1,aux!$AL$1)>0,(O16-INDEX($K16:$O16,1,aux!$AL$1))/INDEX($K16:$O16,1,aux!$AL$1),"n.d.") -> -0.9027777778
A17: 15 | B17: Gorduras e óleos animais ou vegetais | C17: 2141.204 | D17: 7960.015 | E17: 3699.649 | F17: 5595.725 | G17: 8245.229 | H17: 5528.3644 | I17: 0.01688326705 | J17: 0.01228978113 | K17: 97933.91 | L17: 82686.468 | M17: 86534.004 | N17: 137249.486 | O17: 163741.133 | P17: 113629.0002 | Q17: 0.2524816642 | R17: 0.1296522879 | S17: 108100.6358 | U17: =G17-INDEX($C17:$G17,1,aux!$AL$1) -> 6104.025 | V17: 0.03456560298 | W17: 0.0312879568 | X17: =+IF(INDEX($C17:$G17,1,aux!$AL$1)>0,(G17/INDEX($C17:$G17,1,aux!$AL$1))^(1/($G$3-INDEX($C$3:$G$3,1,aux!$AL$1)))-1,"n.d.") -> 0.4008323709 | Y17: =IF(INDEX($C17:$G17,1,aux!$AL$1)>0,(G17-INDEX($C17:$G17,1,aux!$AL$1))/INDEX($C17:$G17,1,aux!$AL$1),"n.d.") -> 2.850744254 | AA17: =O17-INDEX($K17:$O17,1,aux!$AL$1) -> 65807.223 | AB17: 0.4747203625 | AC17: 0.2370892869 | AD17: =+IF(INDEX($K17:$O17,1,aux!$AL$1)>0,(O17/INDEX($K17:$O17,1,aux!$AL$1))^(1/($O$3-INDEX($K$3:$O$3,1,aux!$AL$1)))-1,"n.d.") -> 0.1371196758 | AE17: =IF(INDEX($K17:$O17,1,aux!$AL$1)>0,(O17-INDEX($K17:$O17,1,aux!$AL$1))/INDEX($K17:$O17,1,aux!$AL$1),"n.d.") -> 0.671955434
A18: 16a | B18: Preparações de carnes (exc. NC 1604-05) (a) | C18: 3421.156 | D18: 2774.975 | E18: 1959.469 | F18: 2604.365 | G18: 3488.092 | H18: 2849.6114 | I18: 0.00870252877 | J18: 0.006334803187 | K18: 1.358 | L18: 15.57 | M18: 14.351 | N18: 25.316 | O18: 54.582 | P18: 22.2354 | Q18: 4.940667247e-05 | R18: 2.537090423e-05 | S18: -2827.376 | U18: =G18-INDEX($C18:$G18,1,aux!$AL$1) -> 66.936 | V18: 0.0003790422223 | W18: 0.0003430999507 | X18: =+IF(INDEX($C18:$G18,1,aux!$AL$1)>0,(G18/INDEX($C18:$G18,1,aux!$AL$1))^(1/($G$3-INDEX($C$3:$G$3,1,aux!$AL$1)))-1,"n.d.") -> 0.004855845638 | Y18: =IF(INDEX($C18:$G18,1,aux!$AL$1)>0,(G18-INDEX($C18:$G18,1,aux!$AL$1))/INDEX($C18:$G18,1,aux!$AL$1),"n.d.") -> 0.01956531652 | AA18: =O18-INDEX($K18:$O18,1,aux!$AL$1) -> 53.224 | AB18: 0.0003839474669 | AC18: 0.0001917546378 | AD18: =+IF(INDEX($K18:$O18,1,aux!$AL$1)>0,(O18/INDEX($K18:$O18,1,aux!$AL$1))^(1/($O$3-INDEX($K$3:$O$3,1,aux!$AL$1)))-1,"n.d.") -> 1.51789386 | AE18: =IF(INDEX($K18:$O18,1,aux!$AL$1)>0,(O18-INDEX($K18:$O18,1,aux!$AL$1))/INDEX($K18:$O18,1,aux!$AL$1),"n.d.") -> 39.19293078
A19: 17 | B19: Açúcares e produtos de confeitaria | C19: 1019.818 | D19: 1649.058 | E19: 1332.02 | F19: 1238.024 | G19: 1395.982 | H19: 1326.9804 | I19: 0.004052512251 | J19: 0.002949931934 | K19: 150.67 | L19: 4.515 | M19: 6.793 | N19: 607.061 | O19: 1068.087 | P19: 367.4252 | Q19: 0.0008164124105 | R19: 0.0004192373226 | S19: -959.5552 | U19: =G19-INDEX($C19:$G19,1,aux!$AL$1) -> 376.164 | V19: 0.002130124873 | W19: 0.00192813807 | X19: =+IF(INDEX($C19:$G19,1,aux!$AL$1)>0,(G19/INDEX($C19:$G19,1,aux!$AL$1))^(1/($G$3-INDEX($C$3:$G$3,1,aux!$AL$1)))-1,"n.d.") -> 0.08165630552 | Y19: =IF(INDEX($C19:$G19,1,aux!$AL$1)>0,(G19-INDEX($C19:$G19,1,aux!$AL$1))/INDEX($C19:$G19,1,aux!$AL$1),"n.d.") -> 0.3688540504 | AA19: =O19-INDEX($K19:$O19,1,aux!$AL$1) -> 917.417 | AB19: 0.006618065783 | AC19: 0.00330525636 | AD19: =+IF(INDEX($K19:$O19,1,aux!$AL$1)>0,(O19/INDEX($K19:$O19,1,aux!$AL$1))^(1/($O$3-INDEX($K$3:$O$3,1,aux!$AL$1)))-1,"n.d.") -> 0.6317174583 | AE19: =IF(INDEX($K19:$O19,1,aux!$AL$1)>0,(O19-INDEX($K19:$O19,1,aux!$AL$1))/INDEX($K19:$O19,1,aux!$AL$1),"n.d.") -> 6.088916174
A20: 18 | B20: Cacau e suas preparações | C20: 36510.522 | D20: 39330.132 | E20: 36125.268 | F20: 36197.826 | G20: 45378.203 | H20: 38708.3902 | I20: 0.1182129182 | J20: 0.08605034132 | K20: 509.258 | L20: 565.929 | M20: 904.324 | N20: 858.547 | O20: 744.264 | P20: 716.4644 | Q20: 0.001591971448 | R20: 0.0008174959605 | S20: -37991.9258 | U20: =G20-INDEX($C20:$G20,1,aux!$AL$1) -> 8867.681 | V20: 0.05021551203 | W20: 0.04545388003 | X20: =+IF(INDEX($C20:$G20,1,aux!$AL$1)>0,(G20/INDEX($C20:$G20,1,aux!$AL$1))^(1/($G$3-INDEX($C$3:$G$3,1,aux!$AL$1)))-1,"n.d.") -> 0.05586237137 | Y20: =IF(INDEX($C20:$G20,1,aux!$AL$1)>0,(G20-INDEX($C20:$G20,1,aux!$AL$1))/INDEX($C20:$G20,1,aux!$AL$1),"n.d.") -> 0.2428801484 | AA20: =O20-INDEX($K20:$O20,1,aux!$AL$1) -> 235.006 | AB20: 0.001695287059 | AC20: 0.0008466761311 | AD20: =+IF(INDEX($K20:$O20,1,aux!$AL$1)>0,(O20/INDEX($K20:$O20,1,aux!$AL$1))^(1/($O$3-INDEX($K$3:$O$3,1,aux!$AL$1)))-1,"n.d.") -> 0.09950520125 | AE20: =IF(INDEX($K20:$O20,1,aux!$AL$1)>0,(O20-INDEX($K20:$O20,1,aux!$AL$1))/INDEX($K20:$O20,1,aux!$AL$1),"n.d.") -> 0.4614674684
A21: 19a | B21: Preparações à base de cereais (exc. NC 19022010) (a) | C21: 37256.922 | D21: 42338.362 | E21: 35850.556 | F21: 37097.846 | G21: 47376.893 | H21: 39984.1158 | I21: 0.1221089016 | J21: 0.08888633173 | K21: 7046.611 | L21: 9853.153 | M21: 8471.66 | N21: 9346.685 | O21: 3741.388 | P21: 7691.8994 | Q21: 0.01709126682 | R21: 0.008776565434 | S21: -32292.2164 | U21: =G21-INDEX($C21:$G21,1,aux!$AL$1) -> 10119.971 | V21: 0.05730692449 | W21: 0.05187285693 | X21: =+IF(INDEX($C21:$G21,1,aux!$AL$1)>0,(G21/INDEX($C21:$G21,1,aux!$AL$1))^(1/($G$3-INDEX($C$3:$G$3,1,aux!$AL$1)))-1,"n.d.") -> 0.06191535561 | Y21: =IF(INDEX($C21:$G21,1,aux!$AL$1)>0,(G21-INDEX($C21:$G21,1,aux!$AL$1))/INDEX($C21:$G21,1,aux!$AL$1),"n.d.") -> 0.2716265987 | AA21: =O21-INDEX($K21:$O21,1,aux!$AL$1) -> -3305.223 | AB21: -0.02384322859 | AC21: -0.0119080084 | AD21: =+IF(INDEX($K21:$O21,1,aux!$AL$1)>0,(O21/INDEX($K21:$O21,1,aux!$AL$1))^(1/($O$3-INDEX($K$3:$O$3,1,aux!$AL$1)))-1,"n.d.") -> -0.1463828874 | AE21: =IF(INDEX($K21:$O21,1,aux!$AL$1)>0,(O21-INDEX($K21:$O21,1,aux!$AL$1))/INDEX($K21:$O21,1,aux!$AL$1),"n.d.") -> -0.4690514348
A22: 20 | B22: Preparações de produtos vegetais | C22: 8402.852 | D22: 8530.226 | E22: 5794.043 | F22: 7394.342 | G22: 10424.341 | H22: 8109.1608 | I22: 0.02476485221 | J22: 0.01802699753 | K22: 9374.443 | L22: 9105.778 | M22: 23625.522 | N22: 14502.936 | O22: 18769.463 | P22: 15075.6284 | Q22: 0.03349778437 | R22: 0.01720150411 | S22: 6966.4676 | U22: =G22-INDEX($C22:$G22,1,aux!$AL$1) -> 2021.489 | V22: 0.01144719856 | W22: 0.01036173025 | X22: =+IF(INDEX($C22:$G22,1,aux!$AL$1)>0,(G22/INDEX($C22:$G22,1,aux!$AL$1))^(1/($G$3-INDEX($C$3:$G$3,1,aux!$AL$1)))-1,"n.d.") -> 0.05537177166 | Y22: =IF(INDEX($C22:$G22,1,aux!$AL$1)>0,(G22-INDEX($C22:$G22,1,aux!$AL$1))/INDEX($C22:$G22,1,aux!$AL$1),"n.d.") -> 0.2405717725 | AA22: =O22-INDEX($K22:$O22,1,aux!$AL$1) -> 9395.02 | AB22: 0.06777382629 | AC22: 0.03384823871 | AD22: =+IF(INDEX($K22:$O22,1,aux!$AL$1)>0,(O22/INDEX($K22:$O22,1,aux!$AL$1))^(1/($O$3-INDEX($K$3:$O$3,1,aux!$AL$1)))-1,"n.d.") -> 0.189533271 | AE22: =IF(INDEX($K22:$O22,1,aux!$AL$1)>0,(O22-INDEX($K22:$O22,1,aux!$AL$1))/INDEX($K22:$O22,1,aux!$AL$1),"n.d.") -> 1.00219501
A23: 21 | B23: Preparações alimentícias diversas | C23: 29141.911 | D23: 24981.02 | E23: 24709.563 | F23: 26774.377 | G23: 26083.464 | H23: 26338.067 | I23: 0.08043475185 | J23: 0.05855060475 | K23: 5568.276 | L23: 7496.682 | M23: 11645.96 | N23: 9774.133 | O23: 20460.096 | P23: 10989.0294 | Q23: 0.0244174324 | R23: 0.01253863715 | S23: -15349.0376 | U23: =G23-INDEX($C23:$G23,1,aux!$AL$1) -> -3058.447 | V23: -0.01731923849 | W23: -0.0156769603 | X23: =+IF(INDEX($C23:$G23,1,aux!$AL$1)>0,(G23/INDEX($C23:$G23,1,aux!$AL$1))^(1/($G$3-INDEX($C$3:$G$3,1,aux!$AL$1)))-1,"n.d.") -> -0.02733831191 | Y23: =IF(INDEX($C23:$G23,1,aux!$AL$1)>0,(G23-INDEX($C23:$G23,1,aux!$AL$1))/INDEX($C23:$G23,1,aux!$AL$1),"n.d.") -> -0.1049501181 | AA23: =O23-INDEX($K23:$O23,1,aux!$AL$1) -> 14891.82 | AB23: 0.1074266603 | AC23: 0.05365202822 | AD23: =+IF(INDEX($K23:$O23,1,aux!$AL$1)>0,(O23/INDEX($K23:$O23,1,aux!$AL$1))^(1/($O$3-INDEX($K$3:$O$3,1,aux!$AL$1)))-1,"n.d.") -> 0.3845120131 | AE23: =IF(INDEX($K23:$O23,1,aux!$AL$1)>0,(O23-INDEX($K23:$O23,1,aux!$AL$1))/INDEX($K23:$O23,1,aux!$AL$1),"n.d.") -> 2.67440407
A24: 22 | B24: Bebidas, líquidos alcoólicos e vinagres | C24: 31413.718 | D24: 26861.022 | E24: 22961.796 | F24: 33930.121 | G24: 39676.493 | H24: 30968.63 | I24: 0.09457619153 | J24: 0.06884453649 | K24: 12714.349 | L24: 11969.269 | M24: 10822.806 | N24: 12465.581 | O24: 13845.726 | P24: 12363.5462 | Q24: 0.02747158484 | R24: 0.01410698016 | S24: -18605.0838 | U24: =G24-INDEX($C24:$G24,1,aux!$AL$1) -> 8262.775 | V24: 0.04679007707 | W24: 0.04235325826 | X24: =+IF(INDEX($C24:$G24,1,aux!$AL$1)>0,(G24/INDEX($C24:$G24,1,aux!$AL$1))^(1/($G$3-INDEX($C$3:$G$3,1,aux!$AL$1)))-1,"n.d.") -> 0.06011623205 | Y24: =IF(INDEX($C24:$G24,1,aux!$AL$1)>0,(G24-INDEX($C24:$G24,1,aux!$AL$1))/INDEX($C24:$G24,1,aux!$AL$1),"n.d.") -> 0.263030788 | AA24: =O24-INDEX($K24:$O24,1,aux!$AL$1) -> 1131.377 | AB24: 0.008161531137 | AC24: 0.004076108275 | AD24: =+IF(INDEX($K24:$O24,1,aux!$AL$1)>0,(O24/INDEX($K24:$O24,1,aux!$AL$1))^(1/($O$3-INDEX($K$3:$O$3,1,aux!$AL$1)))-1,"n.d.") -> 0.02154005729 | AE24: =IF(INDEX($K24:$O24,1,aux!$AL$1)>0,(O24-INDEX($K24:$O24,1,aux!$AL$1))/INDEX($K24:$O24,1,aux!$AL$1),"n.d.") -> 0.08898426494
A25: 23a | B25: Resíduos indústrias alimentares; alimentos p/ animais (exc. NC 230120) (a) | C25: 11826.538 | D25: 12021.892 | E25: 12341.951 | F25: 14742.421 | G25: 22088.104 | H25: 14604.1812 | I25: 0.04460022411 | J25: 0.03246569466 | K25: 6201.411 | L25: 7870.26 | M25: 6612.003 | N25: 2355.643 | O25: 3201.659 | P25: 5248.1952 | Q25: 0.01166139855 | R25: 0.005988264561 | S25: -9355.986 | U25: =G25-INDEX($C25:$G25,1,aux!$AL$1) -> 10261.566 | V25: 0.0581087424 | W25: 0.05259864331 | X25: =+IF(INDEX($C25:$G25,1,aux!$AL$1)>0,(G25/INDEX($C25:$G25,1,aux!$AL$1))^(1/($G$3-INDEX($C$3:$G$3,1,aux!$AL$1)))-1,"n.d.") -> 0.1690287764 | Y25: =IF(INDEX($C25:$G25,1,aux!$AL$1)>0,(G25-INDEX($C25:$G25,1,aux!$AL$1))/INDEX($C25:$G25,1,aux!$AL$1),"n.d.") -> 0.8676728557 | AA25: =O25-INDEX($K25:$O25,1,aux!$AL$1) -> -2999.752 | AB25: -0.02163962088 | AC25: -0.01080746201 | AD25: =+IF(INDEX($K25:$O25,1,aux!$AL$1)>0,(O25/INDEX($K25:$O25,1,aux!$AL$1))^(1/($O$3-INDEX($K$3:$O$3,1,aux!$AL$1)))-1,"n.d.") -> -0.1523410735 | AE25: =IF(INDEX($K25:$O25,1,aux!$AL$1)>0,(O25-INDEX($K25:$O25,1,aux!$AL$1))/INDEX($K25:$O25,1,aux!$AL$1),"n.d.") -> -0.4837208822
A26: 24 | B26: Tabaco | C26: 11806.266 | D26: 35681.862 | E26: 38153.269 | F26: 68227.272 | G26: 84812.671 | H26: 47736.268 | I26: 0.1457834727 | J26: 0.1061196845 | K26: 192622.301 | L26: 213566.868 | M26: 186237.524 | N26: 245943.633 | O26: 238960.117 | P26: 215466.0886 | Q26: 0.4787619052 | R26: 0.2458498385 | S26: 167729.8206 | U26: =G26-INDEX($C26:$G26,1,aux!$AL$1) -> 73006.405 | V26: 0.4134174435 | W26: 0.3742155784 | X26: =+IF(INDEX($C26:$G26,1,aux!$AL$1)>0,(G26/INDEX($C26:$G26,1,aux!$AL$1))^(1/($G$3-INDEX($C$3:$G$3,1,aux!$AL$1)))-1,"n.d.") -> 0.637144616 | Y26: =IF(INDEX($C26:$G26,1,aux!$AL$1)>0,(G26-INDEX($C26:$G26,1,aux!$AL$1))/INDEX($C26:$G26,1,aux!$AL$1),"n.d.") -> 6.183699825 | AA26: =O26-INDEX($K26:$O26,1,aux!$AL$1) -> 46337.816 | AB26: 0.33427189 | AC26: 0.1669451962 | AD26: =+IF(INDEX($K26:$O26,1,aux!$AL$1)>0,(O26/INDEX($K26:$O26,1,aux!$AL$1))^(1/($O$3-INDEX($K$3:$O$3,1,aux!$AL$1)))-1,"n.d.") -> 0.05536992515 | AE26: =IF(INDEX($K26:$O26,1,aux!$AL$1)>0,(O26-INDEX($K26:$O26,1,aux!$AL$1))/INDEX($K26:$O26,1,aux!$AL$1),"n.d.") -> 0.2405630904
A27: 29 | B27: Manitol e sorbitol (NC 290543; 290544) | C27: 719 | D27: 417.725 | E27: 456.501 | F27: 689.225 | G27: 1259.377 | H27: 708.3656 | I27: 0.002163302692 | J27: 0.001574725824 | K27: 0 | L27: 0 | M27: 2.45 | N27: 0 | O27: 0 | P27: 0.49 | Q27: 1.088771486e-06 | R27: 5.590968939e-07 | S27: -707.8756 | U27: =G27-INDEX($C27:$G27,1,aux!$AL$1) -> 540.377 | V27: 0.003060022992 | W27: 0.002769859598 | X27: =+IF(INDEX($C27:$G27,1,aux!$AL$1)>0,(G27/INDEX($C27:$G27,1,aux!$AL$1))^(1/($G$3-INDEX($C$3:$G$3,1,aux!$AL$1)))-1,"n.d.") -> 0.1504207774 | Y27: =IF(INDEX($C27:$G27,1,aux!$AL$1)>0,(G27-INDEX($C27:$G27,1,aux!$AL$1))/INDEX($C27:$G27,1,aux!$AL$1),"n.d.") -> 0.7515674548 | AA27: =O27-INDEX($K27:$O27,1,aux!$AL$1) -> 0 | AB27: 0 | AC27: 0 | AD27: =+IF(INDEX($K27:$O27,1,aux!$AL$1)>0,(O27/INDEX($K27:$O27,1,aux!$AL$1))^(1/($O$3-INDEX($K$3:$O$3,1,aux!$AL$1)))-1,"n.d.") -> n.d. | AE27: =IF(INDEX($K27:$O27,1,aux!$AL$1)>0,(O27-INDEX($K27:$O27,1,aux!$AL$1))/INDEX($K27:$O27,1,aux!$AL$1),"n.d.") -> n.d.
A28: 33 | B28: Óleos essenciais e resinóides (NC 3301) | C28: 250.024 | D28: 294.524 | E28: 759.161 | F28: 446.247 | G28: 3245.474 | H28: 999.086 | I28: 0.003051143977 | J28: 0.002221009214 | K28: 0.424 | L28: 1.529 | M28: 0.222 | N28: 0.397 | O28: 0.824 | P28: 0.6792 | Q28: 1.509170599e-06 | R28: 7.749767558e-07 | S28: -998.4068 | U28: =G28-INDEX($C28:$G28,1,aux!$AL$1) -> 2995.45 | V28: 0.01696250187 | W28: 0.01535405084 | X28: =+IF(INDEX($C28:$G28,1,aux!$AL$1)>0,(G28/INDEX($C28:$G28,1,aux!$AL$1))^(1/($G$3-INDEX($C$3:$G$3,1,aux!$AL$1)))-1,"n.d.") -> 0.8981219387 | Y28: =IF(INDEX($C28:$G28,1,aux!$AL$1)>0,(G28-INDEX($C28:$G28,1,aux!$AL$1))/INDEX($C28:$G28,1,aux!$AL$1),"n.d.") -> 11.98064986 | AA28: =O28-INDEX($K28:$O28,1,aux!$AL$1) -> 0.4 | AB28: 2.88552132e-06 | AC28: 1.441114067e-06 | AD28: =+IF(INDEX($K28:$O28,1,aux!$AL$1)>0,(O28/INDEX($K28:$O28,1,aux!$AL$1))^(1/($O$3-INDEX($K$3:$O$3,1,aux!$AL$1)))-1,"n.d.") -> 0.1807021084 | AE28: =IF(INDEX($K28:$O28,1,aux!$AL$1)>0,(O28-INDEX($K28:$O28,1,aux!$AL$1))/INDEX($K28:$O28,1,aux!$AL$1),"n.d.") -> 0.9433962264
A29: 35 | B29: Caseínas, albuminas, gelatinas, peptonas, dextrinas (NC 3501 a 3505) | C29: 2627.832 | D29: 2698.253 | E29: 2736.927 | F29: 1815.152 | G29: 2901.452 | H29: 2555.9232 | I29: 0.007805624017 | J29: 0.005681922256 | K29: 17.611 | L29: 9.8 | M29: 61.714 | N29: 52.472 | O29: 5.585 | P29: 29.4364 | Q29: 6.540716935e-05 | R29: 3.358734655e-05 | S29: -2526.4868 | U29: =G29-INDEX($C29:$G29,1,aux!$AL$1) -> 273.62 | V29: 0.001549443242 | W29: 0.001402518951 | X29: =+IF(INDEX($C29:$G29,1,aux!$AL$1)>0,(G29/INDEX($C29:$G29,1,aux!$AL$1))^(1/($G$3-INDEX($C$3:$G$3,1,aux!$AL$1)))-1,"n.d.") -> 0.02507218287 | Y29: =IF(INDEX($C29:$G29,1,aux!$AL$1)>0,(G29-INDEX($C29:$G29,1,aux!$AL$1))/INDEX($C29:$G29,1,aux!$AL$1),"n.d.") -> 0.1041238557 | AA29: =O29-INDEX($K29:$O29,1,aux!$AL$1) -> -12.026 | AB29: -8.67531985e-05 | AC29: -4.332709443e-05 | AD29: =+IF(INDEX($K29:$O29,1,aux!$AL$1)>0,(O29/INDEX($K29:$O29,1,aux!$AL$1))^(1/($O$3-INDEX($K$3:$O$3,1,aux!$AL$1)))-1,"n.d.") -> -0.2495706868 | AE29: =IF(INDEX($K29:$O29,1,aux!$AL$1)>0,(O29-INDEX($K29:$O29,1,aux!$AL$1))/INDEX($K29:$O29,1,aux!$AL$1),"n.d.") -> -0.6828686616
A30: 38a | B30: Agentes de acabamento, ácidos gordos, sorbitol (NC 380910, 382311-12-13-19-70, 382460) (a) | C30: 204.248 | D30: 2200.213 | E30: 257.371 | F30: 1081.111 | G30: 2520.029 | H30: 1252.5944 | I30: 0.003825342222 | J30: 0.0027845688 | K30: 0 | L30: 0.127 | M30: 0.085 | N30: 0.042 | O30: 0 | P30: 0.0508 | Q30: 1.128767174e-07 | R30: 5.796351472e-08 | S30: -1252.5436 | U30: =G30-INDEX($C30:$G30,1,aux!$AL$1) -> 2315.781 | V30: 0.01311370229 | W30: 0.01187020956 | X30: =+IF(INDEX($C30:$G30,1,aux!$AL$1)>0,(G30/INDEX($C30:$G30,1,aux!$AL$1))^(1/($G$3-INDEX($C$3:$G$3,1,aux!$AL$1)))-1,"n.d.") -> 0.8741827292 | Y30: =IF(INDEX($C30:$G30,1,aux!$AL$1)>0,(G30-INDEX($C30:$G30,1,aux!$AL$1))/INDEX($C30:$G30,1,aux!$AL$1),"n.d.") -> 11.33808409 | AA30: =O30-INDEX($K30:$O30,1,aux!$AL$1) -> 0 | AB30: 0 | AC30: 0 | AD30: =+IF(INDEX($K30:$O30,1,aux!$AL$1)>0,(O30/INDEX($K30:$O30,1,aux!$AL$1))^(1/($O$3-INDEX($K$3:$O$3,1,aux!$AL$1)))-1,"n.d.") -> n.d. | AE30: =IF(INDEX($K30:$O30,1,aux!$AL$1)>0,(O30-INDEX($K30:$O30,1,aux!$AL$1))/INDEX($K30:$O30,1,aux!$AL$1),"n.d.") -> n.d.
A31: 41 | B31: Couro e peles em bruto (NC 4101 a 4103) | C31: 2001.916 | D31: 162.58 | E31: 437.585 | F31: 1575.466 | G31: 3972.972 | H31: 1630.1038 | I31: 0.004978231494 | J31: 0.003623787702 | K31: 530.127 | L31: 252.62 | M31: 359.482 | N31: 521.826 | O31: 196.862 | P31: 372.1834 | Q31: 0.0008269850482 | R31: 0.0004246664957 | S31: -1257.9204 | U31: =G31-INDEX($C31:$G31,1,aux!$AL$1) -> 1971.056 | V31: 0.0111616088 | W31: 0.01010322123 | X31: =+IF(INDEX($C31:$G31,1,aux!$AL$1)>0,(G31/INDEX($C31:$G31,1,aux!$AL$1))^(1/($G$3-INDEX($C$3:$G$3,1,aux!$AL$1)))-1,"n.d.") -> 0.1869089739 | Y31: =IF(INDEX($C31:$G31,1,aux!$AL$1)>0,(G31-INDEX($C31:$G31,1,aux!$AL$1))/INDEX($C31:$G31,1,aux!$AL$1),"n.d.") -> 0.9845847678 | AA31: =O31-INDEX($K31:$O31,1,aux!$AL$1) -> -333.265 | AB31: -0.002404108157 | AC31: -0.001200682199 | AD31: =+IF(INDEX($K31:$O31,1,aux!$AL$1)>0,(O31/INDEX($K31:$O31,1,aux!$AL$1))^(1/($O$3-INDEX($K$3:$O$3,1,aux!$AL$1)))-1,"n.d.") -> -0.2193695419 | AE31: =IF(INDEX($K31:$O31,1,aux!$AL$1)>0,(O31-INDEX($K31:$O31,1,aux!$AL$1))/INDEX($K31:$O31,1,aux!$AL$1),"n.d.") -> -0.6286512477
A32: 43 | B32: Peles com pelo em bruto (NC 4301) | C32: 27.491 | D32: 39.241 | E32: 228.114 | F32: 435.439 | G32: 844.44 | H32: 314.945 | I32: 0.0009618216447 | J32: 0.000700135671 | K32: 0 | L32: 0 | M32: 0 | N32: 0 | O32: 0 | P32: 0 | Q32: 0 | R32: 0 | S32: -314.945 | U32: =G32-INDEX($C32:$G32,1,aux!$AL$1) -> 816.949 | V32: 0.004626182689 | W32: 0.004187509884 | X32: =+IF(INDEX($C32:$G32,1,aux!$AL$1)>0,(G32/INDEX($C32:$G32,1,aux!$AL$1))^(1/($G$3-INDEX($C$3:$G$3,1,aux!$AL$1)))-1,"n.d.") -> 1.354206556 | Y32: =IF(INDEX($C32:$G32,1,aux!$AL$1)>0,(G32-INDEX($C32:$G32,1,aux!$AL$1))/INDEX($C32:$G32,1,aux!$AL$1),"n.d.") -> 29.71696191 | AA32: =O32-INDEX($K32:$O32,1,aux!$AL$1) -> 0 | AB32: 0 | AC32: 0 | AD32: =+IF(INDEX($K32:$O32,1,aux!$AL$1)>0,(O32/INDEX($K32:$O32,1,aux!$AL$1))^(1/($O$3-INDEX($K$3:$O$3,1,aux!$AL$1)))-1,"n.d.") -> n.d. | AE32: =IF(INDEX($K32:$O32,1,aux!$AL$1)>0,(O32-INDEX($K32:$O32,1,aux!$AL$1))/INDEX($K32:$O32,1,aux!$AL$1),"n.d.") -> n.d.
A33: 50 | B33: Seda crua (NC 5001-5003) | C33: 71.416 | D33: 63.955 | E33: 54.027 | F33: 77.848 | G33: 92.733 | H33: 71.9958 | I33: 0.0002198705132 | J33: 0.0001600496206 | K33: 0 | L33: 0 | M33: 0 | N33: 0 | O33: 0 | P33: 0 | Q33: 0 | R33: 0 | S33: -71.9958 | U33: =G33-INDEX($C33:$G33,1,aux!$AL$1) -> 21.317 | V33: 0.0001207129654 | W33: 0.0001092664881 | X33: =+IF(INDEX($C33:$G33,1,aux!$AL$1)>0,(G33/INDEX($C33:$G33,1,aux!$AL$1))^(1/($G$3-INDEX($C$3:$G$3,1,aux!$AL$1)))-1,"n.d.") -> 0.06747987726 | Y33: =IF(INDEX($C33:$G33,1,aux!$AL$1)>0,(G33-INDEX($C33:$G33,1,aux!$AL$1))/INDEX($C33:$G33,1,aux!$AL$1),"n.d.") -> 0.2984905343 | AA33: =O33-INDEX($K33:$O33,1,aux!$AL$1) -> 0 | AB33: 0 | AC33: 0 | AD33: =+IF(INDEX($K33:$O33,1,aux!$AL$1)>0,(O33/INDEX($K33:$O33,1,aux!$AL$1))^(1/($O$3-INDEX($K$3:$O$3,1,aux!$AL$1)))-1,"n.d.") -> n.d. | AE33: =IF(INDEX($K33:$O33,1,aux!$AL$1)>0,(O33-INDEX($K33:$O33,1,aux!$AL$1))/INDEX($K33:$O33,1,aux!$AL$1),"n.d.") -> n.d.
A34: 51 | B34: Lã não cardada (NC 5101-5103) | C34: 662.109 | D34: 485.175 | E34: 91.568 | F34: 172.22 | G34: 490.829 | H34: 380.3802 | I34: 0.00116165651 | J34: 0.0008456008083 | K34: 0 | L34: 55.863 | M34: 0 | N34: 334.303 | O34: 438.085 | P34: 165.6502 | Q34: 0.0003680718663 | R34: 0.0001890092088 | S34: -214.73 | U34: =G34-INDEX($C34:$G34,1,aux!$AL$1) -> -171.28 | V34: -0.0009699168137 | W34: -0.0008779454935 | X34: =+IF(INDEX($C34:$G34,1,aux!$AL$1)>0,(G34/INDEX($C34:$G34,1,aux!$AL$1))^(1/($G$3-INDEX($C$3:$G$3,1,aux!$AL$1)))-1,"n.d.") -> -0.07210212353 | Y34: =IF(INDEX($C34:$G34,1,aux!$AL$1)>0,(G34-INDEX($C34:$G34,1,aux!$AL$1))/INDEX($C34:$G34,1,aux!$AL$1),"n.d.") -> -0.2586885241 | AA34: =O34-INDEX($K34:$O34,1,aux!$AL$1) -> 438.085 | AB34: 0.003160259019 | AC34: 0.00157832614 | AD34: =+IF(INDEX($K34:$O34,1,aux!$AL$1)>0,(O34/INDEX($K34:$O34,1,aux!$AL$1))^(1/($O$3-INDEX($K$3:$O$3,1,aux!$AL$1)))-1,"n.d.") -> n.d. | AE34: =IF(INDEX($K34:$O34,1,aux!$AL$1)>0,(O34-INDEX($K34:$O34,1,aux!$AL$1))/INDEX($K34:$O34,1,aux!$AL$1),"n.d.") -> n.d.
A35: 52 | B35: Algodão (NC 5201-5203) | C35: 246.933 | D35: 434.553 | E35: 243.139 | F35: 106.132 | G35: 75.818 | H35: 221.315 | I35: 0.0006758816851 | J35: 0.0004919923353 | K35: 309.858 | L35: 714.671 | M35: 249.942 | N35: 126.954 | O35: 133.135 | P35: 306.912 | Q35: 0.0006819531315 | R35: 0.00035019091 | S35: 85.597 | U35: =G35-INDEX($C35:$G35,1,aux!$AL$1) -> -171.115 | V35: -0.000968982459 | W35: -0.000877099738 | X35: =+IF(INDEX($C35:$G35,1,aux!$AL$1)>0,(G35/INDEX($C35:$G35,1,aux!$AL$1))^(1/($G$3-INDEX($C$3:$G$3,1,aux!$AL$1)))-1,"n.d.") -> -0.2556138264 | Y35: =IF(INDEX($C35:$G35,1,aux!$AL$1)>0,(G35-INDEX($C35:$G35,1,aux!$AL$1))/INDEX($C35:$G35,1,aux!$AL$1),"n.d.") -> -0.6929612486 | AA35: =O35-INDEX($K35:$O35,1,aux!$AL$1) -> -176.723 | AB35: -0.001274844961 | AC35: -0.0006366950032 | AD35: =+IF(INDEX($K35:$O35,1,aux!$AL$1)>0,(O35/INDEX($K35:$O35,1,aux!$AL$1))^(1/($O$3-INDEX($K$3:$O$3,1,aux!$AL$1)))-1,"n.d.") -> -0.1903778481 | AE35: =IF(INDEX($K35:$O35,1,aux!$AL$1)>0,(O35-INDEX($K35:$O35,1,aux!$AL$1))/INDEX($K35:$O35,1,aux!$AL$1),"n.d.") -> -0.570335444
A36: 53 | B36: Linho e cânhamo em bruto (NC 5301-5302) | C36: 6.161 | D36: 31.954 | E36: 1.094 | F36: 57.449 | G36: 0.177 | H36: 19.367 | I36: 5.914556444e-05 | J36: 4.305363648e-05 | K36: 0 | L36: 0 | M36: 0 | N36: 0 | O36: 0 | P36: 0 | Q36: 0 | R36: 0 | S36: -19.367 | U36: =G36-INDEX($C36:$G36,1,aux!$AL$1) -> -5.984 | V36: -3.388593072e-05 | W36: =IF($U$53<>0,U36/$U$53, "n.d.") -> -3.067273373e-05 | X36: =+IF(INDEX($C36:$G36,1,aux!$AL$1)>0,(G36/INDEX($C36:$G36,1,aux!$AL$1))^(1/($G$3-INDEX($C$3:$G$3,1,aux!$AL$1)))-1,"n.d.") -> -0.5883003343 | Y36: =IF(INDEX($C36:$G36,1,aux!$AL$1)>0,(G36-INDEX($C36:$G36,1,aux!$AL$1))/INDEX($C36:$G36,1,aux!$AL$1),"n.d.") -> -0.9712708976 | AA36: =O36-INDEX($K36:$O36,1,aux!$AL$1) -> 0 | AB36: 0 | AC36: =IF($AA$53<>0,AA36/$AA$53, "n.d.") -> 0 | AD36: =+IF(INDEX($K36:$O36,1,aux!$AL$1)>0,(O36/INDEX($K36:$O36,1,aux!$AL$1))^(1/($O$3-INDEX($K$3:$O$3,1,aux!$AL$1)))-1,"n.d.") -> n.d. | AE36: =IF(INDEX($K36:$O36,1,aux!$AL$1)>0,(O36-INDEX($K36:$O36,1,aux!$AL$1))/INDEX($K36:$O36,1,aux!$AL$1),"n.d.") -> n.d.
A37: Subtotal Agrícola e Agroalimentar | C37: 269705.364 | D37: 305454.345 | E37: 270189.151 | F37: 345585.13 | G37: 446297.828 | H37: 327446.3636 | I37: 1 | J37: 0.7279267158 | K37: 397441.937 | L37: 413774.588 | M37: 400299.293 | N37: 502661.732 | O37: 536065.068 | P37: 450048.5236 | Q37: 1 | R37: 0.5135116973 | S37: 122602.16 | U37: =G37-INDEX($C37:$G37,1,aux!$AL$1) -> 176592.464 | V37: 1 | W37: 0.905176074 | X37: =+IF(INDEX($C37:$G37,1,aux!$AL$1)>0,(G37/INDEX($C37:$G37,1,aux!$AL$1))^(1/($G$3-INDEX($C$3:$G$3,1,aux!$AL$1)))-1,"n.d.") -> 0.1341847337 | Y37: =IF(INDEX($C37:$G37,1,aux!$AL$1)>0,(G37-INDEX($C37:$G37,1,aux!$AL$1))/INDEX($C37:$G37,1,aux!$AL$1),"n.d.") -> 0.6547606669 | AA37: =O37-INDEX($K37:$O37,1,aux!$AL$1) -> 138623.131 | AB37: 1 | AC37: 0.4994293603 | AD37: =+IF(INDEX($K37:$O37,1,aux!$AL$1)>0,(O37/INDEX($K37:$O37,1,aux!$AL$1))^(1/($O$3-INDEX($K$3:$O$3,1,aux!$AL$1)))-1,"n.d.") -> 0.07767039969 | AE37: =IF(INDEX($K37:$O37,1,aux!$AL$1)>0,(O37-INDEX($K37:$O37,1,aux!$AL$1))/INDEX($K37:$O37,1,aux!$AL$1),"n.d.") -> 0.3487883842
A38: 03 | B38: Peixes e crustáceos | C38: 14836.988 | D38: 17665.073 | E38: 17742.327 | F38: 18983.551 | G38: 14205.009 | H38: 16686.5896 | I38: 0.9330186925 | J38: 0.03709497407 | K38: 85482.314 | L38: 72106.117 | M38: 46591.719 | N38: 65829.387 | O38: 85143.357 | P38: 71030.5788 | Q38: 0.5952786563 | R38: 0.08104688976 | S38: 54343.9892 | U38: =G38-INDEX($C38:$G38,1,aux!$AL$1) -> -631.979 | V38: =IF($U$44<>0,U38/$U$44, "n.d.") -> 1.219074129 | W38: -0.003239392311 | X38: =+IF(INDEX($C38:$G38,1,aux!$AL$1)>0,(G38/INDEX($C38:$G38,1,aux!$AL$1))^(1/($G$3-INDEX($C$3:$G$3,1,aux!$AL$1)))-1,"n.d.") -> -0.01082315442 | Y38: =IF(INDEX($C38:$G38,1,aux!$AL$1)>0,(G38-INDEX($C38:$G38,1,aux!$AL$1))/INDEX($C38:$G38,1,aux!$AL$1),"n.d.") -> -0.04259483124 | AA38: =O38-INDEX($K38:$O38,1,aux!$AL$1) -> -338.957 | AB38: =IF($AA$44<>0,AA38/$AA$44, "n.d.") -> 0.04020209393 | AC38: -0.001221189252 | AD38: =+IF(INDEX($K38:$O38,1,aux!$AL$1)>0,(O38/INDEX($K38:$O38,1,aux!$AL$1))^(1/($O$3-INDEX($K$3:$O$3,1,aux!$AL$1)))-1,"n.d.") -> -0.0009927848493 | AE38: =IF(INDEX($K38:$O38,1,aux!$AL$1)>0,(O38-INDEX($K38:$O38,1,aux!$AL$1))/INDEX($K38:$O38,1,aux!$AL$1),"n.d.") -> -0.00396522958
A39: 05p | B39: Outros produtos de pescado (NC 0508, 051191) (p) | C39: 1.93 | D39: 0.782 | E39: 20.181 | F39: 4.585 | G39: 0 | H39: 5.4956 | I39: 0.0003072825334 | J39: 1.221694453e-05 | K39: 6.185 | L39: 32.886 | M39: 8.524 | N39: 2.828 | O39: 3.473 | P39: 10.7792 | Q39: 9.033613128e-05 | R39: 1.229921885e-05 | S39: 5.2836 | U39: =G39-INDEX($C39:$G39,1,aux!$AL$1) -> -1.93 | V39: 0.003722929193 | W39: -9.892776755e-06 | X39: =+IF(INDEX($C39:$G39,1,aux!$AL$1)>0,(G39/INDEX($C39:$G39,1,aux!$AL$1))^(1/($G$3-INDEX($C$3:$G$3,1,aux!$AL$1)))-1,"n.d.") -> -1 | Y39: =IF(INDEX($C39:$G39,1,aux!$AL$1)>0,(G39-INDEX($C39:$G39,1,aux!$AL$1))/INDEX($C39:$G39,1,aux!$AL$1),"n.d.") -> -1 | AA39: =O39-INDEX($K39:$O39,1,aux!$AL$1) -> -2.712 | AB39: 0.0003216575517 | AC39: -9.770753375e-06 | AD39: =+IF(INDEX($K39:$O39,1,aux!$AL$1)>0,(O39/INDEX($K39:$O39,1,aux!$AL$1))^(1/($O$3-INDEX($K$3:$O$3,1,aux!$AL$1)))-1,"n.d.") -> -0.1343521199 | AE39: =IF(INDEX($K39:$O39,1,aux!$AL$1)>0,(O39-INDEX($K39:$O39,1,aux!$AL$1))/INDEX($K39:$O39,1,aux!$AL$1),"n.d.") -> -0.438480194
A40: 16p | B40: Preparações e conservas de peixes ou crustáceos (NC 1604-05) (p) | C40: 778.134 | D40: 796.772 | E40: 1635.606 | F40: 703.585 | G40: 859.282 | H40: 954.6758 | I40: 0.05338001281 | J40: 0.002122283516 | K40: 45570.726 | L40: 47925.652 | M40: 47887.287 | N40: 45111.212 | O40: 40739.418 | P40: 45446.859 | Q40: 0.3808718106 | R40: 0.05185550552 | S40: 44492.1832 | U40: =G40-INDEX($C40:$G40,1,aux!$AL$1) -> 81.148 | V40: -0.1565327762 | W40: 0.0004159476933 | X40: =+IF(INDEX($C40:$G40,1,aux!$AL$1)>0,(G40/INDEX($C40:$G40,1,aux!$AL$1))^(1/($G$3-INDEX($C$3:$G$3,1,aux!$AL$1)))-1,"n.d.") -> 0.02510967077 | Y40: =IF(INDEX($C40:$G40,1,aux!$AL$1)>0,(G40-INDEX($C40:$G40,1,aux!$AL$1))/INDEX($C40:$G40,1,aux!$AL$1),"n.d.") -> 0.1042853802 | AA40: =O40-INDEX($K40:$O40,1,aux!$AL$1) -> -4831.308 | AB40: 0.5730186956 | AC40: -0.0174061648 | AD40: =+IF(INDEX($K40:$O40,1,aux!$AL$1)>0,(O40/INDEX($K40:$O40,1,aux!$AL$1))^(1/($O$3-INDEX($K$3:$O$3,1,aux!$AL$1)))-1,"n.d.") -> -0.02762850683 | AE40: =IF(INDEX($K40:$O40,1,aux!$AL$1)>0,(O40-INDEX($K40:$O40,1,aux!$AL$1))/INDEX($K40:$O40,1,aux!$AL$1),"n.d.") -> -0.1060177975
A41: 19p | B41: Massas recheadas com pescado (NC 19022010) (p) | C41: 145.173 | D41: 149.767 | E41: 78.81 | F41: 113.349 | G41: 190.82 | H41: 135.5838 | I41: 0.007581070958 | J41: 0.0003014083564 | K41: 13.669 | L41: 31.391 | M41: 20.971 | N41: 0.29 | O41: 0.076 | P41: 13.2794 | Q41: 0.0001112892999 | R41: 1.515198223e-05 | S41: -122.3044 | U41: =G41-INDEX($C41:$G41,1,aux!$AL$1) -> 45.647 | V41: -0.08805209786 | W41: 0.0002339769847 | X41: =+IF(INDEX($C41:$G41,1,aux!$AL$1)>0,(G41/INDEX($C41:$G41,1,aux!$AL$1))^(1/($G$3-INDEX($C$3:$G$3,1,aux!$AL$1)))-1,"n.d.") -> 0.0707411906 | Y41: =IF(INDEX($C41:$G41,1,aux!$AL$1)>0,(G41-INDEX($C41:$G41,1,aux!$AL$1))/INDEX($C41:$G41,1,aux!$AL$1),"n.d.") -> 0.314431747 | AA41: =O41-INDEX($K41:$O41,1,aux!$AL$1) -> -13.593 | AB41: 0.001612201733 | AC41: -4.897265878e-05 | AD41: =+IF(INDEX($K41:$O41,1,aux!$AL$1)>0,(O41/INDEX($K41:$O41,1,aux!$AL$1))^(1/($O$3-INDEX($K$3:$O$3,1,aux!$AL$1)))-1,"n.d.") -> -0.7269330043 | AE41: =IF(INDEX($K41:$O41,1,aux!$AL$1)>0,(O41-INDEX($K41:$O41,1,aux!$AL$1))/INDEX($K41:$O41,1,aux!$AL$1),"n.d.") -> -0.9944399737
A42: 23p | B42: Farinhas de pescado (NC 230120) (p) | C42: 0 | D42: 26.019 | E42: 0 | F42: 0 | G42: 0 | H42: 5.2038 | I42: 0.0002909667457 | J42: 1.156826114e-05 | K42: 5304.048 | L42: 3409.97 | M42: 1750.19 | N42: 1294.554 | O42: 2015.41 | P42: 2754.8344 | Q42: 0.02308715693 | R42: 0.003143304809 | S42: 2749.6306 | U42: =G42-INDEX($C42:$G42,1,aux!$AL$1) -> 0 | V42: 0 | W42: 0 | X42: =+IF(INDEX($C42:$G42,1,aux!$AL$1)>0,(G42/INDEX($C42:$G42,1,aux!$AL$1))^(1/($G$3-INDEX($C$3:$G$3,1,aux!$AL$1)))-1,"n.d.") -> n.d. | Y42: =IF(INDEX($C42:$G42,1,aux!$AL$1)>0,(G42-INDEX($C42:$G42,1,aux!$AL$1))/INDEX($C42:$G42,1,aux!$AL$1),"n.d.") -> n.d. | AA42: =O42-INDEX($K42:$O42,1,aux!$AL$1) -> -3288.638 | AB42: 0.39004987 | AC42: -0.01184825621 | AD42: =+IF(INDEX($K42:$O42,1,aux!$AL$1)>0,(O42/INDEX($K42:$O42,1,aux!$AL$1))^(1/($O$3-INDEX($K$3:$O$3,1,aux!$AL$1)))-1,"n.d.") -> -0.2148746665 | AE42: =IF(INDEX($K42:$O42,1,aux!$AL$1)>0,(O42-INDEX($K42:$O42,1,aux!$AL$1))/INDEX($K42:$O42,1,aux!$AL$1),"n.d.") -> -0.6200241778
A43: 25 | B43: Sal e cloreto de sódio puro; água do mar (NC 2501) | C43: 104.169 | D43: 114.91 | E43: 93.498 | F43: 79.396 | G43: 92.874 | H43: 96.9694 | I43: 0.00542197447 | J43: 0.0002155669591 | K43: 48.949 | L43: 44.954 | M43: 60.414 | N43: 87.406 | O43: 92.83 | P43: 66.9106 | Q43: 0.0005607507742 | R43: 7.634593598e-05 | S43: -30.0588 | U43: =G43-INDEX($C43:$G43,1,aux!$AL$1) -> -11.295 | V43: 0.02178781618 | W43: -5.789581007e-05 | X43: =+IF(INDEX($C43:$G43,1,aux!$AL$1)>0,(G43/INDEX($C43:$G43,1,aux!$AL$1))^(1/($G$3-INDEX($C$3:$G$3,1,aux!$AL$1)))-1,"n.d.") -> -0.02828498418 | Y43: =IF(INDEX($C43:$G43,1,aux!$AL$1)>0,(G43-INDEX($C43:$G43,1,aux!$AL$1))/INDEX($C43:$G43,1,aux!$AL$1),"n.d.") -> -0.1084295712 | AA43: =O43-INDEX($K43:$O43,1,aux!$AL$1) -> 43.881 | AB43: -0.005204518814 | AC43: 0.0001580938159 | AD43: =+IF(INDEX($K43:$O43,1,aux!$AL$1)>0,(O43/INDEX($K43:$O43,1,aux!$AL$1))^(1/($O$3-INDEX($K$3:$O$3,1,aux!$AL$1)))-1,"n.d.") -> 0.1735082082 | AE43: =IF(INDEX($K43:$O43,1,aux!$AL$1)>0,(O43-INDEX($K43:$O43,1,aux!$AL$1))/INDEX($K43:$O43,1,aux!$AL$1),"n.d.") -> 0.8964636663
A44: Subtotal Mar | C44: 15866.394 | D44: 18753.323 | E44: 19570.422 | F44: 19884.466 | G44: 15347.985 | H44: 17884.518 | I44: 1 | J44: 0.0397580181 | K44: 136425.891 | L44: 123550.97 | M44: 96319.105 | N44: 112325.677 | O44: 127994.564 | P44: 119323.2414 | Q44: 1 | R44: 0.1361494972 | S44: 101438.7234 | U44: =G44-INDEX($C44:$G44,1,aux!$AL$1) -> -518.409 | V44: 1 | W44: -0.00265725622 | X44: =+IF(INDEX($C44:$G44,1,aux!$AL$1)>0,(G44/INDEX($C44:$G44,1,aux!$AL$1))^(1/($G$3-INDEX($C$3:$G$3,1,aux!$AL$1)))-1,"n.d.") -> -0.008270383759 | Y44: =IF(INDEX($C44:$G44,1,aux!$AL$1)>0,(G44-INDEX($C44:$G44,1,aux!$AL$1))/INDEX($C44:$G44,1,aux!$AL$1),"n.d.") -> -0.03267339762 | AA44: =O44-INDEX($K44:$O44,1,aux!$AL$1) -> -8431.327 | AB44: 1 | AC44: -0.03037625986 | AD44: =+IF(INDEX($K44:$O44,1,aux!$AL$1)>0,(O44/INDEX($K44:$O44,1,aux!$AL$1))^(1/($O$3-INDEX($K$3:$O$3,1,aux!$AL$1)))-1,"n.d.") -> -0.01582193453 | AE44: =IF(INDEX($K44:$O44,1,aux!$AL$1)>0,(O44-INDEX($K44:$O44,1,aux!$AL$1))/INDEX($K44:$O44,1,aux!$AL$1),"n.d.") -> -0.06180151684
A45: 13f | B45: Gomas e resinas (NC 1301) (f) | C45: 1097.276 | D45: 1475.257 | E45: 1365.945 | F45: 1231.068 | G45: 1906.08 | H45: 1415.1252 | I45: 0.01354143228 | J45: 0.003145881444 | K45: 7.648 | L45: 9.563 | M45: 7.912 | N45: 0.636 | O45: 8.644 | P45: 6.8806 | Q45: 2.240933999e-05 | R45: 7.850861405e-06 | S45: -1408.2446 | U45: =G45-INDEX($C45:$G45,1,aux!$AL$1) -> 808.804 | V45: =IF($U$52<>0,U45/$U$52, "n.d.") -> 0.04252882684 | W45: 0.004145760316 | X45: =+IF(INDEX($C45:$G45,1,aux!$AL$1)>0,(G45/INDEX($C45:$G45,1,aux!$AL$1))^(1/($G$3-INDEX($C$3:$G$3,1,aux!$AL$1)))-1,"n.d.") -> 0.1480381259 | Y45: =IF(INDEX($C45:$G45,1,aux!$AL$1)>0,(G45-INDEX($C45:$G45,1,aux!$AL$1))/INDEX($C45:$G45,1,aux!$AL$1),"n.d.") -> 0.7371016955 | AA45: =O45-INDEX($K45:$O45,1,aux!$AL$1) -> 0.996 | AB45: =IF($AA$52<>0,AA45/$AA$52, "n.d.") -> 6.758442379e-06 | AC45: 3.588374027e-06 | AD45: =+IF(INDEX($K45:$O45,1,aux!$AL$1)>0,(O45/INDEX($K45:$O45,1,aux!$AL$1))^(1/($O$3-INDEX($K$3:$O$3,1,aux!$AL$1)))-1,"n.d.") -> 0.03107847311 | AE45: =IF(INDEX($K45:$O45,1,aux!$AL$1)>0,(O45-INDEX($K45:$O45,1,aux!$AL$1))/INDEX($K45:$O45,1,aux!$AL$1),"n.d.") -> 0.1302301255
A46: 38f | B46: Tall oil, essências e colofónias (NC 3803,3805,3806) (f) | C46: 152.79 | D46: 17.061 | E46: 12.282 | F46: 16.755 | G46: 58.202 | H46: 51.418 | I46: 0.000492022448 | J46: 0.0001143043259 | K46: 17438.631 | L46: 14593.361 | M46: 14280.405 | N46: 22497.324 | O46: 28530.646 | P46: 19468.0734 | Q46: 0.0634053245 | R46: 0.02221334565 | S46: 19416.6554 | U46: =G46-INDEX($C46:$G46,1,aux!$AL$1) -> -94.588 | V46: -0.004973660705 | W46: -0.0004848383252 | X46: =+IF(INDEX($C46:$G46,1,aux!$AL$1)>0,(G46/INDEX($C46:$G46,1,aux!$AL$1))^(1/($G$3-INDEX($C$3:$G$3,1,aux!$AL$1)))-1,"n.d.") -> -0.2143832319 | Y46: =IF(INDEX($C46:$G46,1,aux!$AL$1)>0,(G46-INDEX($C46:$G46,1,aux!$AL$1))/INDEX($C46:$G46,1,aux!$AL$1),"n.d.") -> -0.6190719288 | AA46: =O46-INDEX($K46:$O46,1,aux!$AL$1) -> 11092.015 | AB46: 0.07526580747 | AC46: 0.03996214712 | AD46: =+IF(INDEX($K46:$O46,1,aux!$AL$1)>0,(O46/INDEX($K46:$O46,1,aux!$AL$1))^(1/($O$3-INDEX($K$3:$O$3,1,aux!$AL$1)))-1,"n.d.") -> 0.1309666647 | AE46: =IF(INDEX($K46:$O46,1,aux!$AL$1)>0,(O46-INDEX($K46:$O46,1,aux!$AL$1))/INDEX($K46:$O46,1,aux!$AL$1),"n.d.") -> 0.6360599637
A47: 44 | B47: Madeira e suas obras | C47: 9922.484 | D47: 12598.535 | E47: 10786.831 | F47: 9700.165 | G47: 16406.902 | H47: 11882.9834 | I47: 0.1137091015 | J47: 0.02641636018 | K47: 16302.874 | L47: 10480.178 | M47: 12139.999 | N47: 16642.667 | O47: 29264.816 | P47: 16966.1068 | Q47: 0.05525670081 | R47: 0.01935856656 | S47: 5083.1234 | U47: =G47-INDEX($C47:$G47,1,aux!$AL$1) -> 6484.418 | V47: 0.3409660316 | W47: 0.03323777184 | X47: =+IF(INDEX($C47:$G47,1,aux!$AL$1)>0,(G47/INDEX($C47:$G47,1,aux!$AL$1))^(1/($G$3-INDEX($C$3:$G$3,1,aux!$AL$1)))-1,"n.d.") -> 0.1339699453 | Y47: =IF(INDEX($C47:$G47,1,aux!$AL$1)>0,(G47-INDEX($C47:$G47,1,aux!$AL$1))/INDEX($C47:$G47,1,aux!$AL$1),"n.d.") -> 0.653507529 | AA47: =O47-INDEX($K47:$O47,1,aux!$AL$1) -> 12961.942 | AB47: 0.08795435554 | AC47: 0.04669909238 | AD47: =+IF(INDEX($K47:$O47,1,aux!$AL$1)>0,(O47/INDEX($K47:$O47,1,aux!$AL$1))^(1/($O$3-INDEX($K$3:$O$3,1,aux!$AL$1)))-1,"n.d.") -> 0.1574984189 | AE47: =IF(INDEX($K47:$O47,1,aux!$AL$1)>0,(O47-INDEX($K47:$O47,1,aux!$AL$1))/INDEX($K47:$O47,1,aux!$AL$1),"n.d.") -> 0.7950709795
A48: 45 | B48: Cortiça e suas obras | C48: 31418.229 | D48: 24066.569 | E48: 15453.038 | F48: 18773.802 | G48: 31174.078 | H48: 24177.1432 | I48: 0.2313527789 | J48: 0.05374678238 | K48: 102484.844 | L48: 103475.725 | M48: 94838.786 | N48: 115110.831 | O48: 133654.924 | P48: 109913.022 | Q48: 0.3579743452 | R48: 0.1254123045 | S48: 85735.8788 | U48: =G48-INDEX($C48:$G48,1,aux!$AL$1) -> -244.151 | V48: -0.0128380369 | W48: -0.001251467014 | X48: =+IF(INDEX($C48:$G48,1,aux!$AL$1)>0,(G48/INDEX($C48:$G48,1,aux!$AL$1))^(1/($G$3-INDEX($C$3:$G$3,1,aux!$AL$1)))-1,"n.d.") -> -0.001948436757 | Y48: =IF(INDEX($C48:$G48,1,aux!$AL$1)>0,(G48-INDEX($C48:$G48,1,aux!$AL$1))/INDEX($C48:$G48,1,aux!$AL$1),"n.d.") -> -0.007770998168 | AA48: =O48-INDEX($K48:$O48,1,aux!$AL$1) -> 31170.08 | AB48: 0.2115072185 | AC48: 0.1122991019 | AD48: =+IF(INDEX($K48:$O48,1,aux!$AL$1)>0,(O48/INDEX($K48:$O48,1,aux!$AL$1))^(1/($O$3-INDEX($K$3:$O$3,1,aux!$AL$1)))-1,"n.d.") -> 0.06863976281 | AE48: =IF(INDEX($K48:$O48,1,aux!$AL$1)>0,(O48-INDEX($K48:$O48,1,aux!$AL$1))/INDEX($K48:$O48,1,aux!$AL$1),"n.d.") -> 0.3041433131
A49: 46 | B49: Obras de espartaria ou de cestaria | C49: 191.741 | D49: 178.456 | E49: 224.955 | F49: 156.777 | G49: 1249.576 | H49: 400.301 | I49: 0.003830508343 | J49: 0.000889885565 | K49: 5.032 | L49: 3.436 | M49: 19.854 | N49: 32.564 | O49: 21.796 | P49: 16.5364 | Q49: 5.385719411e-05 | R49: 1.886826505e-05 | S49: -383.7646 | U49: =G49-INDEX($C49:$G49,1,aux!$AL$1) -> 1057.835 | V49: 0.05562346568 | W49: 0.005422241191 | X49: =+IF(INDEX($C49:$G49,1,aux!$AL$1)>0,(G49/INDEX($C49:$G49,1,aux!$AL$1))^(1/($G$3-INDEX($C$3:$G$3,1,aux!$AL$1)))-1,"n.d.") -> 0.5977613886 | Y49: =IF(INDEX($C49:$G49,1,aux!$AL$1)>0,(G49-INDEX($C49:$G49,1,aux!$AL$1))/INDEX($C49:$G49,1,aux!$AL$1),"n.d.") -> 5.516999494 | AA49: =O49-INDEX($K49:$O49,1,aux!$AL$1) -> 16.764 | AB49: 0.0001137535422 | AC49: 6.039709055e-05 | AD49: =+IF(INDEX($K49:$O49,1,aux!$AL$1)>0,(O49/INDEX($K49:$O49,1,aux!$AL$1))^(1/($O$3-INDEX($K$3:$O$3,1,aux!$AL$1)))-1,"n.d.") -> 0.442643561 | AE49: =IF(INDEX($K49:$O49,1,aux!$AL$1)>0,(O49-INDEX($K49:$O49,1,aux!$AL$1))/INDEX($K49:$O49,1,aux!$AL$1),"n.d.") -> 3.331478537
A50: 47 | B50: Pastas de madeira | C50: 183.585 | D50: 608.267 | E50: 117.074 | F50: 18.449 | G50: 319.236 | H50: 249.3222 | I50: 0.002385781617 | J50: 0.0005542534913 | K50: 25531.447 | L50: 26703.327 | M50: 32475.341 | N50: 28480.357 | O50: 9553.805 | P50: 24548.8554 | Q50: 0.07995285978 | R50: 0.02801058939 | S50: 24299.5332 | U50: =G50-INDEX($C50:$G50,1,aux!$AL$1) -> 135.651 | V50: 0.007132850343 | W50: 0.0006953186837 | X50: =+IF(INDEX($C50:$G50,1,aux!$AL$1)>0,(G50/INDEX($C50:$G50,1,aux!$AL$1))^(1/($G$3-INDEX($C$3:$G$3,1,aux!$AL$1)))-1,"n.d.") -> 0.1483351714 | Y50: =IF(INDEX($C50:$G50,1,aux!$AL$1)>0,(G50-INDEX($C50:$G50,1,aux!$AL$1))/INDEX($C50:$G50,1,aux!$AL$1),"n.d.") -> 0.7389002369 | AA50: =O50-INDEX($K50:$O50,1,aux!$AL$1) -> -15977.642 | AB50: -0.1084176434 | AC50: -0.05756401161 | AD50: =+IF(INDEX($K50:$O50,1,aux!$AL$1)>0,(O50/INDEX($K50:$O50,1,aux!$AL$1))^(1/($O$3-INDEX($K$3:$O$3,1,aux!$AL$1)))-1,"n.d.") -> -0.2178766786 | AE50: =IF(INDEX($K50:$O50,1,aux!$AL$1)>0,(O50-INDEX($K50:$O50,1,aux!$AL$1))/INDEX($K50:$O50,1,aux!$AL$1),"n.d.") -> -0.6258024467
A51: 48 | B51: Papel e cartão | C51: 68515.401 | D51: 63607.727 | E51: 54862.335 | F51: 65264.667 | G51: 79385.215 | H51: 66327.069 | I51: 0.6346883749 | J51: 0.1474477987 | K51: 111886.666 | L51: 117213.872 | M51: 94877.56 | N51: 136638.871 | O51: 219993.746 | P51: 136122.143 | Q51: 0.4433345032 | R51: 0.1553172803 | S51: 69795.074 | U51: =G51-INDEX($C51:$G51,1,aux!$AL$1) -> 10869.814 | V51: 0.5715605231 | W51: 0.05571639548 | X51: =+IF(INDEX($C51:$G51,1,aux!$AL$1)>0,(G51/INDEX($C51:$G51,1,aux!$AL$1))^(1/($G$3-INDEX($C$3:$G$3,1,aux!$AL$1)))-1,"n.d.") -> 0.03749940272 | Y51: =IF(INDEX($C51:$G51,1,aux!$AL$1)>0,(G51-INDEX($C51:$G51,1,aux!$AL$1))/INDEX($C51:$G51,1,aux!$AL$1),"n.d.") -> 0.1586477469 | AA51: =O51-INDEX($K51:$O51,1,aux!$AL$1) -> 108107.08 | AB51: 0.7335697499 | AC51: 0.3894865843 | AD51: =+IF(INDEX($K51:$O51,1,aux!$AL$1)>0,(O51/INDEX($K51:$O51,1,aux!$AL$1))^(1/($O$3-INDEX($K$3:$O$3,1,aux!$AL$1)))-1,"n.d.") -> 0.1841534932 | AE51: =IF(INDEX($K51:$O51,1,aux!$AL$1)>0,(O51-INDEX($K51:$O51,1,aux!$AL$1))/INDEX($K51:$O51,1,aux!$AL$1),"n.d.") -> 0.9662195136
A52: Subtotal Florestas | C52: 111481.506 | D52: 102551.872 | E52: 82822.46 | F52: 95161.683 | G52: 130499.289 | H52: 104503.362 | I52: 1 | J52: 0.2323152661 | K52: 273657.142 | L52: 272479.462 | M52: 248639.857 | N52: 319403.25 | O52: 421028.377 | P52: 307041.6176 | Q52: 1 | R52: 0.3503388055 | S52: 202538.2556 | U52: =G52-INDEX($C52:$G52,1,aux!$AL$1) -> 19017.783 | V52: 1 | W52: 0.09748118217 | X52: =+IF(INDEX($C52:$G52,1,aux!$AL$1)>0,(G52/INDEX($C52:$G52,1,aux!$AL$1))^(1/($G$3-INDEX($C$3:$G$3,1,aux!$AL$1)))-1,"n.d.") -> 0.04016282843 | Y52: =IF(INDEX($C52:$G52,1,aux!$AL$1)>0,(G52-INDEX($C52:$G52,1,aux!$AL$1))/INDEX($C52:$G52,1,aux!$AL$1),"n.d.") -> 0.1705913715 | AA52: =O52-INDEX($K52:$O52,1,aux!$AL$1) -> 147371.235 | AB52: 1 | AC52: 0.5309468996 | AD52: =+IF(INDEX($K52:$O52,1,aux!$AL$1)>0,(O52/INDEX($K52:$O52,1,aux!$AL$1))^(1/($O$3-INDEX($K$3:$O$3,1,aux!$AL$1)))-1,"n.d.") -> 0.1137203244 | AE52: =IF(INDEX($K52:$O52,1,aux!$AL$1)>0,(O52-INDEX($K52:$O52,1,aux!$AL$1))/INDEX($K52:$O52,1,aux!$AL$1),"n.d.") -> 0.5385250826
B53: TOTAL | C53: 397053.264 | D53: 426759.54 | E53: 372582.033 | F53: 460631.279 | G53: 592145.102 | H53: 449834.2436 | J53: 1 | K53: 807524.97 | L53: 809805.02 | M53: 745258.255 | N53: 934390.659 | O53: 1085088.009 | P53: 876413.3826 | R53: 1 | S53: 426579.139 | U53: =G53-INDEX($C53:$G53,1,aux!$AL$1) -> 195091.838 | W53: 1 | X53: =+IF(INDEX($C53:$G53,1,aux!$AL$1)>0,(G53/INDEX($C53:$G53,1,aux!$AL$1))^(1/($G$3-INDEX($C$3:$G$3,1,aux!$AL$1)))-1,"n.d.") -> 0.1050828593 | Y53: =IF(INDEX($C53:$G53,1,aux!$AL$1)>0,(G53-INDEX($C53:$G53,1,aux!$AL$1))/INDEX($C53:$G53,1,aux!$AL$1),"n.d.") -> 0.4913492866 | AA53: =O53-INDEX($K53:$O53,1,aux!$AL$1) -> 277563.039 | AC53: 1 | AD53: =+IF(INDEX($K53:$O53,1,aux!$AL$1)>0,(O53/INDEX($K53:$O53,1,aux!$AL$1))^(1/($O$3-INDEX($K$3:$O$3,1,aux!$AL$1)))-1,"n.d.") -> 0.07665670902 | AE53: =IF(INDEX($K53:$O53,1,aux!$AL$1)>0,(O53-INDEX($K53:$O53,1,aux!$AL$1))/INDEX($K53:$O53,1,aux!$AL$1),"n.d.") -> 0.3437206889
B54: a - agrícola e agroalimentar; p - pescas; f - florestas
A55: Fonte: GPP a partir de dados INE/Comércio Internacional (2022 definitivos) | S55: 2023-11-03T16:00:51.260

Sheet 5.2_var
A1: ="Principais contributos por produto para a variação das trocas comerciais PT-Itália_x000D_ no período " & INDEX('5.2'!K3:N3,1,aux!AL1) & "-2022 (NC 2 dígitos - milhares de euros) Produtos agrícolas e agroalimentares, do mar e da floresta" -> Principais contributos por produto para a variação das trocas comerciais PT-Itália no período 2018-2022 (NC 2 dígitos - milhares de euros) Produtos agrícolas e agroalimentares, do mar e da floresta
E5: aumento das importações | J5: aumento das exportações
E17: redução das importações | J17: redução das exportações
A28: Fonte: GPP a partir de dados INE/Comércio Internacional (2022 definitivos) | F28: a - agrícola e agroalimentar; p - mar; f - florestas | H28: ='3'!Y116 -> 2023-11-03T16:00:51.260
A29: Cód. NC | B29: Descritivo | C29: ="Variação das Importações " & INDEX('5.2'!K3:N3,1,aux!AL1) & "-"& '5.2'!O3 &"" -> Variação das Importações 2018-2022 | F29: Cód. NC | G29: Descritivo | H29: ="Variação das Exportações " & INDEX('5.2'!K3:N3,1,aux!AL1) & "-"& '5.2'!O3 &"" -> Variação das Exportações 2018-2022
C30: variação total em valor | D30: % do aumento/ redução total | H30: variação total em valor | I30: % do aumento/ redução total
A31: =IF(C31>0,aux!AU6,"") -> 24 | B31: =IF(C31>0,aux!AV6,"") -> Tabaco | C31: =IF(aux!AW6>0,aux!AW6,0) -> 73006.405 | D31: =IF(SUM($C$31:$C$41)<>0,C31/SUM($C$31:$C$41),0) -> 0.3600818591 | F31: =IF(H31>0,aux!AZ6,"") -> 48 | G31: =IF(H31>0,aux!BA6,"") -> Papel e cartão | H31: =IF(aux!BB6>0,aux!BB6,0) -> 108107.08 | I31: =IF(SUM($H$31:$H$41)<>0,H31/SUM($H$31:$H$41),0) -> 0.3292890333
A32: =IF(C32>0,aux!AU7,"") -> 04 | B32: =IF(C32>0,aux!AV7,"") -> Leite e laticínios; ovos; mel, etc. | C32: =IF(aux!AW7>0,aux!AW7,0) -> 15572.395 | D32: =IF(SUM($C$31:$C$41)<>0,C32/SUM($C$31:$C$41),0) -> 0.07680609587 | F32: =IF(H32>0,aux!AZ7,"") -> 15 | G32: =IF(H32>0,aux!BA7,"") -> Gorduras e óleos animais ou vegetais | H32: =IF(aux!BB7>0,aux!BB7,0) -> 65807.223 | I32: =IF(SUM($H$31:$H$41)<>0,H32/SUM($H$31:$H$41),0) -> 0.2004456771
A33: =IF(C33>0,aux!AU8,"") -> 09 | B33: =IF(C33>0,aux!AV8,"") -> Café, chá, mate e especiarias | C33: =IF(aux!AW8>0,aux!AW8,0) -> 14419.295 | D33: 0.07111878129 | F33: =IF(H33>0,aux!AZ8,"") -> 24 | G33: =IF(H33>0,aux!BA8,"") -> Tabaco | H33: =IF(aux!BB8>0,aux!BB8,0) -> 46337.816 | I33: 0.1411427877
A34: =IF(C34>0,aux!AU9,"") -> 48 | B34: =IF(C34>0,aux!AV9,"") -> Papel e cartão | C34: =IF(aux!AW9>0,aux!AW9,0) -> 10869.814 | D34: 0.05361204723 | F34: =IF(H34>0,aux!AZ9,"") -> 45 | G34: =IF(H34>0,aux!BA9,"") -> Cortiça e suas obras | H34: =IF(aux!BB9>0,aux!BB9,0) -> 31170.08 | I34: 0.09494258389
A35: =IF(C35>0,aux!AU10,"") -> 23a | B35: =IF(C35>0,aux!AV10,"") -> Resíduos indústrias alimentares; alimentos p/ animais (exc. NC 230120) (a) | C35: =IF(aux!AW10>0,aux!AW10,0) -> 10261.566 | D35: 0.0506120492 | F35: =IF(H35>0,aux!AZ10,"") -> 21 | G35: =IF(H35>0,aux!BA10,"") -> Preparações alimentícias diversas | H35: =IF(aux!BB10>0,aux!BB10,0) -> 14891.82 | I35: 0.04535977673
A36: =IF(C36>0,aux!AU11,"") -> 19a | B36: =IF(C36>0,aux!AV11,"") -> Preparações à base de cereais (exc. NC 19022010) (a) | C36: =IF(aux!AW11>0,aux!AW11,0) -> 10119.971 | D36: 0.04991367499 | F36: =IF(H36>0,aux!AZ11,"") -> 12 | G36: =IF(H36>0,aux!BA11,"") -> Sementes e frutos oleaginosos | H36: =IF(aux!BB11>0,aux!BB11,0) -> 13709.773 | I36: 0.04175931769
A37: =IF(C37>0,aux!AU12,"") -> 18 | B37: =IF(C37>0,aux!AV12,"") -> Cacau e suas preparações | C37: =IF(aux!AW12>0,aux!AW12,0) -> 8867.681 | D37: 0.04373713594 | F37: =IF(H37>0,aux!AZ12,"") -> 44 | G37: =IF(H37>0,aux!BA12,"") -> Madeira e suas obras | H37: =IF(aux!BB12>0,aux!BB12,0) -> 12961.942 | I37: 0.03948145997
A38: =IF(C38>0,aux!AU13,"") -> 22 | B38: =IF(C38>0,aux!AV13,"") -> Bebidas, líquidos alcoólicos e vinagres | C38: =IF(aux!AW13>0,aux!AW13,0) -> 8262.775 | D38: 0.04075362132 | F38: =IF(H38>0,aux!AZ13,"") -> 38f | G38: =IF(H38>0,aux!BA13,"") -> Tall oil, essências e colofónias (NC 3803,3805,3806) (f) | H38: =IF(aux!BB13>0,aux!BB13,0) -> 11092.015 | I38: 0.0337857511
A39: =IF(C39>0,aux!AU14,"") -> 12 | B39: =IF(C39>0,aux!AV14,"") -> Sementes e frutos oleaginosos | C39: =IF(aux!AW14>0,aux!AW14,0) -> 8109.139 | D39: 0.03999585853 | F39: =IF(H39>0,aux!AZ14,"") -> 20 | G39: =IF(H39>0,aux!BA14,"") -> Preparações de produtos vegetais | H39: =IF(aux!BB14>0,aux!BB14,0) -> 9395.02 | I39: 0.02861678489
A40: =IF(C40>0,aux!AU15,"") -> 44 | B40: =IF(C40>0,aux!AV15,"") -> Madeira e suas obras | C40: =IF(aux!AW15>0,aux!AW15,0) -> 6484.418 | D40: 0.031982417 | F40: =IF(H40>0,aux!AZ15,"") -> 02 | G40: =IF(H40>0,aux!BA15,"") -> Carnes e miudezas | H40: =IF(aux!BB15>0,aux!BB15,0) -> 6056.822 | I40: 0.01844879227
B41: Outros contributos para o aumento das importações | C41: =SUMIF(aux!AW16:AW51,">0") -> 36776.008 | D41: 0.1813864596 | G41: Outros contributos para o aumento das exportações | H41: =SUMIF(aux!BB16:BB51,">0") -> 8774.935 | I41: 0.02672803542
B42: Outros contributos para a redução das importações | C42: =SUMIF(aux!AW6:AW41,"<0") -> -4.783 | D42: =IF(SUM($C$42:$C$52)<>0,C42/SUM($C$42:$C$52),0) -> 0.0006246058669 | G42: Outros contributos para a redução das exportações | H42: =SUMIF(aux!BB6:BB41,"<0") -> -204.492 | I42: =IF(SUM($H$42:$H$52)<>0,H42/SUM($H$42:$H$52),0) -> 0.004030075035
A43: =IF(C43<>0,aux!AU42,"") -> 53 | B43: =IF(C43<0,aux!AV42,"") -> Linho e cânhamo em bruto (NC 5301-5302) | C43: =IF(aux!AW42<0,aux!AW42,0) -> -5.984 | D43: =IF(SUM($C$42:$C$52)<>0,C43/SUM($C$42:$C$52),0) -> 0.0007814429244 | F43: =IF(H43<>0,aux!AZ42,"") -> 52 | G43: =IF(H43<>0,aux!BA42,"") -> Algodão (NC 5201-5203) | H43: =IF(aux!BB42<0,aux!BB42,0) -> -176.723 | I43: =IF(SUM($H$42:$H$52)<>0,H43/SUM($H$42:$H$52),0) -> 0.003482810821
A44: =IF(C44<>0,aux!AU43,"") -> 25 | B44: =IF(C44<0,aux!AV43,"") -> Sal e cloreto de sódio puro; água do mar (NC 2501) | C44: =IF(aux!AW43<0,aux!AW43,0) -> -11.295 | D44: 0.001474999638 | F44: =IF(H44<>0,aux!AZ43,"") -> 41 | G44: =IF(H44<>0,aux!BA43,"") -> Couro e peles em bruto (NC 4101 a 4103) | H44: =IF(aux!BB43<0,aux!BB43,0) -> -333.265 | I44: 0.006567899754
A45: =IF(C45<>0,aux!AU44,"") -> 38f | B45: =IF(C45<0,aux!AV44,"") -> Tall oil, essências e colofónias (NC 3803,3805,3806) (f) | C45: =IF(aux!AW44<0,aux!AW44,0) -> -94.588 | D45: 0.01235212623 | F45: =IF(H45<>0,aux!AZ44,"") -> 03 | G45: =IF(H45<>0,aux!BA44,"") -> Peixes e crustáceos | H45: =IF(aux!BB44<0,aux!BB44,0) -> -338.957 | I45: 0.006680076207
A46: =IF(C46<>0,aux!AU45,"") -> 52 | B46: =IF(C46<0,aux!AV45,"") -> Algodão (NC 5201-5203) | C46: =IF(aux!AW45<0,aux!AW45,0) -> -171.115 | D46: 0.02234568951 | F46: =IF(H46<>0,aux!AZ45,"") -> 05a | G46: =IF(H46<>0,aux!BA45,"") -> Outros produtos de origem animal (exc. NC 0508, 051191) (a) | H46: =IF(aux!BB45<0,aux!BB45,0) -> -1745.868 | I46: 0.03440711148
A47: =IF(C47<>0,aux!AU46,"") -> 51 | B47: =IF(C47<0,aux!AV46,"") -> Lã não cardada (NC 5101-5103) | C47: =IF(aux!AW46<0,aux!AW46,0) -> -171.28 | D47: 0.02236723665 | F47: =IF(H47<>0,aux!AZ46,"") -> 23a | G47: =IF(H47<>0,aux!BA46,"") -> Resíduos indústrias alimentares; alimentos p/ animais (exc. NC 230120) (a) | H47: =IF(aux!BB46<0,aux!BB46,0) -> -2999.752 | I47: 0.05911833053
A48: =IF(C48<>0,aux!AU47,"") -> 45 | B48: =IF(C48<0,aux!AV47,"") -> Cortiça e suas obras | C48: =IF(aux!AW47<0,aux!AW47,0) -> -244.151 | D48: 0.03188336755 | F48: =IF(H48<>0,aux!AZ47,"") -> 23p | G48: =IF(H48<>0,aux!BA47,"") -> Farinhas de pescado (NC 230120) (p) | H48: =IF(aux!BB47<0,aux!BB47,0) -> -3288.638 | I48: 0.06481162052
A49: =IF(C49<>0,aux!AU48,"") -> 03 | B49: =IF(C49<0,aux!AV48,"") -> Peixes e crustáceos | C49: =IF(aux!AW48<0,aux!AW48,0) -> -631.979 | D49: 0.08252933121 | F49: =IF(H49<>0,aux!AZ48,"") -> 19a | G49: =IF(H49<>0,aux!BA48,"") -> Preparações à base de cereais (exc. NC 19022010) (a) | H49: =IF(aux!BB48<0,aux!BB48,0) -> -3305.223 | I49: 0.06513847338
A50: =IF(C50<>0,aux!AU49,"") -> 05a | B50: =IF(C50<0,aux!AV49,"") -> Outros produtos de origem animal (exc. NC 0508, 051191) (a) | C50: =IF(aux!AW49<0,aux!AW49,0) -> -665.255 | D50: 0.08687480159 | F50: =IF(H50<>0,aux!AZ49,"") -> 16p | G50: =IF(H50<>0,aux!BA49,"") -> Preparações e conservas de peixes ou crustáceos (NC 1604-05) (p) | H50: =IF(aux!BB49<0,aux!BB49,0) -> -4831.308 | I50: 0.09521415878
A51: =IF(C51<>0,aux!AU50,"") -> 08 | B51: =IF(C51<0,aux!AV50,"") -> Frutas | C51: =IF(aux!AW50<0,aux!AW50,0) -> -2598.752 | D51: 0.3393677077 | F51: =IF(H51<>0,aux!AZ50,"") -> 47 | G51: =IF(H51<>0,aux!BA50,"") -> Pastas de madeira | H51: =IF(aux!BB50<0,aux!BB50,0) -> -15977.642 | I51: 0.314883204
A52: =IF(C52<>0,aux!AU51,"") -> 21 | B52: =IF(C52<0,aux!AV51,"") -> Preparações alimentícias diversas | C52: =IF(aux!AW51<0,aux!AW51,0) -> -3058.447 | D52: 0.3993986912 | F52: =IF(H52<>0,aux!AZ51,"") -> 08 | G52: =IF(H52<>0,aux!BA51,"") -> Frutas | H52: =IF(aux!BB51<0,aux!BB51,0) -> -17539.619 | I52: 0.3456662395
A53: TOTAL | C53: =SUM(C31:C52) -> 195091.838 | F53: TOTAL | H53: =SUM(H31:H52) -> 277563.039

Sheet 5.2A
A1: Trocas comerciais Portugal-Itália 2018-2022 em milhares de euros (NC 4 dígitos) | G1: Produtos agrícolas e agroalimentares, do mar e da floresta
A2: Cód. NC | B2: Descritivo | C2: Importações | K2: Exportações | S2: Saldo quinquénio (exp-imp) | T2: Evolução das importações | U2: =+"Variação das Importações " & INDEX(K3:N3,1,aux!AL1) & "-"& '5.2'!O3 &"" -> Variação das Importações 2018-2022 | Z2: Evolução das exportações | AA2: ="Variação das Exportações " & INDEX(K3:N3,1,aux!AL1) & "-"& '5.2'!O3 &"" -> Variação das Exportações 2018-2022
C3: 2018 | D3: 2019 | E3: 2020 | F3: 2021 | G3: 2022 | H3: média quinquénio | I3: % Subtot | J3: % Total | K3: 2018 | L3: 2019 | M3: 2020 | N3: 2021 | O3: 2022 | P3: média quinquénio | Q3: % Subtot | R3: % Total | U3: variação total em valor | V3: % no subtotal de variação | W3: % no total de variação | X3: taxa de variação média anual | Y3: taxa de variação total | AA3: variação total em valor | AB3: % no subtotal de variação | AC3: % no total de variação | AD3: taxa de variação média anual | AE3: taxa de variação total | AX3: filtro
A4: 0101 | B4: Equídeos vivos | C4: 0 | D4: 0 | E4: 0 | F4: 90.18 | G4: 0 | H4: 18.036 | I4: 5.508077659e-05 | J4: 4.009476881e-05 | K4: 0 | L4: 136.813 | M4: 0 | N4: 0 | O4: 432.825 | P4: 113.9276 | Q4: 0.0002531451477 | R4: 0.0001299929945 | S4: 95.8916 | U4: =G4-INDEX($C4:$G4,1,aux!$AL$1) -> 0 | V4: =IF($U$237<>0,U4/$U$237, "n.d.") -> 0 | W4: =IF($U$322<>0,U4/$U$322, "n.d.") -> 0 | X4: =+IF(INDEX($C4:$G4,1,aux!$AL$1)>0,(G4/INDEX($C4:$G4,1,aux!$AL$1))^(1/($G$3-INDEX($C$3:$G$3,1,aux!$AL$1)))-1,"n.d.") -> n.d. | Y4: =IF(INDEX($C4:$G4,1,aux!$AL$1)>0,(G4-INDEX($C4:$G4,1,aux!$AL$1))/INDEX($C4:$G4,1,aux!$AL$1),"n.d.") -> n.d. | AA4: =O4-INDEX($K4:$O4,1,aux!$AL$1) -> 432.825 | AB4: =IF($AA$237<>0,AA4/$AA$237, "n.d.") -> 0.003122314414 | AC4: =IF($AA$322<>0,AA4/$AA$322, "n.d.") -> 0.00155937549 | AD4: =+IF(INDEX($K4:$O4,1,aux!$AL$1)>0,(O4/INDEX($K4:$O4,1,aux!$AL$1))^(1/($O$3-INDEX($K$3:$O$3,1,aux!$AL$1)))-1,"n.d.") -> n.d. | AE4: =IF(INDEX($K4:$O4,1,aux!$AL$1)>0,(O4-INDEX($K4:$O4,1,aux!$AL$1))/INDEX($K4:$O4,1,aux!$AL$1),"n.d.") -> n.d. | AX4: =+LEFT(A4,2) -> 01
A5: 0102 | B5: Bovinos vivos | C5: 0 | D5: 0 | E5: 0 | F5: 0 | G5: 0 | H5: 0 | I5: 0 | J5: 0 | K5: 0 | L5: 0 | M5: 0 | N5: 0 | O5: 0 | P5: 0 | Q5: 0 | R5: 0 | S5: 0 | U5: =G5-INDEX($C5:$G5,1,aux!$AL$1) -> 0 | V5: 0 | W5: 0 | X5: =+IF(INDEX($C5:$G5,1,aux!$AL$1)>0,(G5/INDEX($C5:$G5,1,aux!$AL$1))^(1/($G$3-INDEX($C$3:$G$3,1,aux!$AL$1)))-1,"n.d.") -> n.d. | Y5: =IF(INDEX($C5:$G5,1,aux!$AL$1)>0,(G5-INDEX($C5:$G5,1,aux!$AL$1))/INDEX($C5:$G5,1,aux!$AL$1),"n.d.") -> n.d. | AA5: =O5-INDEX($K5:$O5,1,aux!$AL$1) -> 0 | AB5: 0 | AC5: 0 | AD5: =+IF(INDEX($K5:$O5,1,aux!$AL$1)>0,(O5/INDEX($K5:$O5,1,aux!$AL$1))^(1/($O$3-INDEX($K$3:$O$3,1,aux!$AL$1)))-1,"n.d.") -> n.d. | AE5: =IF(INDEX($K5:$O5,1,aux!$AL$1)>0,(O5-INDEX($K5:$O5,1,aux!$AL$1))/INDEX($K5:$O5,1,aux!$AL$1),"n.d.") -> n.d. | AX5: 01
A6: 0103 | B6: Suínos vivos | C6: 0 | D6: 0 | E6: 0 | F6: 0 | G6: 0 | H6: 0 | I6: 0 | J6: 0 | K6: 0 | L6: 0 | M6: 0 | N6: 0 | O6: 0 | P6: 0 | Q6: 0 | R6: 0 | S6: 0 | U6: =G6-INDEX($C6:$G6,1,aux!$AL$1) -> 0 | V6: 0 | W6: 0 | X6: =+IF(INDEX($C6:$G6,1,aux!$AL$1)>0,(G6/INDEX($C6:$G6,1,aux!$AL$1))^(1/($G$3-INDEX($C$3:$G$3,1,aux!$AL$1)))-1,"n.d.") -> n.d. | Y6: =IF(INDEX($C6:$G6,1,aux!$AL$1)>0,(G6-INDEX($C6:$G6,1,aux!$AL$1))/INDEX($C6:$G6,1,aux!$AL$1),"n.d.") -> n.d. | AA6: =O6-INDEX($K6:$O6,1,aux!$AL$1) -> 0 | AB6: 0 | AC6: 0 | AD6: =+IF(INDEX($K6:$O6,1,aux!$AL$1)>0,(O6/INDEX($K6:$O6,1,aux!$AL$1))^(1/($O$3-INDEX($K$3:$O$3,1,aux!$AL$1)))-1,"n.d.") -> n.d. | AE6: =IF(INDEX($K6:$O6,1,aux!$AL$1)>0,(O6-INDEX($K6:$O6,1,aux!$AL$1))/INDEX($K6:$O6,1,aux!$AL$1),"n.d.") -> n.d. | AX6: 01
A7: 0104 | B7: Ovinos ou caprinos vivos | C7: 0 | D7: 0 | E7: 0 | F7: 0 | G7: 0 | H7: 0 | I7: 0 | J7: 0 | K7: 108.485 | L7: 19.623 | M7: 335.105 | N7: 258.675 | O7: 0 | P7: 144.3776 | Q7: 0.0003208045187 | R7: 0.0001647368729 | S7: 144.3776 | U7: =G7-INDEX($C7:$G7,1,aux!$AL$1) -> 0 | V7: 0 | W7: 0 | X7: =+IF(INDEX($C7:$G7,1,aux!$AL$1)>0,(G7/INDEX($C7:$G7,1,aux!$AL$1))^(1/($G$3-INDEX($C$3:$G$3,1,aux!$AL$1)))-1,"n.d.") -> n.d. | Y7: =IF(INDEX($C7:$G7,1,aux!$AL$1)>0,(G7-INDEX($C7:$G7,1,aux!$AL$1))/INDEX($C7:$G7,1,aux!$AL$1),"n.d.") -> n.d. | AA7: =O7-INDEX($K7:$O7,1,aux!$AL$1) -> -108.485 | AB7: -0.0007825894511 | AC7: -0.0003908481489 | AD7: =+IF(INDEX($K7:$O7,1,aux!$AL$1)>0,(O7/INDEX($K7:$O7,1,aux!$AL$1))^(1/($O$3-INDEX($K$3:$O$3,1,aux!$AL$1)))-1,"n.d.") -> -1 | AE7: =IF(INDEX($K7:$O7,1,aux!$AL$1)>0,(O7-INDEX($K7:$O7,1,aux!$AL$1))/INDEX($K7:$O7,1,aux!$AL$1),"n.d.") -> -1 | AX7: 01
A8: 0105 | B8: Aves de capoeira vivas | C8: 0 | D8: 42.5 | E8: 0 | F8: 0 | G8: 0 | H8: 8.5 | I8: 2.595844983e-05 | J8: 1.889584913e-05 | K8: 0 | L8: 0 | M8: 0 | N8: 0 | O8: 0 | P8: 0 | Q8: 0 | R8: 0 | S8: -8.5 | U8: =G8-INDEX($C8:$G8,1,aux!$AL$1) -> 0 | V8: 0 | W8: 0 | X8: =+IF(INDEX($C8:$G8,1,aux!$AL$1)>0,(G8/INDEX($C8:$G8,1,aux!$AL$1))^(1/($G$3-INDEX($C$3:$G$3,1,aux!$AL$1)))-1,"n.d.") -> n.d. | Y8: =IF(INDEX($C8:$G8,1,aux!$AL$1)>0,(G8-INDEX($C8:$G8,1,aux!$AL$1))/INDEX($C8:$G8,1,aux!$AL$1),"n.d.") -> n.d. | AA8: =O8-INDEX($K8:$O8,1,aux!$AL$1) -> 0 | AB8: 0 | AC8: 0 | AD8: =+IF(INDEX($K8:$O8,1,aux!$AL$1)>0,(O8/INDEX($K8:$O8,1,aux!$AL$1))^(1/($O$3-INDEX($K$3:$O$3,1,aux!$AL$1)))-1,"n.d.") -> n.d. | AE8: =IF(INDEX($K8:$O8,1,aux!$AL$1)>0,(O8-INDEX($K8:$O8,1,aux!$AL$1))/INDEX($K8:$O8,1,aux!$AL$1),"n.d.") -> n.d. | AX8: 01
A9: 0106 | B9: Outros animais vivos | C9: 0 | D9: 350.515 | E9: 51.23 | F9: 9.335 | G9: 0.013 | H9: 82.2186 | I9: 0.0002510902827 | J9: 0.0001827753248 | K9: 0 | L9: 3.932 | M9: 0 | N9: 0 | O9: 0 | P9: 0.7864 | Q9: 1.747367137e-06 | R9: 8.97293464e-07 | S9: -81.4322 | U9: =G9-INDEX($C9:$G9,1,aux!$AL$1) -> 0.013 | V9: 7.361582542e-08 | W9: 6.663528384e-08 | X9: =+IF(INDEX($C9:$G9,1,aux!$AL$1)>0,(G9/INDEX($C9:$G9,1,aux!$AL$1))^(1/($G$3-INDEX($C$3:$G$3,1,aux!$AL$1)))-1,"n.d.") -> n.d. | Y9: =IF(INDEX($C9:$G9,1,aux!$AL$1)>0,(G9-INDEX($C9:$G9,1,aux!$AL$1))/INDEX($C9:$G9,1,aux!$AL$1),"n.d.") -> n.d. | AA9: =O9-INDEX($K9:$O9,1,aux!$AL$1) -> 0 | AB9: 0 | AC9: 0 | AD9: =+IF(INDEX($K9:$O9,1,aux!$AL$1)>0,(O9/INDEX($K9:$O9,1,aux!$AL$1))^(1/($O$3-INDEX($K$3:$O$3,1,aux!$AL$1)))-1,"n.d.") -> n.d. | AE9: =IF(INDEX($K9:$O9,1,aux!$AL$1)>0,(O9-INDEX($K9:$O9,1,aux!$AL$1))/INDEX($K9:$O9,1,aux!$AL$1),"n.d.") -> n.d. | AX9: 01
A10: 01SS | B10: Animais vivos | C10: 0 | D10: 0 | E10: 0 | F10: 0 | G10: 0 | H10: 0 | I10: 0 | J10: 0 | K10: 0 | L10: 0 | M10: 0 | N10: 0 | O10: 0 | P10: 0 | Q10: 0 | R10: 0 | S10: 0 | U10: =G10-INDEX($C10:$G10,1,aux!$AL$1) -> 0 | V10: 0 | W10: 0 | X10: =+IF(INDEX($C10:$G10,1,aux!$AL$1)>0,(G10/INDEX($C10:$G10,1,aux!$AL$1))^(1/($G$3-INDEX($C$3:$G$3,1,aux!$AL$1)))-1,"n.d.") -> n.d. | Y10: =IF(INDEX($C10:$G10,1,aux!$AL$1)>0,(G10-INDEX($C10:$G10,1,aux!$AL$1))/INDEX($C10:$G10,1,aux!$AL$1),"n.d.") -> n.d. | AA10: =O10-INDEX($K10:$O10,1,aux!$AL$1) -> 0 | AB10: 0 | AC10: 0 | AD10: =+IF(INDEX($K10:$O10,1,aux!$AL$1)>0,(O10/INDEX($K10:$O10,1,aux!$AL$1))^(1/($O$3-INDEX($K$3:$O$3,1,aux!$AL$1)))-1,"n.d.") -> n.d. | AE10: =IF(INDEX($K10:$O10,1,aux!$AL$1)>0,(O10-INDEX($K10:$O10,1,aux!$AL$1))/INDEX($K10:$O10,1,aux!$AL$1),"n.d.") -> n.d. | AX10: 01
A11: 0201 | B11: Carnes de bovino, frescas ou refrigeradas | C11: 3574.362 | D11: 3675.758 | E11: 3700.234 | F11: 4655.051 | G11: 4216.351 | H11: 3964.3512 | I11: 0.01210687197 | J11: 0.008812915549 | K11: 196.248 | L11: 1.585 | M11: 0 | N11: 1032.437 | O11: 2887.858 | P11: 823.6256 | Q11: 0.001830081773 | R11: 0.0009397683974 | S11: -3140.7256 | U11: =G11-INDEX($C11:$G11,1,aux!$AL$1) -> 641.989 | V11: 0.003635426934 | W11: 0.00329070148 | X11: =+IF(INDEX($C11:$G11,1,aux!$AL$1)>0,(G11/INDEX($C11:$G11,1,aux!$AL$1))^(1/($G$3-INDEX($C$3:$G$3,1,aux!$AL$1)))-1,"n.d.") -> 0.04216037354 | Y11: =IF(INDEX($C11:$G11,1,aux!$AL$1)>0,(G11-INDEX($C11:$G11,1,aux!$AL$1))/INDEX($C11:$G11,1,aux!$AL$1),"n.d.") -> 0.179609396 | AA11: =O11-INDEX($K11:$O11,1,aux!$AL$1) -> 2691.61 | AB11: 0.0194167451 | AC11: 0.009697292585 | AD11: =+IF(INDEX($K11:$O11,1,aux!$AL$1)>0,(O11/INDEX($K11:$O11,1,aux!$AL$1))^(1/($O$3-INDEX($K$3:$O$3,1,aux!$AL$1)))-1,"n.d.") -> 0.9585860132 | AE11: =IF(INDEX($K11:$O11,1,aux!$AL$1)>0,(O11-INDEX($K11:$O11,1,aux!$AL$1))/INDEX($K11:$O11,1,aux!$AL$1),"n.d.") -> 13.71534997 | AX11: 02
A12: 0202 | B12: Carnes de bovino, congeladas | C12: 1108.469 | D12: 978.836 | E12: 412.042 | F12: 1267.924 | G12: 2011.505 | H12: 1155.7552 | I12: 0.003529601573 | J12: 0.002569291281 | K12: 0 | L12: 52.185 | M12: 0.228 | N12: 271.863 | O12: 574.685 | P12: 179.7922 | Q12: 0.0003994951446 | R12: 0.0002051454297 | S12: -975.963 | U12: =G12-INDEX($C12:$G12,1,aux!$AL$1) -> 903.036 | V12: 0.005113672348 | W12: 0.00462877386 | X12: =+IF(INDEX($C12:$G12,1,aux!$AL$1)>0,(G12/INDEX($C12:$G12,1,aux!$AL$1))^(1/($G$3-INDEX($C$3:$G$3,1,aux!$AL$1)))-1,"n.d.") -> 0.1606449634 | Y12: =IF(INDEX($C12:$G12,1,aux!$AL$1)>0,(G12-INDEX($C12:$G12,1,aux!$AL$1))/INDEX($C12:$G12,1,aux!$AL$1),"n.d.") -> 0.8146696028 | AA12: =O12-INDEX($K12:$O12,1,aux!$AL$1) -> 574.685 | AB12: 0.00414566455 | AC12: 0.002070466594 | AD12: =+IF(INDEX($K12:$O12,1,aux!$AL$1)>0,(O12/INDEX($K12:$O12,1,aux!$AL$1))^(1/($O$3-INDEX($K$3:$O$3,1,aux!$AL$1)))-1,"n.d.") -> n.d. | AE12: =IF(INDEX($K12:$O12,1,aux!$AL$1)>0,(O12-INDEX($K12:$O12,1,aux!$AL$1))/INDEX($K12:$O12,1,aux!$AL$1),"n.d.") -> n.d. | AX12: 02
A13: 0203 | B13: Carnes de suíno | C13: 48.027 | D13: 24.009 | E13: 19.31 | F13: 4.518 | G13: 82.453 | H13: 35.6634 | I13: 0.0001089137152 | J13: 7.928120304e-05 | K13: 12.599 | L13: 297.652 | M13: 498.771 | N13: 85.074 | O13: 369.508 | P13: 252.7208 | Q13: 0.0005615412267 | R13: 0.0002883579884 | S13: 217.0574 | U13: =G13-INDEX($C13:$G13,1,aux!$AL$1) -> 34.426 | V13: 0.0001949460312 | W13: 0.0001764604832 | X13: =+IF(INDEX($C13:$G13,1,aux!$AL$1)>0,(G13/INDEX($C13:$G13,1,aux!$AL$1))^(1/($G$3-INDEX($C$3:$G$3,1,aux!$AL$1)))-1,"n.d.") -> 0.1446698677 | Y13: =IF(INDEX($C13:$G13,1,aux!$AL$1)>0,(G13-INDEX($C13:$G13,1,aux!$AL$1))/INDEX($C13:$G13,1,aux!$AL$1),"n.d.") -> 0.7168051304 | AA13: =O13-INDEX($K13:$O13,1,aux!$AL$1) -> 356.909 | AB13: 0.002574671322 | AC13: 0.001285866451 | AD13: =+IF(INDEX($K13:$O13,1,aux!$AL$1)>0,(O13/INDEX($K13:$O13,1,aux!$AL$1))^(1/($O$3-INDEX($K$3:$O$3,1,aux!$AL$1)))-1,"n.d.") -> 1.327136953 | AE13: =IF(INDEX($K13:$O13,1,aux!$AL$1)>0,(O13-INDEX($K13:$O13,1,aux!$AL$1))/INDEX($K13:$O13,1,aux!$AL$1),"n.d.") -> 28.32835939 | AX13: 02
A14: 0204 | B14: Carnes de ovino ou caprino | C14: 92.941 | D14: 138.84 | E14: 541.413 | F14: 782.058 | G14: 1763.662 | H14: 663.7828 | I14: 0.002027149707 | J14: 0.001475616429 | K14: 47.867 | L14: 213.125 | M14: 64.66 | N14: 271.287 | O14: 1172.25 | P14: 353.8378 | Q14: 0.0007862214438 | R14: 0.000403733908 | S14: -309.945 | U14: =G14-INDEX($C14:$G14,1,aux!$AL$1) -> 1670.721 | V14: 0.009460885035 | W14: 0.008563766773 | X14: =+IF(INDEX($C14:$G14,1,aux!$AL$1)>0,(G14/INDEX($C14:$G14,1,aux!$AL$1))^(1/($G$3-INDEX($C$3:$G$3,1,aux!$AL$1)))-1,"n.d.") -> 1.087142032 | Y14: =IF(INDEX($C14:$G14,1,aux!$AL$1)>0,(G14-INDEX($C14:$G14,1,aux!$AL$1))/INDEX($C14:$G14,1,aux!$AL$1),"n.d.") -> 17.97614616 | AA14: =O14-INDEX($K14:$O14,1,aux!$AL$1) -> 1124.383 | AB14: 0.008111077797 | AC14: 0.004050910395 | AD14: =+IF(INDEX($K14:$O14,1,aux!$AL$1)>0,(O14/INDEX($K14:$O14,1,aux!$AL$1))^(1/($O$3-INDEX($K$3:$O$3,1,aux!$AL$1)))-1,"n.d.") -> 1.224569651 | AE14: =IF(INDEX($K14:$O14,1,aux!$AL$1)>0,(O14-INDEX($K14:$O14,1,aux!$AL$1))/INDEX($K14:$O14,1,aux!$AL$1),"n.d.") -> 23.48973197 | AX14: 02
A15: 0205 | B15: Carnes de equídeo | C15: 0 | D15: 0 | E15: 0 | F15: 0 | G15: 0 | H15: 0 | I15: 0 | J15: 0 | K15: 0 | L15: 0 | M15: 0 | N15: 0 | O15: 0 | P15: 0 | Q15: 0 | R15: 0 | S15: 0 | U15: =G15-INDEX($C15:$G15,1,aux!$AL$1) -> 0 | V15: 0 | W15: 0 | X15: =+IF(INDEX($C15:$G15,1,aux!$AL$1)>0,(G15/INDEX($C15:$G15,1,aux!$AL$1))^(1/($G$3-INDEX($C$3:$G$3,1,aux!$AL$1)))-1,"n.d.") -> n.d. | Y15: =IF(INDEX($C15:$G15,1,aux!$AL$1)>0,(G15-INDEX($C15:$G15,1,aux!$AL$1))/INDEX($C15:$G15,1,aux!$AL$1),"n.d.") -> n.d. | AA15: =O15-INDEX($K15:$O15,1,aux!$AL$1) -> 0 | AB15: 0 | AC15: 0 | AD15: =+IF(INDEX($K15:$O15,1,aux!$AL$1)>0,(O15/INDEX($K15:$O15,1,aux!$AL$1))^(1/($O$3-INDEX($K$3:$O$3,1,aux!$AL$1)))-1,"n.d.") -> n.d. | AE15: =IF(INDEX($K15:$O15,1,aux!$AL$1)>0,(O15-INDEX($K15:$O15,1,aux!$AL$1))/INDEX($K15:$O15,1,aux!$AL$1),"n.d.") -> n.d. | AX15: 02
A16: 0206 | B16: Miudezas de bovino, suíno, ovino, caprino,equídeo | C16: 8.224 | D16: 0.042 | E16: 31.048 | F16: 20.858 | G16: 0 | H16: 12.0344 | I16: 3.675227866e-05 | J16: 2.67529655e-05 | K16: 301.185 | L16: 254.478 | M16: 504.926 | N16: 412.558 | O16: 770.298 | P16: 448.689 | Q16: 0.0009969791622 | R16: 0.0005119604617 | S16: 436.6546 | U16: =G16-INDEX($C16:$G16,1,aux!$AL$1) -> -8.224 | V16: -4.657050371e-05 | W16: -4.215450572e-05 | X16: =+IF(INDEX($C16:$G16,1,aux!$AL$1)>0,(G16/INDEX($C16:$G16,1,aux!$AL$1))^(1/($G$3-INDEX($C$3:$G$3,1,aux!$AL$1)))-1,"n.d.") -> -1 | Y16: =IF(INDEX($C16:$G16,1,aux!$AL$1)>0,(G16-INDEX($C16:$G16,1,aux!$AL$1))/INDEX($C16:$G16,1,aux!$AL$1),"n.d.") -> -1 | AA16: =O16-INDEX($K16:$O16,1,aux!$AL$1) -> 469.113 | AB16: 0.003384088908 | AC16: 0.001690113358 | AD16: =+IF(INDEX($K16:$O16,1,aux!$AL$1)>0,(O16/INDEX($K16:$O16,1,aux!$AL$1))^(1/($O$3-INDEX($K$3:$O$3,1,aux!$AL$1)))-1,"n.d.") -> 0.2646092609 | AE16: =IF(INDEX($K16:$O16,1,aux!$AL$1)>0,(O16-INDEX($K16:$O16,1,aux!$AL$1))/INDEX($K16:$O16,1,aux!$AL$1),"n.d.") -> 1.557557647 | AX16: 02
A17: 0207 | B17: Carnes e miudezas de aves de capoeira | C17: 15517.699 | D17: 18861.899 | E17: 14832.199 | F17: 15469.275 | G17: 16374.503 | H17: 16211.115 | I17: 0.04950769592 | J17: 0.0360379745 | K17: 299.791 | L17: 224.303 | M17: 382.502 | N17: 697.355 | O17: 987.318 | P17: 518.2538 | Q17: 0.001151550939 | R17: 0.0005913348772 | S17: -15692.8612 | U17: =G17-INDEX($C17:$G17,1,aux!$AL$1) -> 856.804 | V17: 0.004851871822 | W17: 0.004391798287 | X17: =+IF(INDEX($C17:$G17,1,aux!$AL$1)>0,(G17/INDEX($C17:$G17,1,aux!$AL$1))^(1/($G$3-INDEX($C$3:$G$3,1,aux!$AL$1)))-1,"n.d.") -> 0.01352671591 | Y17: =IF(INDEX($C17:$G17,1,aux!$AL$1)>0,(G17-INDEX($C17:$G17,1,aux!$AL$1))/INDEX($C17:$G17,1,aux!$AL$1),"n.d.") -> 0.05521462944 | AA17: =O17-INDEX($K17:$O17,1,aux!$AL$1) -> 687.527 | AB17: 0.004959684542 | AC17: 0.002477012078 | AD17: =+IF(INDEX($K17:$O17,1,aux!$AL$1)>0,(O17/INDEX($K17:$O17,1,aux!$AL$1))^(1/($O$3-INDEX($K$3:$O$3,1,aux!$AL$1)))-1,"n.d.") -> 0.3471303357 | AE17: =IF(INDEX($K17:$O17,1,aux!$AL$1)>0,(O17-INDEX($K17:$O17,1,aux!$AL$1))/INDEX($K17:$O17,1,aux!$AL$1),"n.d.") -> 2.29335437 | AX17: 02
A18: 0208 | B18: Outras carnes e miudezas | C18: 18.716 | D18: 0 | E18: 0 | F18: 15.63 | G18: 16.884 | H18: 10.246 | I18: 3.129062081e-05 | J18: 2.277727884e-05 | K18: 0 | L18: 0 | M18: 5.936 | N18: 53.74 | O18: 42.084 | P18: 20.352 | Q18: 4.522179039e-05 | R18: 2.322191834e-05 | S18: 10.106 | U18: =G18-INDEX($C18:$G18,1,aux!$AL$1) -> -1.832 | V18: -1.037416863e-05 | W18: -9.39044923e-06 | X18: =+IF(INDEX($C18:$G18,1,aux!$AL$1)>0,(G18/INDEX($C18:$G18,1,aux!$AL$1))^(1/($G$3-INDEX($C$3:$G$3,1,aux!$AL$1)))-1,"n.d.") -> -0.02542430398 | Y18: =IF(INDEX($C18:$G18,1,aux!$AL$1)>0,(G18-INDEX($C18:$G18,1,aux!$AL$1))/INDEX($C18:$G18,1,aux!$AL$1),"n.d.") -> -0.09788416328 | AA18: =O18-INDEX($K18:$O18,1,aux!$AL$1) -> 42.084 | AB18: 0.0003035856981 | AC18: 0.000151619611 | AD18: =+IF(INDEX($K18:$O18,1,aux!$AL$1)>0,(O18/INDEX($K18:$O18,1,aux!$AL$1))^(1/($O$3-INDEX($K$3:$O$3,1,aux!$AL$1)))-1,"n.d.") -> n.d. | AE18: =IF(INDEX($K18:$O18,1,aux!$AL$1)>0,(O18-INDEX($K18:$O18,1,aux!$AL$1))/INDEX($K18:$O18,1,aux!$AL$1),"n.d.") -> n.d. | AX18: 02
A19: 0209 | B19: Toucinho, gorduras de porco e de aves | C19: 39.613 | D19: 85.003 | E19: 42.214 | F19: 37.464 | G19: 85.195 | H19: 57.8978 | I19: 0.0001768161337 | J19: 0.0001287091875 | K19: 0 | L19: 0 | M19: 21.445 | N19: 58.071 | O19: 116.051 | P19: 39.1134 | Q19: 8.690929522e-05 | R19: 4.46289397e-05 | S19: -18.7844 | U19: =G19-INDEX($C19:$G19,1,aux!$AL$1) -> 45.582 | V19: 0.0002581197349 | W19: 0.0002336438083 | X19: =+IF(INDEX($C19:$G19,1,aux!$AL$1)>0,(G19/INDEX($C19:$G19,1,aux!$AL$1))^(1/($G$3-INDEX($C$3:$G$3,1,aux!$AL$1)))-1,"n.d.") -> 0.2109998611 | Y19: =IF(INDEX($C19:$G19,1,aux!$AL$1)>0,(G19-INDEX($C19:$G19,1,aux!$AL$1))/INDEX($C19:$G19,1,aux!$AL$1),"n.d.") -> 1.150682857 | AA19: =O19-INDEX($K19:$O19,1,aux!$AL$1) -> 116.051 | AB19: 0.0008371690869 | AC19: 0.0004181068215 | AD19: =+IF(INDEX($K19:$O19,1,aux!$AL$1)>0,(O19/INDEX($K19:$O19,1,aux!$AL$1))^(1/($O$3-INDEX($K$3:$O$3,1,aux!$AL$1)))-1,"n.d.") -> n.d. | AE19: =IF(INDEX($K19:$O19,1,aux!$AL$1)>0,(O19-INDEX($K19:$O19,1,aux!$AL$1))/INDEX($K19:$O19,1,aux!$AL$1),"n.d.") -> n.d. | AX19: 02
A20: 0210 | B20: Carnes e miudezas processadas; farinhas de carnes | C20: 1170.945 | D20: 1256.94 | E20: 1105.908 | F20: 1582.17 | G20: 2023.721 | H20: 1427.9368 | I20: 0.004360826562 | J20: 0.003174362157 | K20: 67.497 | L20: 9.915 | M20: 163.501 | N20: 98.66 | O20: 61.957 | P20: 80.306 | Q20: 0.0001784385367 | R20: 9.163027584e-05 | S20: -1347.6308 | U20: =G20-INDEX($C20:$G20,1,aux!$AL$1) -> 852.776 | V20: 0.004829062241 | W20: 0.004371151601 | X20: =+IF(INDEX($C20:$G20,1,aux!$AL$1)>0,(G20/INDEX($C20:$G20,1,aux!$AL$1))^(1/($G$3-INDEX($C$3:$G$3,1,aux!$AL$1)))-1,"n.d.") -> 0.1465778178 | Y20: =IF(INDEX($C20:$G20,1,aux!$AL$1)>0,(G20-INDEX($C20:$G20,1,aux!$AL$1))/INDEX($C20:$G20,1,aux!$AL$1),"n.d.") -> 0.7282801498 | AA20: =O20-INDEX($K20:$O20,1,aux!$AL$1) -> -5.54 | AB20: -3.996447029e-05 | AC20: -1.995942983e-05 | AD20: =+IF(INDEX($K20:$O20,1,aux!$AL$1)>0,(O20/INDEX($K20:$O20,1,aux!$AL$1))^(1/($O$3-INDEX($K$3:$O$3,1,aux!$AL$1)))-1,"n.d.") -> -0.02118305848 | AE20: =IF(INDEX($K20:$O20,1,aux!$AL$1)>0,(O20-INDEX($K20:$O20,1,aux!$AL$1))/INDEX($K20:$O20,1,aux!$AL$1),"n.d.") -> -0.08207772197 | AX20: 02
A21: 02SS | B21: Carnes e miudezas, comestíveis | C21: 0 | D21: 0 | E21: 0 | F21: 0 | G21: 0 | H21: 0 | I21: 0 | J21: 0 | K21: 0 | L21: 0 | M21: 0 | N21: 0 | O21: 0 | P21: 0 | Q21: 0 | R21: 0 | S21: 0 | U21: =G21-INDEX($C21:$G21,1,aux!$AL$1) -> 0 | V21: 0 | W21: 0 | X21: =+IF(INDEX($C21:$G21,1,aux!$AL$1)>0,(G21/INDEX($C21:$G21,1,aux!$AL$1))^(1/($G$3-INDEX($C$3:$G$3,1,aux!$AL$1)))-1,"n.d.") -> n.d. | Y21: =IF(INDEX($C21:$G21,1,aux!$AL$1)>0,(G21-INDEX($C21:$G21,1,aux!$AL$1))/INDEX($C21:$G21,1,aux!$AL$1),"n.d.") -> n.d. | AA21: =O21-INDEX($K21:$O21,1,aux!$AL$1) -> 0 | AB21: 0 | AC21: 0 | AD21: =+IF(INDEX($K21:$O21,1,aux!$AL$1)>0,(O21/INDEX($K21:$O21,1,aux!$AL$1))^(1/($O$3-INDEX($K$3:$O$3,1,aux!$AL$1)))-1,"n.d.") -> n.d. | AE21: =IF(INDEX($K21:$O21,1,aux!$AL$1)>0,(O21-INDEX($K21:$O21,1,aux!$AL$1))/INDEX($K21:$O21,1,aux!$AL$1),"n.d.") -> n.d. | AX21: 02
A22: 0401 | B22: Leite e nata, não concentrados | C22: 1112.425 | D22: 235.581 | E22: 33.106 | F22: 30.321 | G22: 140.429 | H22: 310.3724 | I22: 0.0009478572203 | J22: 0.0006899705934 | K22: 0 | L22: 0 | M22: 10.319 | N22: 0.123 | O22: 912.6 | P22: 184.6084 | Q22: 0.0004101966573 | R22: 0.0002106407817 | S22: -125.764 | U22: =G22-INDEX($C22:$G22,1,aux!$AL$1) -> -971.996 | V22: -0.005504175988 | W22: -0.004982248412 | X22: =+IF(INDEX($C22:$G22,1,aux!$AL$1)>0,(G22/INDEX($C22:$G22,1,aux!$AL$1))^(1/($G$3-INDEX($C$3:$G$3,1,aux!$AL$1)))-1,"n.d.") -> -0.4039310277 | Y22: =IF(INDEX($C22:$G22,1,aux!$AL$1)>0,(G22-INDEX($C22:$G22,1,aux!$AL$1))/INDEX($C22:$G22,1,aux!$AL$1),"n.d.") -> -0.873763175 | AA22: =O22-INDEX($K22:$O22,1,aux!$AL$1) -> 912.6 | AB22: 0.006583316892 | AC22: 0.003287901744 | AD22: =+IF(INDEX($K22:$O22,1,aux!$AL$1)>0,(O22/INDEX($K22:$O22,1,aux!$AL$1))^(1/($O$3-INDEX($K$3:$O$3,1,aux!$AL$1)))-1,"n.d.") -> n.d. | AE22: =IF(INDEX($K22:$O22,1,aux!$AL$1)>0,(O22-INDEX($K22:$O22,1,aux!$AL$1))/INDEX($K22:$O22,1,aux!$AL$1),"n.d.") -> n.d. | AX22: 04
A23: 0402 | B23: Leite e nata, concentrados | C23: 30.22 | D23: 76.809 | E23: 96.134 | F23: 184.673 | G23: 464.507 | H23: 170.4686 | I23: 0.0005206000706 | J23: 0.0003789586996 | K23: 3860.853 | L23: 3015.078 | M23: 4026.646 | N23: 3743.858 | O23: 2849.083 | P23: 3499.1036 | Q23: 0.007774947403 | R23: 0.003992526437 | S23: 3328.635 | U23: =G23-INDEX($C23:$G23,1,aux!$AL$1) -> 434.287 | V23: 0.002459261229 | W23: 0.002226064424 | X23: =+IF(INDEX($C23:$G23,1,aux!$AL$1)>0,(G23/INDEX($C23:$G23,1,aux!$AL$1))^(1/($G$3-INDEX($C$3:$G$3,1,aux!$AL$1)))-1,"n.d.") -> 0.9800422202 | Y23: =IF(INDEX($C23:$G23,1,aux!$AL$1)>0,(G23-INDEX($C23:$G23,1,aux!$AL$1))/INDEX($C23:$G23,1,aux!$AL$1),"n.d.") -> 14.37084712 | AA23: =O23-INDEX($K23:$O23,1,aux!$AL$1) -> -1011.77 | AB23: -0.007298709766 | AC23: -0.003645189949 | AD23: =+IF(INDEX($K23:$O23,1,aux!$AL$1)>0,(O23/INDEX($K23:$O23,1,aux!$AL$1))^(1/($O$3-INDEX($K$3:$O$3,1,aux!$AL$1)))-1,"n.d.") -> -0.07315852702 | AE23: =IF(INDEX($K23:$O23,1,aux!$AL$1)>0,(O23-INDEX($K23:$O23,1,aux!$AL$1))/INDEX($K23:$O23,1,aux!$AL$1),"n.d.") -> -0.2620586694 | AX23: 04
A24: 0403 | B24: Leitelho, leite coalhado, iogurte, etc. | C24: 361.566 | D24: 237.491 | E24: 321.169 | F24: 494.66 | G24: 264.96 | H24: 335.9692 | I24: 0.001026028191 | J24: 0.0007468733312 | K24: 0 | L24: 0 | M24: 0 | N24: 0.06 | O24: 0.113 | P24: 0.0346 | Q24: 7.688059884e-08 | R24: 3.94790868e-08 | S24: -335.9346 | U24: =G24-INDEX($C24:$G24,1,aux!$AL$1) -> -96.606 | V24: -0.000547056187 | W24: -0.0004951821716 | X24: =+IF(INDEX($C24:$G24,1,aux!$AL$1)>0,(G24/INDEX($C24:$G24,1,aux!$AL$1))^(1/($G$3-INDEX($C$3:$G$3,1,aux!$AL$1)))-1,"n.d.") -> -0.07477324557 | Y24: =IF(INDEX($C24:$G24,1,aux!$AL$1)>0,(G24-INDEX($C24:$G24,1,aux!$AL$1))/INDEX($C24:$G24,1,aux!$AL$1),"n.d.") -> -0.2671877334 | AA24: =O24-INDEX($K24:$O24,1,aux!$AL$1) -> 0.113 | AB24: 8.15159773e-07 | AC24: 4.071147239e-07 | AD24: =+IF(INDEX($K24:$O24,1,aux!$AL$1)>0,(O24/INDEX($K24:$O24,1,aux!$AL$1))^(1/($O$3-INDEX($K$3:$O$3,1,aux!$AL$1)))-1,"n.d.") -> n.d. | AE24: =IF(INDEX($K24:$O24,1,aux!$AL$1)>0,(O24-INDEX($K24:$O24,1,aux!$AL$1))/INDEX($K24:$O24,1,aux!$AL$1),"n.d.") -> n.d. | AX24: 04
A25: 0404 | B25: Soro de leite e outros produtos do leite | C25: 75.211 | D25: 107.669 | E25: 42.879 | F25: 100.79 | G25: 3107.952 | H25: 686.9002 | I25: 0.00209774875 | J25: 0.001527007358 | K25: 1157.043 | L25: 1403.778 | M25: 1113.846 | N25: 1123.624 | O25: 2034.87 | P25: 1366.6322 | Q25: 0.003036633004 | R25: 0.001559346568 | S25: 679.732 | U25: =G25-INDEX($C25:$G25,1,aux!$AL$1) -> 3032.741 | V25: 0.01717367169 | W25: 0.01554519672 | X25: =+IF(INDEX($C25:$G25,1,aux!$AL$1)>0,(G25/INDEX($C25:$G25,1,aux!$AL$1))^(1/($G$3-INDEX($C$3:$G$3,1,aux!$AL$1)))-1,"n.d.") -> 1.53541021 | Y25: =IF(INDEX($C25:$G25,1,aux!$AL$1)>0,(G25-INDEX($C25:$G25,1,aux!$AL$1))/INDEX($C25:$G25,1,aux!$AL$1),"n.d.") -> 40.32310433 | AA25: =O25-INDEX($K25:$O25,1,aux!$AL$1) -> 877.827 | AB25: 0.00633247131 | AC25: 0.003162622095 | AD25: =+IF(INDEX($K25:$O25,1,aux!$AL$1)>0,(O25/INDEX($K25:$O25,1,aux!$AL$1))^(1/($O$3-INDEX($K$3:$O$3,1,aux!$AL$1)))-1,"n.d.") -> 0.1515871031 | AE25: =IF(INDEX($K25:$O25,1,aux!$AL$1)>0,(O25-INDEX($K25:$O25,1,aux!$AL$1))/INDEX($K25:$O25,1,aux!$AL$1),"n.d.") -> 0.7586813973 | AX25: 04
A26: 0405 | B26: Manteiga | C26: 91.683 | D26: 250.536 | E26: 261.839 | F26: 332.448 | G26: 154.025 | H26: 218.1062 | I26: 0.0006660822176 | J26: 0.0004848590411 | K26: 0.184 | L26: 0.273 | M26: 0 | N26: 0.346 | O26: 0.121 | P26: 0.1848 | Q26: 4.106223892e-07 | R26: 2.108594e-07 | S26: -217.9214 | U26: =G26-INDEX($C26:$G26,1,aux!$AL$1) -> 62.342 | V26: 0.0003530275222 | W26: 0.0003195520666 | X26: =+IF(INDEX($C26:$G26,1,aux!$AL$1)>0,(G26/INDEX($C26:$G26,1,aux!$AL$1))^(1/($G$3-INDEX($C$3:$G$3,1,aux!$AL$1)))-1,"n.d.") -> 0.1384805107 | Y26: =IF(INDEX($C26:$G26,1,aux!$AL$1)>0,(G26-INDEX($C26:$G26,1,aux!$AL$1))/INDEX($C26:$G26,1,aux!$AL$1),"n.d.") -> 0.6799733866 | AA26: =O26-INDEX($K26:$O26,1,aux!$AL$1) -> -0.063 | AB26: -4.54469608e-07 | AC26: -2.269754656e-07 | AD26: =+IF(INDEX($K26:$O26,1,aux!$AL$1)>0,(O26/INDEX($K26:$O26,1,aux!$AL$1))^(1/($O$3-INDEX($K$3:$O$3,1,aux!$AL$1)))-1,"n.d.") -> -0.09948306021 | AE26: =IF(INDEX($K26:$O26,1,aux!$AL$1)>0,(O26-INDEX($K26:$O26,1,aux!$AL$1))/INDEX($K26:$O26,1,aux!$AL$1),"n.d.") -> -0.3423913043 | AX26: 04
A27: 0406 | B27: Queijos e requeijão | C27: 13517.043 | D27: 16900.598 | E27: 15034.304 | F27: 21724.257 | G27: 26546.92 | H27: 18744.6244 | I27: 0.05724486964 | J27: 0.04167006996 | K27: 120.194 | L27: 25.545 | M27: 41.175 | N27: 74.321 | O27: 15.008 | P27: 55.2486 | Q27: 0.0001227614293 | R27: 6.30394299e-05 | S27: -18689.3758 | U27: =G27-INDEX($C27:$G27,1,aux!$AL$1) -> 13029.877 | V27: 0.07378501157 | W27: 0.0667884271 | X27: =+IF(INDEX($C27:$G27,1,aux!$AL$1)>0,(G27/INDEX($C27:$G27,1,aux!$AL$1))^(1/($G$3-INDEX($C$3:$G$3,1,aux!$AL$1)))-1,"n.d.") -> 0.1838130179 | Y27: =IF(INDEX($C27:$G27,1,aux!$AL$1)>0,(G27-INDEX($C27:$G27,1,aux!$AL$1))/INDEX($C27:$G27,1,aux!$AL$1),"n.d.") -> 0.9639591292 | AA27: =O27-INDEX($K27:$O27,1,aux!$AL$1) -> -105.186 | AB27: -0.000758791114 | AC27: -0.0003789625606 | AD27: =+IF(INDEX($K27:$O27,1,aux!$AL$1)>0,(O27/INDEX($K27:$O27,1,aux!$AL$1))^(1/($O$3-INDEX($K$3:$O$3,1,aux!$AL$1)))-1,"n.d.") -> -0.4055572863 | AE27: =IF(INDEX($K27:$O27,1,aux!$AL$1)>0,(O27-INDEX($K27:$O27,1,aux!$AL$1))/INDEX($K27:$O27,1,aux!$AL$1),"n.d.") -> -0.8751351981 | AX27: 04
A28: 0407 | B28: Ovos de aves, com cascas | C28: 0 | D28: 472.738 | E28: 0 | F28: 0 | G28: 0 | H28: 94.5476 | I28: 0.0002887422507 | J28: 0.0002101831982 | K28: 200.468 | L28: 15.731 | M28: 12.622 | N28: 124.943 | O28: 1245.125 | P28: 319.7778 | Q28: 0.0007105407156 | R28: 0.0003648709688 | S28: 225.2302 | U28: =G28-INDEX($C28:$G28,1,aux!$AL$1) -> 0 | V28: 0 | W28: 0 | X28: =+IF(INDEX($C28:$G28,1,aux!$AL$1)>0,(G28/INDEX($C28:$G28,1,aux!$AL$1))^(1/($G$3-INDEX($C$3:$G$3,1,aux!$AL$1)))-1,"n.d.") -> n.d. | Y28: =IF(INDEX($C28:$G28,1,aux!$AL$1)>0,(G28-INDEX($C28:$G28,1,aux!$AL$1))/INDEX($C28:$G28,1,aux!$AL$1),"n.d.") -> n.d. | AA28: =O28-INDEX($K28:$O28,1,aux!$AL$1) -> 1044.657 | AB28: 0.007535950115 | AC28: 0.003763674745 | AD28: =+IF(INDEX($K28:$O28,1,aux!$AL$1)>0,(O28/INDEX($K28:$O28,1,aux!$AL$1))^(1/($O$3-INDEX($K$3:$O$3,1,aux!$AL$1)))-1,"n.d.") -> 0.578672246 | AE28: =IF(INDEX($K28:$O28,1,aux!$AL$1)>0,(O28-INDEX($K28:$O28,1,aux!$AL$1))/INDEX($K28:$O28,1,aux!$AL$1),"n.d.") -> 5.211091047 | AX28: 04
A29: 0408 | B29: Ovos de aves, sem casca | C29: 0.098 | D29: 0.239 | E29: 1.383 | F29: 0 | G29: 0 | H29: 0.344 | I29: 1.050553734e-06 | J29: 7.647261294e-07 | K29: 5.56 | L29: 29.076 | M29: 26.016 | N29: 40.246 | O29: 45.125 | P29: 29.2046 | Q29: 6.489211378e-05 | R29: 3.332285949e-05 | S29: 28.8606 | U29: =G29-INDEX($C29:$G29,1,aux!$AL$1) -> -0.098 | V29: -5.549500685e-07 | W29: -5.023275243e-07 | X29: =+IF(INDEX($C29:$G29,1,aux!$AL$1)>0,(G29/INDEX($C29:$G29,1,aux!$AL$1))^(1/($G$3-INDEX($C$3:$G$3,1,aux!$AL$1)))-1,"n.d.") -> -1 | Y29: =IF(INDEX($C29:$G29,1,aux!$AL$1)>0,(G29-INDEX($C29:$G29,1,aux!$AL$1))/INDEX($C29:$G29,1,aux!$AL$1),"n.d.") -> -1 | AA29: =O29-INDEX($K29:$O29,1,aux!$AL$1) -> 39.565 | AB29: 0.0002854141276 | AC29: 0.0001425441952 | AD29: =+IF(INDEX($K29:$O29,1,aux!$AL$1)>0,(O29/INDEX($K29:$O29,1,aux!$AL$1))^(1/($O$3-INDEX($K$3:$O$3,1,aux!$AL$1)))-1,"n.d.") -> 0.6878568315 | AE29: =IF(INDEX($K29:$O29,1,aux!$AL$1)>0,(O29-INDEX($K29:$O29,1,aux!$AL$1))/INDEX($K29:$O29,1,aux!$AL$1),"n.d.") -> 7.116007194 | AX29: 04
A30: 0409 | B30: Mel natural | C30: 2.014 | D30: 4.075 | E30: 2.023 | F30: 2.16 | G30: 17.438 | H30: 5.542 | I30: 1.692490929e-05 | J30: 1.232009363e-05 | K30: 0.044 | L30: 0 | M30: 0.077 | N30: 0.321 | O30: 0.266 | P30: 0.1416 | Q30: 3.146327397e-07 | R30: 1.615675922e-07 | S30: -5.4004 | U30: =G30-INDEX($C30:$G30,1,aux!$AL$1) -> 15.424 | V30: 8.734234548e-05 | W30: 7.906020138e-05 | X30: =+IF(INDEX($C30:$G30,1,aux!$AL$1)>0,(G30/INDEX($C30:$G30,1,aux!$AL$1))^(1/($G$3-INDEX($C$3:$G$3,1,aux!$AL$1)))-1,"n.d.") -> 0.7153758904 | Y30: =IF(INDEX($C30:$G30,1,aux!$AL$1)>0,(G30-INDEX($C30:$G30,1,aux!$AL$1))/INDEX($C30:$G30,1,aux!$AL$1),"n.d.") -> 7.658391261 | AA30: =O30-INDEX($K30:$O30,1,aux!$AL$1) -> 0.222 | AB30: 1.601464333e-06 | AC30: 7.998183072e-07 | AD30: =+IF(INDEX($K30:$O30,1,aux!$AL$1)>0,(O30/INDEX($K30:$O30,1,aux!$AL$1))^(1/($O$3-INDEX($K$3:$O$3,1,aux!$AL$1)))-1,"n.d.") -> 0.5680403715 | AE30: =IF(INDEX($K30:$O30,1,aux!$AL$1)>0,(O30-INDEX($K30:$O30,1,aux!$AL$1))/INDEX($K30:$O30,1,aux!$AL$1),"n.d.") -> 5.045454545 | AX30: 04
A31: 0410 | B31: Outros produtos comestíveis de origem animal | C31: 0 | D31: 0.276 | E31: 0.549 | F31: 25.891 | G31: 66.424 | H31: 18.628 | I31: 5.688870628e-05 | J31: 4.141080913e-05 | K31: 0 | L31: 1.08 | M31: 5.365 | N31: 1.225 | O31: 0 | P31: 1.534 | Q31: 3.408521347e-06 | R31: 1.750315582e-06 | S31: -17.094 | U31: =G31-INDEX($C31:$G31,1,aux!$AL$1) -> 66.424 | V31: 0.0003761428914 | W31: 0.0003404755457 | X31: =+IF(INDEX($C31:$G31,1,aux!$AL$1)>0,(G31/INDEX($C31:$G31,1,aux!$AL$1))^(1/($G$3-INDEX($C$3:$G$3,1,aux!$AL$1)))-1,"n.d.") -> n.d. | Y31: =IF(INDEX($C31:$G31,1,aux!$AL$1)>0,(G31-INDEX($C31:$G31,1,aux!$AL$1))/INDEX($C31:$G31,1,aux!$AL$1),"n.d.") -> n.d. | AA31: =O31-INDEX($K31:$O31,1,aux!$AL$1) -> 0 | AB31: 0 | AC31: 0 | AD31: =+IF(INDEX($K31:$O31,1,aux!$AL$1)>0,(O31/INDEX($K31:$O31,1,aux!$AL$1))^(1/($O$3-INDEX($K$3:$O$3,1,aux!$AL$1)))-1,"n.d.") -> n.d. | AE31: =IF(INDEX($K31:$O31,1,aux!$AL$1)>0,(O31-INDEX($K31:$O31,1,aux!$AL$1))/INDEX($K31:$O31,1,aux!$AL$1),"n.d.") -> n.d. | AX31: 04
A32: 04SS | B32: Leite e lacticínios; ovos de aves; mel natural; etc. | C32: 0 | D32: 0 | E32: 0 | F32: 0 | G32: 0 | H32: 0 | I32: 0 | J32: 0 | K32: 0 | L32: 0 | M32: 0 | N32: 0 | O32: 0 | P32: 0 | Q32: 0 | R32: 0 | S32: 0 | U32: =G32-INDEX($C32:$G32,1,aux!$AL$1) -> 0 | V32: 0 | W32: 0 | X32: =+IF(INDEX($C32:$G32,1,aux!$AL$1)>0,(G32/INDEX($C32:$G32,1,aux!$AL$1))^(1/($G$3-INDEX($C$3:$G$3,1,aux!$AL$1)))-1,"n.d.") -> n.d. | Y32: =IF(INDEX($C32:$G32,1,aux!$AL$1)>0,(G32-INDEX($C32:$G32,1,aux!$AL$1))/INDEX($C32:$G32,1,aux!$AL$1),"n.d.") -> n.d. | AA32: =O32-INDEX($K32:$O32,1,aux!$AL$1) -> 0 | AB32: 0 | AC32: 0 | AD32: =+IF(INDEX($K32:$O32,1,aux!$AL$1)>0,(O32/INDEX($K32:$O32,1,aux!$AL$1))^(1/($O$3-INDEX($K$3:$O$3,1,aux!$AL$1)))-1,"n.d.") -> n.d. | AE32: =IF(INDEX($K32:$O32,1,aux!$AL$1)>0,(O32-INDEX($K32:$O32,1,aux!$AL$1))/INDEX($K32:$O32,1,aux!$AL$1),"n.d.") -> n.d. | AX32: 04
A33: 0501 | B33: Cabelos em bruto | C33: 0 | D33: 0 | E33: 0 | F33: 0 | G33: 0 | H33: 0 | I33: 0 | J33: 0 | K33: 0 | L33: 0 | M33: 0 | N33: 0 | O33: 0 | P33: 0 | Q33: 0 | R33: 0 | S33: 0 | U33: =G33-INDEX($C33:$G33,1,aux!$AL$1) -> 0 | V33: 0 | W33: 0 | X33: =+IF(INDEX($C33:$G33,1,aux!$AL$1)>0,(G33/INDEX($C33:$G33,1,aux!$AL$1))^(1/($G$3-INDEX($C$3:$G$3,1,aux!$AL$1)))-1,"n.d.") -> n.d. | Y33: =IF(INDEX($C33:$G33,1,aux!$AL$1)>0,(G33-INDEX($C33:$G33,1,aux!$AL$1))/INDEX($C33:$G33,1,aux!$AL$1),"n.d.") -> n.d. | AA33: =O33-INDEX($K33:$O33,1,aux!$AL$1) -> 0 | AB33: 0 | AC33: 0 | AD33: =+IF(INDEX($K33:$O33,1,aux!$AL$1)>0,(O33/INDEX($K33:$O33,1,aux!$AL$1))^(1/($O$3-INDEX($K$3:$O$3,1,aux!$AL$1)))-1,"n.d.") -> n.d. | AE33: =IF(INDEX($K33:$O33,1,aux!$AL$1)>0,(O33-INDEX($K33:$O33,1,aux!$AL$1))/INDEX($K33:$O33,1,aux!$AL$1),"n.d.") -> n.d. | AX33: 05
A34: 0502 | B34: Cerdas de porco ou de javali, etc. | C34: 0 | D34: 0 | E34: 0.118 | F34: 0 | G34: 0 | H34: 0.0236 | I34: 7.207287246e-08 | J34: 5.246376935e-08 | K34: 0 | L34: 0 | M34: 0 | N34: 0 | O34: 0 | P34: 0 | Q34: 0 | R34: 0 | S34: -0.0236 | U34: =G34-INDEX($C34:$G34,1,aux!$AL$1) -> 0 | V34: 0 | W34: 0 | X34: =+IF(INDEX($C34:$G34,1,aux!$AL$1)>0,(G34/INDEX($C34:$G34,1,aux!$AL$1))^(1/($G$3-INDEX($C$3:$G$3,1,aux!$AL$1)))-1,"n.d.") -> n.d. | Y34: =IF(INDEX($C34:$G34,1,aux!$AL$1)>0,(G34-INDEX($C34:$G34,1,aux!$AL$1))/INDEX($C34:$G34,1,aux!$AL$1),"n.d.") -> n.d. | AA34: =O34-INDEX($K34:$O34,1,aux!$AL$1) -> 0 | AB34: 0 | AC34: 0 | AD34: =+IF(INDEX($K34:$O34,1,aux!$AL$1)>0,(O34/INDEX($K34:$O34,1,aux!$AL$1))^(1/($O$3-INDEX($K$3:$O$3,1,aux!$AL$1)))-1,"n.d.") -> n.d. | AE34: =IF(INDEX($K34:$O34,1,aux!$AL$1)>0,(O34-INDEX($K34:$O34,1,aux!$AL$1))/INDEX($K34:$O34,1,aux!$AL$1),"n.d.") -> n.d. | AX34: 05
A35: 0504 | B35: Tripas de animais (excepto peixes) | C35: 488.004 | D35: 39.237 | E35: 638.062 | F35: 48.616 | G35: 134.191 | H35: 269.622 | I35: 0.0008234081363 | J35: 0.0005993807804 | K35: 5040.091 | L35: 5675.436 | M35: 5483.855 | N35: 4588.162 | O35: 5479.78 | P35: 5253.4648 | Q35: 0.01167310751 | R35: 0.005994277249 | S35: 4983.8428 | U35: =G35-INDEX($C35:$G35,1,aux!$AL$1) -> -353.813 | V35: -0.002003556618 | W35: -0.001813571514 | X35: =+IF(INDEX($C35:$G35,1,aux!$AL$1)>0,(G35/INDEX($C35:$G35,1,aux!$AL$1))^(1/($G$3-INDEX($C$3:$G$3,1,aux!$AL$1)))-1,"n.d.") -> -0.2758558912 | Y35: =IF(INDEX($C35:$G35,1,aux!$AL$1)>0,(G35-INDEX($C35:$G35,1,aux!$AL$1))/INDEX($C35:$G35,1,aux!$AL$1),"n.d.") -> -0.7250206966 | AA35: =O35-INDEX($K35:$O35,1,aux!$AL$1) -> 439.689 | AB35: 0.00317182996 | AC35: 0.001584105008 | AD35: =+IF(INDEX($K35:$O35,1,aux!$AL$1)>0,(O35/INDEX($K35:$O35,1,aux!$AL$1))^(1/($O$3-INDEX($K$3:$O$3,1,aux!$AL$1)))-1,"n.d.") -> 0.02113035428 | AE35: =IF(INDEX($K35:$O35,1,aux!$AL$1)>0,(O35-INDEX($K35:$O35,1,aux!$AL$1))/INDEX($K35:$O35,1,aux!$AL$1),"n.d.") -> 0.08723830582 | AX35: 05
A36: 0505 | B36: Peles e outras partes de aves | C36: 0 | D36: 6.043 | E36: 0 | F36: 0.752 | G36: 0 | H36: 1.359 | I36: 4.150298037e-06 | J36: 3.02111282e-06 | K36: 0 | L36: 0 | M36: 0 | N36: 0 | O36: 0 | P36: 0 | Q36: 0 | R36: 0 | S36: -1.359 | U36: =G36-INDEX($C36:$G36,1,aux!$AL$1) -> 0 | V36: 0 | W36: 0 | X36: =+IF(INDEX($C36:$G36,1,aux!$AL$1)>0,(G36/INDEX($C36:$G36,1,aux!$AL$1))^(1/($G$3-INDEX($C$3:$G$3,1,aux!$AL$1)))-1,"n.d.") -> n.d. | Y36: =IF(INDEX($C36:$G36,1,aux!$AL$1)>0,(G36-INDEX($C36:$G36,1,aux!$AL$1))/INDEX($C36:$G36,1,aux!$AL$1),"n.d.") -> n.d. | AA36: =O36-INDEX($K36:$O36,1,aux!$AL$1) -> 0 | AB36: 0 | AC36: 0 | AD36: =+IF(INDEX($K36:$O36,1,aux!$AL$1)>0,(O36/INDEX($K36:$O36,1,aux!$AL$1))^(1/($O$3-INDEX($K$3:$O$3,1,aux!$AL$1)))-1,"n.d.") -> n.d. | AE36: =IF(INDEX($K36:$O36,1,aux!$AL$1)>0,(O36-INDEX($K36:$O36,1,aux!$AL$1))/INDEX($K36:$O36,1,aux!$AL$1),"n.d.") -> n.d. | AX36: 05
A37: 0506 | B37: Ossos e núcleos córneos, em bruto | C37: 0 | D37: 0 | E37: 0 | F37: 0 | G37: 0.193 | H37: 0.0386 | I37: 1.178819016e-07 | J37: 8.580938546e-08 | K37: 0 | L37: 10.696 | M37: 0 | N37: 0 | O37: 0 | P37: 2.1392 | Q37: 4.753265232e-06 | R37: 2.440857297e-06 | S37: 2.1006 | U37: =G37-INDEX($C37:$G37,1,aux!$AL$1) -> 0.193 | V37: 1.09291187e-06 | W37: 9.892776755e-07 | X37: =+IF(INDEX($C37:$G37,1,aux!$AL$1)>0,(G37/INDEX($C37:$G37,1,aux!$AL$1))^(1/($G$3-INDEX($C$3:$G$3,1,aux!$AL$1)))-1,"n.d.") -> n.d. | Y37: =IF(INDEX($C37:$G37,1,aux!$AL$1)>0,(G37-INDEX($C37:$G37,1,aux!$AL$1))/INDEX($C37:$G37,1,aux!$AL$1),"n.d.") -> n.d. | AA37: =O37-INDEX($K37:$O37,1,aux!$AL$1) -> 0 | AB37: 0 | AC37: 0 | AD37: =+IF(INDEX($K37:$O37,1,aux!$AL$1)>0,(O37/INDEX($K37:$O37,1,aux!$AL$1))^(1/($O$3-INDEX($K$3:$O$3,1,aux!$AL$1)))-1,"n.d.") -> n.d. | AE37: =IF(INDEX($K37:$O37,1,aux!$AL$1)>0,(O37-INDEX($K37:$O37,1,aux!$AL$1))/INDEX($K37:$O37,1,aux!$AL$1),"n.d.") -> n.d. | AX37: 05
A38: 0507 | B38: Marfim, carapaças de tartaruga, etc. | C38: 0 | D38: 0 | E38: 0 | F38: 0 | G38: 0 | H38: 0 | I38: 0 | J38: 0 | K38: 0 | L38: 0 | M38: 0 | N38: 0 | O38: 0 | P38: 0 | Q38: 0 | R38: 0 | S38: 0 | U38: =G38-INDEX($C38:$G38,1,aux!$AL$1) -> 0 | V38: 0 | W38: 0 | X38: =+IF(INDEX($C38:$G38,1,aux!$AL$1)>0,(G38/INDEX($C38:$G38,1,aux!$AL$1))^(1/($G$3-INDEX($C$3:$G$3,1,aux!$AL$1)))-1,"n.d.") -> n.d. | Y38: =IF(INDEX($C38:$G38,1,aux!$AL$1)>0,(G38-INDEX($C38:$G38,1,aux!$AL$1))/INDEX($C38:$G38,1,aux!$AL$1),"n.d.") -> n.d. | AA38: =O38-INDEX($K38:$O38,1,aux!$AL$1) -> 0 | AB38: 0 | AC38: 0 | AD38: =+IF(INDEX($K38:$O38,1,aux!$AL$1)>0,(O38/INDEX($K38:$O38,1,aux!$AL$1))^(1/($O$3-INDEX($K$3:$O$3,1,aux!$AL$1)))-1,"n.d.") -> n.d. | AE38: =IF(INDEX($K38:$O38,1,aux!$AL$1)>0,(O38-INDEX($K38:$O38,1,aux!$AL$1))/INDEX($K38:$O38,1,aux!$AL$1),"n.d.") -> n.d. | AX38: 05
A39: 0510 | B39: Âmbar-cinzento, castóreo, algália e almíscar, etc. | C39: 0 | D39: 0 | E39: 0 | F39: 0 | G39: 0 | H39: 0 | I39: 0 | J39: 0 | K39: 0 | L39: 0 | M39: 0 | N39: 0 | O39: 0 | P39: 0 | Q39: 0 | R39: 0 | S39: 0 | U39: =G39-INDEX($C39:$G39,1,aux!$AL$1) -> 0 | V39: 0 | W39: 0 | X39: =+IF(INDEX($C39:$G39,1,aux!$AL$1)>0,(G39/INDEX($C39:$G39,1,aux!$AL$1))^(1/($G$3-INDEX($C$3:$G$3,1,aux!$AL$1)))-1,"n.d.") -> n.d. | Y39: =IF(INDEX($C39:$G39,1,aux!$AL$1)>0,(G39-INDEX($C39:$G39,1,aux!$AL$1))/INDEX($C39:$G39,1,aux!$AL$1),"n.d.") -> n.d. | AA39: =O39-INDEX($K39:$O39,1,aux!$AL$1) -> 0 | AB39: 0 | AC39: 0 | AD39: =+IF(INDEX($K39:$O39,1,aux!$AL$1)>0,(O39/INDEX($K39:$O39,1,aux!$AL$1))^(1/($O$3-INDEX($K$3:$O$3,1,aux!$AL$1)))-1,"n.d.") -> n.d. | AE39: =IF(INDEX($K39:$O39,1,aux!$AL$1)>0,(O39-INDEX($K39:$O39,1,aux!$AL$1))/INDEX($K39:$O39,1,aux!$AL$1),"n.d.") -> n.d. | AX39: 05
A40: 0511 | B40: Outros produtos de origem animal (exc. NC 0511 91) (a) | C40: 341.927 | D40: 50.102 | E40: 29.424 | F40: 34.63 | G40: 30.292 | H40: 97.275 | I40: 0.0002970715537 | J40: 0.0002162463205 | K40: 2187.787 | L40: 0.821 | M40: 41.169 | N40: 54.93 | O40: 2.23 | P40: 457.3874 | Q40: 0.001016306856 | R40: 0.0005218854585 | S40: 360.1124 | U40: =G40-INDEX($C40:$G40,1,aux!$AL$1) -> -311.635 | V40: -0.001764712904 | W40: -0.001597375898 | X40: =+IF(INDEX($C40:$G40,1,aux!$AL$1)>0,(G40/INDEX($C40:$G40,1,aux!$AL$1))^(1/($G$3-INDEX($C$3:$G$3,1,aux!$AL$1)))-1,"n.d.") -> -0.4544323153 | Y40: =IF(INDEX($C40:$G40,1,aux!$AL$1)>0,(G40-INDEX($C40:$G40,1,aux!$AL$1))/INDEX($C40:$G40,1,aux!$AL$1),"n.d.") -> -0.9114079906 | AA40: =O40-INDEX($K40:$O40,1,aux!$AL$1) -> -2185.557 | AB40: -0.0157661783 | AC40: -0.007874092343 | AD40: =+IF(INDEX($K40:$O40,1,aux!$AL$1)>0,(O40/INDEX($K40:$O40,1,aux!$AL$1))^(1/($O$3-INDEX($K$3:$O$3,1,aux!$AL$1)))-1,"n.d.") -> -0.8213204062 | AE40: =IF(INDEX($K40:$O40,1,aux!$AL$1)>0,(O40-INDEX($K40:$O40,1,aux!$AL$1))/INDEX($K40:$O40,1,aux!$AL$1),"n.d.") -> -0.9989807052 | AX40: 05
A41: 05SS | B41: Outros produtos de origem animal | C41: 0 | D41: 0 | E41: 0 | F41: 0 | G41: 0 | H41: 0 | I41: 0 | J41: 0 | K41: 0 | L41: 0 | M41: 0 | N41: 0 | O41: 0 | P41: 0 | Q41: 0 | R41: 0 | S41: 0 | U41: =G41-INDEX($C41:$G41,1,aux!$AL$1) -> 0 | V41: 0 | W41: 0 | X41: =+IF(INDEX($C41:$G41,1,aux!$AL$1)>0,(G41/INDEX($C41:$G41,1,aux!$AL$1))^(1/($G$3-INDEX($C$3:$G$3,1,aux!$AL$1)))-1,"n.d.") -> n.d. | Y41: =IF(INDEX($C41:$G41,1,aux!$AL$1)>0,(G41-INDEX($C41:$G41,1,aux!$AL$1))/INDEX($C41:$G41,1,aux!$AL$1),"n.d.") -> n.d. | AA41: =O41-INDEX($K41:$O41,1,aux!$AL$1) -> 0 | AB41: 0 | AC41: 0 | AD41: =+IF(INDEX($K41:$O41,1,aux!$AL$1)>0,(O41/INDEX($K41:$O41,1,aux!$AL$1))^(1/($O$3-INDEX($K$3:$O$3,1,aux!$AL$1)))-1,"n.d.") -> n.d. | AE41: =IF(INDEX($K41:$O41,1,aux!$AL$1)>0,(O41-INDEX($K41:$O41,1,aux!$AL$1))/INDEX($K41:$O41,1,aux!$AL$1),"n.d.") -> n.d. | AX41: 05
A42: 0601 | B42: Bolbos, tubérculos, raízes, etc. | C42: 2.629 | D42: 10.002 | E42: 22.867 | F42: 14.632 | G42: 40.849 | H42: 18.1958 | I42: 5.556879545e-05 | J42: 4.045001077e-05 | K42: 12.985 | L42: 20.488 | M42: 20.417 | N42: 0 | O42: 0 | P42: 10.778 | Q42: 2.394852874e-05 | R42: 1.229784964e-05 | S42: -7.4178 | U42: =G42-INDEX($C42:$G42,1,aux!$AL$1) -> 38.22 | V42: 0.0002164305267 | W42: 0.0001959077345 | X42: =+IF(INDEX($C42:$G42,1,aux!$AL$1)>0,(G42/INDEX($C42:$G42,1,aux!$AL$1))^(1/($G$3-INDEX($C$3:$G$3,1,aux!$AL$1)))-1,"n.d.") -> 0.9853985977 | Y42: =IF(INDEX($C42:$G42,1,aux!$AL$1)>0,(G42-INDEX($C42:$G42,1,aux!$AL$1))/INDEX($C42:$G42,1,aux!$AL$1),"n.d.") -> 14.53784709 | AA42: =O42-INDEX($K42:$O42,1,aux!$AL$1) -> -12.985 | AB42: -9.367123586e-05 | AC42: -4.67821654e-05 | AD42: =+IF(INDEX($K42:$O42,1,aux!$AL$1)>0,(O42/INDEX($K42:$O42,1,aux!$AL$1))^(1/($O$3-INDEX($K$3:$O$3,1,aux!$AL$1)))-1,"n.d.") -> -1 | AE42: =IF(INDEX($K42:$O42,1,aux!$AL$1)>0,(O42-INDEX($K42:$O42,1,aux!$AL$1))/INDEX($K42:$O42,1,aux!$AL$1),"n.d.") -> -1 | AX42: 06
A43: 0602 | B43: Plantas vivas | C43: 8411.112 | D43: 5375.364 | E43: 4153.31 | F43: 6925.75 | G43: 9629.782 | H43: 6899.0636 | I43: 0.02106929368 | J43: 0.01533690175 | K43: 511.018 | L43: 638.903 | M43: 836.281 | N43: 1076.773 | O43: 526.354 | P43: 717.8658 | Q43: 0.001595085335 | R43: 0.0008190949776 | S43: -6181.1978 | U43: =G43-INDEX($C43:$G43,1,aux!$AL$1) -> 1218.67 | V43: 0.006901030612 | W43: 0.006246647797 | X43: =+IF(INDEX($C43:$G43,1,aux!$AL$1)>0,(G43/INDEX($C43:$G43,1,aux!$AL$1))^(1/($G$3-INDEX($C$3:$G$3,1,aux!$AL$1)))-1,"n.d.") -> 0.0344053544 | Y43: =IF(INDEX($C43:$G43,1,aux!$AL$1)>0,(G43-INDEX($C43:$G43,1,aux!$AL$1))/INDEX($C43:$G43,1,aux!$AL$1),"n.d.") -> 0.1448880957 | AA43: =O43-INDEX($K43:$O43,1,aux!$AL$1) -> 15.336 | AB43: 0.0001106308874 | AC43: 5.525231333e-05 | AD43: =+IF(INDEX($K43:$O43,1,aux!$AL$1)>0,(O43/INDEX($K43:$O43,1,aux!$AL$1))^(1/($O$3-INDEX($K$3:$O$3,1,aux!$AL$1)))-1,"n.d.") -> 0.007419684341 | AE43: =IF(INDEX($K43:$O43,1,aux!$AL$1)>0,(O43-INDEX($K43:$O43,1,aux!$AL$1))/INDEX($K43:$O43,1,aux!$AL$1),"n.d.") -> 0.03001068456 | AX43: 06
A44: 0603 | B44: Flores e seus botões | C44: 1128.399 | D44: 738.316 | E44: 839.462 | F44: 1105.596 | G44: 900.244 | H44: 942.4034 | I44: 0.002878038985 | J44: 0.002095001466 | K44: 10.658 | L44: 1.379 | M44: 11.27 | N44: 0 | O44: 0 | P44: 4.6614 | Q44: 1.035754981e-05 | R44: 5.318722982e-06 | S44: -937.742 | U44: =G44-INDEX($C44:$G44,1,aux!$AL$1) -> -228.155 | V44: -0.00129198605 | W44: -0.00116947486 | X44: =+IF(INDEX($C44:$G44,1,aux!$AL$1)>0,(G44/INDEX($C44:$G44,1,aux!$AL$1))^(1/($G$3-INDEX($C$3:$G$3,1,aux!$AL$1)))-1,"n.d.") -> -0.05490734985 | Y44: =IF(INDEX($C44:$G44,1,aux!$AL$1)>0,(G44-INDEX($C44:$G44,1,aux!$AL$1))/INDEX($C44:$G44,1,aux!$AL$1),"n.d.") -> -0.2021935503 | AA44: =O44-INDEX($K44:$O44,1,aux!$AL$1) -> -10.658 | AB44: -7.688471558e-05 | AC44: -3.839848432e-05 | AD44: =+IF(INDEX($K44:$O44,1,aux!$AL$1)>0,(O44/INDEX($K44:$O44,1,aux!$AL$1))^(1/($O$3-INDEX($K$3:$O$3,1,aux!$AL$1)))-1,"n.d.") -> -1 | AE44: =IF(INDEX($K44:$O44,1,aux!$AL$1)>0,(O44-INDEX($K44:$O44,1,aux!$AL$1))/INDEX($K44:$O44,1,aux!$AL$1),"n.d.") -> -1 | AX44: 06
A45: 0604 | B45: Folhagem, folhas, ramos e outras partes de plantas | C45: 25.089 | D45: 204.556 | E45: 447.314 | F45: 35.465 | G45: 42.513 | H45: 150.9874 | I45: 0.0004611057467 | J45: 0.0003356511919 | K45: 2460.229 | L45: 7527.451 | M45: 5977.459 | N45: 3823.182 | O45: 4135.828 | P45: 4784.8298 | Q45: 0.01063180868 | R45: 0.005459558121 | S45: 4633.8424 | U45: =G45-INDEX($C45:$G45,1,aux!$AL$1) -> 17.424 | V45: 9.866785708e-05 | W45: 8.931178351e-05 | X45: =+IF(INDEX($C45:$G45,1,aux!$AL$1)>0,(G45/INDEX($C45:$G45,1,aux!$AL$1))^(1/($G$3-INDEX($C$3:$G$3,1,aux!$AL$1)))-1,"n.d.") -> 0.1409315777 | Y45: =IF(INDEX($C45:$G45,1,aux!$AL$1)>0,(G45-INDEX($C45:$G45,1,aux!$AL$1))/INDEX($C45:$G45,1,aux!$AL$1),"n.d.") -> 0.6944876241 | AA45: =O45-INDEX($K45:$O45,1,aux!$AL$1) -> 1675.599 | AB45: 0.0120874416 | AC45: 0.006036823224 | AD45: =+IF(INDEX($K45:$O45,1,aux!$AL$1)>0,(O45/INDEX($K45:$O45,1,aux!$AL$1))^(1/($O$3-INDEX($K$3:$O$3,1,aux!$AL$1)))-1,"n.d.") -> 0.1386669986 | AE45: =IF(INDEX($K45:$O45,1,aux!$AL$1)>0,(O45-INDEX($K45:$O45,1,aux!$AL$1))/INDEX($K45:$O45,1,aux!$AL$1),"n.d.") -> 0.681074404 | AX45: 06
A46: 06SS | B46: Plantas vivas e produtos de floricultura | C46: 0 | D46: 0 | E46: 0 | F46: 0 | G46: 0 | H46: 0 | I46: 0 | J46: 0 | K46: 0 | L46: 0 | M46: 0 | N46: 0 | O46: 0 | P46: 0 | Q46: 0 | R46: 0 | S46: 0 | U46: =G46-INDEX($C46:$G46,1,aux!$AL$1) -> 0 | V46: 0 | W46: 0 | X46: =+IF(INDEX($C46:$G46,1,aux!$AL$1)>0,(G46/INDEX($C46:$G46,1,aux!$AL$1))^(1/($G$3-INDEX($C$3:$G$3,1,aux!$AL$1)))-1,"n.d.") -> n.d. | Y46: =IF(INDEX($C46:$G46,1,aux!$AL$1)>0,(G46-INDEX($C46:$G46,1,aux!$AL$1))/INDEX($C46:$G46,1,aux!$AL$1),"n.d.") -> n.d. | AA46: =O46-INDEX($K46:$O46,1,aux!$AL$1) -> 0 | AB46: 0 | AC46: 0 | AD46: =+IF(INDEX($K46:$O46,1,aux!$AL$1)>0,(O46/INDEX($K46:$O46,1,aux!$AL$1))^(1/($O$3-INDEX($K$3:$O$3,1,aux!$AL$1)))-1,"n.d.") -> n.d. | AE46: =IF(INDEX($K46:$O46,1,aux!$AL$1)>0,(O46-INDEX($K46:$O46,1,aux!$AL$1))/INDEX($K46:$O46,1,aux!$AL$1),"n.d.") -> n.d. | AX46: 06
A47: 0701 | B47: Batatas, frescas ou refrigeradas | C47: 0 | D47: 13.778 | E47: 0 | F47: 0 | G47: 0.3 | H47: 2.8156 | I47: 8.598660156e-06 | J47: 6.259194448e-06 | K47: 10.385 | L47: 340.988 | M47: 224.018 | N47: 0 | O47: 0 | P47: 115.0782 | Q47: 0.000255701761 | R47: 0.0001313058453 | S47: 112.2626 | U47: =G47-INDEX($C47:$G47,1,aux!$AL$1) -> 0.3 | V47: 1.69882674e-06 | W47: 1.537737319e-06 | X47: =+IF(INDEX($C47:$G47,1,aux!$AL$1)>0,(G47/INDEX($C47:$G47,1,aux!$AL$1))^(1/($G$3-INDEX($C$3:$G$3,1,aux!$AL$1)))-1,"n.d.") -> n.d. | Y47: =IF(INDEX($C47:$G47,1,aux!$AL$1)>0,(G47-INDEX($C47:$G47,1,aux!$AL$1))/INDEX($C47:$G47,1,aux!$AL$1),"n.d.") -> n.d. | AA47: =O47-INDEX($K47:$O47,1,aux!$AL$1) -> -10.385 | AB47: -7.491534728e-05 | AC47: -3.741492397e-05 | AD47: =+IF(INDEX($K47:$O47,1,aux!$AL$1)>0,(O47/INDEX($K47:$O47,1,aux!$AL$1))^(1/($O$3-INDEX($K$3:$O$3,1,aux!$AL$1)))-1,"n.d.") -> -1 | AE47: =IF(INDEX($K47:$O47,1,aux!$AL$1)>0,(O47-INDEX($K47:$O47,1,aux!$AL$1))/INDEX($K47:$O47,1,aux!$AL$1),"n.d.") -> -1 | AX47: 07
A48: 0702 | B48: Tomates, frescos ou refrigerados | C48: 2.696 | D48: 0.034 | E48: 0 | F48: 20.047 | G48: 48.59 | H48: 14.2734 | I48: 4.359003973e-05 | J48: 3.173035447e-05 | K48: 0 | L48: 66.531 | M48: 58.898 | N48: 256.886 | O48: 61.35 | P48: 88.733 | Q48: 0.0001971631843 | R48: 0.0001012456014 | S48: 74.4596 | U48: =G48-INDEX($C48:$G48,1,aux!$AL$1) -> 45.894 | V48: 0.0002598865147 | W48: 0.0002352430551 | X48: =+IF(INDEX($C48:$G48,1,aux!$AL$1)>0,(G48/INDEX($C48:$G48,1,aux!$AL$1))^(1/($G$3-INDEX($C$3:$G$3,1,aux!$AL$1)))-1,"n.d.") -> 1.060424725 | Y48: =IF(INDEX($C48:$G48,1,aux!$AL$1)>0,(G48-INDEX($C48:$G48,1,aux!$AL$1))/INDEX($C48:$G48,1,aux!$AL$1),"n.d.") -> 17.02299703 | AA48: =O48-INDEX($K48:$O48,1,aux!$AL$1) -> 61.35 | AB48: 0.0004425668325 | AC48: 0.00022103087 | AD48: =+IF(INDEX($K48:$O48,1,aux!$AL$1)>0,(O48/INDEX($K48:$O48,1,aux!$AL$1))^(1/($O$3-INDEX($K$3:$O$3,1,aux!$AL$1)))-1,"n.d.") -> n.d. | AE48: =IF(INDEX($K48:$O48,1,aux!$AL$1)>0,(O48-INDEX($K48:$O48,1,aux!$AL$1))/INDEX($K48:$O48,1,aux!$AL$1),"n.d.") -> n.d. | AX48: 07
A49: 0703 | B49: Cebolas, alhos, etc., frescos ou refrigerados | C49: 1.241 | D49: 0.381 | E49: 56.955 | F49: 13.302 | G49: 13.142 | H49: 17.0042 | I49: 5.192972618e-05 | J49: 3.780103503e-05 | K49: 40.646 | L49: 235.142 | M49: 15.908 | N49: 148.56 | O49: 1.692 | P49: 88.3896 | Q49: 0.0001964001555 | R49: 0.0001008537772 | S49: 71.3854 | U49: =G49-INDEX($C49:$G49,1,aux!$AL$1) -> 11.901 | V49: 6.739245679e-05 | W49: 6.100203946e-05 | X49: =+IF(INDEX($C49:$G49,1,aux!$AL$1)>0,(G49/INDEX($C49:$G49,1,aux!$AL$1))^(1/($G$3-INDEX($C$3:$G$3,1,aux!$AL$1)))-1,"n.d.") -> 0.803941378 | Y49: =IF(INDEX($C49:$G49,1,aux!$AL$1)>0,(G49-INDEX($C49:$G49,1,aux!$AL$1))/INDEX($C49:$G49,1,aux!$AL$1),"n.d.") -> 9.589846898 | AA49: =O49-INDEX($K49:$O49,1,aux!$AL$1) -> -38.954 | AB49: -0.0002810064938 | AC49: -0.0001403428934 | AD49: =+IF(INDEX($K49:$O49,1,aux!$AL$1)>0,(O49/INDEX($K49:$O49,1,aux!$AL$1))^(1/($O$3-INDEX($K$3:$O$3,1,aux!$AL$1)))-1,"n.d.") -> -0.5483046326 | AE49: =IF(INDEX($K49:$O49,1,aux!$AL$1)>0,(O49-INDEX($K49:$O49,1,aux!$AL$1))/INDEX($K49:$O49,1,aux!$AL$1),"n.d.") -> -0.9583722876 | AX49: 07
A50: 0704 | B50: Couves, frescas ou refrigeradas | C50: 0.629 | D50: 0 | E50: 0 | F50: 0.885 | G50: 0.396 | H50: 0.382 | I50: 1.166603275e-06 | J50: 8.492016903e-07 | K50: 511.355 | L50: 1100.977 | M50: 805.691 | N50: 372.296 | O50: 311.351 | P50: 620.334 | Q50: 0.00137837137 | R50: 0.0007078098216 | S50: 619.952 | U50: =G50-INDEX($C50:$G50,1,aux!$AL$1) -> -0.233 | V50: -1.319422102e-06 | W50: -1.194309318e-06 | X50: =+IF(INDEX($C50:$G50,1,aux!$AL$1)>0,(G50/INDEX($C50:$G50,1,aux!$AL$1))^(1/($G$3-INDEX($C$3:$G$3,1,aux!$AL$1)))-1,"n.d.") -> -0.1092391211 | Y50: =IF(INDEX($C50:$G50,1,aux!$AL$1)>0,(G50-INDEX($C50:$G50,1,aux!$AL$1))/INDEX($C50:$G50,1,aux!$AL$1),"n.d.") -> -0.3704292528 | AA50: =O50-INDEX($K50:$O50,1,aux!$AL$1) -> -200.004 | AB50: -0.001442789515 | AC50: -0.0007205714447 | AD50: =+IF(INDEX($K50:$O50,1,aux!$AL$1)>0,(O50/INDEX($K50:$O50,1,aux!$AL$1))^(1/($O$3-INDEX($K$3:$O$3,1,aux!$AL$1)))-1,"n.d.") -> -0.1166517774 | AE50: =IF(INDEX($K50:$O50,1,aux!$AL$1)>0,(O50-INDEX($K50:$O50,1,aux!$AL$1))/INDEX($K50:$O50,1,aux!$AL$1),"n.d.") -> -0.391125539 | AX50: 07
A51: 0705 | B51: Alfaces, frescas ou refrigeradas | C51: 380.051 | D51: 113.576 | E51: 26.006 | F51: 210.08 | G51: 606.891 | H51: 267.3208 | I51: 0.0008163804205 | J51: 0.0005942651183 | K51: 0 | L51: 24.775 | M51: 17.964 | N51: 7.28 | O51: 69.378 | P51: 23.8794 | Q51: 5.30596119e-05 | R51: 2.724673136e-05 | S51: -243.4414 | U51: =G51-INDEX($C51:$G51,1,aux!$AL$1) -> 226.84 | V51: 0.001284539526 | W51: 0.001162734445 | X51: =+IF(INDEX($C51:$G51,1,aux!$AL$1)>0,(G51/INDEX($C51:$G51,1,aux!$AL$1))^(1/($G$3-INDEX($C$3:$G$3,1,aux!$AL$1)))-1,"n.d.") -> 0.1241317245 | Y51: =IF(INDEX($C51:$G51,1,aux!$AL$1)>0,(G51-INDEX($C51:$G51,1,aux!$AL$1))/INDEX($C51:$G51,1,aux!$AL$1),"n.d.") -> 0.5968672626 | AA51: =O51-INDEX($K51:$O51,1,aux!$AL$1) -> 69.378 | AB51: 0.0005004792454 | AC51: 0.0002499540294 | AD51: =+IF(INDEX($K51:$O51,1,aux!$AL$1)>0,(O51/INDEX($K51:$O51,1,aux!$AL$1))^(1/($O$3-INDEX($K$3:$O$3,1,aux!$AL$1)))-1,"n.d.") -> n.d. | AE51: =IF(INDEX($K51:$O51,1,aux!$AL$1)>0,(O51-INDEX($K51:$O51,1,aux!$AL$1))/INDEX($K51:$O51,1,aux!$AL$1),"n.d.") -> n.d. | AX51: 07
A52: 0706 | B52: Cenouras, nabos, beterrabas, etc., frescos ou refrigerados | C52: 0.318 | D52: 0 | E52: 0 | F52: 0 | G52: 0.396 | H52: 0.1428 | I52: 4.361019571e-07 | J52: 3.174502654e-07 | K52: 0 | L52: 40.528 | M52: 5.16 | N52: 0 | O52: 0 | P52: 9.1376 | Q52: 2.030358844e-05 | R52: 1.042613016e-05 | S52: 8.9948 | U52: =G52-INDEX($C52:$G52,1,aux!$AL$1) -> 0.078 | V52: 4.416949525e-07 | W52: 3.99811703e-07 | X52: =+IF(INDEX($C52:$G52,1,aux!$AL$1)>0,(G52/INDEX($C52:$G52,1,aux!$AL$1))^(1/($G$3-INDEX($C$3:$G$3,1,aux!$AL$1)))-1,"n.d.") -> 0.05637232868 | Y52: =IF(INDEX($C52:$G52,1,aux!$AL$1)>0,(G52-INDEX($C52:$G52,1,aux!$AL$1))/INDEX($C52:$G52,1,aux!$AL$1),"n.d.") -> 0.2452830189 | AA52: =O52-INDEX($K52:$O52,1,aux!$AL$1) -> 0 | AB52: 0 | AC52: 0 | AD52: =+IF(INDEX($K52:$O52,1,aux!$AL$1)>0,(O52/INDEX($K52:$O52,1,aux!$AL$1))^(1/($O$3-INDEX($K$3:$O$3,1,aux!$AL$1)))-1,"n.d.") -> n.d. | AE52: =IF(INDEX($K52:$O52,1,aux!$AL$1)>0,(O52-INDEX($K52:$O52,1,aux!$AL$1))/INDEX($K52:$O52,1,aux!$AL$1),"n.d.") -> n.d. | AX52: 07
A53: 0707 | B53: Pepinos e pepininhos, frescos ou refrigerados | C53: 0 | D53: 0 | E53: 0 | F53: 0.315 | G53: 0.686 | H53: 0.2002 | I53: 6.113978418e-07 | J53: 4.45052823e-07 | K53: 0 | L53: 0 | M53: 0 | N53: 11.439 | O53: 0 | P53: 2.2878 | Q53: 5.08345185e-06 | R53: 2.610411988e-06 | S53: 2.0876 | U53: =G53-INDEX($C53:$G53,1,aux!$AL$1) -> 0.686 | V53: 3.88465048e-06 | W53: 3.51629267e-06 | X53: =+IF(INDEX($C53:$G53,1,aux!$AL$1)>0,(G53/INDEX($C53:$G53,1,aux!$AL$1))^(1/($G$3-INDEX($C$3:$G$3,1,aux!$AL$1)))-1,"n.d.") -> n.d. | Y53: =IF(INDEX($C53:$G53,1,aux!$AL$1)>0,(G53-INDEX($C53:$G53,1,aux!$AL$1))/INDEX($C53:$G53,1,aux!$AL$1),"n.d.") -> n.d. | AA53: =O53-INDEX($K53:$O53,1,aux!$AL$1) -> 0 | AB53: 0 | AC53: 0 | AD53: =+IF(INDEX($K53:$O53,1,aux!$AL$1)>0,(O53/INDEX($K53:$O53,1,aux!$AL$1))^(1/($O$3-INDEX($K$3:$O$3,1,aux!$AL$1)))-1,"n.d.") -> n.d. | AE53: =IF(INDEX($K53:$O53,1,aux!$AL$1)>0,(O53-INDEX($K53:$O53,1,aux!$AL$1))/INDEX($K53:$O53,1,aux!$AL$1),"n.d.") -> n.d. | AX53: 07
A54: 0708 | B54: Tomates preparados ou conservados | C54: 0 | D54: 0 | E54: 0 | F54: 0 | G54: 2.149 | H54: 0.4298 | I54: 1.312581381e-06 | J54: 9.554630536e-07 | K54: 0 | L54: 0 | M54: 0 | N54: 0 | O54: 0 | P54: 0 | Q54: 0 | R54: 0 | S54: -0.4298 | U54: =G54-INDEX($C54:$G54,1,aux!$AL$1) -> 2.149 | V54: 1.216926222e-05 | W54: 1.1015325e-05 | X54: =+IF(INDEX($C54:$G54,1,aux!$AL$1)>0,(G54/INDEX($C54:$G54,1,aux!$AL$1))^(1/($G$3-INDEX($C$3:$G$3,1,aux!$AL$1)))-1,"n.d.") -> n.d. | Y54: =IF(INDEX($C54:$G54,1,aux!$AL$1)>0,(G54-INDEX($C54:$G54,1,aux!$AL$1))/INDEX($C54:$G54,1,aux!$AL$1),"n.d.") -> n.d. | AA54: =O54-INDEX($K54:$O54,1,aux!$AL$1) -> 0 | AB54: 0 | AC54: 0 | AD54: =+IF(INDEX($K54:$O54,1,aux!$AL$1)>0,(O54/INDEX($K54:$O54,1,aux!$AL$1))^(1/($O$3-INDEX($K$3:$O$3,1,aux!$AL$1)))-1,"n.d.") -> n.d. | AE54: =IF(INDEX($K54:$O54,1,aux!$AL$1)>0,(O54-INDEX($K54:$O54,1,aux!$AL$1))/INDEX($K54:$O54,1,aux!$AL$1),"n.d.") -> n.d. | AX54: 07
A55: 0709 | B55: Outros produtos hortícolas, frescos ou refrigerados | C55: 275.214 | D55: 502.786 | E55: 420.14 | F55: 435.237 | G55: 722.404 | H55: 471.1562 | I55: 0.001438880539 | J55: 0.001047399585 | K55: 913.908 | L55: 983.424 | M55: 1123.971 | N55: 471.176 | O55: 1048.29 | P55: 908.1538 | Q55: 0.002017901965 | R55: 0.001036216263 | S55: 436.9976 | U55: =G55-INDEX($C55:$G55,1,aux!$AL$1) -> 447.19 | V55: 0.002532327767 | W55: 0.002292202506 | X55: =+IF(INDEX($C55:$G55,1,aux!$AL$1)>0,(G55/INDEX($C55:$G55,1,aux!$AL$1))^(1/($G$3-INDEX($C$3:$G$3,1,aux!$AL$1)))-1,"n.d.") -> 0.2728505217 | Y55: =IF(INDEX($C55:$G55,1,aux!$AL$1)>0,(G55-INDEX($C55:$G55,1,aux!$AL$1))/INDEX($C55:$G55,1,aux!$AL$1),"n.d.") -> 1.624881002 | AA55: =O55-INDEX($K55:$O55,1,aux!$AL$1) -> 134.382 | AB55: 0.0009694053152 | AC55: 0.0004841494764 | AD55: =+IF(INDEX($K55:$O55,1,aux!$AL$1)>0,(O55/INDEX($K55:$O55,1,aux!$AL$1))^(1/($O$3-INDEX($K$3:$O$3,1,aux!$AL$1)))-1,"n.d.") -> 0.03489131191 | AE55: =IF(INDEX($K55:$O55,1,aux!$AL$1)>0,(O55-INDEX($K55:$O55,1,aux!$AL$1))/INDEX($K55:$O55,1,aux!$AL$1),"n.d.") -> 0.1470410588 | AX55: 07
A56: 0710 | B56: Produtos hortícolas congelados | C56: 24.832 | D56: 40.174 | E56: 32.085 | F56: 89.147 | G56: 154.605 | H56: 68.1686 | I56: 0.0002081824921 | J56: 0.0001515415978 | K56: 538.248 | L56: 1060.5 | M56: 1551.69 | N56: 1093.255 | O56: 1221.554 | P56: 1093.0494 | Q56: 0.002428736775 | R56: 0.001247184744 | S56: 1024.8808 | U56: =G56-INDEX($C56:$G56,1,aux!$AL$1) -> 129.773 | V56: 0.0007348728086 | W56: 0.0006651892838 | X56: =+IF(INDEX($C56:$G56,1,aux!$AL$1)>0,(G56/INDEX($C56:$G56,1,aux!$AL$1))^(1/($G$3-INDEX($C$3:$G$3,1,aux!$AL$1)))-1,"n.d.") -> 0.5796212187 | Y56: =IF(INDEX($C56:$G56,1,aux!$AL$1)>0,(G56-INDEX($C56:$G56,1,aux!$AL$1))/INDEX($C56:$G56,1,aux!$AL$1),"n.d.") -> 5.226038982 | AA56: =O56-INDEX($K56:$O56,1,aux!$AL$1) -> 683.306 | AB56: 0.004929235078 | AC56: 0.002461804722 | AD56: =+IF(INDEX($K56:$O56,1,aux!$AL$1)>0,(O56/INDEX($K56:$O56,1,aux!$AL$1))^(1/($O$3-INDEX($K$3:$O$3,1,aux!$AL$1)))-1,"n.d.") -> 0.2273899456 | AE56: =IF(INDEX($K56:$O56,1,aux!$AL$1)>0,(O56-INDEX($K56:$O56,1,aux!$AL$1))/INDEX($K56:$O56,1,aux!$AL$1),"n.d.") -> 1.269500305 | AX56: 07
A57: 0711 | B57: Produtos hortícolas conservados transitoriamente | C57: 7.832 | D57: 1.65 | E57: 1.937 | F57: 1.503 | G57: 56.796 | H57: 13.9436 | I57: 4.258285188e-05 | J57: 3.099719552e-05 | K57: 0 | L57: 0 | M57: 374.931 | N57: 1082.957 | O57: 0.025 | P57: 291.5826 | Q57: 0.0006478914711 | R57: 0.0003326998489 | S57: 277.639 | U57: =G57-INDEX($C57:$G57,1,aux!$AL$1) -> 48.964 | V57: 0.0002772711751 | W57: 0.0002509792337 | X57: =+IF(INDEX($C57:$G57,1,aux!$AL$1)>0,(G57/INDEX($C57:$G57,1,aux!$AL$1))^(1/($G$3-INDEX($C$3:$G$3,1,aux!$AL$1)))-1,"n.d.") -> 0.6410101525 | Y57: =IF(INDEX($C57:$G57,1,aux!$AL$1)>0,(G57-INDEX($C57:$G57,1,aux!$AL$1))/INDEX($C57:$G57,1,aux!$AL$1),"n.d.") -> 6.251787538 | AA57: =O57-INDEX($K57:$O57,1,aux!$AL$1) -> 0.025 | AB57: 1.803450825e-07 | AC57: 9.006962919e-08 | AD57: =+IF(INDEX($K57:$O57,1,aux!$AL$1)>0,(O57/INDEX($K57:$O57,1,aux!$AL$1))^(1/($O$3-INDEX($K$3:$O$3,1,aux!$AL$1)))-1,"n.d.") -> n.d. | AE57: =IF(INDEX($K57:$O57,1,aux!$AL$1)>0,(O57-INDEX($K57:$O57,1,aux!$AL$1))/INDEX($K57:$O57,1,aux!$AL$1),"n.d.") -> n.d. | AX57: 07
A58: 0712 | B58: Produtos hortícolas secos | C58: 62.611 | D58: 65.888 | E58: 83.909 | F58: 164.984 | G58: 253.435 | H58: 126.1654 | I58: 0.0003853009654 | J58: 0.0002804708663 | K58: 250.507 | L58: 380.577 | M58: 437.316 | N58: 737.556 | O58: 976.792 | P58: 556.5496 | Q58: 0.001236643541 | R58: 0.0006350309238 | S58: 430.3842 | U58: =G58-INDEX($C58:$G58,1,aux!$AL$1) -> 190.824 | V58: 0.001080589713 | W58: 0.0009781239541 | X58: =+IF(INDEX($C58:$G58,1,aux!$AL$1)>0,(G58/INDEX($C58:$G58,1,aux!$AL$1))^(1/($G$3-INDEX($C$3:$G$3,1,aux!$AL$1)))-1,"n.d.") -> 0.4184171965 | Y58: =IF(INDEX($C58:$G58,1,aux!$AL$1)>0,(G58-INDEX($C58:$G58,1,aux!$AL$1))/INDEX($C58:$G58,1,aux!$AL$1),"n.d.") -> 3.047771158 | AA58: =O58-INDEX($K58:$O58,1,aux!$AL$1) -> 726.285 | AB58: 0.00523927713 | AC58: 0.002616648825 | AD58: =+IF(INDEX($K58:$O58,1,aux!$AL$1)>0,(O58/INDEX($K58:$O58,1,aux!$AL$1))^(1/($O$3-INDEX($K$3:$O$3,1,aux!$AL$1)))-1,"n.d.") -> 0.405223995 | AE58: =IF(INDEX($K58:$O58,1,aux!$AL$1)>0,(O58-INDEX($K58:$O58,1,aux!$AL$1))/INDEX($K58:$O58,1,aux!$AL$1),"n.d.") -> 2.8992603 | AX58: 07
A59: 0713 | B59: Legumes de vagem, secos, em grão | C59: 294.141 | D59: 356.656 | E59: 401.076 | F59: 325.816 | G59: 327.78 | H59: 341.0938 | I59: 0.001041678387 | J59: 0.0007582655275 | K59: 4628.792 | L59: 3611.803 | M59: 3517.475 | N59: 3482.706 | O59: 4409.981 | P59: 3930.1514 | Q59: 0.008732728126 | R59: 0.004484358042 | S59: 3589.0576 | U59: =G59-INDEX($C59:$G59,1,aux!$AL$1) -> 33.639 | V59: 0.0001904894424 | W59: 0.0001724264856 | X59: =+IF(INDEX($C59:$G59,1,aux!$AL$1)>0,(G59/INDEX($C59:$G59,1,aux!$AL$1))^(1/($G$3-INDEX($C$3:$G$3,1,aux!$AL$1)))-1,"n.d.") -> 0.02744059626 | Y59: =IF(INDEX($C59:$G59,1,aux!$AL$1)>0,(G59-INDEX($C59:$G59,1,aux!$AL$1))/INDEX($C59:$G59,1,aux!$AL$1),"n.d.") -> 0.1143635195 | AA59: =O59-INDEX($K59:$O59,1,aux!$AL$1) -> -218.811 | AB59: -0.001578459514 | AC59: -0.0007883290253 | AD59: =+IF(INDEX($K59:$O59,1,aux!$AL$1)>0,(O59/INDEX($K59:$O59,1,aux!$AL$1))^(1/($O$3-INDEX($K$3:$O$3,1,aux!$AL$1)))-1,"n.d.") -> -0.01203339901 | AE59: =IF(INDEX($K59:$O59,1,aux!$AL$1)>0,(O59-INDEX($K59:$O59,1,aux!$AL$1))/INDEX($K59:$O59,1,aux!$AL$1),"n.d.") -> -0.04727172878 | AX59: 07
A60: 0714 | B60: Raízes de mandioca, de araruta, batata-doce, etc. | C60: 0.25 | D60: 8.639 | E60: 0.974 | F60: 22.904 | G60: 0 | H60: 6.5534 | I60: 2.001365942e-05 | J60: 1.456847737e-05 | K60: 13.96 | L60: 14.955 | M60: 34.351 | N60: 22.277 | O60: 19.683 | P60: 21.0452 | Q60: 4.676206875e-05 | R60: 2.401286929e-05 | S60: 14.4918 | U60: =G60-INDEX($C60:$G60,1,aux!$AL$1) -> -0.25 | V60: -1.41568895e-06 | W60: -1.281447766e-06 | X60: =+IF(INDEX($C60:$G60,1,aux!$AL$1)>0,(G60/INDEX($C60:$G60,1,aux!$AL$1))^(1/($G$3-INDEX($C$3:$G$3,1,aux!$AL$1)))-1,"n.d.") -> -1 | Y60: =IF(INDEX($C60:$G60,1,aux!$AL$1)>0,(G60-INDEX($C60:$G60,1,aux!$AL$1))/INDEX($C60:$G60,1,aux!$AL$1),"n.d.") -> -1 | AA60: =O60-INDEX($K60:$O60,1,aux!$AL$1) -> 5.723 | AB60: 4.128459629e-05 | AC60: 2.061873951e-05 | AD60: =+IF(INDEX($K60:$O60,1,aux!$AL$1)>0,(O60/INDEX($K60:$O60,1,aux!$AL$1))^(1/($O$3-INDEX($K$3:$O$3,1,aux!$AL$1)))-1,"n.d.") -> 0.08968624418 | AE60: =IF(INDEX($K60:$O60,1,aux!$AL$1)>0,(O60-INDEX($K60:$O60,1,aux!$AL$1))/INDEX($K60:$O60,1,aux!$AL$1),"n.d.") -> 0.4099570201 | AX60: 07
A61: 07SS | B61: Produtos hortícolas, plantas, raízes e tubérculos, comestíveis | C61: 0 | D61: 0 | E61: 0 | F61: 0 | G61: 0 | H61: 0 | I61: 0 | J61: 0 | K61: 0 | L61: 0 | M61: 0 | N61: 0 | O61: 0 | P61: 0 | Q61: 0 | R61: 0 | S61: 0 | U61: =G61-INDEX($C61:$G61,1,aux!$AL$1) -> 0 | V61: 0 | W61: 0 | X61: =+IF(INDEX($C61:$G61,1,aux!$AL$1)>0,(G61/INDEX($C61:$G61,1,aux!$AL$1))^(1/($G$3-INDEX($C$3:$G$3,1,aux!$AL$1)))-1,"n.d.") -> n.d. | Y61: =IF(INDEX($C61:$G61,1,aux!$AL$1)>0,(G61-INDEX($C61:$G61,1,aux!$AL$1))/INDEX($C61:$G61,1,aux!$AL$1),"n.d.") -> n.d. | AA61: =O61-INDEX($K61:$O61,1,aux!$AL$1) -> 0 | AB61: 0 | AC61: 0 | AD61: =+IF(INDEX($K61:$O61,1,aux!$AL$1)>0,(O61/INDEX($K61:$O61,1,aux!$AL$1))^(1/($O$3-INDEX($K$3:$O$3,1,aux!$AL$1)))-1,"n.d.") -> n.d. | AE61: =IF(INDEX($K61:$O61,1,aux!$AL$1)>0,(O61-INDEX($K61:$O61,1,aux!$AL$1))/INDEX($K61:$O61,1,aux!$AL$1),"n.d.") -> n.d. | AX61: 07
A62: 0801 | B62: Cocos, castanhas do brasil e castanha de cajú | C62: 213.233 | D62: 215.975 | E62: 89.546 | F62: 23.948 | G62: 63.553 | H62: 121.251 | I62: 0.0003702927059 | J62: 0.0002695459533 | K62: 63.618 | L62: 236.524 | M62: 65.531 | N62: 0.679 | O62: 1.524 | P62: 73.5752 | Q62: 0.0001634828161 | R62: 8.395033835e-05 | S62: -47.6758 | U62: =G62-INDEX($C62:$G62,1,aux!$AL$1) -> -149.68 | V62: -0.0008476012884 | W62: -0.0007672284066 | X62: =+IF(INDEX($C62:$G62,1,aux!$AL$1)>0,(G62/INDEX($C62:$G62,1,aux!$AL$1))^(1/($G$3-INDEX($C$3:$G$3,1,aux!$AL$1)))-1,"n.d.") -> -0.2611259572 | Y62: =IF(INDEX($C62:$G62,1,aux!$AL$1)>0,(G62-INDEX($C62:$G62,1,aux!$AL$1))/INDEX($C62:$G62,1,aux!$AL$1),"n.d.") -> -0.7019551383 | AA62: =O62-INDEX($K62:$O62,1,aux!$AL$1) -> -62.094 | AB62: -0.0004479339022 | AC62: -0.0002237113422 | AD62: =+IF(INDEX($K62:$O62,1,aux!$AL$1)>0,(O62/INDEX($K62:$O62,1,aux!$AL$1))^(1/($O$3-INDEX($K$3:$O$3,1,aux!$AL$1)))-1,"n.d.") -> -0.6065847063 | AE62: =IF(INDEX($K62:$O62,1,aux!$AL$1)>0,(O62-INDEX($K62:$O62,1,aux!$AL$1))/INDEX($K62:$O62,1,aux!$AL$1),"n.d.") -> -0.9760445157 | AX62: 08
A63: 0802 | B63: Frutas de casca rija | C63: 863.024 | D63: 976.59 | E63: 1223.398 | F63: 1303.345 | G63: 2308.653 | H63: 1335.002 | I63: 0.004077009698 | J63: 0.00296776428 | K63: 30459.686 | L63: 27682.02 | M63: 12291.683 | N63: 12885.704 | O63: 8310.783 | P63: 18325.9752 | Q63: 0.04071999849 | R63: 0.02091019554 | S63: 16990.9732 | U63: =G63-INDEX($C63:$G63,1,aux!$AL$1) -> 1445.629 | V63: 0.008186244006 | W63: 0.007409992211 | X63: =+IF(INDEX($C63:$G63,1,aux!$AL$1)>0,(G63/INDEX($C63:$G63,1,aux!$AL$1))^(1/($G$3-INDEX($C$3:$G$3,1,aux!$AL$1)))-1,"n.d.") -> 0.278892225 | Y63: =IF(INDEX($C63:$G63,1,aux!$AL$1)>0,(G63-INDEX($C63:$G63,1,aux!$AL$1))/INDEX($C63:$G63,1,aux!$AL$1),"n.d.") -> 1.675073926 | AA63: =O63-INDEX($K63:$O63,1,aux!$AL$1) -> -22148.903 | AB63: -0.1597778296 | AC63: -0.07979773921 | AD63: =+IF(INDEX($K63:$O63,1,aux!$AL$1)>0,(O63/INDEX($K63:$O63,1,aux!$AL$1))^(1/($O$3-INDEX($K$3:$O$3,1,aux!$AL$1)))-1,"n.d.") -> -0.2772649279 | AE63: =IF(INDEX($K63:$O63,1,aux!$AL$1)>0,(O63-INDEX($K63:$O63,1,aux!$AL$1))/INDEX($K63:$O63,1,aux!$AL$1),"n.d.") -> -0.7271546726 | AX63: 08
A64: 0803 | B64: Bananas, frescas ou secas | C64: 1390.774 | D64: 314.614 | E64: 191.174 | F64: 155.762 | G64: 50.401 | H64: 420.545 | I64: 0.00128431721 | J64: 0.0009348888085 | K64: 92.953 | L64: 16.361 | M64: 0 | N64: 331.401 | O64: 115.564 | P64: 111.2558 | Q64: 0.0002472084546 | R64: 0.0001269444331 | S64: -309.2892 | U64: =G64-INDEX($C64:$G64,1,aux!$AL$1) -> -1340.373 | V64: -0.007590204982 | W64: -0.006870471947 | X64: =+IF(INDEX($C64:$G64,1,aux!$AL$1)>0,(G64/INDEX($C64:$G64,1,aux!$AL$1))^(1/($G$3-INDEX($C$3:$G$3,1,aux!$AL$1)))-1,"n.d.") -> -0.5636895171 | Y64: =IF(INDEX($C64:$G64,1,aux!$AL$1)>0,(G64-INDEX($C64:$G64,1,aux!$AL$1))/INDEX($C64:$G64,1,aux!$AL$1),"n.d.") -> -0.9637604672 | AA64: =O64-INDEX($K64:$O64,1,aux!$AL$1) -> 22.611 | AB64: 0.0001631113064 | AC64: 8.146257543e-05 | AD64: =+IF(INDEX($K64:$O64,1,aux!$AL$1)>0,(O64/INDEX($K64:$O64,1,aux!$AL$1))^(1/($O$3-INDEX($K$3:$O$3,1,aux!$AL$1)))-1,"n.d.") -> 0.05594132997 | AE64: =IF(INDEX($K64:$O64,1,aux!$AL$1)>0,(O64-INDEX($K64:$O64,1,aux!$AL$1))/INDEX($K64:$O64,1,aux!$AL$1),"n.d.") -> 0.243251966 | AX64: 08
A65: 0804 | B65: Tâmaras, figos, ananases, abacates, goiabas, mangas | C65: 400.833 | D65: 50.868 | E65: 23.381 | F65: 141.243 | G65: 139.686 | H65: 151.2022 | I65: 0.000461761732 | J65: 0.0003361287011 | K65: 2239.296 | L65: 2896.085 | M65: 2429.506 | N65: 2393.793 | O65: 2005.484 | P65: 2392.8328 | Q65: 0.005316832907 | R65: 0.00273025589 | S65: 2241.6306 | U65: =G65-INDEX($C65:$G65,1,aux!$AL$1) -> -261.147 | V65: -0.001478811689 | W65: -0.001338584959 | X65: =+IF(INDEX($C65:$G65,1,aux!$AL$1)>0,(G65/INDEX($C65:$G65,1,aux!$AL$1))^(1/($G$3-INDEX($C$3:$G$3,1,aux!$AL$1)))-1,"n.d.") -> -0.2316707746 | Y65: =IF(INDEX($C65:$G65,1,aux!$AL$1)>0,(G65-INDEX($C65:$G65,1,aux!$AL$1))/INDEX($C65:$G65,1,aux!$AL$1),"n.d.") -> -0.6515107289 | AA65: =O65-INDEX($K65:$O65,1,aux!$AL$1) -> -233.812 | AB65: -0.001686673777 | AC65: -0.0008423744056 | AD65: =+IF(INDEX($K65:$O65,1,aux!$AL$1)>0,(O65/INDEX($K65:$O65,1,aux!$AL$1))^(1/($O$3-INDEX($K$3:$O$3,1,aux!$AL$1)))-1,"n.d.") -> -0.02719246844 | AE65: =IF(INDEX($K65:$O65,1,aux!$AL$1)>0,(O65-INDEX($K65:$O65,1,aux!$AL$1))/INDEX($K65:$O65,1,aux!$AL$1),"n.d.") -> -0.1044131727 | AX65: 08
A66: 0805 | B66: Citrinos, frescos ou secos | C66: 342.435 | D66: 73.083 | E66: 3.163 | F66: 57.276 | G66: 2.137 | H66: 95.6188 | I66: 0.0002920136261 | J66: 0.0002125645198 | K66: 531.806 | L66: 419.672 | M66: 608.667 | N66: 146.959 | O66: 502.438 | P66: 441.9084 | Q66: 0.0009819127868 | R66: 0.0005042237017 | S66: 346.2896 | U66: =G66-INDEX($C66:$G66,1,aux!$AL$1) -> -340.298 | V66: -0.001927024474 | W66: -0.001744296448 | X66: =+IF(INDEX($C66:$G66,1,aux!$AL$1)>0,(G66/INDEX($C66:$G66,1,aux!$AL$1))^(1/($G$3-INDEX($C$3:$G$3,1,aux!$AL$1)))-1,"n.d.") -> -0.7189351127 | Y66: =IF(INDEX($C66:$G66,1,aux!$AL$1)>0,(G66-INDEX($C66:$G66,1,aux!$AL$1))/INDEX($C66:$G66,1,aux!$AL$1),"n.d.") -> -0.9937593996 | AA66: =O66-INDEX($K66:$O66,1,aux!$AL$1) -> -29.368 | AB66: -0.0002118549753 | AC66: -0.0001058065948 | AD66: =+IF(INDEX($K66:$O66,1,aux!$AL$1)>0,(O66/INDEX($K66:$O66,1,aux!$AL$1))^(1/($O$3-INDEX($K$3:$O$3,1,aux!$AL$1)))-1,"n.d.") -> -0.01410126056 | AE66: =IF(INDEX($K66:$O66,1,aux!$AL$1)>0,(O66-INDEX($K66:$O66,1,aux!$AL$1))/INDEX($K66:$O66,1,aux!$AL$1),"n.d.") -> -0.05522314528 | AX66: 08
A67: 0806 | B67: Uvas, frescas ou secas | C67: 2698.654 | D67: 2026.229 | E67: 1458.594 | F67: 1266.237 | G67: 2182.681 | H67: 1926.479 | I67: 0.005883342172 | J67: 0.004282641945 | K67: 118.513 | L67: 0 | M67: 0 | N67: 56.654 | O67: 0.083 | P67: 35.05 | Q67: 7.788049102e-05 | R67: 3.999254313e-05 | S67: -1891.429 | U67: =G67-INDEX($C67:$G67,1,aux!$AL$1) -> -515.973 | V67: -0.002921829099 | W67: -0.002644769793 | X67: =+IF(INDEX($C67:$G67,1,aux!$AL$1)>0,(G67/INDEX($C67:$G67,1,aux!$AL$1))^(1/($G$3-INDEX($C$3:$G$3,1,aux!$AL$1)))-1,"n.d.") -> -0.05166721388 | Y67: =IF(INDEX($C67:$G67,1,aux!$AL$1)>0,(G67-INDEX($C67:$G67,1,aux!$AL$1))/INDEX($C67:$G67,1,aux!$AL$1),"n.d.") -> -0.1911964261 | AA67: =O67-INDEX($K67:$O67,1,aux!$AL$1) -> -118.43 | AB67: -0.0008543307249 | AC67: -0.0004266778474 | AD67: =+IF(INDEX($K67:$O67,1,aux!$AL$1)>0,(O67/INDEX($K67:$O67,1,aux!$AL$1))^(1/($O$3-INDEX($K$3:$O$3,1,aux!$AL$1)))-1,"n.d.") -> -0.8373222994 | AE67: =IF(INDEX($K67:$O67,1,aux!$AL$1)>0,(O67-INDEX($K67:$O67,1,aux!$AL$1))/INDEX($K67:$O67,1,aux!$AL$1),"n.d.") -> -0.9992996549 | AX67: 08
A68: 0807 | B68: Melões, melancias e papaia, frescos | C68: 51.943 | D68: 0 | E68: 0 | F68: 0 | G68: 41.428 | H68: 18.6742 | I68: 5.702979809e-05 | J68: 4.151351362e-05 | K68: 8.071 | L68: 1.068 | M68: 97.659 | N68: 82.538 | O68: 0.887 | P68: 38.0446 | Q68: 8.453444019e-05 | R68: 4.340942386e-05 | S68: 19.3704 | U68: =G68-INDEX($C68:$G68,1,aux!$AL$1) -> -10.515 | V68: =IF($U$237<>0,U68/$U$237, "n.d.") -> -5.954387725e-05 | W68: =IF($U$322<>0,U68/$U$322, "n.d.") -> -5.389769304e-05 | X68: =+IF(INDEX($C68:$G68,1,aux!$AL$1)>0,(G68/INDEX($C68:$G68,1,aux!$AL$1))^(1/($G$3-INDEX($C$3:$G$3,1,aux!$AL$1)))-1,"n.d.") -> -0.05497840103 | Y68: =IF(INDEX($C68:$G68,1,aux!$AL$1)>0,(G68-INDEX($C68:$G68,1,aux!$AL$1))/INDEX($C68:$G68,1,aux!$AL$1),"n.d.") -> -0.2024334367 | AA68: =O68-INDEX($K68:$O68,1,aux!$AL$1) -> -7.184 | AB68: =IF($AA$237<>0,AA68/$AA$237, "n.d.") -> -5.182396291e-05 | AC68: =IF($AA$322<>0,AA68/$AA$322, "n.d.") -> -2.588240864e-05 | AD68: =+IF(INDEX($K68:$O68,1,aux!$AL$1)>0,(O68/INDEX($K68:$O68,1,aux!$AL$1))^(1/($O$3-INDEX($K$3:$O$3,1,aux!$AL$1)))-1,"n.d.") -> -0.4242299529 | AE68: =IF(INDEX($K68:$O68,1,aux!$AL$1)>0,(O68-INDEX($K68:$O68,1,aux!$AL$1))/INDEX($K68:$O68,1,aux!$AL$1),"n.d.") -> -0.8901003593 | AX68: 08
A69: 0808 | B69: Maçãs, peras e marmelos, frescos | C69: 3427.707 | D69: 2993.493 | E69: 1692.879 | F69: 2582.745 | G69: 2816.063 | H69: 2702.5774 | I69: 0.008253496451 | J69: 0.006007940566 | K69: 356.431 | L69: 836.567 | M69: 1308.883 | N69: 1425.756 | O69: 2843.769 | P69: 1354.2812 | Q69: 0.003009189296 | R69: 0.001545253903 | S69: -1348.2962 | U69: =G69-INDEX($C69:$G69,1,aux!$AL$1) -> -611.644 | V69: -0.003463590609 | W69: -0.00313515935 | X69: =+IF(INDEX($C69:$G69,1,aux!$AL$1)>0,(G69/INDEX($C69:$G69,1,aux!$AL$1))^(1/($G$3-INDEX($C$3:$G$3,1,aux!$AL$1)))-1,"n.d.") -> -0.04795019423 | Y69: =IF(INDEX($C69:$G69,1,aux!$AL$1)>0,(G69-INDEX($C69:$G69,1,aux!$AL$1))/INDEX($C69:$G69,1,aux!$AL$1),"n.d.") -> -0.1784411561 | AA69: =O69-INDEX($K69:$O69,1,aux!$AL$1) -> 2487.338 | AB69: 0.01794316708 | AC69: 0.008961344453 | AD69: =+IF(INDEX($K69:$O69,1,aux!$AL$1)>0,(O69/INDEX($K69:$O69,1,aux!$AL$1))^(1/($O$3-INDEX($K$3:$O$3,1,aux!$AL$1)))-1,"n.d.") -> 0.6806594108 | AE69: =IF(INDEX($K69:$O69,1,aux!$AL$1)>0,(O69-INDEX($K69:$O69,1,aux!$AL$1))/INDEX($K69:$O69,1,aux!$AL$1),"n.d.") -> 6.978455858 | AX69: 08
A70: 0809 | B70: Damascos, cerejas, pêssegos, etc., frescos | C70: 354.673 | D70: 634.102 | E70: 68.625 | F70: 21.48 | G70: 0 | H70: 215.776 | I70: 0.0006589659376 | J70: 0.0004796789108 | K70: 11.231 | L70: 145.077 | M70: 166.128 | N70: 76.754 | O70: 19.475 | P70: 83.733 | Q70: 0.0001860532712 | R70: 9.554053106e-05 | S70: -132.043 | U70: =G70-INDEX($C70:$G70,1,aux!$AL$1) -> -354.673 | V70: -0.002008426588 | W70: -0.001817979694 | X70: =+IF(INDEX($C70:$G70,1,aux!$AL$1)>0,(G70/INDEX($C70:$G70,1,aux!$AL$1))^(1/($G$3-INDEX($C$3:$G$3,1,aux!$AL$1)))-1,"n.d.") -> -1 | Y70: =IF(INDEX($C70:$G70,1,aux!$AL$1)>0,(G70-INDEX($C70:$G70,1,aux!$AL$1))/INDEX($C70:$G70,1,aux!$AL$1),"n.d.") -> -1 | AA70: =O70-INDEX($K70:$O70,1,aux!$AL$1) -> 8.244 | AB70: 5.947059441e-05 | AC70: 2.970136092e-05 | AD70: =+IF(INDEX($K70:$O70,1,aux!$AL$1)>0,(O70/INDEX($K70:$O70,1,aux!$AL$1))^(1/($O$3-INDEX($K$3:$O$3,1,aux!$AL$1)))-1,"n.d.") -> 0.1475318803 | AE70: =IF(INDEX($K70:$O70,1,aux!$AL$1)>0,(O70-INDEX($K70:$O70,1,aux!$AL$1))/INDEX($K70:$O70,1,aux!$AL$1),"n.d.") -> 0.7340397115 | AX70: 08
A71: 0810 | B71: Outras frutas frescas | C71: 1155.17 | D71: 1105.236 | E71: 908.254 | F71: 597.37 | G71: 773.693 | H71: 907.9446 | I71: 0.00277280404 | J71: 0.002018398139 | K71: 426.235 | L71: 1520.318 | M71: 1653.313 | N71: 1928.213 | O71: 4305.288 | P71: 1966.6734 | Q71: 0.004369914125 | R71: 0.002244002019 | S71: 1058.7288 | U71: =G71-INDEX($C71:$G71,1,aux!$AL$1) -> -381.477 | V71: -0.002160211095 | W71: -0.001955371398 | X71: =+IF(INDEX($C71:$G71,1,aux!$AL$1)>0,(G71/INDEX($C71:$G71,1,aux!$AL$1))^(1/($G$3-INDEX($C$3:$G$3,1,aux!$AL$1)))-1,"n.d.") -> -0.09534978345 | Y71: =IF(INDEX($C71:$G71,1,aux!$AL$1)>0,(G71-INDEX($C71:$G71,1,aux!$AL$1))/INDEX($C71:$G71,1,aux!$AL$1),"n.d.") -> -0.3302345109 | AA71: =O71-INDEX($K71:$O71,1,aux!$AL$1) -> 3879.053 | AB71: 0.02798272534 | AC71: 0.01397539461 | AD71: =+IF(INDEX($K71:$O71,1,aux!$AL$1)>0,(O71/INDEX($K71:$O71,1,aux!$AL$1))^(1/($O$3-INDEX($K$3:$O$3,1,aux!$AL$1)))-1,"n.d.") -> 0.7827410918 | AE71: =IF(INDEX($K71:$O71,1,aux!$AL$1)>0,(O71-INDEX($K71:$O71,1,aux!$AL$1))/INDEX($K71:$O71,1,aux!$AL$1),"n.d.") -> 9.100737856 | AX71: 08
A72: 0811 | B72: Frutas não cozidas ou cozidas em água ou vapor, congeladas | C72: 966.419 | D72: 1063.517 | E72: 732.572 | F72: 885.478 | G72: 966.898 | H72: 922.9768 | I72: 0.002818711406 | J72: 0.002051815337 | K72: 4273.251 | L72: 5399.387 | M72: 6346.595 | N72: 5288.466 | O72: 2937.881 | P72: 4849.116 | Q72: 0.0107746515 | R72: 0.005532909579 | S72: 3926.1392 | U72: =G72-INDEX($C72:$G72,1,aux!$AL$1) -> 0.479 | V72: 2.712460029e-06 | W72: 2.45525392e-06 | X72: =+IF(INDEX($C72:$G72,1,aux!$AL$1)>0,(G72/INDEX($C72:$G72,1,aux!$AL$1))^(1/($G$3-INDEX($C$3:$G$3,1,aux!$AL$1)))-1,"n.d.") -> 0.0001238880329 | Y72: =IF(INDEX($C72:$G72,1,aux!$AL$1)>0,(G72-INDEX($C72:$G72,1,aux!$AL$1))/INDEX($C72:$G72,1,aux!$AL$1),"n.d.") -> 0.0004956442288 | AA72: =O72-INDEX($K72:$O72,1,aux!$AL$1) -> -1335.37 | AB72: -0.009633096514 | AC72: -0.004811051229 | AD72: =+IF(INDEX($K72:$O72,1,aux!$AL$1)>0,(O72/INDEX($K72:$O72,1,aux!$AL$1))^(1/($O$3-INDEX($K$3:$O$3,1,aux!$AL$1)))-1,"n.d.") -> -0.08941823421 | AE72: =IF(INDEX($K72:$O72,1,aux!$AL$1)>0,(O72-INDEX($K72:$O72,1,aux!$AL$1))/INDEX($K72:$O72,1,aux!$AL$1),"n.d.") -> -0.3124951003 | AX72: 08
A73: 0812 | B73: Frutas conservadas transitoriamente | C73: 84.258 | D73: 122.755 | E73: 151.444 | F73: 265.246 | G73: 176.301 | H73: 160.0008 | I73: 0.0004886320869 | J73: 0.0003556883503 | K73: 0 | L73: 0 | M73: 0 | N73: 1.103 | O73: 0 | P73: 0.2206 | Q73: 4.901693672e-07 | R73: 2.517077037e-07 | S73: -159.7802 | U73: =G73-INDEX($C73:$G73,1,aux!$AL$1) -> 92.043 | V73: 0.0005212170322 | W73: 0.000471793187 | X73: =+IF(INDEX($C73:$G73,1,aux!$AL$1)>0,(G73/INDEX($C73:$G73,1,aux!$AL$1))^(1/($G$3-INDEX($C$3:$G$3,1,aux!$AL$1)))-1,"n.d.") -> 0.2027099596 | Y73: =IF(INDEX($C73:$G73,1,aux!$AL$1)>0,(G73-INDEX($C73:$G73,1,aux!$AL$1))/INDEX($C73:$G73,1,aux!$AL$1),"n.d.") -> 1.092394787 | AA73: =O73-INDEX($K73:$O73,1,aux!$AL$1) -> 0 | AB73: 0 | AC73: 0 | AD73: =+IF(INDEX($K73:$O73,1,aux!$AL$1)>0,(O73/INDEX($K73:$O73,1,aux!$AL$1))^(1/($O$3-INDEX($K$3:$O$3,1,aux!$AL$1)))-1,"n.d.") -> n.d. | AE73: =IF(INDEX($K73:$O73,1,aux!$AL$1)>0,(O73-INDEX($K73:$O73,1,aux!$AL$1))/INDEX($K73:$O73,1,aux!$AL$1),"n.d.") -> n.d. | AX73: 08
A74: 0813 | B74: Outras frutas secas | C74: 281.472 | D74: 255.402 | E74: 106.143 | F74: 101.544 | G74: 110.349 | H74: 170.982 | I74: 0.0005221679609 | J74: 0.0003801000089 | K74: 3.933 | L74: 0 | M74: 2.757 | N74: 3.15 | O74: 2.229 | P74: 2.4138 | Q74: 5.363421661e-06 | R74: 2.75417976e-06 | S74: -168.5682 | U74: =G74-INDEX($C74:$G74,1,aux!$AL$1) -> -171.123 | V74: -0.000969027761 | W74: -0.0008771407444 | X74: =+IF(INDEX($C74:$G74,1,aux!$AL$1)>0,(G74/INDEX($C74:$G74,1,aux!$AL$1))^(1/($G$3-INDEX($C$3:$G$3,1,aux!$AL$1)))-1,"n.d.") -> -0.2087143302 | Y74: =IF(INDEX($C74:$G74,1,aux!$AL$1)>0,(G74-INDEX($C74:$G74,1,aux!$AL$1))/INDEX($C74:$G74,1,aux!$AL$1),"n.d.") -> -0.6079574523 | AA74: =O74-INDEX($K74:$O74,1,aux!$AL$1) -> -1.704 | AB74: -1.229232082e-05 | AC74: -6.139145926e-06 | AD74: =+IF(INDEX($K74:$O74,1,aux!$AL$1)>0,(O74/INDEX($K74:$O74,1,aux!$AL$1))^(1/($O$3-INDEX($K$3:$O$3,1,aux!$AL$1)))-1,"n.d.") -> -0.1323460854 | AE74: =IF(INDEX($K74:$O74,1,aux!$AL$1)>0,(O74-INDEX($K74:$O74,1,aux!$AL$1))/INDEX($K74:$O74,1,aux!$AL$1),"n.d.") -> -0.4332570557 | AX74: 08
A75: 0814 | B75: Cascas de citrinos, melões ou melancias | C75: 0 | D75: 0 | E75: 0 | F75: 0.015 | G75: 0 | H75: 0.003 | I75: 9.161805821e-09 | J75: 6.669123222e-09 | K75: 0 | L75: 0 | M75: 0 | N75: 0 | O75: 0 | P75: 0 | Q75: 0 | R75: 0 | S75: -0.003 | U75: =G75-INDEX($C75:$G75,1,aux!$AL$1) -> 0 | V75: 0 | W75: 0 | X75: =+IF(INDEX($C75:$G75,1,aux!$AL$1)>0,(G75/INDEX($C75:$G75,1,aux!$AL$1))^(1/($G$3-INDEX($C$3:$G$3,1,aux!$AL$1)))-1,"n.d.") -> n.d. | Y75: =IF(INDEX($C75:$G75,1,aux!$AL$1)>0,(G75-INDEX($C75:$G75,1,aux!$AL$1))/INDEX($C75:$G75,1,aux!$AL$1),"n.d.") -> n.d. | AA75: =O75-INDEX($K75:$O75,1,aux!$AL$1) -> 0 | AB75: 0 | AC75: 0 | AD75: =+IF(INDEX($K75:$O75,1,aux!$AL$1)>0,(O75/INDEX($K75:$O75,1,aux!$AL$1))^(1/($O$3-INDEX($K$3:$O$3,1,aux!$AL$1)))-1,"n.d.") -> n.d. | AE75: =IF(INDEX($K75:$O75,1,aux!$AL$1)>0,(O75-INDEX($K75:$O75,1,aux!$AL$1))/INDEX($K75:$O75,1,aux!$AL$1),"n.d.") -> n.d. | AX75: =+LEFT(A75,2) -> 08
A76: 08SS | B76: Frutas; cascas de citrinos e de melões | C76: 0 | D76: 0 | E76: 0 | F76: 0 | G76: 0 | H76: 0 | I76: 0 | J76: 0 | K76: 0 | L76: 0 | M76: 0 | N76: 0 | O76: 0 | P76: 0 | Q76: 0 | R76: 0 | S76: 0 | U76: =G76-INDEX($C76:$G76,1,aux!$AL$1) -> 0 | V76: 0 | W76: 0 | X76: =+IF(INDEX($C76:$G76,1,aux!$AL$1)>0,(G76/INDEX($C76:$G76,1,aux!$AL$1))^(1/($G$3-INDEX($C$3:$G$3,1,aux!$AL$1)))-1,"n.d.") -> n.d. | Y76: =IF(INDEX($C76:$G76,1,aux!$AL$1)>0,(G76-INDEX($C76:$G76,1,aux!$AL$1))/INDEX($C76:$G76,1,aux!$AL$1),"n.d.") -> n.d. | AA76: =O76-INDEX($K76:$O76,1,aux!$AL$1) -> 0 | AB76: 0 | AC76: 0 | AD76: =+IF(INDEX($K76:$O76,1,aux!$AL$1)>0,(O76/INDEX($K76:$O76,1,aux!$AL$1))^(1/($O$3-INDEX($K$3:$O$3,1,aux!$AL$1)))-1,"n.d.") -> n.d. | AE76: =IF(INDEX($K76:$O76,1,aux!$AL$1)>0,(O76-INDEX($K76:$O76,1,aux!$AL$1))/INDEX($K76:$O76,1,aux!$AL$1),"n.d.") -> n.d. | AX76: 08
A77: 0901 | B77: Café | C77: 20899.845 | D77: 21268.078 | E77: 19925.144 | F77: 27524.425 | G77: 34475.11 | H77: 24818.5204 | I77: 0.07579415489 | J77: 0.05517259024 | K77: 227.026 | L77: 396.824 | M77: 909.147 | N77: 676.479 | O77: 270.753 | P77: 496.0458 | Q77: 0.001102205149 | R77: 0.0005659952368 | S77: -24322.4746 | U77: =G77-INDEX($C77:$G77,1,aux!$AL$1) -> 13575.265 | V77: 0.07687341063 | W77: 0.06958397204 | X77: =+IF(INDEX($C77:$G77,1,aux!$AL$1)>0,(G77/INDEX($C77:$G77,1,aux!$AL$1))^(1/($G$3-INDEX($C$3:$G$3,1,aux!$AL$1)))-1,"n.d.") -> 0.1332889358 | Y77: =IF(INDEX($C77:$G77,1,aux!$AL$1)>0,(G77-INDEX($C77:$G77,1,aux!$AL$1))/INDEX($C77:$G77,1,aux!$AL$1),"n.d.") -> 0.6495390277 | AA77: =O77-INDEX($K77:$O77,1,aux!$AL$1) -> 43.727 | AB77: 0.0003154379769 | AC77: 0.000157538987 | AD77: =+IF(INDEX($K77:$O77,1,aux!$AL$1)>0,(O77/INDEX($K77:$O77,1,aux!$AL$1))^(1/($O$3-INDEX($K$3:$O$3,1,aux!$AL$1)))-1,"n.d.") -> 0.04501956157 | AE77: =IF(INDEX($K77:$O77,1,aux!$AL$1)>0,(O77-INDEX($K77:$O77,1,aux!$AL$1))/INDEX($K77:$O77,1,aux!$AL$1),"n.d.") -> 0.1926078951 | AX77: 09
A78: 0902 | B78: Chá | C78: 140.172 | D78: 269.844 | E78: 317.039 | F78: 276.252 | G78: 509.546 | H78: 302.5706 | I78: 0.0009240310281 | J78: 0.0006726268716 | K78: 5.031 | L78: 0 | M78: 4.375 | N78: 4.268 | O78: 3.642 | P78: 3.4632 | Q78: 7.695170228e-06 | R78: 3.951559925e-06 | S78: -299.1074 | U78: =G78-INDEX($C78:$G78,1,aux!$AL$1) -> 369.374 | V78: 0.002091674761 | W78: 0.001893333949 | X78: =+IF(INDEX($C78:$G78,1,aux!$AL$1)>0,(G78/INDEX($C78:$G78,1,aux!$AL$1))^(1/($G$3-INDEX($C$3:$G$3,1,aux!$AL$1)))-1,"n.d.") -> 0.3807992156 | Y78: =IF(INDEX($C78:$G78,1,aux!$AL$1)>0,(G78-INDEX($C78:$G78,1,aux!$AL$1))/INDEX($C78:$G78,1,aux!$AL$1),"n.d.") -> 2.635148246 | AA78: =O78-INDEX($K78:$O78,1,aux!$AL$1) -> -1.389 | AB78: -1.001997279e-05 | AC78: -5.004268598e-06 | AD78: =+IF(INDEX($K78:$O78,1,aux!$AL$1)>0,(O78/INDEX($K78:$O78,1,aux!$AL$1))^(1/($O$3-INDEX($K$3:$O$3,1,aux!$AL$1)))-1,"n.d.") -> -0.07759551484 | AE78: =IF(INDEX($K78:$O78,1,aux!$AL$1)>0,(O78-INDEX($K78:$O78,1,aux!$AL$1))/INDEX($K78:$O78,1,aux!$AL$1),"n.d.") -> -0.2760882528 | AX78: 09
A79: 0903 | B79: Mate | C79: 0 | D79: 0 | E79: 0 | F79: 0 | G79: 0 | H79: 0 | I79: 0 | J79: 0 | K79: 32.367 | L79: 10.494 | M79: 1.783 | N79: 16.055 | O79: 15.912 | P79: 15.3222 | Q79: 3.404566218e-05 | R79: 1.748284577e-05 | S79: 15.3222 | U79: =G79-INDEX($C79:$G79,1,aux!$AL$1) -> 0 | V79: 0 | W79: 0 | X79: =+IF(INDEX($C79:$G79,1,aux!$AL$1)>0,(G79/INDEX($C79:$G79,1,aux!$AL$1))^(1/($G$3-INDEX($C$3:$G$3,1,aux!$AL$1)))-1,"n.d.") -> n.d. | Y79: =IF(INDEX($C79:$G79,1,aux!$AL$1)>0,(G79-INDEX($C79:$G79,1,aux!$AL$1))/INDEX($C79:$G79,1,aux!$AL$1),"n.d.") -> n.d. | AA79: =O79-INDEX($K79:$O79,1,aux!$AL$1) -> -16.455 | AB79: -0.0001187031333 | AC79: -5.928382993e-05 | AD79: =+IF(INDEX($K79:$O79,1,aux!$AL$1)>0,(O79/INDEX($K79:$O79,1,aux!$AL$1))^(1/($O$3-INDEX($K$3:$O$3,1,aux!$AL$1)))-1,"n.d.") -> -0.1626527843 | AE79: =IF(INDEX($K79:$O79,1,aux!$AL$1)>0,(O79-INDEX($K79:$O79,1,aux!$AL$1))/INDEX($K79:$O79,1,aux!$AL$1),"n.d.") -> -0.5083881731 | AX79: 09
A80: 0904 | B80: Pimenta | C80: 20.609 | D80: 7.126 | E80: 2.603 | F80: 9.696 | G80: 7.167 | H80: 9.4402 | I80: 2.882975977e-05 | J80: 2.098595235e-05 | K80: 0.331 | L80: 0 | M80: 0 | N80: 2.405 | O80: 1.532 | P80: 0.8536 | Q80: 1.896684369e-06 | R80: 9.739696095e-07 | S80: -8.5866 | U80: =G80-INDEX($C80:$G80,1,aux!$AL$1) -> -13.442 | V80: -7.611876348e-05 | W80: -6.890088349e-05 | X80: =+IF(INDEX($C80:$G80,1,aux!$AL$1)>0,(G80/INDEX($C80:$G80,1,aux!$AL$1))^(1/($G$3-INDEX($C$3:$G$3,1,aux!$AL$1)))-1,"n.d.") -> -0.2320726749 | Y80: =IF(INDEX($C80:$G80,1,aux!$AL$1)>0,(G80-INDEX($C80:$G80,1,aux!$AL$1))/INDEX($C80:$G80,1,aux!$AL$1),"n.d.") -> -0.6522393129 | AA80: =O80-INDEX($K80:$O80,1,aux!$AL$1) -> 1.201 | AB80: 8.663777764e-06 | AC80: 4.326944986e-06 | AD80: =+IF(INDEX($K80:$O80,1,aux!$AL$1)>0,(O80/INDEX($K80:$O80,1,aux!$AL$1))^(1/($O$3-INDEX($K$3:$O$3,1,aux!$AL$1)))-1,"n.d.") -> 0.4667553902 | AE80: =IF(INDEX($K80:$O80,1,aux!$AL$1)>0,(O80-INDEX($K80:$O80,1,aux!$AL$1))/INDEX($K80:$O80,1,aux!$AL$1),"n.d.") -> 3.628398792 | AX80: 09
A81: 0905 | B81: Baunilha | C81: 0 | D81: 0 | E81: 1.668 | F81: 6.1 | G81: 2.379 | H81: 2.0294 | I81: 6.197656244e-06 | J81: 4.511439556e-06 | K81: 0 | L81: 0 | M81: 0 | N81: 0 | O81: 0.005 | P81: 0.001 | Q81: 2.221982625e-09 | R81: 1.141014069e-09 | S81: -2.0284 | U81: =G81-INDEX($C81:$G81,1,aux!$AL$1) -> 2.379 | V81: 1.347169605e-05 | W81: 1.219425694e-05 | X81: =+IF(INDEX($C81:$G81,1,aux!$AL$1)>0,(G81/INDEX($C81:$G81,1,aux!$AL$1))^(1/($G$3-INDEX($C$3:$G$3,1,aux!$AL$1)))-1,"n.d.") -> n.d. | Y81: =IF(INDEX($C81:$G81,1,aux!$AL$1)>0,(G81-INDEX($C81:$G81,1,aux!$AL$1))/INDEX($C81:$G81,1,aux!$AL$1),"n.d.") -> n.d. | AA81: =O81-INDEX($K81:$O81,1,aux!$AL$1) -> 0.005 | AB81: 3.60690165e-08 | AC81: 1.801392584e-08 | AD81: =+IF(INDEX($K81:$O81,1,aux!$AL$1)>0,(O81/INDEX($K81:$O81,1,aux!$AL$1))^(1/($O$3-INDEX($K$3:$O$3,1,aux!$AL$1)))-1,"n.d.") -> n.d. | AE81: =IF(INDEX($K81:$O81,1,aux!$AL$1)>0,(O81-INDEX($K81:$O81,1,aux!$AL$1))/INDEX($K81:$O81,1,aux!$AL$1),"n.d.") -> n.d. | AX81: 09
A82: 0906 | B82: Canela | C82: 0.426 | D82: 0.032 | E82: 0 | F82: 0.129 | G82: 16.395 | H82: 3.3964 | I82: 1.037238576e-05 | J82: 7.550336704e-06 | K82: 0 | L82: 0 | M82: 0 | N82: 0 | O82: 0.208 | P82: 0.0416 | Q82: 9.243447721e-08 | R82: 4.746618528e-08 | S82: -3.3548 | U82: =G82-INDEX($C82:$G82,1,aux!$AL$1) -> 15.969 | V82: 9.042854739e-05 | W82: 8.185375751e-05 | X82: =+IF(INDEX($C82:$G82,1,aux!$AL$1)>0,(G82/INDEX($C82:$G82,1,aux!$AL$1))^(1/($G$3-INDEX($C$3:$G$3,1,aux!$AL$1)))-1,"n.d.") -> 1.490723139 | Y82: =IF(INDEX($C82:$G82,1,aux!$AL$1)>0,(G82-INDEX($C82:$G82,1,aux!$AL$1))/INDEX($C82:$G82,1,aux!$AL$1),"n.d.") -> 37.48591549 | AA82: =O82-INDEX($K82:$O82,1,aux!$AL$1) -> 0.208 | AB82: 1.500471087e-06 | AC82: 7.493793149e-07 | AD82: =+IF(INDEX($K82:$O82,1,aux!$AL$1)>0,(O82/INDEX($K82:$O82,1,aux!$AL$1))^(1/($O$3-INDEX($K$3:$O$3,1,aux!$AL$1)))-1,"n.d.") -> n.d. | AE82: =IF(INDEX($K82:$O82,1,aux!$AL$1)>0,(O82-INDEX($K82:$O82,1,aux!$AL$1))/INDEX($K82:$O82,1,aux!$AL$1),"n.d.") -> n.d. | AX82: 09
A83: 0907 | B83: Cravo-da-índia | C83: 0 | D83: 0 | E83: 0 | F83: 0 | G83: 1.875 | H83: 0.375 | I83: 1.145225728e-06 | J83: 8.336404027e-07 | K83: 0 | L83: 0 | M83: 0 | N83: 0 | O83: 0 | P83: 0 | Q83: 0 | R83: 0 | S83: -0.375 | U83: =G83-INDEX($C83:$G83,1,aux!$AL$1) -> 1.875 | V83: 1.061766713e-05 | W83: 9.610858246e-06 | X83: =+IF(INDEX($C83:$G83,1,aux!$AL$1)>0,(G83/INDEX($C83:$G83,1,aux!$AL$1))^(1/($G$3-INDEX($C$3:$G$3,1,aux!$AL$1)))-1,"n.d.") -> n.d. | Y83: =IF(INDEX($C83:$G83,1,aux!$AL$1)>0,(G83-INDEX($C83:$G83,1,aux!$AL$1))/INDEX($C83:$G83,1,aux!$AL$1),"n.d.") -> n.d. | AA83: =O83-INDEX($K83:$O83,1,aux!$AL$1) -> 0 | AB83: 0 | AC83: 0 | AD83: =+IF(INDEX($K83:$O83,1,aux!$AL$1)>0,(O83/INDEX($K83:$O83,1,aux!$AL$1))^(1/($O$3-INDEX($K$3:$O$3,1,aux!$AL$1)))-1,"n.d.") -> n.d. | AE83: =IF(INDEX($K83:$O83,1,aux!$AL$1)>0,(O83-INDEX($K83:$O83,1,aux!$AL$1))/INDEX($K83:$O83,1,aux!$AL$1),"n.d.") -> n.d. | AX83: 09
A84: 0908 | B84: Noz-moscada, etc. | C84: 0 | D84: 0 | E84: 0.542 | F84: 0 | G84: 10.691 | H84: 2.2466 | I84: 6.860970986e-06 | J84: 4.994284077e-06 | K84: 0 | L84: 0 | M84: 0 | N84: 0 | O84: 0 | P84: 0 | Q84: 0 | R84: 0 | S84: -2.2466 | U84: =G84-INDEX($C84:$G84,1,aux!$AL$1) -> 10.691 | V84: 6.054052227e-05 | W84: 5.479983227e-05 | X84: =+IF(INDEX($C84:$G84,1,aux!$AL$1)>0,(G84/INDEX($C84:$G84,1,aux!$AL$1))^(1/($G$3-INDEX($C$3:$G$3,1,aux!$AL$1)))-1,"n.d.") -> n.d. | Y84: =IF(INDEX($C84:$G84,1,aux!$AL$1)>0,(G84-INDEX($C84:$G84,1,aux!$AL$1))/INDEX($C84:$G84,1,aux!$AL$1),"n.d.") -> n.d. | AA84: =O84-INDEX($K84:$O84,1,aux!$AL$1) -> 0 | AB84: 0 | AC84: 0 | AD84: =+IF(INDEX($K84:$O84,1,aux!$AL$1)>0,(O84/INDEX($K84:$O84,1,aux!$AL$1))^(1/($O$3-INDEX($K$3:$O$3,1,aux!$AL$1)))-1,"n.d.") -> n.d. | AE84: =IF(INDEX($K84:$O84,1,aux!$AL$1)>0,(O84-INDEX($K84:$O84,1,aux!$AL$1))/INDEX($K84:$O84,1,aux!$AL$1),"n.d.") -> n.d. | AX84: 09
A85: 0909 | B85: Sementes de anis, funcho, etc. | C85: 2.681 | D85: 4.2 | E85: 3.618 | F85: 11.621 | G85: 10.75 | H85: 6.574 | I85: 2.007657049e-05 | J85: 1.461427202e-05 | K85: 0 | L85: 0 | M85: 0 | N85: 0.001 | O85: 0 | P85: 0.0002 | Q85: 4.443965251e-10 | R85: 2.282028138e-10 | S85: -6.5738 | U85: =G85-INDEX($C85:$G85,1,aux!$AL$1) -> 8.069 | V85: 4.569277656e-05 | W85: 4.13600081e-05 | X85: =+IF(INDEX($C85:$G85,1,aux!$AL$1)>0,(G85/INDEX($C85:$G85,1,aux!$AL$1))^(1/($G$3-INDEX($C$3:$G$3,1,aux!$AL$1)))-1,"n.d.") -> 0.4150699632 | Y85: =IF(INDEX($C85:$G85,1,aux!$AL$1)>0,(G85-INDEX($C85:$G85,1,aux!$AL$1))/INDEX($C85:$G85,1,aux!$AL$1),"n.d.") -> 3.009697874 | AA85: =O85-INDEX($K85:$O85,1,aux!$AL$1) -> 0 | AB85: 0 | AC85: 0 | AD85: =+IF(INDEX($K85:$O85,1,aux!$AL$1)>0,(O85/INDEX($K85:$O85,1,aux!$AL$1))^(1/($O$3-INDEX($K$3:$O$3,1,aux!$AL$1)))-1,"n.d.") -> n.d. | AE85: =IF(INDEX($K85:$O85,1,aux!$AL$1)>0,(O85-INDEX($K85:$O85,1,aux!$AL$1))/INDEX($K85:$O85,1,aux!$AL$1),"n.d.") -> n.d. | AX85: 09
A86: 0910 | B86: Gengibre, açafrão, tomilho, louro, etc. | C86: 23.719 | D86: 47.288 | E86: 138.987 | F86: 177.862 | G86: 472.834 | H86: 172.138 | I86: 0.0005256983101 | J86: 0.0003826698444 | K86: 0.74 | L86: 0 | M86: 0 | N86: 4.311 | O86: 1.595 | P86: 1.3292 | Q86: 2.953459306e-06 | R86: 1.516635901e-06 | S86: -170.8088 | U86: =G86-INDEX($C86:$G86,1,aux!$AL$1) -> 449.115 | V86: 0.002543228572 | W86: 0.002302069654 | X86: =+IF(INDEX($C86:$G86,1,aux!$AL$1)>0,(G86/INDEX($C86:$G86,1,aux!$AL$1))^(1/($G$3-INDEX($C$3:$G$3,1,aux!$AL$1)))-1,"n.d.") -> 1.113017436 | Y86: =IF(INDEX($C86:$G86,1,aux!$AL$1)>0,(G86-INDEX($C86:$G86,1,aux!$AL$1))/INDEX($C86:$G86,1,aux!$AL$1),"n.d.") -> 18.93482019 | AA86: =O86-INDEX($K86:$O86,1,aux!$AL$1) -> 0.855 | AB86: 6.167801822e-06 | AC86: 3.080381318e-06 | AD86: =+IF(INDEX($K86:$O86,1,aux!$AL$1)>0,(O86/INDEX($K86:$O86,1,aux!$AL$1))^(1/($O$3-INDEX($K$3:$O$3,1,aux!$AL$1)))-1,"n.d.") -> 0.2116641039 | AE86: =IF(INDEX($K86:$O86,1,aux!$AL$1)>0,(O86-INDEX($K86:$O86,1,aux!$AL$1))/INDEX($K86:$O86,1,aux!$AL$1),"n.d.") -> 1.155405405 | AX86: 09
A87: 09SS | B87: Café, chá, mate e especiarias | C87: 0 | D87: 0 | E87: 0 | F87: 0 | G87: 0 | H87: 0 | I87: 0 | J87: 0 | K87: 0 | L87: 0 | M87: 0 | N87: 0 | O87: 0 | P87: 0 | Q87: 0 | R87: 0 | S87: 0 | U87: =G87-INDEX($C87:$G87,1,aux!$AL$1) -> 0 | V87: 0 | W87: 0 | X87: =+IF(INDEX($C87:$G87,1,aux!$AL$1)>0,(G87/INDEX($C87:$G87,1,aux!$AL$1))^(1/($G$3-INDEX($C$3:$G$3,1,aux!$AL$1)))-1,"n.d.") -> n.d. | Y87: =IF(INDEX($C87:$G87,1,aux!$AL$1)>0,(G87-INDEX($C87:$G87,1,aux!$AL$1))/INDEX($C87:$G87,1,aux!$AL$1),"n.d.") -> n.d. | AA87: =O87-INDEX($K87:$O87,1,aux!$AL$1) -> 0 | AB87: 0 | AC87: 0 | AD87: =+IF(INDEX($K87:$O87,1,aux!$AL$1)>0,(O87/INDEX($K87:$O87,1,aux!$AL$1))^(1/($O$3-INDEX($K$3:$O$3,1,aux!$AL$1)))-1,"n.d.") -> n.d. | AE87: =IF(INDEX($K87:$O87,1,aux!$AL$1)>0,(O87-INDEX($K87:$O87,1,aux!$AL$1))/INDEX($K87:$O87,1,aux!$AL$1),"n.d.") -> n.d. | AX87: 09
A88: 1001 | B88: Trigo e mistura trigo/centeio | C88: 8.401 | D88: 1373.105 | E88: 621.636 | F88: 18.766 | G88: 7.867 | H88: 405.955 | I88: 0.001239760294 | J88: 0.0009024546392 | K88: 0 | L88: 0 | M88: 0 | N88: 0 | O88: 0 | P88: 0 | Q88: 0 | R88: 0 | S88: -405.955 | U88: =G88-INDEX($C88:$G88,1,aux!$AL$1) -> -0.534 | V88: -3.023911598e-06 | W88: -2.737172429e-06 | X88: =+IF(INDEX($C88:$G88,1,aux!$AL$1)>0,(G88/INDEX($C88:$G88,1,aux!$AL$1))^(1/($G$3-INDEX($C$3:$G$3,1,aux!$AL$1)))-1,"n.d.") -> -0.01628443902 | Y88: =IF(INDEX($C88:$G88,1,aux!$AL$1)>0,(G88-INDEX($C88:$G88,1,aux!$AL$1))/INDEX($C88:$G88,1,aux!$AL$1),"n.d.") -> -0.06356386145 | AA88: =O88-INDEX($K88:$O88,1,aux!$AL$1) -> 0 | AB88: 0 | AC88: 0 | AD88: =+IF(INDEX($K88:$O88,1,aux!$AL$1)>0,(O88/INDEX($K88:$O88,1,aux!$AL$1))^(1/($O$3-INDEX($K$3:$O$3,1,aux!$AL$1)))-1,"n.d.") -> n.d. | AE88: =IF(INDEX($K88:$O88,1,aux!$AL$1)>0,(O88-INDEX($K88:$O88,1,aux!$AL$1))/INDEX($K88:$O88,1,aux!$AL$1),"n.d.") -> n.d. | AX88: 10
A89: 1002 | B89: Centeio | C89: 0 | D89: 0 | E89: 0 | F89: 0 | G89: 0.246 | H89: 0.0492 | I89: 1.502536155e-07 | J89: 1.093736208e-07 | K89: 0 | L89: 0 | M89: 0 | N89: 0 | O89: 0 | P89: 0 | Q89: 0 | R89: 0 | S89: -0.0492 | U89: =G89-INDEX($C89:$G89,1,aux!$AL$1) -> 0.246 | V89: 1.393037927e-06 | W89: 1.260944602e-06 | X89: =+IF(INDEX($C89:$G89,1,aux!$AL$1)>0,(G89/INDEX($C89:$G89,1,aux!$AL$1))^(1/($G$3-INDEX($C$3:$G$3,1,aux!$AL$1)))-1,"n.d.") -> n.d. | Y89: =IF(INDEX($C89:$G89,1,aux!$AL$1)>0,(G89-INDEX($C89:$G89,1,aux!$AL$1))/INDEX($C89:$G89,1,aux!$AL$1),"n.d.") -> n.d. | AA89: =O89-INDEX($K89:$O89,1,aux!$AL$1) -> 0 | AB89: 0 | AC89: 0 | AD89: =+IF(INDEX($K89:$O89,1,aux!$AL$1)>0,(O89/INDEX($K89:$O89,1,aux!$AL$1))^(1/($O$3-INDEX($K$3:$O$3,1,aux!$AL$1)))-1,"n.d.") -> n.d. | AE89: =IF(INDEX($K89:$O89,1,aux!$AL$1)>0,(O89-INDEX($K89:$O89,1,aux!$AL$1))/INDEX($K89:$O89,1,aux!$AL$1),"n.d.") -> n.d. | AX89: 10
A90: 1003 | B90: Cevada | C90: 0.514 | D90: 0.105 | E90: 3.588 | F90: 3.507 | G90: 4.944 | H90: 2.5316 | I90: 7.731342539e-06 | J90: 5.627850783e-06 | K90: 0 | L90: 0 | M90: 0 | N90: 0 | O90: 0 | P90: 0 | Q90: 0 | R90: 0 | S90: -2.5316 | U90: =G90-INDEX($C90:$G90,1,aux!$AL$1) -> 4.43 | V90: 2.50860082e-05 | W90: 2.270725442e-05 | X90: =+IF(INDEX($C90:$G90,1,aux!$AL$1)>0,(G90/INDEX($C90:$G90,1,aux!$AL$1))^(1/($G$3-INDEX($C$3:$G$3,1,aux!$AL$1)))-1,"n.d.") -> 0.7610789895 | Y90: =IF(INDEX($C90:$G90,1,aux!$AL$1)>0,(G90-INDEX($C90:$G90,1,aux!$AL$1))/INDEX($C90:$G90,1,aux!$AL$1),"n.d.") -> 8.618677043 | AA90: =O90-INDEX($K90:$O90,1,aux!$AL$1) -> 0 | AB90: 0 | AC90: 0 | AD90: =+IF(INDEX($K90:$O90,1,aux!$AL$1)>0,(O90/INDEX($K90:$O90,1,aux!$AL$1))^(1/($O$3-INDEX($K$3:$O$3,1,aux!$AL$1)))-1,"n.d.") -> n.d. | AE90: =IF(INDEX($K90:$O90,1,aux!$AL$1)>0,(O90-INDEX($K90:$O90,1,aux!$AL$1))/INDEX($K90:$O90,1,aux!$AL$1),"n.d.") -> n.d. | AX90: 10
A91: 1004 | B91: Aveia | C91: 53.678 | D91: 0 | E91: 35.158 | F91: 26.754 | G91: 49.952 | H91: 33.1084 | I91: 0.0001011109106 | J91: 7.360133309e-05 | K91: 0 | L91: 0 | M91: 1.755 | N91: 8.707 | O91: 10.387 | P91: 4.1698 | Q91: 9.265223151e-06 | R91: 4.757800466e-06 | S91: -28.9386 | U91: =G91-INDEX($C91:$G91,1,aux!$AL$1) -> -3.726 | V91: -2.109942812e-05 | W91: -1.909869751e-05 | X91: =+IF(INDEX($C91:$G91,1,aux!$AL$1)>0,(G91/INDEX($C91:$G91,1,aux!$AL$1))^(1/($G$3-INDEX($C$3:$G$3,1,aux!$AL$1)))-1,"n.d.") -> -0.01782440449 | Y91: =IF(INDEX($C91:$G91,1,aux!$AL$1)>0,(G91-INDEX($C91:$G91,1,aux!$AL$1))/INDEX($C91:$G91,1,aux!$AL$1),"n.d.") -> -0.06941391259 | AA91: =O91-INDEX($K91:$O91,1,aux!$AL$1) -> 10.387 | AB91: 7.492977489e-05 | AC91: 3.742212954e-05 | AD91: =+IF(INDEX($K91:$O91,1,aux!$AL$1)>0,(O91/INDEX($K91:$O91,1,aux!$AL$1))^(1/($O$3-INDEX($K$3:$O$3,1,aux!$AL$1)))-1,"n.d.") -> n.d. | AE91: =IF(INDEX($K91:$O91,1,aux!$AL$1)>0,(O91-INDEX($K91:$O91,1,aux!$AL$1))/INDEX($K91:$O91,1,aux!$AL$1),"n.d.") -> n.d. | AX91: 10
A92: 1005 | B92: Milho | C92: 412.586 | D92: 1461.267 | E92: 28.568 | F92: 616.092 | G92: 1829.99 | H92: 869.7006 | I92: 0.00265600934 | J92: 0.001933380156 | K92: 0 | L92: 0 | M92: 0 | N92: 0.063 | O92: 52.098 | P92: 10.4322 | Q92: 2.318016714e-05 | R92: 1.190328697e-05 | S92: -859.2684 | U92: =G92-INDEX($C92:$G92,1,aux!$AL$1) -> 1417.404 | V92: 0.008026412724 | W92: 0.007265316758 | X92: =+IF(INDEX($C92:$G92,1,aux!$AL$1)>0,(G92/INDEX($C92:$G92,1,aux!$AL$1))^(1/($G$3-INDEX($C$3:$G$3,1,aux!$AL$1)))-1,"n.d.") -> 0.4512210102 | Y92: =IF(INDEX($C92:$G92,1,aux!$AL$1)>0,(G92-INDEX($C92:$G92,1,aux!$AL$1))/INDEX($C92:$G92,1,aux!$AL$1),"n.d.") -> 3.435414677 | AA92: =O92-INDEX($K92:$O92,1,aux!$AL$1) -> 52.098 | AB92: 0.0003758247244 | AC92: 0.0001876979017 | AD92: =+IF(INDEX($K92:$O92,1,aux!$AL$1)>0,(O92/INDEX($K92:$O92,1,aux!$AL$1))^(1/($O$3-INDEX($K$3:$O$3,1,aux!$AL$1)))-1,"n.d.") -> n.d. | AE92: =IF(INDEX($K92:$O92,1,aux!$AL$1)>0,(O92-INDEX($K92:$O92,1,aux!$AL$1))/INDEX($K92:$O92,1,aux!$AL$1),"n.d.") -> n.d. | AX92: 10
A93: 1006 | B93: Arroz | C93: 3256.284 | D93: 5737.141 | E93: 4161.897 | F93: 5364.571 | G93: 6717.631 | H93: 5047.5048 | I93: 0.01541475295 | J93: 0.01122081049 | K93: 966.398 | L93: 116.961 | M93: 129.956 | N93: 359.062 | O93: 778.264 | P93: 470.1282 | Q93: 0.001044616692 | R93: 0.0005364228905 | S93: -4577.3766 | U93: =G93-INDEX($C93:$G93,1,aux!$AL$1) -> 3461.347 | V93: 0.0196007628 | W93: 0.01774214152 | X93: =+IF(INDEX($C93:$G93,1,aux!$AL$1)>0,(G93/INDEX($C93:$G93,1,aux!$AL$1))^(1/($G$3-INDEX($C$3:$G$3,1,aux!$AL$1)))-1,"n.d.") -> 0.1984597895 | Y93: =IF(INDEX($C93:$G93,1,aux!$AL$1)>0,(G93-INDEX($C93:$G93,1,aux!$AL$1))/INDEX($C93:$G93,1,aux!$AL$1),"n.d.") -> 1.062974544 | AA93: =O93-INDEX($K93:$O93,1,aux!$AL$1) -> -188.134 | AB93: -0.00135716167 | AC93: -0.0006778063847 | AD93: =+IF(INDEX($K93:$O93,1,aux!$AL$1)>0,(O93/INDEX($K93:$O93,1,aux!$AL$1))^(1/($O$3-INDEX($K$3:$O$3,1,aux!$AL$1)))-1,"n.d.") -> -0.05268867378 | AE93: =IF(INDEX($K93:$O93,1,aux!$AL$1)>0,(O93-INDEX($K93:$O93,1,aux!$AL$1))/INDEX($K93:$O93,1,aux!$AL$1),"n.d.") -> -0.1946754857 | AX93: 10
A94: 1007 | B94: Sorgo de grão | C94: 42.135 | D94: 54.677 | E94: 38.096 | F94: 93.517 | G94: 38.227 | H94: 53.3304 | I94: 0.0001628675897 | J94: 0.0001185556697 | K94: 54.208 | L94: 0 | M94: 0 | N94: 47.431 | O94: 0 | P94: 20.3278 | Q94: 4.516801841e-05 | R94: 2.31943058e-05 | S94: -33.0026 | U94: =G94-INDEX($C94:$G94,1,aux!$AL$1) -> -3.908 | V94: -2.213004967e-05 | W94: -2.003159148e-05 | X94: =+IF(INDEX($C94:$G94,1,aux!$AL$1)>0,(G94/INDEX($C94:$G94,1,aux!$AL$1))^(1/($G$3-INDEX($C$3:$G$3,1,aux!$AL$1)))-1,"n.d.") -> -0.0240404804 | Y94: =IF(INDEX($C94:$G94,1,aux!$AL$1)>0,(G94-INDEX($C94:$G94,1,aux!$AL$1))/INDEX($C94:$G94,1,aux!$AL$1),"n.d.") -> -0.09274949567 | AA94: =O94-INDEX($K94:$O94,1,aux!$AL$1) -> -54.208 | AB94: -0.0003910458493 | AC94: -0.0001952997784 | AD94: =+IF(INDEX($K94:$O94,1,aux!$AL$1)>0,(O94/INDEX($K94:$O94,1,aux!$AL$1))^(1/($O$3-INDEX($K$3:$O$3,1,aux!$AL$1)))-1,"n.d.") -> -1 | AE94: =IF(INDEX($K94:$O94,1,aux!$AL$1)>0,(O94-INDEX($K94:$O94,1,aux!$AL$1))/INDEX($K94:$O94,1,aux!$AL$1),"n.d.") -> -1 | AX94: 10
A95: 1008 | B95: Trigo mourisco, painço e outros cereais | C95: 2.503 | D95: 6.257 | E95: 67.98 | F95: 26.744 | G95: 69.564 | H95: 34.6096 | I95: 0.0001056954782 | J95: 7.693856235e-05 | K95: 0 | L95: 0 | M95: 2.482 | N95: 8.814 | O95: 3.761 | P95: 3.0114 | Q95: 6.691278478e-06 | R95: 3.436049768e-06 | S95: -31.5982 | U95: =G95-INDEX($C95:$G95,1,aux!$AL$1) -> 67.061 | V95: 0.0003797500668 | W95: 0.0003437406746 | X95: =+IF(INDEX($C95:$G95,1,aux!$AL$1)>0,(G95/INDEX($C95:$G95,1,aux!$AL$1))^(1/($G$3-INDEX($C$3:$G$3,1,aux!$AL$1)))-1,"n.d.") -> 1.296047795 | Y95: =IF(INDEX($C95:$G95,1,aux!$AL$1)>0,(G95-INDEX($C95:$G95,1,aux!$AL$1))/INDEX($C95:$G95,1,aux!$AL$1),"n.d.") -> 26.7922493 | AA95: =O95-INDEX($K95:$O95,1,aux!$AL$1) -> 3.761 | AB95: 2.713111421e-05 | AC95: 1.355007502e-05 | AD95: =+IF(INDEX($K95:$O95,1,aux!$AL$1)>0,(O95/INDEX($K95:$O95,1,aux!$AL$1))^(1/($O$3-INDEX($K$3:$O$3,1,aux!$AL$1)))-1,"n.d.") -> n.d. | AE95: =IF(INDEX($K95:$O95,1,aux!$AL$1)>0,(O95-INDEX($K95:$O95,1,aux!$AL$1))/INDEX($K95:$O95,1,aux!$AL$1),"n.d.") -> n.d. | AX95: 10
A96: 10SS | B96: Cereais | C96: 0 | D96: 0 | E96: 0 | F96: 0 | G96: 0 | H96: 0 | I96: 0 | J96: 0 | K96: 0 | L96: 0 | M96: 0 | N96: 0 | O96: 0 | P96: 0 | Q96: 0 | R96: 0 | S96: 0 | U96: =G96-INDEX($C96:$G96,1,aux!$AL$1) -> 0 | V96: 0 | W96: 0 | X96: =+IF(INDEX($C96:$G96,1,aux!$AL$1)>0,(G96/INDEX($C96:$G96,1,aux!$AL$1))^(1/($G$3-INDEX($C$3:$G$3,1,aux!$AL$1)))-1,"n.d.") -> n.d. | Y96: =IF(INDEX($C96:$G96,1,aux!$AL$1)>0,(G96-INDEX($C96:$G96,1,aux!$AL$1))/INDEX($C96:$G96,1,aux!$AL$1),"n.d.") -> n.d. | AA96: =O96-INDEX($K96:$O96,1,aux!$AL$1) -> 0 | AB96: 0 | AC96: 0 | AD96: =+IF(INDEX($K96:$O96,1,aux!$AL$1)>0,(O96/INDEX($K96:$O96,1,aux!$AL$1))^(1/($O$3-INDEX($K$3:$O$3,1,aux!$AL$1)))-1,"n.d.") -> n.d. | AE96: =IF(INDEX($K96:$O96,1,aux!$AL$1)>0,(O96-INDEX($K96:$O96,1,aux!$AL$1))/INDEX($K96:$O96,1,aux!$AL$1),"n.d.") -> n.d. | AX96: 10
A97: 1101 | B97: Farinhas de trigo ou trigo/centeio | C97: 894.561 | D97: 1069.204 | E97: 1167 | F97: 1181.519 | G97: 2524.585 | H97: 1367.3738 | I97: 0.00417587108 | J97: 0.003039728121 | K97: 15.692 | L97: 0.771 | M97: 10.817 | N97: 0.088 | O97: 0.285 | P97: 5.5306 | Q97: 1.228889711e-05 | R97: 6.310492411e-06 | S97: -1361.8432 | U97: =G97-INDEX($C97:$G97,1,aux!$AL$1) -> 1630.024 | V97: 0.009230427862 | W97: 0.008355162454 | X97: =+IF(INDEX($C97:$G97,1,aux!$AL$1)>0,(G97/INDEX($C97:$G97,1,aux!$AL$1))^(1/($G$3-INDEX($C$3:$G$3,1,aux!$AL$1)))-1,"n.d.") -> 0.2961193946 | Y97: =IF(INDEX($C97:$G97,1,aux!$AL$1)>0,(G97-INDEX($C97:$G97,1,aux!$AL$1))/INDEX($C97:$G97,1,aux!$AL$1),"n.d.") -> 1.822149635 | AA97: =O97-INDEX($K97:$O97,1,aux!$AL$1) -> -15.407 | AB97: -0.0001111430675 | AC97: -5.550811108e-05 | AD97: =+IF(INDEX($K97:$O97,1,aux!$AL$1)>0,(O97/INDEX($K97:$O97,1,aux!$AL$1))^(1/($O$3-INDEX($K$3:$O$3,1,aux!$AL$1)))-1,"n.d.") -> -0.6328938669 | AE97: =IF(INDEX($K97:$O97,1,aux!$AL$1)>0,(O97-INDEX($K97:$O97,1,aux!$AL$1))/INDEX($K97:$O97,1,aux!$AL$1),"n.d.") -> -0.9818378792 | AX97: 11
A98: 1102 | B98: Outras farinhas de cereais | C98: 272.546 | D98: 1332.783 | E98: 1331.467 | F98: 1440.178 | G98: 1529.914 | H98: 1181.3776 | I98: 0.003607850724 | J98: 0.002626250929 | K98: 13.974 | L98: 0.615 | M98: 0.257 | N98: 59.23 | O98: 135.298 | P98: 41.8748 | Q98: 9.304507804e-05 | R98: 4.777973595e-05 | S98: -1139.5028 | U98: =G98-INDEX($C98:$G98,1,aux!$AL$1) -> 1257.368 | V98: 0.007120167936 | W98: 0.006445005659 | X98: =+IF(INDEX($C98:$G98,1,aux!$AL$1)>0,(G98/INDEX($C98:$G98,1,aux!$AL$1))^(1/($G$3-INDEX($C$3:$G$3,1,aux!$AL$1)))-1,"n.d.") -> 0.5392416331 | Y98: =IF(INDEX($C98:$G98,1,aux!$AL$1)>0,(G98-INDEX($C98:$G98,1,aux!$AL$1))/INDEX($C98:$G98,1,aux!$AL$1),"n.d.") -> 4.613415717 | AA98: =O98-INDEX($K98:$O98,1,aux!$AL$1) -> 121.324 | AB98: 0.0008752074717 | AC98: 0.0004371043077 | AD98: =+IF(INDEX($K98:$O98,1,aux!$AL$1)>0,(O98/INDEX($K98:$O98,1,aux!$AL$1))^(1/($O$3-INDEX($K$3:$O$3,1,aux!$AL$1)))-1,"n.d.") -> 0.7639759492 | AE98: =IF(INDEX($K98:$O98,1,aux!$AL$1)>0,(O98-INDEX($K98:$O98,1,aux!$AL$1))/INDEX($K98:$O98,1,aux!$AL$1),"n.d.") -> 8.682123944 | AX98: 11
A99: 1103 | B99: Grumos, sêmolas, etc. de cereais | C99: 36.309 | D99: 20.889 | E99: 69.76 | F99: 70.816 | G99: 192.561 | H99: 78.067 | I99: 0.000238411565 | J99: 0.0001735461475 | K99: 3.999 | L99: 0.094 | M99: 0 | N99: 0 | O99: 0.183 | P99: 0.8552 | Q99: 1.900239541e-06 | R99: 9.75795232e-07 | S99: -77.2118 | U99: =G99-INDEX($C99:$G99,1,aux!$AL$1) -> 156.252 | V99: 0.0008848169195 | W99: 0.0008009151054 | X99: =+IF(INDEX($C99:$G99,1,aux!$AL$1)>0,(G99/INDEX($C99:$G99,1,aux!$AL$1))^(1/($G$3-INDEX($C$3:$G$3,1,aux!$AL$1)))-1,"n.d.") -> 0.5175342831 | Y99: =IF(INDEX($C99:$G99,1,aux!$AL$1)>0,(G99-INDEX($C99:$G99,1,aux!$AL$1))/INDEX($C99:$G99,1,aux!$AL$1),"n.d.") -> 4.303395852 | AA99: =O99-INDEX($K99:$O99,1,aux!$AL$1) -> -3.816 | AB99: -2.75278734e-05 | AC99: -1.37482282e-05 | AD99: =+IF(INDEX($K99:$O99,1,aux!$AL$1)>0,(O99/INDEX($K99:$O99,1,aux!$AL$1))^(1/($O$3-INDEX($K$3:$O$3,1,aux!$AL$1)))-1,"n.d.") -> -0.5374859592 | AE99: =IF(INDEX($K99:$O99,1,aux!$AL$1)>0,(O99-INDEX($K99:$O99,1,aux!$AL$1))/INDEX($K99:$O99,1,aux!$AL$1),"n.d.") -> -0.9542385596 | AX99: 11
A100: 1104 | B100: Grãos de cereais processados | C100: 17.414 | D100: 87.548 | E100: 51.576 | F100: 68.972 | G100: 195.81 | H100: 84.264 | I100: 0.0002573368019 | J100: 0.0001873223331 | K100: 5.521 | L100: 0.77 | M100: 0.9 | N100: 3.946 | O100: 4.588 | P100: 3.145 | Q100: 6.988135357e-06 | R100: 3.588489248e-06 | S100: -81.119 | U100: =G100-INDEX($C100:$G100,1,aux!$AL$1) -> 178.396 | V100: 0.001010212984 | W100: 0.0009144206228 | X100: =+IF(INDEX($C100:$G100,1,aux!$AL$1)>0,(G100/INDEX($C100:$G100,1,aux!$AL$1))^(1/($G$3-INDEX($C$3:$G$3,1,aux!$AL$1)))-1,"n.d.") -> 0.8311928411 | Y100: =IF(INDEX($C100:$G100,1,aux!$AL$1)>0,(G100-INDEX($C100:$G100,1,aux!$AL$1))/INDEX($C100:$G100,1,aux!$AL$1),"n.d.") -> 10.24440106 | AA100: =O100-INDEX($K100:$O100,1,aux!$AL$1) -> -0.933 | AB100: -6.73047848e-06 | AC100: -3.361398561e-06 | AD100: =+IF(INDEX($K100:$O100,1,aux!$AL$1)>0,(O100/INDEX($K100:$O100,1,aux!$AL$1))^(1/($O$3-INDEX($K$3:$O$3,1,aux!$AL$1)))-1,"n.d.") -> -0.04522417188 | AE100: =IF(INDEX($K100:$O100,1,aux!$AL$1)>0,(O100-INDEX($K100:$O100,1,aux!$AL$1))/INDEX($K100:$O100,1,aux!$AL$1),"n.d.") -> -0.1689911248 | AX100: 11
